Workbook

Sheet Input
D2: INSERT GRAPH | E2: PLCR | F2: =Model!F186 -> 1.690330971 | H2: Project IRR | J2: =Model!F26 -> 0.05630374253 | K2: Average Debt Life | M2: =Model!F194 -> 12.70073588
E3: DSCR | F3: =Model!F173 -> 1.4 | H3: Equity IRR | J3: =Model!F169 -> 0.07353937328
E4: LLCR | F4: =Model!F181 -> 1.4 | H4: Debt IRR | J4: =Model!F196 -> 0.04056900442
B5: Timing Inputs
D6: Financial Close | E6: Date | F6: 2020-01-01
D7: Construction Period | E7: Months | F7: 36
D8: Commercial Operation | E8: Date | F8: =EDATE(F6,F7) -> 2023-01-01
D9: Operation Period | E9: Years | F9: 30
D10: Decommissioning | E10: Date | F10: =EDATE(F8,F9*12) -> 2053-01-01
D12: Pre-COD Periods | E12: Periods | F12: =F7 -> 36
D13: Months in Period Pre-COD | E13: Months | F13: 1
D14: Months in Period Post-COD | E14: Months | F14: 6
B16: Operating Inputs
C17: Captial Expenditures | E17: Eur | F17: 2500
H18: Sum | I18: 1 | J18: 2 | K18: 3 | L18: 4 | M18: 5 | N18: 6 | O18: 7 | P18: 8 | Q18: 9 | R18: 10 | S18: 11 | T18: 12 | U18: 13 | V18: 14 | W18: 15 | X18: 16 | Y18: 17 | Z18: 18 | AA18: 19 | AB18: 20 | AC18: 21 | AD18: 22 | AE18: 23 | AF18: 24 | AG18: 25 | AH18: 26 | AI18: 27 | AJ18: 28 | AK18: 29 | AL18: 30 | AM18: 31 | AN18: 32 | AO18: 33 | AP18: 34 | AQ18: 35 | AR18: 36 | AS18: 37 | AT18: 38 | AU18: 39 | AV18: 40 | AW18: 41 | AX18: 42 | AY18: 43 | AZ18: 44 | BA18: 45 | BB18: 46 | BC18: 47 | BD18: 48 | BE18: 49 | BF18: 50
D19: Flag | E19: Period | F19: =F7 -> 36 | I19: =(I18<=$F$19)*1 -> 1 | J19: =(J18<=$F$19)*1 -> 1 | K19: 1 | L19: 1 | M19: 1 | N19: 1 | O19: 1 | P19: 1 | Q19: 1 | R19: 1 | S19: 1 | T19: 1 | U19: 1 | V19: 1 | W19: 1 | X19: 1 | Y19: 1 | Z19: 1 | AA19: 1 | AB19: 1 | AC19: 1 | AD19: 1 | AE19: 1 | AF19: 1 | AG19: 1 | AH19: 1 | AI19: 1 | AJ19: 1 | AK19: 1 | AL19: 1 | AM19: 1 | AN19: 1 | AO19: 1 | AP19: 1 | AQ19: 1 | AR19: 1 | AS19: 0 | AT19: 0 | AU19: 0 | AV19: 0 | AW19: 0 | AX19: 0 | AY19: 0 | AZ19: 0 | BA19: 0 | BB19: 0 | BC19: 0 | BD19: 0 | BE19: 0 | BF19: 0
D20: Normal (Mean and Std) | E20: =F7/2 -> 18 | F20: 8 | H20: =SUM(I20:BF20) -> 0.9856748603 | I20: =_xlfn.NORM.DIST(I18,$E$20,$F$20,0) -> 0.005215123157 | J20: =_xlfn.NORM.DIST(J18,$E$20,$F$20,0) -> 0.006748870814 | K20: 0.008598284478 | L20: 0.01078466485 | M20: 0.01331728352 | N20: 0.01618969946 | O20: 0.01937653318 | P20: 0.02283113567 | Q20: 0.02648458072 | R20: 0.03024634056 | S20: 0.0340068748 | T20: 0.03764217902 | U20: 0.04102012107 | V20: 0.04400816585 | W20: 0.04648188673 | X20: 0.0483335146 | Y20: 0.04947971087 | Z20: 0.04986778505 | AA20: 0.04947971087 | AB20: 0.0483335146 | AC20: 0.04648188673 | AD20: 0.04400816585 | AE20: 0.04102012107 | AF20: 0.03764217902 | AG20: 0.0340068748 | AH20: 0.03024634056 | AI20: 0.02648458072 | AJ20: 0.02283113567 | AK20: 0.01937653318 | AL20: 0.01618969946 | AM20: 0.01331728352 | AN20: 0.01078466485 | AO20: 0.008598284478 | AP20: 0.006748870814 | AQ20: 0.005215123157 | AR20: 0.003967456479 | AS20: 0.002971487604 | AT20: 0.002191037562 | AU20: 0.0015905227 | AV20: 0.001136695313 | AW20: 0.0007997650388 | AX20: 0.0005539810515 | AY20: 0.0003777822544 | AZ20: 0.0002536310072 | BA20: 0.0001676398592 | BB20: 0.0001090853369 | BC20: 6.988269028e-05 | BD20: 4.40744603e-05 | BE20: 2.736645472e-05 | BF20: 1.672877822e-05
D22: S-Curve | E22: % p.p. | H22: =SUM(I22:BF22) -> 1 | I22: =I20/$H$20 -> 0.005290916272 | J22: =J20/$H$20 -> 0.006846954392 | K22: 0.008723246198 | L22: 0.01094140196 | M22: 0.01351082801 | N22: 0.01642498973 | O22: 0.01965813877 | P22: 0.02316294814 | Q22: 0.02686948992 | R22: 0.03068592066 | S22: 0.03450110799 | T22: 0.03818924529 | U22: 0.04161628009 | V22: 0.04464775112 | W22: 0.04715742341 | X22: 0.0490359616 | Y22: 0.05019881592 | Z22: 0.05059253011 | AA22: 0.05019881592 | AB22: 0.0490359616 | AC22: 0.04715742341 | AD22: 0.04464775112 | AE22: 0.04161628009 | AF22: 0.03818924529 | AG22: 0.03450110799 | AH22: 0.03068592066 | AI22: 0.02686948992 | AJ22: 0.02316294814 | AK22: 0.01965813877 | AL22: 0.01642498973 | AM22: 0.01351082801 | AN22: 0.01094140196 | AO22: 0.008723246198 | AP22: 0.006846954392 | AQ22: 0.005290916272 | AR22: 0.00402511684 | AS22: 0.003014673219 | AT22: 0.002222880637 | AU22: 0.001613638294 | AV22: 0.001153215283 | AW22: 0.0008113882894 | AX22: 0.0005620322418 | AY22: 0.0003832726892 | AZ22: 0.0002573171107 | BA22: 0.0001700762249 | BB22: 0.0001106707103 | BC22: 7.089831859e-05 | BD22: 4.471500905e-05 | BE22: 2.776418048e-05 | BF22: 1.69719031e-05
C24: EBITDA/CFADS
D25: Year after COD | F25: 0 | G25: 1 | H25: 2 | I25: 3 | J25: 4 | K25: 5 | L25: 6 | M25: 7 | N25: 8 | O25: 9 | P25: 10 | Q25: 11 | R25: 12 | S25: 13 | T25: 14 | U25: 15 | V25: 16 | W25: 17 | X25: 18 | Y25: 19 | Z25: 20 | AA25: 21 | AB25: 22 | AC25: 23 | AD25: 24 | AE25: 25 | AF25: 26 | AG25: 27 | AH25: 28 | AI25: 29 | AJ25: 30 | AK25: 31 | AL25: 32 | AM25: 33 | AN25: 34 | AO25: 35 | AP25: 36 | AQ25: 37 | AR25: 38 | AS25: 39 | AT25: 40
D26: EBITDA/CFADS per Period | E26: Eur | G26: 75 | H26: 80 | I26: 95 | J26: 110 | K26: 110 | L26: 110 | M26: 110 | N26: 110 | O26: 80 | P26: 80 | Q26: 80 | R26: 80 | S26: 80 | T26: 80 | U26: 80 | V26: 95 | W26: 95 | X26: 95 | Y26: 95 | Z26: 95 | AA26: 95 | AB26: 95 | AC26: 95 | AD26: 95 | AE26: 95 | AF26: 95 | AG26: 95 | AH26: 95 | AI26: 95 | AJ26: 100 | AK26: 0 | AL26: 0 | AM26: 0 | AN26: 0 | AO26: 0 | AP26: 0 | AQ26: 0 | AR26: 0 | AS26: 0 | AT26: 0
F28: 0 | G28: 1
D29: Seasonality - SA Period 1 | E29: % | F29: 0.8 | G29: 1.2
B31: Financing Inputs
C32: Debt Size
D33: Min DSCR | E33: x | F33: 1.4
C35: Debt Funding
D36: Equity Up-Front (Zero is Pro Rata) | E36: % | F36: 0.4
C38: Debt Repayment
D39: Tenor | E39: Year | F39: 22
D40: Repayment Date | E40: Date | F40: =EDATE(F8,F39*12) -> 2045-01-01
C42: Interest Rate and Fees
D43: Base Swap Rate | E43: % p.a. | F43: 0.02
D45: Credit Spread Period | G45: =F6 -> 2020-01-01 | H45: =F8 -> 2023-01-01 | I45: =EDATE(H45,24) -> 2025-01-01 | J45: =EDATE(I45,24) -> 2027-01-01 | K45: 2029-01-01
D46: Credit Spread Amount | E46: % p.a. | G46: 0.015 | H46: 0.017 | I46: 0.0175 | J46: 0.018 | K46: 0.0185
D48: Up-Front Fee | E48: % | F48: 0.015
D49: Commitment Fee | E49: % p.a. | F49: 0.006
C51: DSRA
D52: Months | E52: Month | F52: 6
D53: Periods | E53: Periods | F53: =F52/F14 -> 1

Sheet Model
E1: Units | F1: Driver 1 | G1: Driver 2 | H1: Sum | I1: Test/Start
B2: Timing
C3: Period | E3: # | J3: 1 | K3: 2 | L3: 3 | M3: 4 | N3: 5 | O3: 6 | P3: 7 | Q3: 8 | R3: 9 | S3: 10 | T3: 11 | U3: 12 | V3: 13 | W3: 14 | X3: 15 | Y3: 16 | Z3: 17 | AA3: 18 | AB3: 19 | AC3: 20 | AD3: 21 | AE3: 22 | AF3: 23 | AG3: 24 | AH3: 25 | AI3: 26 | AJ3: 27 | AK3: 28 | AL3: 29 | AM3: 30 | AN3: 31 | AO3: 32 | AP3: 33 | AQ3: 34 | AR3: 35 | AS3: 36 | AT3: 37 | AU3: 38 | AV3: 39 | AW3: 40 | AX3: 41 | AY3: 42 | AZ3: 43 | BA3: 44 | BB3: 45 | BC3: 46 | BD3: 47 | BE3: 48 | BF3: 49 | BG3: 50 | BH3: 51 | BI3: 52 | BJ3: 53 | BK3: 54 | BL3: 55 | BM3: 56 | BN3: 57 | BO3: 58 | BP3: 59 | BQ3: 60 | BR3: 61 | BS3: 62 | BT3: 63 | BU3: 64 | BV3: 65 | BW3: 66 | BX3: 67 | BY3: 68 | BZ3: 69 | CA3: 70 | CB3: 71 | CC3: 72 | CD3: 73 | CE3: 74 | CF3: 75 | CG3: 76 | CH3: 77 | CI3: 78 | CJ3: 79 | CK3: 80 | CL3: 81 | CM3: 82 | CN3: 83 | CO3: 84 | CP3: 85 | CQ3: 86 | CR3: 87 | CS3: 88 | CT3: 89 | CU3: 90 | CV3: 91 | CW3: 92 | CX3: 93 | CY3: 94 | CZ3: 95 | DA3: 96 | DB3: 97 | DC3: 98 | DD3: 99 | DE3: 100 | DF3: 101 | DG3: 102 | DH3: 103 | DI3: 104 | DJ3: 105 | DK3: 106 | DL3: 107 | DM3: 108 | DN3: 109 | DO3: 110 | DP3: 111 | DQ3: 112 | DR3: 113 | DS3: 114 | DT3: 115 | DU3: 116 | DV3: 117 | DW3: 118 | DX3: 119 | DY3: 120 | DZ3: 121 | EA3: 122 | EB3: 123 | EC3: 124 | ED3: 125 | EE3: 126 | EF3: 127 | EG3: 128 | EH3: 129 | EI3: 130 | EJ3: 131 | EK3: 132 | EL3: 133 | EM3: 134 | EN3: 135 | EO3: 136 | EP3: 137 | EQ3: 138 | ER3: 139 | ES3: 140 | ET3: 141 | EU3: 142 | EV3: 143 | EW3: 144 | EX3: 145 | EY3: 146 | EZ3: 147 | FA3: 148 | FB3: 149 | FC3: 150
C4: Pre-COD Flag | F4: =Input!F12 -> 36 | H4: =SUM(J4:FC4) -> 36 | J4: =(J3<=$F$4)*1 -> 1 | K4: =(K3<=$F$4)*1 -> 1 | L4: 1 | M4: 1 | N4: 1 | O4: 1 | P4: 1 | Q4: 1 | R4: 1 | S4: 1 | T4: 1 | U4: 1 | V4: 1 | W4: 1 | X4: 1 | Y4: 1 | Z4: 1 | AA4: 1 | AB4: 1 | AC4: 1 | AD4: 1 | AE4: 1 | AF4: 1 | AG4: 1 | AH4: 1 | AI4: 1 | AJ4: 1 | AK4: 1 | AL4: 1 | AM4: 1 | AN4: 1 | AO4: 1 | AP4: 1 | AQ4: 1 | AR4: 1 | AS4: 1 | AT4: 0 | AU4: 0 | AV4: 0 | AW4: 0 | AX4: 0 | AY4: 0 | AZ4: 0 | BA4: 0 | BB4: 0 | BC4: 0 | BD4: 0 | BE4: 0 | BF4: 0 | BG4: 0 | BH4: 0 | BI4: 0 | BJ4: 0 | BK4: 0 | BL4: 0 | BM4: 0 | BN4: 0 | BO4: 0 | BP4: 0 | BQ4: 0 | BR4: 0 | BS4: 0 | BT4: 0 | BU4: 0 | BV4: 0 | BW4: =(BW3<=$F$4)*1 -> 0 | BX4: 0 | BY4: 0 | BZ4: 0 | CA4: 0 | CB4: 0 | CC4: 0 | CD4: 0 | CE4: 0 | CF4: 0 | CG4: 0 | CH4: 0 | CI4: 0 | CJ4: 0 | CK4: 0 | CL4: 0 | CM4: 0 | CN4: 0 | CO4: 0 | CP4: 0 | CQ4: 0 | CR4: 0 | CS4: 0 | CT4: 0 | CU4: 0 | CV4: 0 | CW4: 0 | CX4: 0 | CY4: 0 | CZ4: 0 | DA4: 0 | DB4: 0 | DC4: 0 | DD4: 0 | DE4: 0 | DF4: 0 | DG4: 0 | DH4: 0 | DI4: 0 | DJ4: 0 | DK4: 0 | DL4: 0 | DM4: 0 | DN4: 0 | DO4: 0 | DP4: 0 | DQ4: 0 | DR4: 0 | DS4: 0 | DT4: 0 | DU4: 0 | DV4: 0 | DW4: 0 | DX4: 0 | DY4: 0 | DZ4: 0 | EA4: 0 | EB4: 0 | EC4: 0 | ED4: 0 | EE4: 0 | EF4: 0 | EG4: 0 | EH4: 0 | EI4: =(EI3<=$F$4)*1 -> 0 | EJ4: 0 | EK4: 0 | EL4: 0 | EM4: 0 | EN4: 0 | EO4: 0 | EP4: 0 | EQ4: 0 | ER4: 0 | ES4: 0 | ET4: 0 | EU4: 0 | EV4: 0 | EW4: 0 | EX4: 0 | EY4: 0 | EZ4: 0 | FA4: 0 | FB4: 0 | FC4: 0
C5: Months per Period | F5: =Input!F13 -> 1 | G5: =Input!F14 -> 6 | J5: =IF(J4,$F$5,$G$5) -> 1 | K5: =IF(K4,$F$5,$G$5) -> 1 | L5: 1 | M5: 1 | N5: 1 | O5: 1 | P5: 1 | Q5: 1 | R5: 1 | S5: 1 | T5: 1 | U5: 1 | V5: 1 | W5: 1 | X5: 1 | Y5: 1 | Z5: 1 | AA5: 1 | AB5: 1 | AC5: 1 | AD5: 1 | AE5: 1 | AF5: 1 | AG5: 1 | AH5: 1 | AI5: 1 | AJ5: 1 | AK5: 1 | AL5: 1 | AM5: 1 | AN5: 1 | AO5: 1 | AP5: 1 | AQ5: 1 | AR5: 1 | AS5: 1 | AT5: 6 | AU5: 6 | AV5: 6 | AW5: 6 | AX5: 6 | AY5: 6 | AZ5: 6 | BA5: 6 | BB5: 6 | BC5: 6 | BD5: 6 | BE5: 6 | BF5: 6 | BG5: 6 | BH5: 6 | BI5: 6 | BJ5: 6 | BK5: 6 | BL5: 6 | BM5: 6 | BN5: 6 | BO5: 6 | BP5: 6 | BQ5: 6 | BR5: 6 | BS5: 6 | BT5: 6 | BU5: 6 | BV5: 6 | BW5: =IF(BW4,$F$5,$G$5) -> 6 | BX5: 6 | BY5: 6 | BZ5: 6 | CA5: 6 | CB5: 6 | CC5: 6 | CD5: 6 | CE5: 6 | CF5: 6 | CG5: 6 | CH5: 6 | CI5: 6 | CJ5: 6 | CK5: 6 | CL5: 6 | CM5: 6 | CN5: 6 | CO5: 6 | CP5: 6 | CQ5: 6 | CR5: 6 | CS5: 6 | CT5: 6 | CU5: 6 | CV5: 6 | CW5: 6 | CX5: 6 | CY5: 6 | CZ5: 6 | DA5: 6 | DB5: 6 | DC5: 6 | DD5: 6 | DE5: 6 | DF5: 6 | DG5: 6 | DH5: 6 | DI5: 6 | DJ5: 6 | DK5: 6 | DL5: 6 | DM5: 6 | DN5: 6 | DO5: 6 | DP5: 6 | DQ5: 6 | DR5: 6 | DS5: 6 | DT5: 6 | DU5: 6 | DV5: 6 | DW5: 6 | DX5: 6 | DY5: 6 | DZ5: 6 | EA5: 6 | EB5: 6 | EC5: 6 | ED5: 6 | EE5: 6 | EF5: 6 | EG5: 6 | EH5: 6 | EI5: =IF(EI4,$F$5,$G$5) -> 6 | EJ5: 6 | EK5: 6 | EL5: 6 | EM5: 6 | EN5: 6 | EO5: 6 | EP5: 6 | EQ5: 6 | ER5: 6 | ES5: 6 | ET5: 6 | EU5: 6 | EV5: 6 | EW5: 6 | EX5: 6 | EY5: 6 | EZ5: 6 | FA5: 6 | FB5: 6 | FC5: 6
C6: Start of Period | J6: =I7+1 -> 2020-01-01 | K6: =J7+1 -> 2020-02-01 | L6: 2020-03-01 | M6: 2020-04-01 | N6: 2020-05-01 | O6: 2020-06-01 | P6: 2020-07-01 | Q6: 2020-08-01 | R6: 2020-09-01 | S6: 2020-10-01 | T6: 2020-11-01 | U6: 2020-12-01 | V6: 2021-01-01 | W6: 2021-02-01 | X6: 2021-03-01 | Y6: 2021-04-01 | Z6: 2021-05-01 | AA6: 2021-06-01 | AB6: 2021-07-01 | AC6: 2021-08-01 | AD6: 2021-09-01 | AE6: 2021-10-01 | AF6: 2021-11-01 | AG6: 2021-12-01 | AH6: 2022-01-01 | AI6: 2022-02-01 | AJ6: 2022-03-01 | AK6: 2022-04-01 | AL6: 2022-05-01 | AM6: 2022-06-01 | AN6: 2022-07-01 | AO6: 2022-08-01 | AP6: 2022-09-01 | AQ6: 2022-10-01 | AR6: 2022-11-01 | AS6: 2022-12-01 | AT6: 2023-01-01 | AU6: 2023-07-01 | AV6: 2024-01-01 | AW6: 2024-07-01 | AX6: 2025-01-01 | AY6: 2025-07-01 | AZ6: 2026-01-01 | BA6: 2026-07-01 | BB6: 2027-01-01 | BC6: 2027-07-01 | BD6: 2028-01-01 | BE6: 2028-07-01 | BF6: 2029-01-01 | BG6: 2029-07-01 | BH6: 2030-01-01 | BI6: 2030-07-01 | BJ6: 2031-01-01 | BK6: 2031-07-01 | BL6: 2032-01-01 | BM6: 2032-07-01 | BN6: 2033-01-01 | BO6: 2033-07-01 | BP6: 2034-01-01 | BQ6: 2034-07-01 | BR6: 2035-01-01 | BS6: 2035-07-01 | BT6: 2036-01-01 | BU6: 2036-07-01 | BV6: 2037-01-01 | BW6: =BV7+1 -> 2037-07-01 | BX6: 2038-01-01 | BY6: 2038-07-01 | BZ6: 2039-01-01 | CA6: 2039-07-01 | CB6: 2040-01-01 | CC6: 2040-07-01 | CD6: 2041-01-01 | CE6: 2041-07-01 | CF6: 2042-01-01 | CG6: 2042-07-01 | CH6: 2043-01-01 | CI6: 2043-07-01 | CJ6: 2044-01-01 | CK6: 2044-07-01 | CL6: 2045-01-01 | CM6: 2045-07-01 | CN6: 2046-01-01 | CO6: 2046-07-01 | CP6: 2047-01-01 | CQ6: 2047-07-01 | CR6: 2048-01-01 | CS6: 2048-07-01 | CT6: 2049-01-01 | CU6: 2049-07-01 | CV6: 2050-01-01 | CW6: 2050-07-01 | CX6: 2051-01-01 | CY6: 2051-07-01 | CZ6: 2052-01-01 | DA6: 2052-07-01 | DB6: 2053-01-01 | DC6: 2053-07-01 | DD6: 2054-01-01 | DE6: 2054-07-01 | DF6: 2055-01-01 | DG6: 2055-07-01 | DH6: 2056-01-01 | DI6: 2056-07-01 | DJ6: 2057-01-01 | DK6: 2057-07-01 | DL6: 2058-01-01 | DM6: 2058-07-01 | DN6: 2059-01-01 | DO6: 2059-07-01 | DP6: 2060-01-01 | DQ6: 2060-07-01 | DR6: 2061-01-01 | DS6: 2061-07-01 | DT6: 2062-01-01 | DU6: 2062-07-01 | DV6: 2063-01-01 | DW6: 2063-07-01 | DX6: 2064-01-01 | DY6: 2064-07-01 | DZ6: 2065-01-01 | EA6: 2065-07-01 | EB6: 2066-01-01 | EC6: 2066-07-01 | ED6: 2067-01-01 | EE6: 2067-07-01 | EF6: 2068-01-01 | EG6: 2068-07-01 | EH6: 2069-01-01 | EI6: =EH7+1 -> 2069-07-01 | EJ6: 2070-01-01 | EK6: 2070-07-01 | EL6: 2071-01-01 | EM6: 2071-07-01 | EN6: 2072-01-01 | EO6: 2072-07-01 | EP6: 2073-01-01 | EQ6: 2073-07-01 | ER6: 2074-01-01 | ES6: 2074-07-01 | ET6: 2075-01-01 | EU6: 2075-07-01 | EV6: 2076-01-01 | EW6: 2076-07-01 | EX6: 2077-01-01 | EY6: 2077-07-01 | EZ6: 2078-01-01 | FA6: 2078-07-01 | FB6: 2079-01-01 | FC6: 2079-07-01
C7: End of Period | I7: =Input!F6-1 -> 2019-12-31 | J7: =EDATE(J6,J5)-1 -> 2020-01-31 | K7: =EDATE(K6,K5)-1 -> 2020-02-29 | L7: 2020-03-31 | M7: 2020-04-30 | N7: 2020-05-31 | O7: 2020-06-30 | P7: 2020-07-31 | Q7: 2020-08-31 | R7: 2020-09-30 | S7: 2020-10-31 | T7: 2020-11-30 | U7: 2020-12-31 | V7: 2021-01-31 | W7: 2021-02-28 | X7: 2021-03-31 | Y7: 2021-04-30 | Z7: 2021-05-31 | AA7: 2021-06-30 | AB7: 2021-07-31 | AC7: 2021-08-31 | AD7: 2021-09-30 | AE7: 2021-10-31 | AF7: 2021-11-30 | AG7: 2021-12-31 | AH7: 2022-01-31 | AI7: 2022-02-28 | AJ7: 2022-03-31 | AK7: 2022-04-30 | AL7: 2022-05-31 | AM7: 2022-06-30 | AN7: 2022-07-31 | AO7: 2022-08-31 | AP7: 2022-09-30 | AQ7: 2022-10-31 | AR7: 2022-11-30 | AS7: 2022-12-31 | AT7: 2023-06-30 | AU7: 2023-12-31 | AV7: 2024-06-30 | AW7: 2024-12-31 | AX7: 2025-06-30 | AY7: 2025-12-31 | AZ7: 2026-06-30 | BA7: 2026-12-31 | BB7: 2027-06-30 | BC7: 2027-12-31 | BD7: 2028-06-30 | BE7: 2028-12-31 | BF7: 2029-06-30 | BG7: 2029-12-31 | BH7: 2030-06-30 | BI7: 2030-12-31 | BJ7: 2031-06-30 | BK7: 2031-12-31 | BL7: 2032-06-30 | BM7: 2032-12-31 | BN7: 2033-06-30 | BO7: 2033-12-31 | BP7: 2034-06-30 | BQ7: 2034-12-31 | BR7: 2035-06-30 | BS7: 2035-12-31 | BT7: 2036-06-30 | BU7: 2036-12-31 | BV7: 2037-06-30 | BW7: =EDATE(BW6,BW5)-1 -> 2037-12-31 | BX7: 2038-06-30 | BY7: 2038-12-31 | BZ7: 2039-06-30 | CA7: 2039-12-31 | CB7: 2040-06-30 | CC7: 2040-12-31 | CD7: 2041-06-30 | CE7: 2041-12-31 | CF7: 2042-06-30 | CG7: 2042-12-31 | CH7: 2043-06-30 | CI7: 2043-12-31 | CJ7: 2044-06-30 | CK7: 2044-12-31 | CL7: 2045-06-30 | CM7: 2045-12-31 | CN7: 2046-06-30 | CO7: 2046-12-31 | CP7: 2047-06-30 | CQ7: 2047-12-31 | CR7: 2048-06-30 | CS7: 2048-12-31 | CT7: 2049-06-30 | CU7: 2049-12-31 | CV7: 2050-06-30 | CW7: 2050-12-31 | CX7: 2051-06-30 | CY7: 2051-12-31 | CZ7: 2052-06-30 | DA7: 2052-12-31 | DB7: 2053-06-30 | DC7: 2053-12-31 | DD7: 2054-06-30 | DE7: 2054-12-31 | DF7: 2055-06-30 | DG7: 2055-12-31 | DH7: 2056-06-30 | DI7: 2056-12-31 | DJ7: 2057-06-30 | DK7: 2057-12-31 | DL7: 2058-06-30 | DM7: 2058-12-31 | DN7: 2059-06-30 | DO7: 2059-12-31 | DP7: 2060-06-30 | DQ7: 2060-12-31 | DR7: 2061-06-30 | DS7: 2061-12-31 | DT7: 2062-06-30 | DU7: 2062-12-31 | DV7: 2063-06-30 | DW7: 2063-12-31 | DX7: 2064-06-30 | DY7: 2064-12-31 | DZ7: 2065-06-30 | EA7: 2065-12-31 | EB7: 2066-06-30 | EC7: 2066-12-31 | ED7: 2067-06-30 | EE7: 2067-12-31 | EF7: 2068-06-30 | EG7: 2068-12-31 | EH7: 2069-06-30 | EI7: =EDATE(EI6,EI5)-1 -> 2069-12-31 | EJ7: 2070-06-30 | EK7: 2070-12-31 | EL7: 2071-06-30 | EM7: 2071-12-31 | EN7: 2072-06-30 | EO7: 2072-12-31 | EP7: 2073-06-30 | EQ7: 2073-12-31 | ER7: 2074-06-30 | ES7: 2074-12-31 | ET7: 2075-06-30 | EU7: 2075-12-31 | EV7: 2076-06-30 | EW7: 2076-12-31 | EX7: 2077-06-30 | EY7: 2077-12-31 | EZ7: 2078-06-30 | FA7: 2078-12-31 | FB7: 2079-06-30 | FC7: 2079-12-31
C8: Operating Period | F8: =Input!F8 -> 2023-01-01 | G8: =Input!F10 -> 2053-01-01 | H8: =SUM(J8:FC8) -> 60 | J8: =AND(J6>=$F$8,J6<$G$8)*1 -> 0 | K8: =AND(K6>=$F$8,K6<$G$8)*1 -> 0 | L8: 0 | M8: 0 | N8: 0 | O8: 0 | P8: 0 | Q8: 0 | R8: 0 | S8: 0 | T8: 0 | U8: 0 | V8: 0 | W8: 0 | X8: 0 | Y8: 0 | Z8: 0 | AA8: 0 | AB8: 0 | AC8: 0 | AD8: 0 | AE8: 0 | AF8: 0 | AG8: 0 | AH8: 0 | AI8: 0 | AJ8: 0 | AK8: 0 | AL8: 0 | AM8: 0 | AN8: 0 | AO8: 0 | AP8: 0 | AQ8: 0 | AR8: 0 | AS8: 0 | AT8: 1 | AU8: 1 | AV8: 1 | AW8: 1 | AX8: 1 | AY8: 1 | AZ8: 1 | BA8: 1 | BB8: 1 | BC8: 1 | BD8: 1 | BE8: 1 | BF8: 1 | BG8: 1 | BH8: 1 | BI8: 1 | BJ8: 1 | BK8: 1 | BL8: 1 | BM8: 1 | BN8: 1 | BO8: 1 | BP8: 1 | BQ8: 1 | BR8: 1 | BS8: 1 | BT8: 1 | BU8: 1 | BV8: 1 | BW8: =AND(BW6>=$F$8,BW6<$G$8)*1 -> 1 | BX8: 1 | BY8: 1 | BZ8: 1 | CA8: 1 | CB8: 1 | CC8: 1 | CD8: 1 | CE8: 1 | CF8: 1 | CG8: 1 | CH8: 1 | CI8: 1 | CJ8: 1 | CK8: 1 | CL8: 1 | CM8: 1 | CN8: 1 | CO8: 1 | CP8: 1 | CQ8: 1 | CR8: 1 | CS8: 1 | CT8: 1 | CU8: 1 | CV8: 1 | CW8: 1 | CX8: 1 | CY8: 1 | CZ8: 1 | DA8: 1 | DB8: 0 | DC8: 0 | DD8: 0 | DE8: 0 | DF8: 0 | DG8: 0 | DH8: 0 | DI8: 0 | DJ8: 0 | DK8: 0 | DL8: 0 | DM8: 0 | DN8: 0 | DO8: 0 | DP8: 0 | DQ8: 0 | DR8: 0 | DS8: 0 | DT8: 0 | DU8: 0 | DV8: 0 | DW8: 0 | DX8: 0 | DY8: 0 | DZ8: 0 | EA8: 0 | EB8: 0 | EC8: 0 | ED8: 0 | EE8: 0 | EF8: 0 | EG8: 0 | EH8: 0 | EI8: =AND(EI6>=$F$8,EI6<$G$8)*1 -> 0 | EJ8: 0 | EK8: 0 | EL8: 0 | EM8: 0 | EN8: 0 | EO8: 0 | EP8: 0 | EQ8: 0 | ER8: 0 | ES8: 0 | ET8: 0 | EU8: 0 | EV8: 0 | EW8: 0 | EX8: 0 | EY8: 0 | EZ8: 0 | FA8: 0 | FB8: 0 | FC8: 0
B10: Operations
C11: Total Cost | E11: EUR | F11: =Input!F17 -> 2500 | J11: =$F$11*J4 -> 2500 | K11: =$F$11*K4 -> 2500 | L11: 2500 | M11: 2500 | N11: 2500 | O11: 2500 | P11: 2500 | Q11: 2500 | R11: 2500 | S11: 2500 | T11: 2500 | U11: 2500 | V11: 2500 | W11: 2500 | X11: 2500 | Y11: 2500 | Z11: 2500 | AA11: 2500 | AB11: 2500 | AC11: 2500 | AD11: 2500 | AE11: 2500 | AF11: 2500 | AG11: 2500 | AH11: 2500 | AI11: 2500 | AJ11: 2500 | AK11: 2500 | AL11: 2500 | AM11: 2500 | AN11: 2500 | AO11: 2500 | AP11: 2500 | AQ11: 2500 | AR11: 2500 | AS11: 2500 | AT11: 0 | AU11: 0 | AV11: 0 | AW11: 0 | AX11: 0 | AY11: 0 | AZ11: 0 | BA11: 0 | BB11: 0 | BC11: 0 | BD11: 0 | BE11: 0 | BF11: 0 | BG11: 0 | BH11: 0 | BI11: 0 | BJ11: 0 | BK11: 0 | BL11: 0 | BM11: 0 | BN11: 0 | BO11: 0 | BP11: 0 | BQ11: 0 | BR11: 0 | BS11: 0 | BT11: 0 | BU11: 0 | BV11: 0 | BW11: =$F$11*BW4 -> 0 | BX11: 0 | BY11: 0 | BZ11: 0 | CA11: 0 | CB11: 0 | CC11: 0 | CD11: 0 | CE11: 0 | CF11: 0 | CG11: 0 | CH11: 0 | CI11: 0 | CJ11: 0 | CK11: 0 | CL11: 0 | CM11: 0 | CN11: 0 | CO11: 0 | CP11: 0 | CQ11: 0 | CR11: 0 | CS11: 0 | CT11: 0 | CU11: 0 | CV11: 0 | CW11: 0 | CX11: 0 | CY11: 0 | CZ11: 0 | DA11: 0 | DB11: 0 | DC11: 0 | DD11: 0 | DE11: 0 | DF11: 0 | DG11: 0 | DH11: 0 | DI11: 0 | DJ11: 0 | DK11: 0 | DL11: 0 | DM11: 0 | DN11: 0 | DO11: 0 | DP11: 0 | DQ11: 0 | DR11: 0 | DS11: 0 | DT11: 0 | DU11: 0 | DV11: 0 | DW11: 0 | DX11: 0 | DY11: 0 | DZ11: 0 | EA11: 0 | EB11: 0 | EC11: 0 | ED11: 0 | EE11: 0 | EF11: 0 | EG11: 0 | EH11: 0 | EI11: =$F$11*EI4 -> 0 | EJ11: 0 | EK11: 0 | EL11: 0 | EM11: 0 | EN11: 0 | EO11: 0 | EP11: 0 | EQ11: 0 | ER11: 0 | ES11: 0 | ET11: 0 | EU11: 0 | EV11: 0 | EW11: 0 | EX11: 0 | EY11: 0 | EZ11: 0 | FA11: 0 | FB11: 0 | FC11: 0
C12: S-Curve | E12: % | J12: =LOOKUP(J3,Input!18:18,Input!22:22) -> 0.005290916272 | K12: =LOOKUP(K3,Input!18:18,Input!22:22) -> 0.006846954392 | L12: =LOOKUP(L3,Input!18:18,Input!22:22) -> 0.008723246198 | M12: =LOOKUP(M3,Input!18:18,Input!22:22) -> 0.01094140196 | N12: =LOOKUP(N3,Input!18:18,Input!22:22) -> 0.01351082801 | O12: =LOOKUP(O3,Input!18:18,Input!22:22) -> 0.01642498973 | P12: =LOOKUP(P3,Input!18:18,Input!22:22) -> 0.01965813877 | Q12: =LOOKUP(Q3,Input!18:18,Input!22:22) -> 0.02316294814 | R12: =LOOKUP(R3,Input!18:18,Input!22:22) -> 0.02686948992 | S12: =LOOKUP(S3,Input!18:18,Input!22:22) -> 0.03068592066 | T12: =LOOKUP(T3,Input!18:18,Input!22:22) -> 0.03450110799 | U12: =LOOKUP(U3,Input!18:18,Input!22:22) -> 0.03818924529 | V12: =LOOKUP(V3,Input!18:18,Input!22:22) -> 0.04161628009 | W12: =LOOKUP(W3,Input!18:18,Input!22:22) -> 0.04464775112 | X12: =LOOKUP(X3,Input!18:18,Input!22:22) -> 0.04715742341 | Y12: =LOOKUP(Y3,Input!18:18,Input!22:22) -> 0.0490359616 | Z12: =LOOKUP(Z3,Input!18:18,Input!22:22) -> 0.05019881592 | AA12: =LOOKUP(AA3,Input!18:18,Input!22:22) -> 0.05059253011 | AB12: =LOOKUP(AB3,Input!18:18,Input!22:22) -> 0.05019881592 | AC12: =LOOKUP(AC3,Input!18:18,Input!22:22) -> 0.0490359616 | AD12: =LOOKUP(AD3,Input!18:18,Input!22:22) -> 0.04715742341 | AE12: =LOOKUP(AE3,Input!18:18,Input!22:22) -> 0.04464775112 | AF12: =LOOKUP(AF3,Input!18:18,Input!22:22) -> 0.04161628009 | AG12: =LOOKUP(AG3,Input!18:18,Input!22:22) -> 0.03818924529 | AH12: =LOOKUP(AH3,Input!18:18,Input!22:22) -> 0.03450110799 | AI12: =LOOKUP(AI3,Input!18:18,Input!22:22) -> 0.03068592066 | AJ12: =LOOKUP(AJ3,Input!18:18,Input!22:22) -> 0.02686948992 | AK12: =LOOKUP(AK3,Input!18:18,Input!22:22) -> 0.02316294814 | AL12: =LOOKUP(AL3,Input!18:18,Input!22:22) -> 0.01965813877 | AM12: =LOOKUP(AM3,Input!18:18,Input!22:22) -> 0.01642498973 | AN12: =LOOKUP(AN3,Input!18:18,Input!22:22) -> 0.01351082801 | AO12: =LOOKUP(AO3,Input!18:18,Input!22:22) -> 0.01094140196 | AP12: =LOOKUP(AP3,Input!18:18,Input!22:22) -> 0.008723246198 | AQ12: =LOOKUP(AQ3,Input!18:18,Input!22:22) -> 0.006846954392 | AR12: =LOOKUP(AR3,Input!18:18,Input!22:22) -> 0.005290916272 | AS12: =LOOKUP(AS3,Input!18:18,Input!22:22) -> 0.00402511684 | AT12: =LOOKUP(AT3,Input!18:18,Input!22:22) -> 0.003014673219 | AU12: =LOOKUP(AU3,Input!18:18,Input!22:22) -> 0.002222880637 | AV12: =LOOKUP(AV3,Input!18:18,Input!22:22) -> 0.001613638294 | AW12: =LOOKUP(AW3,Input!18:18,Input!22:22) -> 0.001153215283 | AX12: =LOOKUP(AX3,Input!18:18,Input!22:22) -> 0.0008113882894 | AY12: =LOOKUP(AY3,Input!18:18,Input!22:22) -> 0.0005620322418 | AZ12: =LOOKUP(AZ3,Input!18:18,Input!22:22) -> 0.0003832726892 | BA12: =LOOKUP(BA3,Input!18:18,Input!22:22) -> 0.0002573171107 | BB12: =LOOKUP(BB3,Input!18:18,Input!22:22) -> 0.0001700762249 | BC12: =LOOKUP(BC3,Input!18:18,Input!22:22) -> 0.0001106707103 | BD12: =LOOKUP(BD3,Input!18:18,Input!22:22) -> 7.089831859e-05 | BE12: =LOOKUP(BE3,Input!18:18,Input!22:22) -> 4.471500905e-05 | BF12: =LOOKUP(BF3,Input!18:18,Input!22:22) -> 2.776418048e-05 | BG12: =LOOKUP(BG3,Input!18:18,Input!22:22) -> 1.69719031e-05 | BH12: =LOOKUP(BH3,Input!18:18,Input!22:22) -> 1.69719031e-05 | BI12: =LOOKUP(BI3,Input!18:18,Input!22:22) -> 1.69719031e-05 | BJ12: =LOOKUP(BJ3,Input!18:18,Input!22:22) -> 1.69719031e-05 | BK12: =LOOKUP(BK3,Input!18:18,Input!22:22) -> 1.69719031e-05 | BL12: =LOOKUP(BL3,Input!18:18,Input!22:22) -> 1.69719031e-05 | BM12: =LOOKUP(BM3,Input!18:18,Input!22:22) -> 1.69719031e-05 | BN12: =LOOKUP(BN3,Input!18:18,Input!22:22) -> 1.69719031e-05 | BO12: =LOOKUP(BO3,Input!18:18,Input!22:22) -> 1.69719031e-05 | BP12: =LOOKUP(BP3,Input!18:18,Input!22:22) -> 1.69719031e-05 | BQ12: =LOOKUP(BQ3,Input!18:18,Input!22:22) -> 1.69719031e-05 | BR12: =LOOKUP(BR3,Input!18:18,Input!22:22) -> 1.69719031e-05 | BS12: =LOOKUP(BS3,Input!18:18,Input!22:22) -> 1.69719031e-05 | BT12: =LOOKUP(BT3,Input!18:18,Input!22:22) -> 1.69719031e-05 | BU12: =LOOKUP(BU3,Input!18:18,Input!22:22) -> 1.69719031e-05 | BV12: =LOOKUP(BV3,Input!18:18,Input!22:22) -> 1.69719031e-05 | BW12: =LOOKUP(BW3,Input!18:18,Input!22:22) -> 1.69719031e-05 | BX12: =LOOKUP(BX3,Input!18:18,Input!22:22) -> 1.69719031e-05 | BY12: =LOOKUP(BY3,Input!18:18,Input!22:22) -> 1.69719031e-05 | BZ12: =LOOKUP(BZ3,Input!18:18,Input!22:22) -> 1.69719031e-05 | CA12: =LOOKUP(CA3,Input!18:18,Input!22:22) -> 1.69719031e-05 | CB12: =LOOKUP(CB3,Input!18:18,Input!22:22) -> 1.69719031e-05 | CC12: =LOOKUP(CC3,Input!18:18,Input!22:22) -> 1.69719031e-05 | CD12: =LOOKUP(CD3,Input!18:18,Input!22:22) -> 1.69719031e-05 | CE12: =LOOKUP(CE3,Input!18:18,Input!22:22) -> 1.69719031e-05 | CF12: =LOOKUP(CF3,Input!18:18,Input!22:22) -> 1.69719031e-05 | CG12: =LOOKUP(CG3,Input!18:18,Input!22:22) -> 1.69719031e-05 | CH12: =LOOKUP(CH3,Input!18:18,Input!22:22) -> 1.69719031e-05 | CI12: =LOOKUP(CI3,Input!18:18,Input!22:22) -> 1.69719031e-05 | CJ12: =LOOKUP(CJ3,Input!18:18,Input!22:22) -> 1.69719031e-05 | CK12: =LOOKUP(CK3,Input!18:18,Input!22:22) -> 1.69719031e-05 | CL12: =LOOKUP(CL3,Input!18:18,Input!22:22) -> 1.69719031e-05 | CM12: =LOOKUP(CM3,Input!18:18,Input!22:22) -> 1.69719031e-05 | CN12: =LOOKUP(CN3,Input!18:18,Input!22:22) -> 1.69719031e-05 | CO12: =LOOKUP(CO3,Input!18:18,Input!22:22) -> 1.69719031e-05 | CP12: =LOOKUP(CP3,Input!18:18,Input!22:22) -> 1.69719031e-05 | CQ12: =LOOKUP(CQ3,Input!18:18,Input!22:22) -> 1.69719031e-05 | CR12: =LOOKUP(CR3,Input!18:18,Input!22:22) -> 1.69719031e-05 | CS12: =LOOKUP(CS3,Input!18:18,Input!22:22) -> 1.69719031e-05 | CT12: =LOOKUP(CT3,Input!18:18,Input!22:22) -> 1.69719031e-05 | CU12: =LOOKUP(CU3,Input!18:18,Input!22:22) -> 1.69719031e-05 | CV12: =LOOKUP(CV3,Input!18:18,Input!22:22) -> 1.69719031e-05 | CW12: =LOOKUP(CW3,Input!18:18,Input!22:22) -> 1.69719031e-05 | CX12: =LOOKUP(CX3,Input!18:18,Input!22:22) -> 1.69719031e-05 | CY12: =LOOKUP(CY3,Input!18:18,Input!22:22) -> 1.69719031e-05 | CZ12: =LOOKUP(CZ3,Input!18:18,Input!22:22) -> 1.69719031e-05 | DA12: =LOOKUP(DA3,Input!18:18,Input!22:22) -> 1.69719031e-05 | DB12: =LOOKUP(DB3,Input!18:18,Input!22:22) -> 1.69719031e-05 | DC12: =LOOKUP(DC3,Input!18:18,Input!22:22) -> 1.69719031e-05 | DD12: =LOOKUP(DD3,Input!18:18,Input!22:22) -> 1.69719031e-05 | DE12: =LOOKUP(DE3,Input!18:18,Input!22:22) -> 1.69719031e-05 | DF12: =LOOKUP(DF3,Input!18:18,Input!22:22) -> 1.69719031e-05 | DG12: =LOOKUP(DG3,Input!18:18,Input!22:22) -> 1.69719031e-05 | DH12: =LOOKUP(DH3,Input!18:18,Input!22:22) -> 1.69719031e-05 | DI12: =LOOKUP(DI3,Input!18:18,Input!22:22) -> 1.69719031e-05 | DJ12: =LOOKUP(DJ3,Input!18:18,Input!22:22) -> 1.69719031e-05 | DK12: =LOOKUP(DK3,Input!18:18,Input!22:22) -> 1.69719031e-05 | DL12: =LOOKUP(DL3,Input!18:18,Input!22:22) -> 1.69719031e-05 | DM12: =LOOKUP(DM3,Input!18:18,Input!22:22) -> 1.69719031e-05 | DN12: =LOOKUP(DN3,Input!18:18,Input!22:22) -> 1.69719031e-05 | DO12: =LOOKUP(DO3,Input!18:18,Input!22:22) -> 1.69719031e-05 | DP12: =LOOKUP(DP3,Input!18:18,Input!22:22) -> 1.69719031e-05 | DQ12: =LOOKUP(DQ3,Input!18:18,Input!22:22) -> 1.69719031e-05 | DR12: =LOOKUP(DR3,Input!18:18,Input!22:22) -> 1.69719031e-05 | DS12: =LOOKUP(DS3,Input!18:18,Input!22:22) -> 1.69719031e-05 | DT12: =LOOKUP(DT3,Input!18:18,Input!22:22) -> 1.69719031e-05 | DU12: =LOOKUP(DU3,Input!18:18,Input!22:22) -> 1.69719031e-05 | DV12: =LOOKUP(DV3,Input!18:18,Input!22:22) -> 1.69719031e-05 | DW12: =LOOKUP(DW3,Input!18:18,Input!22:22) -> 1.69719031e-05 | DX12: =LOOKUP(DX3,Input!18:18,Input!22:22) -> 1.69719031e-05 | DY12: =LOOKUP(DY3,Input!18:18,Input!22:22) -> 1.69719031e-05 | DZ12: =LOOKUP(DZ3,Input!18:18,Input!22:22) -> 1.69719031e-05 | EA12: =LOOKUP(EA3,Input!18:18,Input!22:22) -> 1.69719031e-05 | EB12: =LOOKUP(EB3,Input!18:18,Input!22:22) -> 1.69719031e-05 | EC12: =LOOKUP(EC3,Input!18:18,Input!22:22) -> 1.69719031e-05 | ED12: =LOOKUP(ED3,Input!18:18,Input!22:22) -> 1.69719031e-05 | EE12: =LOOKUP(EE3,Input!18:18,Input!22:22) -> 1.69719031e-05 | EF12: =LOOKUP(EF3,Input!18:18,Input!22:22) -> 1.69719031e-05 | EG12: =LOOKUP(EG3,Input!18:18,Input!22:22) -> 1.69719031e-05 | EH12: =LOOKUP(EH3,Input!18:18,Input!22:22) -> 1.69719031e-05 | EI12: =LOOKUP(EI3,Input!18:18,Input!22:22) -> 1.69719031e-05 | EJ12: =LOOKUP(EJ3,Input!18:18,Input!22:22) -> 1.69719031e-05 | EK12: =LOOKUP(EK3,Input!18:18,Input!22:22) -> 1.69719031e-05 | EL12: =LOOKUP(EL3,Input!18:18,Input!22:22) -> 1.69719031e-05 | EM12: =LOOKUP(EM3,Input!18:18,Input!22:22) -> 1.69719031e-05 | EN12: =LOOKUP(EN3,Input!18:18,Input!22:22) -> 1.69719031e-05 | EO12: =LOOKUP(EO3,Input!18:18,Input!22:22) -> 1.69719031e-05 | EP12: =LOOKUP(EP3,Input!18:18,Input!22:22) -> 1.69719031e-05 | EQ12: =LOOKUP(EQ3,Input!18:18,Input!22:22) -> 1.69719031e-05 | ER12: =LOOKUP(ER3,Input!18:18,Input!22:22) -> 1.69719031e-05 | ES12: =LOOKUP(ES3,Input!18:18,Input!22:22) -> 1.69719031e-05 | ET12: =LOOKUP(ET3,Input!18:18,Input!22:22) -> 1.69719031e-05 | EU12: =LOOKUP(EU3,Input!18:18,Input!22:22) -> 1.69719031e-05 | EV12: =LOOKUP(EV3,Input!18:18,Input!22:22) -> 1.69719031e-05 | EW12: =LOOKUP(EW3,Input!18:18,Input!22:22) -> 1.69719031e-05 | EX12: =LOOKUP(EX3,Input!18:18,Input!22:22) -> 1.69719031e-05 | EY12: =LOOKUP(EY3,Input!18:18,Input!22:22) -> 1.69719031e-05 | EZ12: =LOOKUP(EZ3,Input!18:18,Input!22:22) -> 1.69719031e-05 | FA12: =LOOKUP(FA3,Input!18:18,Input!22:22) -> 1.69719031e-05 | FB12: =LOOKUP(FB3,Input!18:18,Input!22:22) -> 1.69719031e-05 | FC12: =LOOKUP(FC3,Input!18:18,Input!22:22) -> 1.69719031e-05
C13: Capital Expenditures | E13: EUR | H13: =SUM(J13:FC13) -> 2473.851215 | J13: =J11*J12 -> 13.22729068 | K13: =K11*K12 -> 17.11738598 | L13: 21.8081155 | M13: 27.35350491 | N13: 33.77707004 | O13: 41.06247432 | P13: 49.14534691 | Q13: 57.90737035 | R13: 67.17372479 | S13: 76.71480166 | T13: 86.25276997 | U13: 95.47311323 | V13: 104.0407002 | W13: 111.6193778 | X13: 117.8935585 | Y13: 122.589904 | Z13: 125.4970398 | AA13: 126.4813253 | AB13: 125.4970398 | AC13: 122.589904 | AD13: 117.8935585 | AE13: 111.6193778 | AF13: 104.0407002 | AG13: 95.47311323 | AH13: 86.25276997 | AI13: 76.71480166 | AJ13: 67.17372479 | AK13: 57.90737035 | AL13: 49.14534691 | AM13: 41.06247432 | AN13: 33.77707004 | AO13: 27.35350491 | AP13: 21.8081155 | AQ13: 17.11738598 | AR13: 13.22729068 | AS13: 10.0627921 | AT13: 0 | AU13: 0 | AV13: 0 | AW13: 0 | AX13: 0 | AY13: 0 | AZ13: 0 | BA13: 0 | BB13: 0 | BC13: 0 | BD13: 0 | BE13: 0 | BF13: 0 | BG13: 0 | BH13: 0 | BI13: 0 | BJ13: 0 | BK13: 0 | BL13: 0 | BM13: 0 | BN13: 0 | BO13: 0 | BP13: 0 | BQ13: 0 | BR13: 0 | BS13: 0 | BT13: 0 | BU13: 0 | BV13: 0 | BW13: =BW11*BW12 -> 0 | BX13: 0 | BY13: 0 | BZ13: 0 | CA13: 0 | CB13: 0 | CC13: 0 | CD13: 0 | CE13: 0 | CF13: 0 | CG13: 0 | CH13: 0 | CI13: 0 | CJ13: 0 | CK13: 0 | CL13: 0 | CM13: 0 | CN13: 0 | CO13: 0 | CP13: 0 | CQ13: 0 | CR13: 0 | CS13: 0 | CT13: 0 | CU13: 0 | CV13: 0 | CW13: 0 | CX13: 0 | CY13: 0 | CZ13: 0 | DA13: 0 | DB13: 0 | DC13: 0 | DD13: 0 | DE13: 0 | DF13: 0 | DG13: 0 | DH13: 0 | DI13: 0 | DJ13: 0 | DK13: 0 | DL13: 0 | DM13: 0 | DN13: 0 | DO13: 0 | DP13: 0 | DQ13: 0 | DR13: 0 | DS13: 0 | DT13: 0 | DU13: 0 | DV13: 0 | DW13: 0 | DX13: 0 | DY13: 0 | DZ13: 0 | EA13: 0 | EB13: 0 | EC13: 0 | ED13: 0 | EE13: 0 | EF13: 0 | EG13: 0 | EH13: 0 | EI13: =EI11*EI12 -> 0 | EJ13: 0 | EK13: 0 | EL13: 0 | EM13: 0 | EN13: 0 | EO13: 0 | EP13: 0 | EQ13: 0 | ER13: 0 | ES13: 0 | ET13: 0 | EU13: 0 | EV13: 0 | EW13: 0 | EX13: 0 | EY13: 0 | EZ13: 0 | FA13: 0 | FB13: 0 | FC13: 0
C15: Operating Period | J15: =I15+J8 -> 0 | K15: =J15+K8 -> 0 | L15: 0 | M15: 0 | N15: 0 | O15: 0 | P15: 0 | Q15: 0 | R15: 0 | S15: 0 | T15: 0 | U15: 0 | V15: 0 | W15: 0 | X15: 0 | Y15: 0 | Z15: 0 | AA15: 0 | AB15: 0 | AC15: 0 | AD15: 0 | AE15: 0 | AF15: 0 | AG15: 0 | AH15: 0 | AI15: 0 | AJ15: 0 | AK15: 0 | AL15: 0 | AM15: 0 | AN15: 0 | AO15: 0 | AP15: 0 | AQ15: 0 | AR15: 0 | AS15: 0 | AT15: 1 | AU15: 2 | AV15: 3 | AW15: 4 | AX15: 5 | AY15: 6 | AZ15: 7 | BA15: 8 | BB15: 9 | BC15: 10 | BD15: 11 | BE15: 12 | BF15: 13 | BG15: 14 | BH15: 15 | BI15: 16 | BJ15: 17 | BK15: 18 | BL15: 19 | BM15: 20 | BN15: 21 | BO15: 22 | BP15: 23 | BQ15: 24 | BR15: 25 | BS15: 26 | BT15: 27 | BU15: 28 | BV15: 29 | BW15: =BV15+BW8 -> 30 | BX15: 31 | BY15: 32 | BZ15: 33 | CA15: 34 | CB15: 35 | CC15: 36 | CD15: 37 | CE15: 38 | CF15: 39 | CG15: 40 | CH15: 41 | CI15: 42 | CJ15: 43 | CK15: 44 | CL15: 45 | CM15: 46 | CN15: 47 | CO15: 48 | CP15: 49 | CQ15: 50 | CR15: 51 | CS15: 52 | CT15: 53 | CU15: 54 | CV15: 55 | CW15: 56 | CX15: 57 | CY15: 58 | CZ15: 59 | DA15: 60 | DB15: 60 | DC15: 60 | DD15: 60 | DE15: 60 | DF15: 60 | DG15: 60 | DH15: 60 | DI15: 60 | DJ15: 60 | DK15: 60 | DL15: 60 | DM15: 60 | DN15: 60 | DO15: 60 | DP15: 60 | DQ15: 60 | DR15: 60 | DS15: 60 | DT15: 60 | DU15: 60 | DV15: 60 | DW15: 60 | DX15: 60 | DY15: 60 | DZ15: 60 | EA15: 60 | EB15: 60 | EC15: 60 | ED15: 60 | EE15: 60 | EF15: 60 | EG15: 60 | EH15: 60 | EI15: =EH15+EI8 -> 60 | EJ15: 60 | EK15: 60 | EL15: 60 | EM15: 60 | EN15: 60 | EO15: 60 | EP15: 60 | EQ15: 60 | ER15: 60 | ES15: 60 | ET15: 60 | EU15: 60 | EV15: 60 | EW15: 60 | EX15: 60 | EY15: 60 | EZ15: 60 | FA15: 60 | FB15: 60 | FC15: 60
C16: Year | F16: =12/Input!F14 -> 2 | J16: =ROUNDUP(J15/$F$16,0) -> 0 | K16: =ROUNDUP(K15/$F$16,0) -> 0 | L16: 0 | M16: 0 | N16: 0 | O16: 0 | P16: 0 | Q16: 0 | R16: 0 | S16: 0 | T16: 0 | U16: 0 | V16: 0 | W16: 0 | X16: 0 | Y16: 0 | Z16: 0 | AA16: 0 | AB16: 0 | AC16: 0 | AD16: 0 | AE16: 0 | AF16: 0 | AG16: 0 | AH16: 0 | AI16: 0 | AJ16: 0 | AK16: 0 | AL16: 0 | AM16: 0 | AN16: 0 | AO16: 0 | AP16: 0 | AQ16: 0 | AR16: 0 | AS16: 0 | AT16: 1 | AU16: 1 | AV16: 2 | AW16: 2 | AX16: 3 | AY16: 3 | AZ16: 4 | BA16: 4 | BB16: 5 | BC16: 5 | BD16: 6 | BE16: 6 | BF16: 7 | BG16: 7 | BH16: 8 | BI16: 8 | BJ16: 9 | BK16: 9 | BL16: 10 | BM16: 10 | BN16: 11 | BO16: 11 | BP16: 12 | BQ16: 12 | BR16: 13 | BS16: 13 | BT16: 14 | BU16: 14 | BV16: 15 | BW16: =ROUNDUP(BW15/$F$16,0) -> 15 | BX16: 16 | BY16: 16 | BZ16: 17 | CA16: 17 | CB16: 18 | CC16: 18 | CD16: 19 | CE16: 19 | CF16: 20 | CG16: 20 | CH16: 21 | CI16: 21 | CJ16: 22 | CK16: 22 | CL16: 23 | CM16: 23 | CN16: 24 | CO16: 24 | CP16: 25 | CQ16: 25 | CR16: 26 | CS16: 26 | CT16: 27 | CU16: 27 | CV16: 28 | CW16: 28 | CX16: 29 | CY16: 29 | CZ16: 30 | DA16: 30 | DB16: 30 | DC16: 30 | DD16: 30 | DE16: 30 | DF16: 30 | DG16: 30 | DH16: 30 | DI16: 30 | DJ16: 30 | DK16: 30 | DL16: 30 | DM16: 30 | DN16: 30 | DO16: 30 | DP16: 30 | DQ16: 30 | DR16: 30 | DS16: 30 | DT16: 30 | DU16: 30 | DV16: 30 | DW16: 30 | DX16: 30 | DY16: 30 | DZ16: 30 | EA16: 30 | EB16: 30 | EC16: 30 | ED16: 30 | EE16: 30 | EF16: 30 | EG16: 30 | EH16: 30 | EI16: =ROUNDUP(EI15/$F$16,0) -> 30 | EJ16: 30 | EK16: 30 | EL16: 30 | EM16: 30 | EN16: 30 | EO16: 30 | EP16: 30 | EQ16: 30 | ER16: 30 | ES16: 30 | ET16: 30 | EU16: 30 | EV16: 30 | EW16: 30 | EX16: 30 | EY16: 30 | EZ16: 30 | FA16: 30 | FB16: 30 | FC16: 30
C18: EBITDA/CFADS | E18: EUR | H18: =SUM(J18:FC18) -> 10980 | J18: =LOOKUP(J16,Input!25:25,Input!26:26) -> 0 | K18: =LOOKUP(K16,Input!25:25,Input!26:26) -> 0 | L18: =LOOKUP(L16,Input!25:25,Input!26:26) -> 0 | M18: =LOOKUP(M16,Input!25:25,Input!26:26) -> 0 | N18: =LOOKUP(N16,Input!25:25,Input!26:26) -> 0 | O18: =LOOKUP(O16,Input!25:25,Input!26:26) -> 0 | P18: =LOOKUP(P16,Input!25:25,Input!26:26) -> 0 | Q18: =LOOKUP(Q16,Input!25:25,Input!26:26) -> 0 | R18: =LOOKUP(R16,Input!25:25,Input!26:26) -> 0 | S18: =LOOKUP(S16,Input!25:25,Input!26:26) -> 0 | T18: =LOOKUP(T16,Input!25:25,Input!26:26) -> 0 | U18: =LOOKUP(U16,Input!25:25,Input!26:26) -> 0 | V18: =LOOKUP(V16,Input!25:25,Input!26:26) -> 0 | W18: =LOOKUP(W16,Input!25:25,Input!26:26) -> 0 | X18: =LOOKUP(X16,Input!25:25,Input!26:26) -> 0 | Y18: =LOOKUP(Y16,Input!25:25,Input!26:26) -> 0 | Z18: =LOOKUP(Z16,Input!25:25,Input!26:26) -> 0 | AA18: =LOOKUP(AA16,Input!25:25,Input!26:26) -> 0 | AB18: =LOOKUP(AB16,Input!25:25,Input!26:26) -> 0 | AC18: =LOOKUP(AC16,Input!25:25,Input!26:26) -> 0 | AD18: =LOOKUP(AD16,Input!25:25,Input!26:26) -> 0 | AE18: =LOOKUP(AE16,Input!25:25,Input!26:26) -> 0 | AF18: =LOOKUP(AF16,Input!25:25,Input!26:26) -> 0 | AG18: =LOOKUP(AG16,Input!25:25,Input!26:26) -> 0 | AH18: =LOOKUP(AH16,Input!25:25,Input!26:26) -> 0 | AI18: =LOOKUP(AI16,Input!25:25,Input!26:26) -> 0 | AJ18: =LOOKUP(AJ16,Input!25:25,Input!26:26) -> 0 | AK18: =LOOKUP(AK16,Input!25:25,Input!26:26) -> 0 | AL18: =LOOKUP(AL16,Input!25:25,Input!26:26) -> 0 | AM18: =LOOKUP(AM16,Input!25:25,Input!26:26) -> 0 | AN18: =LOOKUP(AN16,Input!25:25,Input!26:26) -> 0 | AO18: =LOOKUP(AO16,Input!25:25,Input!26:26) -> 0 | AP18: =LOOKUP(AP16,Input!25:25,Input!26:26) -> 0 | AQ18: =LOOKUP(AQ16,Input!25:25,Input!26:26) -> 0 | AR18: =LOOKUP(AR16,Input!25:25,Input!26:26) -> 0 | AS18: =LOOKUP(AS16,Input!25:25,Input!26:26) -> 0 | AT18: =LOOKUP(AT16,Input!25:25,Input!26:26) -> 75 | AU18: =LOOKUP(AU16,Input!25:25,Input!26:26) -> 75 | AV18: =LOOKUP(AV16,Input!25:25,Input!26:26) -> 80 | AW18: =LOOKUP(AW16,Input!25:25,Input!26:26) -> 80 | AX18: =LOOKUP(AX16,Input!25:25,Input!26:26) -> 95 | AY18: =LOOKUP(AY16,Input!25:25,Input!26:26) -> 95 | AZ18: =LOOKUP(AZ16,Input!25:25,Input!26:26) -> 110 | BA18: =LOOKUP(BA16,Input!25:25,Input!26:26) -> 110 | BB18: =LOOKUP(BB16,Input!25:25,Input!26:26) -> 110 | BC18: =LOOKUP(BC16,Input!25:25,Input!26:26) -> 110 | BD18: =LOOKUP(BD16,Input!25:25,Input!26:26) -> 110 | BE18: =LOOKUP(BE16,Input!25:25,Input!26:26) -> 110 | BF18: =LOOKUP(BF16,Input!25:25,Input!26:26) -> 110 | BG18: =LOOKUP(BG16,Input!25:25,Input!26:26) -> 110 | BH18: =LOOKUP(BH16,Input!25:25,Input!26:26) -> 110 | BI18: =LOOKUP(BI16,Input!25:25,Input!26:26) -> 110 | BJ18: =LOOKUP(BJ16,Input!25:25,Input!26:26) -> 80 | BK18: =LOOKUP(BK16,Input!25:25,Input!26:26) -> 80 | BL18: =LOOKUP(BL16,Input!25:25,Input!26:26) -> 80 | BM18: =LOOKUP(BM16,Input!25:25,Input!26:26) -> 80 | BN18: =LOOKUP(BN16,Input!25:25,Input!26:26) -> 80 | BO18: =LOOKUP(BO16,Input!25:25,Input!26:26) -> 80 | BP18: =LOOKUP(BP16,Input!25:25,Input!26:26) -> 80 | BQ18: =LOOKUP(BQ16,Input!25:25,Input!26:26) -> 80 | BR18: =LOOKUP(BR16,Input!25:25,Input!26:26) -> 80 | BS18: =LOOKUP(BS16,Input!25:25,Input!26:26) -> 80 | BT18: =LOOKUP(BT16,Input!25:25,Input!26:26) -> 80 | BU18: =LOOKUP(BU16,Input!25:25,Input!26:26) -> 80 | BV18: =LOOKUP(BV16,Input!25:25,Input!26:26) -> 80 | BW18: =LOOKUP(BW16,Input!25:25,Input!26:26) -> 80 | BX18: =LOOKUP(BX16,Input!25:25,Input!26:26) -> 95 | BY18: =LOOKUP(BY16,Input!25:25,Input!26:26) -> 95 | BZ18: =LOOKUP(BZ16,Input!25:25,Input!26:26) -> 95 | CA18: =LOOKUP(CA16,Input!25:25,Input!26:26) -> 95 | CB18: =LOOKUP(CB16,Input!25:25,Input!26:26) -> 95 | CC18: =LOOKUP(CC16,Input!25:25,Input!26:26) -> 95 | CD18: =LOOKUP(CD16,Input!25:25,Input!26:26) -> 95 | CE18: =LOOKUP(CE16,Input!25:25,Input!26:26) -> 95 | CF18: =LOOKUP(CF16,Input!25:25,Input!26:26) -> 95 | CG18: =LOOKUP(CG16,Input!25:25,Input!26:26) -> 95 | CH18: =LOOKUP(CH16,Input!25:25,Input!26:26) -> 95 | CI18: =LOOKUP(CI16,Input!25:25,Input!26:26) -> 95 | CJ18: =LOOKUP(CJ16,Input!25:25,Input!26:26) -> 95 | CK18: =LOOKUP(CK16,Input!25:25,Input!26:26) -> 95 | CL18: =LOOKUP(CL16,Input!25:25,Input!26:26) -> 95 | CM18: =LOOKUP(CM16,Input!25:25,Input!26:26) -> 95 | CN18: =LOOKUP(CN16,Input!25:25,Input!26:26) -> 95 | CO18: =LOOKUP(CO16,Input!25:25,Input!26:26) -> 95 | CP18: =LOOKUP(CP16,Input!25:25,Input!26:26) -> 95 | CQ18: =LOOKUP(CQ16,Input!25:25,Input!26:26) -> 95 | CR18: =LOOKUP(CR16,Input!25:25,Input!26:26) -> 95 | CS18: =LOOKUP(CS16,Input!25:25,Input!26:26) -> 95 | CT18: =LOOKUP(CT16,Input!25:25,Input!26:26) -> 95 | CU18: =LOOKUP(CU16,Input!25:25,Input!26:26) -> 95 | CV18: =LOOKUP(CV16,Input!25:25,Input!26:26) -> 95 | CW18: =LOOKUP(CW16,Input!25:25,Input!26:26) -> 95 | CX18: =LOOKUP(CX16,Input!25:25,Input!26:26) -> 95 | CY18: =LOOKUP(CY16,Input!25:25,Input!26:26) -> 95 | CZ18: =LOOKUP(CZ16,Input!25:25,Input!26:26) -> 100 | DA18: =LOOKUP(DA16,Input!25:25,Input!26:26) -> 100 | DB18: =LOOKUP(DB16,Input!25:25,Input!26:26) -> 100 | DC18: =LOOKUP(DC16,Input!25:25,Input!26:26) -> 100 | DD18: =LOOKUP(DD16,Input!25:25,Input!26:26) -> 100 | DE18: =LOOKUP(DE16,Input!25:25,Input!26:26) -> 100 | DF18: =LOOKUP(DF16,Input!25:25,Input!26:26) -> 100 | DG18: =LOOKUP(DG16,Input!25:25,Input!26:26) -> 100 | DH18: =LOOKUP(DH16,Input!25:25,Input!26:26) -> 100 | DI18: =LOOKUP(DI16,Input!25:25,Input!26:26) -> 100 | DJ18: =LOOKUP(DJ16,Input!25:25,Input!26:26) -> 100 | DK18: =LOOKUP(DK16,Input!25:25,Input!26:26) -> 100 | DL18: =LOOKUP(DL16,Input!25:25,Input!26:26) -> 100 | DM18: =LOOKUP(DM16,Input!25:25,Input!26:26) -> 100 | DN18: =LOOKUP(DN16,Input!25:25,Input!26:26) -> 100 | DO18: =LOOKUP(DO16,Input!25:25,Input!26:26) -> 100 | DP18: =LOOKUP(DP16,Input!25:25,Input!26:26) -> 100 | DQ18: =LOOKUP(DQ16,Input!25:25,Input!26:26) -> 100 | DR18: =LOOKUP(DR16,Input!25:25,Input!26:26) -> 100 | DS18: =LOOKUP(DS16,Input!25:25,Input!26:26) -> 100 | DT18: =LOOKUP(DT16,Input!25:25,Input!26:26) -> 100 | DU18: =LOOKUP(DU16,Input!25:25,Input!26:26) -> 100 | DV18: =LOOKUP(DV16,Input!25:25,Input!26:26) -> 100 | DW18: =LOOKUP(DW16,Input!25:25,Input!26:26) -> 100 | DX18: =LOOKUP(DX16,Input!25:25,Input!26:26) -> 100 | DY18: =LOOKUP(DY16,Input!25:25,Input!26:26) -> 100 | DZ18: =LOOKUP(DZ16,Input!25:25,Input!26:26) -> 100 | EA18: =LOOKUP(EA16,Input!25:25,Input!26:26) -> 100 | EB18: =LOOKUP(EB16,Input!25:25,Input!26:26) -> 100 | EC18: =LOOKUP(EC16,Input!25:25,Input!26:26) -> 100 | ED18: =LOOKUP(ED16,Input!25:25,Input!26:26) -> 100 | EE18: =LOOKUP(EE16,Input!25:25,Input!26:26) -> 100 | EF18: =LOOKUP(EF16,Input!25:25,Input!26:26) -> 100 | EG18: =LOOKUP(EG16,Input!25:25,Input!26:26) -> 100 | EH18: =LOOKUP(EH16,Input!25:25,Input!26:26) -> 100 | EI18: =LOOKUP(EI16,Input!25:25,Input!26:26) -> 100 | EJ18: =LOOKUP(EJ16,Input!25:25,Input!26:26) -> 100 | EK18: =LOOKUP(EK16,Input!25:25,Input!26:26) -> 100 | EL18: =LOOKUP(EL16,Input!25:25,Input!26:26) -> 100 | EM18: =LOOKUP(EM16,Input!25:25,Input!26:26) -> 100 | EN18: =LOOKUP(EN16,Input!25:25,Input!26:26) -> 100 | EO18: =LOOKUP(EO16,Input!25:25,Input!26:26) -> 100 | EP18: =LOOKUP(EP16,Input!25:25,Input!26:26) -> 100 | EQ18: =LOOKUP(EQ16,Input!25:25,Input!26:26) -> 100 | ER18: =LOOKUP(ER16,Input!25:25,Input!26:26) -> 100 | ES18: =LOOKUP(ES16,Input!25:25,Input!26:26) -> 100 | ET18: =LOOKUP(ET16,Input!25:25,Input!26:26) -> 100 | EU18: =LOOKUP(EU16,Input!25:25,Input!26:26) -> 100 | EV18: =LOOKUP(EV16,Input!25:25,Input!26:26) -> 100 | EW18: =LOOKUP(EW16,Input!25:25,Input!26:26) -> 100 | EX18: =LOOKUP(EX16,Input!25:25,Input!26:26) -> 100 | EY18: =LOOKUP(EY16,Input!25:25,Input!26:26) -> 100 | EZ18: =LOOKUP(EZ16,Input!25:25,Input!26:26) -> 100 | FA18: =LOOKUP(FA16,Input!25:25,Input!26:26) -> 100 | FB18: =LOOKUP(FB16,Input!25:25,Input!26:26) -> 100 | FC18: =LOOKUP(FC16,Input!25:25,Input!26:26) -> 100
C19: Period (1/2) | E19: Period | J19: =IF(J8,MOD(J15,2)=0)*1 -> 0 | K19: =IF(K8,MOD(K15,2)=0)*1 -> 0 | L19: 0 | M19: 0 | N19: 0 | O19: 0 | P19: 0 | Q19: 0 | R19: 0 | S19: 0 | T19: 0 | U19: 0 | V19: 0 | W19: 0 | X19: 0 | Y19: 0 | Z19: 0 | AA19: 0 | AB19: 0 | AC19: 0 | AD19: 0 | AE19: 0 | AF19: 0 | AG19: 0 | AH19: 0 | AI19: 0 | AJ19: 0 | AK19: 0 | AL19: 0 | AM19: 0 | AN19: 0 | AO19: 0 | AP19: 0 | AQ19: 0 | AR19: 0 | AS19: 0 | AT19: 0 | AU19: 1 | AV19: 0 | AW19: 1 | AX19: 0 | AY19: 1 | AZ19: 0 | BA19: 1 | BB19: 0 | BC19: 1 | BD19: 0 | BE19: 1 | BF19: 0 | BG19: 1 | BH19: 0 | BI19: 1 | BJ19: 0 | BK19: 1 | BL19: 0 | BM19: 1 | BN19: 0 | BO19: 1 | BP19: 0 | BQ19: 1 | BR19: 0 | BS19: 1 | BT19: 0 | BU19: 1 | BV19: 0 | BW19: =IF(BW8,MOD(BW15,2)=0)*1 -> 1 | BX19: 0 | BY19: 1 | BZ19: 0 | CA19: 1 | CB19: 0 | CC19: 1 | CD19: 0 | CE19: 1 | CF19: 0 | CG19: 1 | CH19: 0 | CI19: 1 | CJ19: 0 | CK19: 1 | CL19: 0 | CM19: 1 | CN19: 0 | CO19: 1 | CP19: 0 | CQ19: 1 | CR19: 0 | CS19: 1 | CT19: 0 | CU19: 1 | CV19: 0 | CW19: 1 | CX19: 0 | CY19: 1 | CZ19: 0 | DA19: 1 | DB19: 0 | DC19: 0 | DD19: 0 | DE19: 0 | DF19: 0 | DG19: 0 | DH19: 0 | DI19: 0 | DJ19: 0 | DK19: 0 | DL19: 0 | DM19: 0 | DN19: 0 | DO19: 0 | DP19: 0 | DQ19: 0 | DR19: 0 | DS19: 0 | DT19: 0 | DU19: 0 | DV19: 0 | DW19: 0 | DX19: 0 | DY19: 0 | DZ19: 0 | EA19: 0 | EB19: 0 | EC19: 0 | ED19: 0 | EE19: 0 | EF19: 0 | EG19: 0 | EH19: 0 | EI19: =IF(EI8,MOD(EI15,2)=0)*1 -> 0 | EJ19: 0 | EK19: 0 | EL19: 0 | EM19: 0 | EN19: 0 | EO19: 0 | EP19: 0 | EQ19: 0 | ER19: 0 | ES19: 0 | ET19: 0 | EU19: 0 | EV19: 0 | EW19: 0 | EX19: 0 | EY19: 0 | EZ19: 0 | FA19: 0 | FB19: 0 | FC19: 0
C20: Seasonality Factor | J20: =LOOKUP(J19,Input!28:28,Input!29:29)*J8 -> 0 | K20: =LOOKUP(K19,Input!28:28,Input!29:29)*K8 -> 0 | L20: =LOOKUP(L19,Input!28:28,Input!29:29)*L8 -> 0 | M20: =LOOKUP(M19,Input!28:28,Input!29:29)*M8 -> 0 | N20: =LOOKUP(N19,Input!28:28,Input!29:29)*N8 -> 0 | O20: =LOOKUP(O19,Input!28:28,Input!29:29)*O8 -> 0 | P20: =LOOKUP(P19,Input!28:28,Input!29:29)*P8 -> 0 | Q20: =LOOKUP(Q19,Input!28:28,Input!29:29)*Q8 -> 0 | R20: =LOOKUP(R19,Input!28:28,Input!29:29)*R8 -> 0 | S20: =LOOKUP(S19,Input!28:28,Input!29:29)*S8 -> 0 | T20: =LOOKUP(T19,Input!28:28,Input!29:29)*T8 -> 0 | U20: =LOOKUP(U19,Input!28:28,Input!29:29)*U8 -> 0 | V20: =LOOKUP(V19,Input!28:28,Input!29:29)*V8 -> 0 | W20: =LOOKUP(W19,Input!28:28,Input!29:29)*W8 -> 0 | X20: =LOOKUP(X19,Input!28:28,Input!29:29)*X8 -> 0 | Y20: =LOOKUP(Y19,Input!28:28,Input!29:29)*Y8 -> 0 | Z20: =LOOKUP(Z19,Input!28:28,Input!29:29)*Z8 -> 0 | AA20: =LOOKUP(AA19,Input!28:28,Input!29:29)*AA8 -> 0 | AB20: =LOOKUP(AB19,Input!28:28,Input!29:29)*AB8 -> 0 | AC20: =LOOKUP(AC19,Input!28:28,Input!29:29)*AC8 -> 0 | AD20: =LOOKUP(AD19,Input!28:28,Input!29:29)*AD8 -> 0 | AE20: =LOOKUP(AE19,Input!28:28,Input!29:29)*AE8 -> 0 | AF20: =LOOKUP(AF19,Input!28:28,Input!29:29)*AF8 -> 0 | AG20: =LOOKUP(AG19,Input!28:28,Input!29:29)*AG8 -> 0 | AH20: =LOOKUP(AH19,Input!28:28,Input!29:29)*AH8 -> 0 | AI20: =LOOKUP(AI19,Input!28:28,Input!29:29)*AI8 -> 0 | AJ20: =LOOKUP(AJ19,Input!28:28,Input!29:29)*AJ8 -> 0 | AK20: =LOOKUP(AK19,Input!28:28,Input!29:29)*AK8 -> 0 | AL20: =LOOKUP(AL19,Input!28:28,Input!29:29)*AL8 -> 0 | AM20: =LOOKUP(AM19,Input!28:28,Input!29:29)*AM8 -> 0 | AN20: =LOOKUP(AN19,Input!28:28,Input!29:29)*AN8 -> 0 | AO20: =LOOKUP(AO19,Input!28:28,Input!29:29)*AO8 -> 0 | AP20: =LOOKUP(AP19,Input!28:28,Input!29:29)*AP8 -> 0 | AQ20: =LOOKUP(AQ19,Input!28:28,Input!29:29)*AQ8 -> 0 | AR20: =LOOKUP(AR19,Input!28:28,Input!29:29)*AR8 -> 0 | AS20: =LOOKUP(AS19,Input!28:28,Input!29:29)*AS8 -> 0 | AT20: =LOOKUP(AT19,Input!28:28,Input!29:29)*AT8 -> 0.8 | AU20: =LOOKUP(AU19,Input!28:28,Input!29:29)*AU8 -> 1.2 | AV20: =LOOKUP(AV19,Input!28:28,Input!29:29)*AV8 -> 0.8 | AW20: =LOOKUP(AW19,Input!28:28,Input!29:29)*AW8 -> 1.2 | AX20: =LOOKUP(AX19,Input!28:28,Input!29:29)*AX8 -> 0.8 | AY20: =LOOKUP(AY19,Input!28:28,Input!29:29)*AY8 -> 1.2 | AZ20: =LOOKUP(AZ19,Input!28:28,Input!29:29)*AZ8 -> 0.8 | BA20: =LOOKUP(BA19,Input!28:28,Input!29:29)*BA8 -> 1.2 | BB20: =LOOKUP(BB19,Input!28:28,Input!29:29)*BB8 -> 0.8 | BC20: =LOOKUP(BC19,Input!28:28,Input!29:29)*BC8 -> 1.2 | BD20: =LOOKUP(BD19,Input!28:28,Input!29:29)*BD8 -> 0.8 | BE20: =LOOKUP(BE19,Input!28:28,Input!29:29)*BE8 -> 1.2 | BF20: =LOOKUP(BF19,Input!28:28,Input!29:29)*BF8 -> 0.8 | BG20: =LOOKUP(BG19,Input!28:28,Input!29:29)*BG8 -> 1.2 | BH20: =LOOKUP(BH19,Input!28:28,Input!29:29)*BH8 -> 0.8 | BI20: =LOOKUP(BI19,Input!28:28,Input!29:29)*BI8 -> 1.2 | BJ20: =LOOKUP(BJ19,Input!28:28,Input!29:29)*BJ8 -> 0.8 | BK20: =LOOKUP(BK19,Input!28:28,Input!29:29)*BK8 -> 1.2 | BL20: =LOOKUP(BL19,Input!28:28,Input!29:29)*BL8 -> 0.8 | BM20: =LOOKUP(BM19,Input!28:28,Input!29:29)*BM8 -> 1.2 | BN20: =LOOKUP(BN19,Input!28:28,Input!29:29)*BN8 -> 0.8 | BO20: =LOOKUP(BO19,Input!28:28,Input!29:29)*BO8 -> 1.2 | BP20: =LOOKUP(BP19,Input!28:28,Input!29:29)*BP8 -> 0.8 | BQ20: =LOOKUP(BQ19,Input!28:28,Input!29:29)*BQ8 -> 1.2 | BR20: =LOOKUP(BR19,Input!28:28,Input!29:29)*BR8 -> 0.8 | BS20: =LOOKUP(BS19,Input!28:28,Input!29:29)*BS8 -> 1.2 | BT20: =LOOKUP(BT19,Input!28:28,Input!29:29)*BT8 -> 0.8 | BU20: =LOOKUP(BU19,Input!28:28,Input!29:29)*BU8 -> 1.2 | BV20: =LOOKUP(BV19,Input!28:28,Input!29:29)*BV8 -> 0.8 | BW20: =LOOKUP(BW19,Input!28:28,Input!29:29)*BW8 -> 1.2 | BX20: =LOOKUP(BX19,Input!28:28,Input!29:29)*BX8 -> 0.8 | BY20: =LOOKUP(BY19,Input!28:28,Input!29:29)*BY8 -> 1.2 | BZ20: =LOOKUP(BZ19,Input!28:28,Input!29:29)*BZ8 -> 0.8 | CA20: =LOOKUP(CA19,Input!28:28,Input!29:29)*CA8 -> 1.2 | CB20: =LOOKUP(CB19,Input!28:28,Input!29:29)*CB8 -> 0.8 | CC20: =LOOKUP(CC19,Input!28:28,Input!29:29)*CC8 -> 1.2 | CD20: =LOOKUP(CD19,Input!28:28,Input!29:29)*CD8 -> 0.8 | CE20: =LOOKUP(CE19,Input!28:28,Input!29:29)*CE8 -> 1.2 | CF20: =LOOKUP(CF19,Input!28:28,Input!29:29)*CF8 -> 0.8 | CG20: =LOOKUP(CG19,Input!28:28,Input!29:29)*CG8 -> 1.2 | CH20: =LOOKUP(CH19,Input!28:28,Input!29:29)*CH8 -> 0.8 | CI20: =LOOKUP(CI19,Input!28:28,Input!29:29)*CI8 -> 1.2 | CJ20: =LOOKUP(CJ19,Input!28:28,Input!29:29)*CJ8 -> 0.8 | CK20: =LOOKUP(CK19,Input!28:28,Input!29:29)*CK8 -> 1.2 | CL20: =LOOKUP(CL19,Input!28:28,Input!29:29)*CL8 -> 0.8 | CM20: =LOOKUP(CM19,Input!28:28,Input!29:29)*CM8 -> 1.2 | CN20: =LOOKUP(CN19,Input!28:28,Input!29:29)*CN8 -> 0.8 | CO20: =LOOKUP(CO19,Input!28:28,Input!29:29)*CO8 -> 1.2 | CP20: =LOOKUP(CP19,Input!28:28,Input!29:29)*CP8 -> 0.8 | CQ20: =LOOKUP(CQ19,Input!28:28,Input!29:29)*CQ8 -> 1.2 | CR20: =LOOKUP(CR19,Input!28:28,Input!29:29)*CR8 -> 0.8 | CS20: =LOOKUP(CS19,Input!28:28,Input!29:29)*CS8 -> 1.2 | CT20: =LOOKUP(CT19,Input!28:28,Input!29:29)*CT8 -> 0.8 | CU20: =LOOKUP(CU19,Input!28:28,Input!29:29)*CU8 -> 1.2 | CV20: =LOOKUP(CV19,Input!28:28,Input!29:29)*CV8 -> 0.8 | CW20: =LOOKUP(CW19,Input!28:28,Input!29:29)*CW8 -> 1.2 | CX20: =LOOKUP(CX19,Input!28:28,Input!29:29)*CX8 -> 0.8 | CY20: =LOOKUP(CY19,Input!28:28,Input!29:29)*CY8 -> 1.2 | CZ20: =LOOKUP(CZ19,Input!28:28,Input!29:29)*CZ8 -> 0.8 | DA20: =LOOKUP(DA19,Input!28:28,Input!29:29)*DA8 -> 1.2 | DB20: =LOOKUP(DB19,Input!28:28,Input!29:29)*DB8 -> 0 | DC20: =LOOKUP(DC19,Input!28:28,Input!29:29)*DC8 -> 0 | DD20: =LOOKUP(DD19,Input!28:28,Input!29:29)*DD8 -> 0 | DE20: =LOOKUP(DE19,Input!28:28,Input!29:29)*DE8 -> 0 | DF20: =LOOKUP(DF19,Input!28:28,Input!29:29)*DF8 -> 0 | DG20: =LOOKUP(DG19,Input!28:28,Input!29:29)*DG8 -> 0 | DH20: =LOOKUP(DH19,Input!28:28,Input!29:29)*DH8 -> 0 | DI20: =LOOKUP(DI19,Input!28:28,Input!29:29)*DI8 -> 0 | DJ20: =LOOKUP(DJ19,Input!28:28,Input!29:29)*DJ8 -> 0 | DK20: =LOOKUP(DK19,Input!28:28,Input!29:29)*DK8 -> 0 | DL20: =LOOKUP(DL19,Input!28:28,Input!29:29)*DL8 -> 0 | DM20: =LOOKUP(DM19,Input!28:28,Input!29:29)*DM8 -> 0 | DN20: =LOOKUP(DN19,Input!28:28,Input!29:29)*DN8 -> 0 | DO20: =LOOKUP(DO19,Input!28:28,Input!29:29)*DO8 -> 0 | DP20: =LOOKUP(DP19,Input!28:28,Input!29:29)*DP8 -> 0 | DQ20: =LOOKUP(DQ19,Input!28:28,Input!29:29)*DQ8 -> 0 | DR20: =LOOKUP(DR19,Input!28:28,Input!29:29)*DR8 -> 0 | DS20: =LOOKUP(DS19,Input!28:28,Input!29:29)*DS8 -> 0 | DT20: =LOOKUP(DT19,Input!28:28,Input!29:29)*DT8 -> 0 | DU20: =LOOKUP(DU19,Input!28:28,Input!29:29)*DU8 -> 0 | DV20: =LOOKUP(DV19,Input!28:28,Input!29:29)*DV8 -> 0 | DW20: =LOOKUP(DW19,Input!28:28,Input!29:29)*DW8 -> 0 | DX20: =LOOKUP(DX19,Input!28:28,Input!29:29)*DX8 -> 0 | DY20: =LOOKUP(DY19,Input!28:28,Input!29:29)*DY8 -> 0 | DZ20: =LOOKUP(DZ19,Input!28:28,Input!29:29)*DZ8 -> 0 | EA20: =LOOKUP(EA19,Input!28:28,Input!29:29)*EA8 -> 0 | EB20: =LOOKUP(EB19,Input!28:28,Input!29:29)*EB8 -> 0 | EC20: =LOOKUP(EC19,Input!28:28,Input!29:29)*EC8 -> 0 | ED20: =LOOKUP(ED19,Input!28:28,Input!29:29)*ED8 -> 0 | EE20: =LOOKUP(EE19,Input!28:28,Input!29:29)*EE8 -> 0 | EF20: =LOOKUP(EF19,Input!28:28,Input!29:29)*EF8 -> 0 | EG20: =LOOKUP(EG19,Input!28:28,Input!29:29)*EG8 -> 0 | EH20: =LOOKUP(EH19,Input!28:28,Input!29:29)*EH8 -> 0 | EI20: =LOOKUP(EI19,Input!28:28,Input!29:29)*EI8 -> 0 | EJ20: =LOOKUP(EJ19,Input!28:28,Input!29:29)*EJ8 -> 0 | EK20: =LOOKUP(EK19,Input!28:28,Input!29:29)*EK8 -> 0 | EL20: =LOOKUP(EL19,Input!28:28,Input!29:29)*EL8 -> 0 | EM20: =LOOKUP(EM19,Input!28:28,Input!29:29)*EM8 -> 0 | EN20: =LOOKUP(EN19,Input!28:28,Input!29:29)*EN8 -> 0 | EO20: =LOOKUP(EO19,Input!28:28,Input!29:29)*EO8 -> 0 | EP20: =LOOKUP(EP19,Input!28:28,Input!29:29)*EP8 -> 0 | EQ20: =LOOKUP(EQ19,Input!28:28,Input!29:29)*EQ8 -> 0 | ER20: =LOOKUP(ER19,Input!28:28,Input!29:29)*ER8 -> 0 | ES20: =LOOKUP(ES19,Input!28:28,Input!29:29)*ES8 -> 0 | ET20: =LOOKUP(ET19,Input!28:28,Input!29:29)*ET8 -> 0 | EU20: =LOOKUP(EU19,Input!28:28,Input!29:29)*EU8 -> 0 | EV20: =LOOKUP(EV19,Input!28:28,Input!29:29)*EV8 -> 0 | EW20: =LOOKUP(EW19,Input!28:28,Input!29:29)*EW8 -> 0 | EX20: =LOOKUP(EX19,Input!28:28,Input!29:29)*EX8 -> 0 | EY20: =LOOKUP(EY19,Input!28:28,Input!29:29)*EY8 -> 0 | EZ20: =LOOKUP(EZ19,Input!28:28,Input!29:29)*EZ8 -> 0 | FA20: =LOOKUP(FA19,Input!28:28,Input!29:29)*FA8 -> 0 | FB20: =LOOKUP(FB19,Input!28:28,Input!29:29)*FB8 -> 0 | FC20: =LOOKUP(FC19,Input!28:28,Input!29:29)*FC8 -> 0
C22: Final EBITDA/CFADS | E22: EUR | H22: =SUM(J22:FC22) -> 5580 | J22: =J20*J18 -> 0 | K22: =K20*K18 -> 0 | L22: 0 | M22: 0 | N22: 0 | O22: 0 | P22: 0 | Q22: 0 | R22: 0 | S22: 0 | T22: 0 | U22: 0 | V22: 0 | W22: 0 | X22: 0 | Y22: 0 | Z22: 0 | AA22: 0 | AB22: 0 | AC22: 0 | AD22: 0 | AE22: 0 | AF22: 0 | AG22: 0 | AH22: 0 | AI22: 0 | AJ22: 0 | AK22: 0 | AL22: 0 | AM22: 0 | AN22: 0 | AO22: 0 | AP22: 0 | AQ22: 0 | AR22: 0 | AS22: 0 | AT22: 60 | AU22: 90 | AV22: 64 | AW22: 96 | AX22: 76 | AY22: 114 | AZ22: 88 | BA22: 132 | BB22: 88 | BC22: 132 | BD22: 88 | BE22: 132 | BF22: 88 | BG22: 132 | BH22: 88 | BI22: 132 | BJ22: 64 | BK22: 96 | BL22: 64 | BM22: 96 | BN22: 64 | BO22: 96 | BP22: 64 | BQ22: 96 | BR22: 64 | BS22: 96 | BT22: 64 | BU22: 96 | BV22: 64 | BW22: =BW20*BW18 -> 96 | BX22: 76 | BY22: 114 | BZ22: 76 | CA22: 114 | CB22: 76 | CC22: 114 | CD22: 76 | CE22: 114 | CF22: 76 | CG22: 114 | CH22: 76 | CI22: 114 | CJ22: 76 | CK22: 114 | CL22: 76 | CM22: 114 | CN22: 76 | CO22: 114 | CP22: 76 | CQ22: 114 | CR22: 76 | CS22: 114 | CT22: 76 | CU22: 114 | CV22: 76 | CW22: 114 | CX22: 76 | CY22: 114 | CZ22: 80 | DA22: 120 | DB22: 0 | DC22: 0 | DD22: 0 | DE22: 0 | DF22: 0 | DG22: 0 | DH22: 0 | DI22: 0 | DJ22: 0 | DK22: 0 | DL22: 0 | DM22: 0 | DN22: 0 | DO22: 0 | DP22: 0 | DQ22: 0 | DR22: 0 | DS22: 0 | DT22: 0 | DU22: 0 | DV22: 0 | DW22: 0 | DX22: 0 | DY22: 0 | DZ22: 0 | EA22: 0 | EB22: 0 | EC22: 0 | ED22: 0 | EE22: 0 | EF22: 0 | EG22: 0 | EH22: 0 | EI22: =EI20*EI18 -> 0 | EJ22: 0 | EK22: 0 | EL22: 0 | EM22: 0 | EN22: 0 | EO22: 0 | EP22: 0 | EQ22: 0 | ER22: 0 | ES22: 0 | ET22: 0 | EU22: 0 | EV22: 0 | EW22: 0 | EX22: 0 | EY22: 0 | EZ22: 0 | FA22: 0 | FB22: 0 | FC22: 0
C24: Project Cash Flow | E24: EUR | J24: =J22-J13 -> -13.22729068 | K24: =K22-K13 -> -17.11738598 | L24: -21.8081155 | M24: -27.35350491 | N24: -33.77707004 | O24: -41.06247432 | P24: -49.14534691 | Q24: -57.90737035 | R24: -67.17372479 | S24: -76.71480166 | T24: -86.25276997 | U24: -95.47311323 | V24: -104.0407002 | W24: -111.6193778 | X24: -117.8935585 | Y24: -122.589904 | Z24: -125.4970398 | AA24: -126.4813253 | AB24: -125.4970398 | AC24: -122.589904 | AD24: -117.8935585 | AE24: -111.6193778 | AF24: -104.0407002 | AG24: -95.47311323 | AH24: -86.25276997 | AI24: -76.71480166 | AJ24: -67.17372479 | AK24: -57.90737035 | AL24: -49.14534691 | AM24: -41.06247432 | AN24: -33.77707004 | AO24: -27.35350491 | AP24: -21.8081155 | AQ24: -17.11738598 | AR24: -13.22729068 | AS24: -10.0627921 | AT24: 60 | AU24: 90 | AV24: 64 | AW24: 96 | AX24: 76 | AY24: 114 | AZ24: 88 | BA24: 132 | BB24: 88 | BC24: 132 | BD24: 88 | BE24: 132 | BF24: 88 | BG24: 132 | BH24: 88 | BI24: 132 | BJ24: 64 | BK24: 96 | BL24: 64 | BM24: 96 | BN24: 64 | BO24: 96 | BP24: 64 | BQ24: 96 | BR24: 64 | BS24: 96 | BT24: 64 | BU24: 96 | BV24: 64 | BW24: =BW22-BW13 -> 96 | BX24: 76 | BY24: 114 | BZ24: 76 | CA24: 114 | CB24: 76 | CC24: 114 | CD24: 76 | CE24: 114 | CF24: 76 | CG24: 114 | CH24: 76 | CI24: 114 | CJ24: 76 | CK24: 114 | CL24: 76 | CM24: 114 | CN24: 76 | CO24: 114 | CP24: 76 | CQ24: 114 | CR24: 76 | CS24: 114 | CT24: 76 | CU24: 114 | CV24: 76 | CW24: 114 | CX24: 76 | CY24: 114 | CZ24: 80 | DA24: 120 | DB24: 0 | DC24: 0 | DD24: 0 | DE24: 0 | DF24: 0 | DG24: 0 | DH24: 0 | DI24: 0 | DJ24: 0 | DK24: 0 | DL24: 0 | DM24: 0 | DN24: 0 | DO24: 0 | DP24: 0 | DQ24: 0 | DR24: 0 | DS24: 0 | DT24: 0 | DU24: 0 | DV24: 0 | DW24: 0 | DX24: 0 | DY24: 0 | DZ24: 0 | EA24: 0 | EB24: 0 | EC24: 0 | ED24: 0 | EE24: 0 | EF24: 0 | EG24: 0 | EH24: 0 | EI24: =EI22-EI13 -> 0 | EJ24: 0 | EK24: 0 | EL24: 0 | EM24: 0 | EN24: 0 | EO24: 0 | EP24: 0 | EQ24: 0 | ER24: 0 | ES24: 0 | ET24: 0 | EU24: 0 | EV24: 0 | EW24: 0 | EX24: 0 | EY24: 0 | EZ24: 0 | FA24: 0 | FB24: 0 | FC24: 0
C26: Project IRR | E26: % | F26: =XIRR(J24:FC24,J7:FC7) -> 0.05630374253
B28: Debt Sizing
C29: Debt Repayment Period | E29: Flag | F29: =Input!F8 -> 2023-01-01 | G29: =Input!F40 -> 2045-01-01 | H29: =SUM(J29:FC29) -> 44 | J29: =AND(J6>=$F$29,J6<$G$29)*1 -> 0 | K29: =AND(K6>=$F$29,K6<$G$29)*1 -> 0 | L29: 0 | M29: 0 | N29: 0 | O29: 0 | P29: 0 | Q29: 0 | R29: 0 | S29: 0 | T29: 0 | U29: 0 | V29: 0 | W29: 0 | X29: 0 | Y29: 0 | Z29: 0 | AA29: 0 | AB29: 0 | AC29: 0 | AD29: 0 | AE29: 0 | AF29: 0 | AG29: 0 | AH29: 0 | AI29: 0 | AJ29: 0 | AK29: 0 | AL29: 0 | AM29: 0 | AN29: 0 | AO29: 0 | AP29: 0 | AQ29: 0 | AR29: 0 | AS29: 0 | AT29: 1 | AU29: 1 | AV29: 1 | AW29: 1 | AX29: 1 | AY29: 1 | AZ29: 1 | BA29: 1 | BB29: 1 | BC29: 1 | BD29: 1 | BE29: 1 | BF29: 1 | BG29: 1 | BH29: 1 | BI29: 1 | BJ29: 1 | BK29: 1 | BL29: 1 | BM29: 1 | BN29: 1 | BO29: 1 | BP29: 1 | BQ29: 1 | BR29: 1 | BS29: 1 | BT29: 1 | BU29: 1 | BV29: 1 | BW29: =AND(BW6>=$F$29,BW6<$G$29)*1 -> 1 | BX29: 1 | BY29: 1 | BZ29: 1 | CA29: 1 | CB29: 1 | CC29: 1 | CD29: 1 | CE29: 1 | CF29: 1 | CG29: 1 | CH29: 1 | CI29: 1 | CJ29: 1 | CK29: 1 | CL29: 0 | CM29: 0 | CN29: 0 | CO29: 0 | CP29: 0 | CQ29: 0 | CR29: 0 | CS29: 0 | CT29: 0 | CU29: 0 | CV29: 0 | CW29: 0 | CX29: 0 | CY29: 0 | CZ29: 0 | DA29: 0 | DB29: 0 | DC29: 0 | DD29: 0 | DE29: 0 | DF29: 0 | DG29: 0 | DH29: 0 | DI29: 0 | DJ29: 0 | DK29: 0 | DL29: 0 | DM29: 0 | DN29: 0 | DO29: 0 | DP29: 0 | DQ29: 0 | DR29: 0 | DS29: 0 | DT29: 0 | DU29: 0 | DV29: 0 | DW29: 0 | DX29: 0 | DY29: 0 | DZ29: 0 | EA29: 0 | EB29: 0 | EC29: 0 | ED29: 0 | EE29: 0 | EF29: 0 | EG29: 0 | EH29: 0 | EI29: =AND(EI6>=$F$29,EI6<$G$29)*1 -> 0 | EJ29: 0 | EK29: 0 | EL29: 0 | EM29: 0 | EN29: 0 | EO29: 0 | EP29: 0 | EQ29: 0 | ER29: 0 | ES29: 0 | ET29: 0 | EU29: 0 | EV29: 0 | EW29: 0 | EX29: 0 | EY29: 0 | EZ29: 0 | FA29: 0 | FB29: 0 | FC29: 0
C30: CFADS over Repayment | E30: EUR | H30: =SUM(J30:FC30) -> 4050 | J30: =J29*J22 -> 0 | K30: =K29*K22 -> 0 | L30: 0 | M30: 0 | N30: 0 | O30: 0 | P30: 0 | Q30: 0 | R30: 0 | S30: 0 | T30: 0 | U30: 0 | V30: 0 | W30: 0 | X30: 0 | Y30: 0 | Z30: 0 | AA30: 0 | AB30: 0 | AC30: 0 | AD30: 0 | AE30: 0 | AF30: 0 | AG30: 0 | AH30: 0 | AI30: 0 | AJ30: 0 | AK30: 0 | AL30: 0 | AM30: 0 | AN30: 0 | AO30: 0 | AP30: 0 | AQ30: 0 | AR30: 0 | AS30: 0 | AT30: 60 | AU30: 90 | AV30: 64 | AW30: 96 | AX30: 76 | AY30: 114 | AZ30: 88 | BA30: 132 | BB30: 88 | BC30: 132 | BD30: 88 | BE30: 132 | BF30: 88 | BG30: 132 | BH30: 88 | BI30: 132 | BJ30: 64 | BK30: 96 | BL30: 64 | BM30: 96 | BN30: 64 | BO30: 96 | BP30: 64 | BQ30: 96 | BR30: 64 | BS30: 96 | BT30: 64 | BU30: 96 | BV30: 64 | BW30: =BW29*BW22 -> 96 | BX30: 76 | BY30: 114 | BZ30: 76 | CA30: 114 | CB30: 76 | CC30: 114 | CD30: 76 | CE30: 114 | CF30: 76 | CG30: 114 | CH30: 76 | CI30: 114 | CJ30: 76 | CK30: 114 | CL30: 0 | CM30: 0 | CN30: 0 | CO30: 0 | CP30: 0 | CQ30: 0 | CR30: 0 | CS30: 0 | CT30: 0 | CU30: 0 | CV30: 0 | CW30: 0 | CX30: 0 | CY30: 0 | CZ30: 0 | DA30: 0 | DB30: 0 | DC30: 0 | DD30: 0 | DE30: 0 | DF30: 0 | DG30: 0 | DH30: 0 | DI30: 0 | DJ30: 0 | DK30: 0 | DL30: 0 | DM30: 0 | DN30: 0 | DO30: 0 | DP30: 0 | DQ30: 0 | DR30: 0 | DS30: 0 | DT30: 0 | DU30: 0 | DV30: 0 | DW30: 0 | DX30: 0 | DY30: 0 | DZ30: 0 | EA30: 0 | EB30: 0 | EC30: 0 | ED30: 0 | EE30: 0 | EF30: 0 | EG30: 0 | EH30: 0 | EI30: =EI29*EI22 -> 0 | EJ30: 0 | EK30: 0 | EL30: 0 | EM30: 0 | EN30: 0 | EO30: 0 | EP30: 0 | EQ30: 0 | ER30: 0 | ES30: 0 | ET30: 0 | EU30: 0 | EV30: 0 | EW30: 0 | EX30: 0 | EY30: 0 | EZ30: 0 | FA30: 0 | FB30: 0 | FC30: 0
C32: Periodic Interest
D33: Annual Swap Rate | E33: % p.a. | F33: =Input!F43 -> 0.02 | J33: =$F$33 -> 0.02 | K33: =$F$33 -> 0.02 | L33: 0.02 | M33: 0.02 | N33: 0.02 | O33: 0.02 | P33: 0.02 | Q33: 0.02 | R33: 0.02 | S33: 0.02 | T33: 0.02 | U33: 0.02 | V33: 0.02 | W33: 0.02 | X33: 0.02 | Y33: 0.02 | Z33: 0.02 | AA33: 0.02 | AB33: 0.02 | AC33: 0.02 | AD33: 0.02 | AE33: 0.02 | AF33: 0.02 | AG33: 0.02 | AH33: 0.02 | AI33: 0.02 | AJ33: 0.02 | AK33: 0.02 | AL33: 0.02 | AM33: 0.02 | AN33: 0.02 | AO33: 0.02 | AP33: 0.02 | AQ33: 0.02 | AR33: 0.02 | AS33: 0.02 | AT33: 0.02 | AU33: 0.02 | AV33: 0.02 | AW33: 0.02 | AX33: 0.02 | AY33: 0.02 | AZ33: 0.02 | BA33: 0.02 | BB33: 0.02 | BC33: 0.02 | BD33: 0.02 | BE33: 0.02 | BF33: 0.02 | BG33: 0.02 | BH33: 0.02 | BI33: 0.02 | BJ33: 0.02 | BK33: 0.02 | BL33: 0.02 | BM33: 0.02 | BN33: 0.02 | BO33: 0.02 | BP33: 0.02 | BQ33: 0.02 | BR33: 0.02 | BS33: 0.02 | BT33: 0.02 | BU33: 0.02 | BV33: 0.02 | BW33: =$F$33 -> 0.02 | BX33: 0.02 | BY33: 0.02 | BZ33: 0.02 | CA33: 0.02 | CB33: 0.02 | CC33: 0.02 | CD33: 0.02 | CE33: 0.02 | CF33: 0.02 | CG33: 0.02 | CH33: 0.02 | CI33: 0.02 | CJ33: 0.02 | CK33: 0.02 | CL33: 0.02 | CM33: 0.02 | CN33: 0.02 | CO33: 0.02 | CP33: 0.02 | CQ33: 0.02 | CR33: 0.02 | CS33: 0.02 | CT33: 0.02 | CU33: 0.02 | CV33: 0.02 | CW33: 0.02 | CX33: 0.02 | CY33: 0.02 | CZ33: 0.02 | DA33: 0.02 | DB33: 0.02 | DC33: 0.02 | DD33: 0.02 | DE33: 0.02 | DF33: 0.02 | DG33: 0.02 | DH33: 0.02 | DI33: 0.02 | DJ33: 0.02 | DK33: 0.02 | DL33: 0.02 | DM33: 0.02 | DN33: 0.02 | DO33: 0.02 | DP33: 0.02 | DQ33: 0.02 | DR33: 0.02 | DS33: 0.02 | DT33: 0.02 | DU33: 0.02 | DV33: 0.02 | DW33: 0.02 | DX33: 0.02 | DY33: 0.02 | DZ33: 0.02 | EA33: 0.02 | EB33: 0.02 | EC33: 0.02 | ED33: 0.02 | EE33: 0.02 | EF33: 0.02 | EG33: 0.02 | EH33: 0.02 | EI33: =$F$33 -> 0.02 | EJ33: 0.02 | EK33: 0.02 | EL33: 0.02 | EM33: 0.02 | EN33: 0.02 | EO33: 0.02 | EP33: 0.02 | EQ33: 0.02 | ER33: 0.02 | ES33: 0.02 | ET33: 0.02 | EU33: 0.02 | EV33: 0.02 | EW33: 0.02 | EX33: 0.02 | EY33: 0.02 | EZ33: 0.02 | FA33: 0.02 | FB33: 0.02 | FC33: 0.02
D34: Annual Credit Spread (Lookup) | E34: % p.a. | J34: =LOOKUP(J6,Input!45:45,Input!46:46) -> 0.015 | K34: =LOOKUP(K6,Input!45:45,Input!46:46) -> 0.015 | L34: =LOOKUP(L6,Input!45:45,Input!46:46) -> 0.015 | M34: =LOOKUP(M6,Input!45:45,Input!46:46) -> 0.015 | N34: =LOOKUP(N6,Input!45:45,Input!46:46) -> 0.015 | O34: =LOOKUP(O6,Input!45:45,Input!46:46) -> 0.015 | P34: =LOOKUP(P6,Input!45:45,Input!46:46) -> 0.015 | Q34: =LOOKUP(Q6,Input!45:45,Input!46:46) -> 0.015 | R34: =LOOKUP(R6,Input!45:45,Input!46:46) -> 0.015 | S34: =LOOKUP(S6,Input!45:45,Input!46:46) -> 0.015 | T34: =LOOKUP(T6,Input!45:45,Input!46:46) -> 0.015 | U34: =LOOKUP(U6,Input!45:45,Input!46:46) -> 0.015 | V34: =LOOKUP(V6,Input!45:45,Input!46:46) -> 0.015 | W34: =LOOKUP(W6,Input!45:45,Input!46:46) -> 0.015 | X34: =LOOKUP(X6,Input!45:45,Input!46:46) -> 0.015 | Y34: =LOOKUP(Y6,Input!45:45,Input!46:46) -> 0.015 | Z34: =LOOKUP(Z6,Input!45:45,Input!46:46) -> 0.015 | AA34: =LOOKUP(AA6,Input!45:45,Input!46:46) -> 0.015 | AB34: =LOOKUP(AB6,Input!45:45,Input!46:46) -> 0.015 | AC34: =LOOKUP(AC6,Input!45:45,Input!46:46) -> 0.015 | AD34: =LOOKUP(AD6,Input!45:45,Input!46:46) -> 0.015 | AE34: =LOOKUP(AE6,Input!45:45,Input!46:46) -> 0.015 | AF34: =LOOKUP(AF6,Input!45:45,Input!46:46) -> 0.015 | AG34: =LOOKUP(AG6,Input!45:45,Input!46:46) -> 0.015 | AH34: =LOOKUP(AH6,Input!45:45,Input!46:46) -> 0.015 | AI34: =LOOKUP(AI6,Input!45:45,Input!46:46) -> 0.015 | AJ34: =LOOKUP(AJ6,Input!45:45,Input!46:46) -> 0.015 | AK34: =LOOKUP(AK6,Input!45:45,Input!46:46) -> 0.015 | AL34: =LOOKUP(AL6,Input!45:45,Input!46:46) -> 0.015 | AM34: =LOOKUP(AM6,Input!45:45,Input!46:46) -> 0.015 | AN34: =LOOKUP(AN6,Input!45:45,Input!46:46) -> 0.015 | AO34: =LOOKUP(AO6,Input!45:45,Input!46:46) -> 0.015 | AP34: =LOOKUP(AP6,Input!45:45,Input!46:46) -> 0.015 | AQ34: =LOOKUP(AQ6,Input!45:45,Input!46:46) -> 0.015 | AR34: =LOOKUP(AR6,Input!45:45,Input!46:46) -> 0.015 | AS34: =LOOKUP(AS6,Input!45:45,Input!46:46) -> 0.015 | AT34: =LOOKUP(AT6,Input!45:45,Input!46:46) -> 0.017 | AU34: =LOOKUP(AU6,Input!45:45,Input!46:46) -> 0.017 | AV34: =LOOKUP(AV6,Input!45:45,Input!46:46) -> 0.017 | AW34: =LOOKUP(AW6,Input!45:45,Input!46:46) -> 0.017 | AX34: =LOOKUP(AX6,Input!45:45,Input!46:46) -> 0.0175 | AY34: =LOOKUP(AY6,Input!45:45,Input!46:46) -> 0.0175 | AZ34: =LOOKUP(AZ6,Input!45:45,Input!46:46) -> 0.0175 | BA34: =LOOKUP(BA6,Input!45:45,Input!46:46) -> 0.0175 | BB34: =LOOKUP(BB6,Input!45:45,Input!46:46) -> 0.018 | BC34: =LOOKUP(BC6,Input!45:45,Input!46:46) -> 0.018 | BD34: =LOOKUP(BD6,Input!45:45,Input!46:46) -> 0.018 | BE34: =LOOKUP(BE6,Input!45:45,Input!46:46) -> 0.018 | BF34: =LOOKUP(BF6,Input!45:45,Input!46:46) -> 0.0185 | BG34: =LOOKUP(BG6,Input!45:45,Input!46:46) -> 0.0185 | BH34: =LOOKUP(BH6,Input!45:45,Input!46:46) -> 0.0185 | BI34: =LOOKUP(BI6,Input!45:45,Input!46:46) -> 0.0185 | BJ34: =LOOKUP(BJ6,Input!45:45,Input!46:46) -> 0.0185 | BK34: =LOOKUP(BK6,Input!45:45,Input!46:46) -> 0.0185 | BL34: =LOOKUP(BL6,Input!45:45,Input!46:46) -> 0.0185 | BM34: =LOOKUP(BM6,Input!45:45,Input!46:46) -> 0.0185 | BN34: =LOOKUP(BN6,Input!45:45,Input!46:46) -> 0.0185 | BO34: =LOOKUP(BO6,Input!45:45,Input!46:46) -> 0.0185 | BP34: =LOOKUP(BP6,Input!45:45,Input!46:46) -> 0.0185 | BQ34: =LOOKUP(BQ6,Input!45:45,Input!46:46) -> 0.0185 | BR34: =LOOKUP(BR6,Input!45:45,Input!46:46) -> 0.0185 | BS34: =LOOKUP(BS6,Input!45:45,Input!46:46) -> 0.0185 | BT34: =LOOKUP(BT6,Input!45:45,Input!46:46) -> 0.0185 | BU34: =LOOKUP(BU6,Input!45:45,Input!46:46) -> 0.0185 | BV34: =LOOKUP(BV6,Input!45:45,Input!46:46) -> 0.0185 | BW34: =LOOKUP(BW6,Input!45:45,Input!46:46) -> 0.0185 | BX34: =LOOKUP(BX6,Input!45:45,Input!46:46) -> 0.0185 | BY34: =LOOKUP(BY6,Input!45:45,Input!46:46) -> 0.0185 | BZ34: =LOOKUP(BZ6,Input!45:45,Input!46:46) -> 0.0185 | CA34: =LOOKUP(CA6,Input!45:45,Input!46:46) -> 0.0185 | CB34: =LOOKUP(CB6,Input!45:45,Input!46:46) -> 0.0185 | CC34: =LOOKUP(CC6,Input!45:45,Input!46:46) -> 0.0185 | CD34: =LOOKUP(CD6,Input!45:45,Input!46:46) -> 0.0185 | CE34: =LOOKUP(CE6,Input!45:45,Input!46:46) -> 0.0185 | CF34: =LOOKUP(CF6,Input!45:45,Input!46:46) -> 0.0185 | CG34: =LOOKUP(CG6,Input!45:45,Input!46:46) -> 0.0185 | CH34: =LOOKUP(CH6,Input!45:45,Input!46:46) -> 0.0185 | CI34: =LOOKUP(CI6,Input!45:45,Input!46:46) -> 0.0185 | CJ34: =LOOKUP(CJ6,Input!45:45,Input!46:46) -> 0.0185 | CK34: =LOOKUP(CK6,Input!45:45,Input!46:46) -> 0.0185 | CL34: =LOOKUP(CL6,Input!45:45,Input!46:46) -> 0.0185 | CM34: =LOOKUP(CM6,Input!45:45,Input!46:46) -> 0.0185 | CN34: =LOOKUP(CN6,Input!45:45,Input!46:46) -> 0.0185 | CO34: =LOOKUP(CO6,Input!45:45,Input!46:46) -> 0.0185 | CP34: =LOOKUP(CP6,Input!45:45,Input!46:46) -> 0.0185 | CQ34: =LOOKUP(CQ6,Input!45:45,Input!46:46) -> 0.0185 | CR34: =LOOKUP(CR6,Input!45:45,Input!46:46) -> 0.0185 | CS34: =LOOKUP(CS6,Input!45:45,Input!46:46) -> 0.0185 | CT34: =LOOKUP(CT6,Input!45:45,Input!46:46) -> 0.0185 | CU34: =LOOKUP(CU6,Input!45:45,Input!46:46) -> 0.0185 | CV34: =LOOKUP(CV6,Input!45:45,Input!46:46) -> 0.0185 | CW34: =LOOKUP(CW6,Input!45:45,Input!46:46) -> 0.0185 | CX34: =LOOKUP(CX6,Input!45:45,Input!46:46) -> 0.0185 | CY34: =LOOKUP(CY6,Input!45:45,Input!46:46) -> 0.0185 | CZ34: =LOOKUP(CZ6,Input!45:45,Input!46:46) -> 0.0185 | DA34: =LOOKUP(DA6,Input!45:45,Input!46:46) -> 0.0185 | DB34: =LOOKUP(DB6,Input!45:45,Input!46:46) -> 0.0185 | DC34: =LOOKUP(DC6,Input!45:45,Input!46:46) -> 0.0185 | DD34: =LOOKUP(DD6,Input!45:45,Input!46:46) -> 0.0185 | DE34: =LOOKUP(DE6,Input!45:45,Input!46:46) -> 0.0185 | DF34: =LOOKUP(DF6,Input!45:45,Input!46:46) -> 0.0185 | DG34: =LOOKUP(DG6,Input!45:45,Input!46:46) -> 0.0185 | DH34: =LOOKUP(DH6,Input!45:45,Input!46:46) -> 0.0185 | DI34: =LOOKUP(DI6,Input!45:45,Input!46:46) -> 0.0185 | DJ34: =LOOKUP(DJ6,Input!45:45,Input!46:46) -> 0.0185 | DK34: =LOOKUP(DK6,Input!45:45,Input!46:46) -> 0.0185 | DL34: =LOOKUP(DL6,Input!45:45,Input!46:46) -> 0.0185 | DM34: =LOOKUP(DM6,Input!45:45,Input!46:46) -> 0.0185 | DN34: =LOOKUP(DN6,Input!45:45,Input!46:46) -> 0.0185 | DO34: =LOOKUP(DO6,Input!45:45,Input!46:46) -> 0.0185 | DP34: =LOOKUP(DP6,Input!45:45,Input!46:46) -> 0.0185 | DQ34: =LOOKUP(DQ6,Input!45:45,Input!46:46) -> 0.0185 | DR34: =LOOKUP(DR6,Input!45:45,Input!46:46) -> 0.0185 | DS34: =LOOKUP(DS6,Input!45:45,Input!46:46) -> 0.0185 | DT34: =LOOKUP(DT6,Input!45:45,Input!46:46) -> 0.0185 | DU34: =LOOKUP(DU6,Input!45:45,Input!46:46) -> 0.0185 | DV34: =LOOKUP(DV6,Input!45:45,Input!46:46) -> 0.0185 | DW34: =LOOKUP(DW6,Input!45:45,Input!46:46) -> 0.0185 | DX34: =LOOKUP(DX6,Input!45:45,Input!46:46) -> 0.0185 | DY34: =LOOKUP(DY6,Input!45:45,Input!46:46) -> 0.0185 | DZ34: =LOOKUP(DZ6,Input!45:45,Input!46:46) -> 0.0185 | EA34: =LOOKUP(EA6,Input!45:45,Input!46:46) -> 0.0185 | EB34: =LOOKUP(EB6,Input!45:45,Input!46:46) -> 0.0185 | EC34: =LOOKUP(EC6,Input!45:45,Input!46:46) -> 0.0185 | ED34: =LOOKUP(ED6,Input!45:45,Input!46:46) -> 0.0185 | EE34: =LOOKUP(EE6,Input!45:45,Input!46:46) -> 0.0185 | EF34: =LOOKUP(EF6,Input!45:45,Input!46:46) -> 0.0185 | EG34: =LOOKUP(EG6,Input!45:45,Input!46:46) -> 0.0185 | EH34: =LOOKUP(EH6,Input!45:45,Input!46:46) -> 0.0185 | EI34: =LOOKUP(EI6,Input!45:45,Input!46:46) -> 0.0185 | EJ34: =LOOKUP(EJ6,Input!45:45,Input!46:46) -> 0.0185 | EK34: =LOOKUP(EK6,Input!45:45,Input!46:46) -> 0.0185 | EL34: =LOOKUP(EL6,Input!45:45,Input!46:46) -> 0.0185 | EM34: =LOOKUP(EM6,Input!45:45,Input!46:46) -> 0.0185 | EN34: =LOOKUP(EN6,Input!45:45,Input!46:46) -> 0.0185 | EO34: =LOOKUP(EO6,Input!45:45,Input!46:46) -> 0.0185 | EP34: =LOOKUP(EP6,Input!45:45,Input!46:46) -> 0.0185 | EQ34: =LOOKUP(EQ6,Input!45:45,Input!46:46) -> 0.0185 | ER34: =LOOKUP(ER6,Input!45:45,Input!46:46) -> 0.0185 | ES34: =LOOKUP(ES6,Input!45:45,Input!46:46) -> 0.0185 | ET34: =LOOKUP(ET6,Input!45:45,Input!46:46) -> 0.0185 | EU34: =LOOKUP(EU6,Input!45:45,Input!46:46) -> 0.0185 | EV34: =LOOKUP(EV6,Input!45:45,Input!46:46) -> 0.0185 | EW34: =LOOKUP(EW6,Input!45:45,Input!46:46) -> 0.0185 | EX34: =LOOKUP(EX6,Input!45:45,Input!46:46) -> 0.0185 | EY34: =LOOKUP(EY6,Input!45:45,Input!46:46) -> 0.0185 | EZ34: =LOOKUP(EZ6,Input!45:45,Input!46:46) -> 0.0185 | FA34: =LOOKUP(FA6,Input!45:45,Input!46:46) -> 0.0185 | FB34: =LOOKUP(FB6,Input!45:45,Input!46:46) -> 0.0185 | FC34: =LOOKUP(FC6,Input!45:45,Input!46:46) -> 0.0185
D35: Total Annual Rate | E35: % p.a. | J35: =SUM(J33:J34) -> 0.035 | K35: =SUM(K33:K34) -> 0.035 | L35: 0.035 | M35: 0.035 | N35: 0.035 | O35: 0.035 | P35: 0.035 | Q35: 0.035 | R35: 0.035 | S35: 0.035 | T35: 0.035 | U35: 0.035 | V35: 0.035 | W35: 0.035 | X35: 0.035 | Y35: 0.035 | Z35: 0.035 | AA35: 0.035 | AB35: 0.035 | AC35: 0.035 | AD35: 0.035 | AE35: 0.035 | AF35: 0.035 | AG35: 0.035 | AH35: 0.035 | AI35: 0.035 | AJ35: 0.035 | AK35: 0.035 | AL35: 0.035 | AM35: 0.035 | AN35: 0.035 | AO35: 0.035 | AP35: 0.035 | AQ35: 0.035 | AR35: 0.035 | AS35: 0.035 | AT35: 0.037 | AU35: 0.037 | AV35: 0.037 | AW35: 0.037 | AX35: 0.0375 | AY35: 0.0375 | AZ35: 0.0375 | BA35: 0.0375 | BB35: 0.038 | BC35: 0.038 | BD35: 0.038 | BE35: 0.038 | BF35: 0.0385 | BG35: 0.0385 | BH35: 0.0385 | BI35: 0.0385 | BJ35: 0.0385 | BK35: 0.0385 | BL35: 0.0385 | BM35: 0.0385 | BN35: 0.0385 | BO35: 0.0385 | BP35: 0.0385 | BQ35: 0.0385 | BR35: 0.0385 | BS35: 0.0385 | BT35: 0.0385 | BU35: 0.0385 | BV35: 0.0385 | BW35: =SUM(BW33:BW34) -> 0.0385 | BX35: 0.0385 | BY35: 0.0385 | BZ35: 0.0385 | CA35: 0.0385 | CB35: 0.0385 | CC35: 0.0385 | CD35: 0.0385 | CE35: 0.0385 | CF35: 0.0385 | CG35: 0.0385 | CH35: 0.0385 | CI35: 0.0385 | CJ35: 0.0385 | CK35: 0.0385 | CL35: 0.0385 | CM35: 0.0385 | CN35: 0.0385 | CO35: 0.0385 | CP35: 0.0385 | CQ35: 0.0385 | CR35: 0.0385 | CS35: 0.0385 | CT35: 0.0385 | CU35: 0.0385 | CV35: 0.0385 | CW35: 0.0385 | CX35: 0.0385 | CY35: 0.0385 | CZ35: 0.0385 | DA35: 0.0385 | DB35: 0.0385 | DC35: 0.0385 | DD35: 0.0385 | DE35: 0.0385 | DF35: 0.0385 | DG35: 0.0385 | DH35: 0.0385 | DI35: 0.0385 | DJ35: 0.0385 | DK35: 0.0385 | DL35: 0.0385 | DM35: 0.0385 | DN35: 0.0385 | DO35: 0.0385 | DP35: 0.0385 | DQ35: 0.0385 | DR35: 0.0385 | DS35: 0.0385 | DT35: 0.0385 | DU35: 0.0385 | DV35: 0.0385 | DW35: 0.0385 | DX35: 0.0385 | DY35: 0.0385 | DZ35: 0.0385 | EA35: 0.0385 | EB35: 0.0385 | EC35: 0.0385 | ED35: 0.0385 | EE35: 0.0385 | EF35: 0.0385 | EG35: 0.0385 | EH35: 0.0385 | EI35: =SUM(EI33:EI34) -> 0.0385 | EJ35: 0.0385 | EK35: 0.0385 | EL35: 0.0385 | EM35: 0.0385 | EN35: 0.0385 | EO35: 0.0385 | EP35: 0.0385 | EQ35: 0.0385 | ER35: 0.0385 | ES35: 0.0385 | ET35: 0.0385 | EU35: 0.0385 | EV35: 0.0385 | EW35: 0.0385 | EX35: 0.0385 | EY35: 0.0385 | EZ35: 0.0385 | FA35: 0.0385 | FB35: 0.0385 | FC35: 0.0385
D37: Periodic Rate (Periods in Line/12) | E37: % p.p. | J37: =J35/12*J5 -> 0.002916666667 | K37: =K35/12*K5 -> 0.002916666667 | L37: 0.002916666667 | M37: 0.002916666667 | N37: 0.002916666667 | O37: 0.002916666667 | P37: 0.002916666667 | Q37: 0.002916666667 | R37: 0.002916666667 | S37: 0.002916666667 | T37: 0.002916666667 | U37: 0.002916666667 | V37: 0.002916666667 | W37: 0.002916666667 | X37: 0.002916666667 | Y37: 0.002916666667 | Z37: 0.002916666667 | AA37: 0.002916666667 | AB37: 0.002916666667 | AC37: 0.002916666667 | AD37: 0.002916666667 | AE37: 0.002916666667 | AF37: 0.002916666667 | AG37: 0.002916666667 | AH37: 0.002916666667 | AI37: 0.002916666667 | AJ37: 0.002916666667 | AK37: 0.002916666667 | AL37: 0.002916666667 | AM37: 0.002916666667 | AN37: 0.002916666667 | AO37: 0.002916666667 | AP37: 0.002916666667 | AQ37: 0.002916666667 | AR37: 0.002916666667 | AS37: 0.002916666667 | AT37: 0.0185 | AU37: 0.0185 | AV37: 0.0185 | AW37: 0.0185 | AX37: 0.01875 | AY37: 0.01875 | AZ37: 0.01875 | BA37: 0.01875 | BB37: 0.019 | BC37: 0.019 | BD37: 0.019 | BE37: 0.019 | BF37: 0.01925 | BG37: 0.01925 | BH37: 0.01925 | BI37: 0.01925 | BJ37: 0.01925 | BK37: 0.01925 | BL37: 0.01925 | BM37: 0.01925 | BN37: 0.01925 | BO37: 0.01925 | BP37: 0.01925 | BQ37: 0.01925 | BR37: 0.01925 | BS37: 0.01925 | BT37: 0.01925 | BU37: 0.01925 | BV37: 0.01925 | BW37: =BW35/12*BW5 -> 0.01925 | BX37: 0.01925 | BY37: 0.01925 | BZ37: 0.01925 | CA37: 0.01925 | CB37: 0.01925 | CC37: 0.01925 | CD37: 0.01925 | CE37: 0.01925 | CF37: 0.01925 | CG37: 0.01925 | CH37: 0.01925 | CI37: 0.01925 | CJ37: 0.01925 | CK37: 0.01925 | CL37: 0.01925 | CM37: 0.01925 | CN37: 0.01925 | CO37: 0.01925 | CP37: 0.01925 | CQ37: 0.01925 | CR37: 0.01925 | CS37: 0.01925 | CT37: 0.01925 | CU37: 0.01925 | CV37: 0.01925 | CW37: 0.01925 | CX37: 0.01925 | CY37: 0.01925 | CZ37: 0.01925 | DA37: 0.01925 | DB37: 0.01925 | DC37: 0.01925 | DD37: 0.01925 | DE37: 0.01925 | DF37: 0.01925 | DG37: 0.01925 | DH37: 0.01925 | DI37: 0.01925 | DJ37: 0.01925 | DK37: 0.01925 | DL37: 0.01925 | DM37: 0.01925 | DN37: 0.01925 | DO37: 0.01925 | DP37: 0.01925 | DQ37: 0.01925 | DR37: 0.01925 | DS37: 0.01925 | DT37: 0.01925 | DU37: 0.01925 | DV37: 0.01925 | DW37: 0.01925 | DX37: 0.01925 | DY37: 0.01925 | DZ37: 0.01925 | EA37: 0.01925 | EB37: 0.01925 | EC37: 0.01925 | ED37: 0.01925 | EE37: 0.01925 | EF37: 0.01925 | EG37: 0.01925 | EH37: 0.01925 | EI37: =EI35/12*EI5 -> 0.01925 | EJ37: 0.01925 | EK37: 0.01925 | EL37: 0.01925 | EM37: 0.01925 | EN37: 0.01925 | EO37: 0.01925 | EP37: 0.01925 | EQ37: 0.01925 | ER37: 0.01925 | ES37: 0.01925 | ET37: 0.01925 | EU37: 0.01925 | EV37: 0.01925 | EW37: 0.01925 | EX37: 0.01925 | EY37: 0.01925 | EZ37: 0.01925 | FA37: 0.01925 | FB37: 0.01925 | FC37: 0.01925
C39: Target Debt Service (CFADS/DSCR | E39: EUR | F39: =Input!F33 -> 1.4 | J39: =J30/$F$39 -> 0 | K39: =K30/$F$39 -> 0 | L39: 0 | M39: 0 | N39: 0 | O39: 0 | P39: 0 | Q39: 0 | R39: 0 | S39: 0 | T39: 0 | U39: 0 | V39: 0 | W39: 0 | X39: 0 | Y39: 0 | Z39: 0 | AA39: 0 | AB39: 0 | AC39: 0 | AD39: 0 | AE39: 0 | AF39: 0 | AG39: 0 | AH39: 0 | AI39: 0 | AJ39: 0 | AK39: 0 | AL39: 0 | AM39: 0 | AN39: 0 | AO39: 0 | AP39: 0 | AQ39: 0 | AR39: 0 | AS39: 0 | AT39: 42.85714286 | AU39: 64.28571429 | AV39: 45.71428571 | AW39: 68.57142857 | AX39: 54.28571429 | AY39: 81.42857143 | AZ39: 62.85714286 | BA39: 94.28571429 | BB39: 62.85714286 | BC39: 94.28571429 | BD39: 62.85714286 | BE39: 94.28571429 | BF39: 62.85714286 | BG39: 94.28571429 | BH39: 62.85714286 | BI39: 94.28571429 | BJ39: 45.71428571 | BK39: 68.57142857 | BL39: 45.71428571 | BM39: 68.57142857 | BN39: 45.71428571 | BO39: 68.57142857 | BP39: 45.71428571 | BQ39: 68.57142857 | BR39: 45.71428571 | BS39: 68.57142857 | BT39: 45.71428571 | BU39: 68.57142857 | BV39: 45.71428571 | BW39: =BW30/$F$39 -> 68.57142857 | BX39: 54.28571429 | BY39: 81.42857143 | BZ39: 54.28571429 | CA39: 81.42857143 | CB39: 54.28571429 | CC39: 81.42857143 | CD39: 54.28571429 | CE39: 81.42857143 | CF39: 54.28571429 | CG39: 81.42857143 | CH39: 54.28571429 | CI39: 81.42857143 | CJ39: 54.28571429 | CK39: 81.42857143 | CL39: 0 | CM39: 0 | CN39: 0 | CO39: 0 | CP39: 0 | CQ39: 0 | CR39: 0 | CS39: 0 | CT39: 0 | CU39: 0 | CV39: 0 | CW39: 0 | CX39: 0 | CY39: 0 | CZ39: 0 | DA39: 0 | DB39: 0 | DC39: 0 | DD39: 0 | DE39: 0 | DF39: 0 | DG39: 0 | DH39: 0 | DI39: 0 | DJ39: 0 | DK39: 0 | DL39: 0 | DM39: 0 | DN39: 0 | DO39: 0 | DP39: 0 | DQ39: 0 | DR39: 0 | DS39: 0 | DT39: 0 | DU39: 0 | DV39: 0 | DW39: 0 | DX39: 0 | DY39: 0 | DZ39: 0 | EA39: 0 | EB39: 0 | EC39: 0 | ED39: 0 | EE39: 0 | EF39: 0 | EG39: 0 | EH39: 0 | EI39: =EI30/$F$39 -> 0 | EJ39: 0 | EK39: 0 | EL39: 0 | EM39: 0 | EN39: 0 | EO39: 0 | EP39: 0 | EQ39: 0 | ER39: 0 | ES39: 0 | ET39: 0 | EU39: 0 | EV39: 0 | EW39: 0 | EX39: 0 | EY39: 0 | EZ39: 0 | FA39: 0 | FB39: 0 | FC39: 0
C41: NPV Factor (Compund from COD) | E41: Index | I41: 1 | J41: =I41*(1+J37*J8) -> 1 | K41: =J41*(1+K37*K8) -> 1 | L41: 1 | M41: 1 | N41: 1 | O41: 1 | P41: 1 | Q41: 1 | R41: 1 | S41: 1 | T41: 1 | U41: 1 | V41: 1 | W41: 1 | X41: 1 | Y41: 1 | Z41: 1 | AA41: 1 | AB41: 1 | AC41: 1 | AD41: 1 | AE41: 1 | AF41: 1 | AG41: 1 | AH41: 1 | AI41: 1 | AJ41: 1 | AK41: 1 | AL41: 1 | AM41: 1 | AN41: 1 | AO41: 1 | AP41: 1 | AQ41: 1 | AR41: 1 | AS41: 1 | AT41: 1.0185 | AU41: 1.03734225 | AV41: 1.056533082 | AW41: 1.076078944 | AX41: 1.096255424 | AY41: 1.116810213 | AZ41: 1.137750405 | BA41: 1.159083225 | BB41: 1.181105806 | BC41: 1.203546816 | BD41: 1.226414206 | BE41: 1.249716076 | BF41: 1.27377311 | BG41: 1.298293242 | BH41: 1.323285387 | BI41: 1.348758631 | BJ41: 1.374722235 | BK41: 1.401185638 | BL41: 1.428158461 | BM41: 1.455650512 | BN41: 1.483671784 | BO41: 1.512232466 | BP41: 1.541342941 | BQ41: 1.571013792 | BR41: 1.601255808 | BS41: 1.632079982 | BT41: 1.663497522 | BU41: 1.695519849 | BV41: 1.728158606 | BW41: =BV41*(1+BW37*BW8) -> 1.761425659 | BX41: 1.795333103 | BY41: 1.829893266 | BZ41: 1.865118711 | CA41: 1.901022246 | CB41: 1.937616924 | CC41: 1.97491605 | CD41: 2.012933184 | CE41: 2.051682148 | CF41: 2.091177029 | CG41: 2.131432187 | CH41: 2.172462257 | CI41: 2.214282155 | CJ41: 2.256907087 | CK41: 2.300352548 | CL41: 2.344634335 | CM41: 2.389768546 | CN41: 2.43577159 | CO41: 2.482660193 | CP41: 2.530451402 | CQ41: 2.579162591 | CR41: 2.628811471 | CS41: 2.679416092 | CT41: 2.730994852 | CU41: 2.783566503 | CV41: 2.837150158 | CW41: 2.891765298 | CX41: 2.94743178 | CY41: 3.004169842 | CZ41: 3.062000112 | DA41: 3.120943614 | DB41: 3.120943614 | DC41: 3.120943614 | DD41: 3.120943614 | DE41: 3.120943614 | DF41: 3.120943614 | DG41: 3.120943614 | DH41: 3.120943614 | DI41: 3.120943614 | DJ41: 3.120943614 | DK41: 3.120943614 | DL41: 3.120943614 | DM41: 3.120943614 | DN41: 3.120943614 | DO41: 3.120943614 | DP41: 3.120943614 | DQ41: 3.120943614 | DR41: 3.120943614 | DS41: 3.120943614 | DT41: 3.120943614 | DU41: 3.120943614 | DV41: 3.120943614 | DW41: 3.120943614 | DX41: 3.120943614 | DY41: 3.120943614 | DZ41: 3.120943614 | EA41: 3.120943614 | EB41: 3.120943614 | EC41: 3.120943614 | ED41: 3.120943614 | EE41: 3.120943614 | EF41: 3.120943614 | EG41: 3.120943614 | EH41: 3.120943614 | EI41: =EH41*(1+EI37*EI8) -> 3.120943614 | EJ41: 3.120943614 | EK41: 3.120943614 | EL41: 3.120943614 | EM41: 3.120943614 | EN41: 3.120943614 | EO41: 3.120943614 | EP41: 3.120943614 | EQ41: 3.120943614 | ER41: 3.120943614 | ES41: 3.120943614 | ET41: 3.120943614 | EU41: 3.120943614 | EV41: 3.120943614 | EW41: 3.120943614 | EX41: 3.120943614 | EY41: 3.120943614 | EZ41: 3.120943614 | FA41: 3.120943614 | FB41: 3.120943614 | FC41: 3.120943614
C42: NPV of Debt Service =Total Debt | E42: EUR | F42: =SUMPRODUCT(J39:FC39/J41:FC41) -> 1950.296766
C44: Period Prior to COD Flag | E44: Flag | F44: =EDATE(Input!F8,-1) -> 2022-12-01 | H44: =SUM(J44:FC44) -> 1 | J44: =(J6=$F$44)*1 -> 0 | K44: =(K6=$F$44)*1 -> 0 | L44: 0 | M44: 0 | N44: 0 | O44: 0 | P44: 0 | Q44: 0 | R44: 0 | S44: 0 | T44: 0 | U44: 0 | V44: 0 | W44: 0 | X44: 0 | Y44: 0 | Z44: 0 | AA44: 0 | AB44: 0 | AC44: 0 | AD44: 0 | AE44: 0 | AF44: 0 | AG44: 0 | AH44: 0 | AI44: 0 | AJ44: 0 | AK44: 0 | AL44: 0 | AM44: 0 | AN44: 0 | AO44: 0 | AP44: 0 | AQ44: 0 | AR44: 0 | AS44: 1 | AT44: 0 | AU44: 0 | AV44: 0 | AW44: 0 | AX44: 0 | AY44: 0 | AZ44: 0 | BA44: 0 | BB44: 0 | BC44: 0 | BD44: 0 | BE44: 0 | BF44: 0 | BG44: 0 | BH44: 0 | BI44: 0 | BJ44: 0 | BK44: 0 | BL44: 0 | BM44: 0 | BN44: 0 | BO44: 0 | BP44: 0 | BQ44: 0 | BR44: 0 | BS44: 0 | BT44: 0 | BU44: 0 | BV44: 0 | BW44: =(BW6=$F$44)*1 -> 0 | BX44: 0 | BY44: 0 | BZ44: 0 | CA44: 0 | CB44: 0 | CC44: 0 | CD44: 0 | CE44: 0 | CF44: 0 | CG44: 0 | CH44: 0 | CI44: 0 | CJ44: 0 | CK44: 0 | CL44: 0 | CM44: 0 | CN44: 0 | CO44: 0 | CP44: 0 | CQ44: 0 | CR44: 0 | CS44: 0 | CT44: 0 | CU44: 0 | CV44: 0 | CW44: 0 | CX44: 0 | CY44: 0 | CZ44: 0 | DA44: 0 | DB44: 0 | DC44: 0 | DD44: 0 | DE44: 0 | DF44: 0 | DG44: 0 | DH44: 0 | DI44: 0 | DJ44: 0 | DK44: 0 | DL44: 0 | DM44: 0 | DN44: 0 | DO44: 0 | DP44: 0 | DQ44: 0 | DR44: 0 | DS44: 0 | DT44: 0 | DU44: 0 | DV44: 0 | DW44: 0 | DX44: 0 | DY44: 0 | DZ44: 0 | EA44: 0 | EB44: 0 | EC44: 0 | ED44: 0 | EE44: 0 | EF44: 0 | EG44: 0 | EH44: 0 | EI44: =(EI6=$F$44)*1 -> 0 | EJ44: 0 | EK44: 0 | EL44: 0 | EM44: 0 | EN44: 0 | EO44: 0 | EP44: 0 | EQ44: 0 | ER44: 0 | ES44: 0 | ET44: 0 | EU44: 0 | EV44: 0 | EW44: 0 | EX44: 0 | EY44: 0 | EZ44: 0 | FA44: 0 | FB44: 0 | FC44: 0
C46: Opening Debt Balance | E46: EUR | J46: =I49 -> 0 | K46: =J49 -> 0 | L46: 0 | M46: 0 | N46: 0 | O46: 0 | P46: 0 | Q46: 0 | R46: 0 | S46: 0 | T46: 0 | U46: 0 | V46: 0 | W46: 0 | X46: 0 | Y46: 0 | Z46: 0 | AA46: 0 | AB46: 0 | AC46: 0 | AD46: 0 | AE46: 0 | AF46: 0 | AG46: 0 | AH46: 0 | AI46: 0 | AJ46: 0 | AK46: 0 | AL46: 0 | AM46: 0 | AN46: 0 | AO46: 0 | AP46: 0 | AQ46: 0 | AR46: 0 | AS46: 0 | AT46: 1950.296766 | AU46: 1943.520113 | AV46: 1915.189521 | AW46: 1904.906241 | AX46: 1871.575578 | AY46: 1852.381906 | AZ46: 1805.685495 | BA46: 1776.684956 | BB46: 1715.712084 | BC46: 1685.453471 | BD46: 1623.191373 | BE46: 1591.174866 | BF46: 1527.121474 | BG46: 1493.66142 | BH46: 1428.128688 | BI46: 1392.763022 | BJ46: 1325.287996 | BK46: 1305.085504 | BL46: 1261.636971 | BM46: 1240.209197 | BN46: 1195.511796 | BO46: 1172.811112 | BP46: 1126.816298 | BQ46: 1102.793226 | BR46: 1055.450567 | BS46: 1030.053704 | BT46: 981.3108096 | BU46: 954.486757 | BV46: 904.2891985 | BW46: =BV49 -> 875.9824798 | BX46: 824.273714 | BY46: 785.8552687 | BZ46: 719.5544112 | CA46: 679.1201193 | CB46: 610.7646102 | CC46: 568.2361146 | CD46: 497.7460884 | CE46: 453.0419863 | CF46: 380.3344732 | CG46: 333.3701975 | CH46: 258.3590023 | CI46: 209.0466989 | CJ46: 131.6422764 | CK46: 79.89067592 | CL46: 5.258016245e-13 | CM46: 5.359233057e-13 | CN46: 5.462398294e-13 | CO46: 5.567549461e-13 | CP46: 5.674724788e-13 | CQ46: 5.78396324e-13 | CR46: 5.895304533e-13 | CS46: 6.008789145e-13 | CT46: 6.124458336e-13 | CU46: 6.242354159e-13 | CV46: 6.362519476e-13 | CW46: 6.484997976e-13 | CX46: 6.609834187e-13 | CY46: 6.737073495e-13 | CZ46: 6.86676216e-13 | DA46: 6.998947332e-13 | DB46: 7.133677068e-13 | DC46: 7.271000351e-13 | DD46: 7.410967108e-13 | DE46: 7.553628225e-13 | DF46: 7.699035568e-13 | DG46: 7.847242003e-13 | DH46: 7.998301412e-13 | DI46: 8.152268714e-13 | DJ46: 8.309199887e-13 | DK46: 8.469151984e-13 | DL46: 8.63218316e-13 | DM46: 8.798352686e-13 | DN46: 8.967720975e-13 | DO46: 9.140349604e-13 | DP46: 9.316301334e-13 | DQ46: 9.495640134e-13 | DR46: 9.678431207e-13 | DS46: 9.864741008e-13 | DT46: 1.005463727e-12 | DU46: 1.024818904e-12 | DV46: 1.044546668e-12 | DW46: 1.064654191e-12 | DX46: 1.085148784e-12 | DY46: 1.106037898e-12 | DZ46: 1.127329128e-12 | EA46: 1.149030214e-12 | EB46: 1.171149045e-12 | EC46: 1.193693664e-12 | ED46: 1.216672268e-12 | EE46: 1.240093209e-12 | EF46: 1.263965003e-12 | EG46: 1.288296329e-12 | EH46: 1.313096034e-12 | EI46: =EH49 -> 1.338373132e-12 | EJ46: 1.364136815e-12 | EK46: 1.390396449e-12 | EL46: 1.41716158e-12 | EM46: 1.444441941e-12 | EN46: 1.472247448e-12 | EO46: 1.500588212e-12 | EP46: 1.529474535e-12 | EQ46: 1.558916919e-12 | ER46: 1.58892607e-12 | ES46: 1.619512897e-12 | ET46: 1.65068852e-12 | EU46: 1.682464274e-12 | EV46: 1.714851712e-12 | EW46: 1.747862607e-12 | EX46: 1.781508962e-12 | EY46: 1.81580301e-12 | EZ46: 1.850757218e-12 | FA46: 1.886384294e-12 | FB46: 1.922697192e-12 | FC46: 1.959709113e-12
C47: Add: Funding at COD | E47: EUR | F47: =F42 -> 1950.296766 | J47: =$F$47*J44 -> 0 | K47: =$F$47*K44 -> 0 | L47: 0 | M47: 0 | N47: 0 | O47: 0 | P47: 0 | Q47: 0 | R47: 0 | S47: 0 | T47: 0 | U47: 0 | V47: 0 | W47: 0 | X47: 0 | Y47: 0 | Z47: 0 | AA47: 0 | AB47: 0 | AC47: 0 | AD47: 0 | AE47: 0 | AF47: 0 | AG47: 0 | AH47: 0 | AI47: 0 | AJ47: 0 | AK47: 0 | AL47: 0 | AM47: 0 | AN47: 0 | AO47: 0 | AP47: 0 | AQ47: 0 | AR47: 0 | AS47: 1950.296766 | AT47: 0 | AU47: 0 | AV47: 0 | AW47: 0 | AX47: 0 | AY47: 0 | AZ47: 0 | BA47: 0 | BB47: 0 | BC47: 0 | BD47: 0 | BE47: 0 | BF47: 0 | BG47: 0 | BH47: 0 | BI47: 0 | BJ47: 0 | BK47: 0 | BL47: 0 | BM47: 0 | BN47: 0 | BO47: 0 | BP47: 0 | BQ47: 0 | BR47: 0 | BS47: 0 | BT47: 0 | BU47: 0 | BV47: 0 | BW47: =$F$47*BW44 -> 0 | BX47: 0 | BY47: 0 | BZ47: 0 | CA47: 0 | CB47: 0 | CC47: 0 | CD47: 0 | CE47: 0 | CF47: 0 | CG47: 0 | CH47: 0 | CI47: 0 | CJ47: 0 | CK47: 0 | CL47: 0 | CM47: 0 | CN47: 0 | CO47: 0 | CP47: 0 | CQ47: 0 | CR47: 0 | CS47: 0 | CT47: 0 | CU47: 0 | CV47: 0 | CW47: 0 | CX47: 0 | CY47: 0 | CZ47: 0 | DA47: 0 | DB47: 0 | DC47: 0 | DD47: 0 | DE47: 0 | DF47: 0 | DG47: 0 | DH47: 0 | DI47: 0 | DJ47: 0 | DK47: 0 | DL47: 0 | DM47: 0 | DN47: 0 | DO47: 0 | DP47: 0 | DQ47: 0 | DR47: 0 | DS47: 0 | DT47: 0 | DU47: 0 | DV47: 0 | DW47: 0 | DX47: 0 | DY47: 0 | DZ47: 0 | EA47: 0 | EB47: 0 | EC47: 0 | ED47: 0 | EE47: 0 | EF47: 0 | EG47: 0 | EH47: 0 | EI47: =$F$47*EI44 -> 0 | EJ47: 0 | EK47: 0 | EL47: 0 | EM47: 0 | EN47: 0 | EO47: 0 | EP47: 0 | EQ47: 0 | ER47: 0 | ES47: 0 | ET47: 0 | EU47: 0 | EV47: 0 | EW47: 0 | EX47: 0 | EY47: 0 | EZ47: 0 | FA47: 0 | FB47: 0 | FC47: 0
C48: Less: Repayment (Total DS-Interest) | E48: EUR | J48: =J39-J50 -> 0 | K48: =K39-K50 -> 0 | L48: 0 | M48: 0 | N48: 0 | O48: 0 | P48: 0 | Q48: 0 | R48: 0 | S48: 0 | T48: 0 | U48: 0 | V48: 0 | W48: 0 | X48: 0 | Y48: 0 | Z48: 0 | AA48: 0 | AB48: 0 | AC48: 0 | AD48: 0 | AE48: 0 | AF48: 0 | AG48: 0 | AH48: 0 | AI48: 0 | AJ48: 0 | AK48: 0 | AL48: 0 | AM48: 0 | AN48: 0 | AO48: 0 | AP48: 0 | AQ48: 0 | AR48: 0 | AS48: 0 | AT48: 6.776652688 | AU48: 28.33059219 | AV48: 10.28327958 | AW48: 33.33066311 | AX48: 19.19367219 | AY48: 46.69641069 | AZ48: 29.00053982 | BA48: 60.97287137 | BB48: 30.25861326 | BC48: 62.26209834 | BD48: 32.01650678 | BE48: 64.05339183 | BF48: 33.46005448 | BG48: 65.53273196 | BH48: 35.36566562 | BI48: 67.47502611 | BJ48: 20.20249179 | BK48: 43.44853262 | BL48: 21.42777401 | BM48: 44.69740152 | BN48: 22.70068364 | BO48: 45.99481466 | BP48: 24.02307198 | BQ48: 47.34265898 | BR48: 25.39686231 | BS48: 48.74289476 | BT48: 26.82405263 | BU48: 50.1975585 | BV48: 28.30671864 | BW48: =BW39-BW50 -> 51.70876583 | BX48: 38.41844529 | BY48: 66.30085751 | BZ48: 40.43429187 | CA48: 68.35550913 | CB48: 42.52849554 | CC48: 70.49002622 | CD48: 44.70410208 | CE48: 72.70751319 | CF48: 46.96427568 | CG48: 75.01119513 | CH48: 49.31230349 | CI48: 77.40442248 | CJ48: 51.75160047 | CK48: 79.89067592 | CL48: -1.012168127e-14 | CM48: -1.031652364e-14 | CN48: -1.051511672e-14 | CO48: -1.071753271e-14 | CP48: -1.092384522e-14 | CQ48: -1.113412924e-14 | CR48: -1.134846123e-14 | CS48: -1.15669191e-14 | CT48: -1.17895823e-14 | CU48: -1.201653176e-14 | CV48: -1.224784999e-14 | CW48: -1.24836211e-14 | CX48: -1.272393081e-14 | CY48: -1.296886648e-14 | CZ48: -1.321851716e-14 | DA48: -1.347297361e-14 | DB48: -1.373232836e-14 | DC48: -1.399667568e-14 | DD48: -1.426611168e-14 | DE48: -1.454073433e-14 | DF48: -1.482064347e-14 | DG48: -1.510594086e-14 | DH48: -1.539673022e-14 | DI48: -1.569311727e-14 | DJ48: -1.599520978e-14 | DK48: -1.630311757e-14 | DL48: -1.661695258e-14 | DM48: -1.693682892e-14 | DN48: -1.726286288e-14 | DO48: -1.759517299e-14 | DP48: -1.793388007e-14 | DQ48: -1.827910726e-14 | DR48: -1.863098007e-14 | DS48: -1.898962644e-14 | DT48: -1.935517675e-14 | DU48: -1.97277639e-14 | DV48: -2.010752336e-14 | DW48: -2.049459318e-14 | DX48: -2.08891141e-14 | DY48: -2.129122955e-14 | DZ48: -2.170108571e-14 | EA48: -2.211883161e-14 | EB48: -2.254461912e-14 | EC48: -2.297860304e-14 | ED48: -2.342094115e-14 | EE48: -2.387179427e-14 | EF48: -2.433132631e-14 | EG48: -2.479970434e-14 | EH48: -2.527709865e-14 | EI48: =EI39-EI50 -> -2.57636828e-14 | EJ48: -2.625963369e-14 | EK48: -2.676513164e-14 | EL48: -2.728036042e-14 | EM48: -2.780550736e-14 | EN48: -2.834076338e-14 | EO48: -2.888632307e-14 | EP48: -2.944238479e-14 | EQ48: -3.00091507e-14 | ER48: -3.058682685e-14 | ES48: -3.117562327e-14 | ET48: -3.177575401e-14 | EU48: -3.238743728e-14 | EV48: -3.301089545e-14 | EW48: -3.364635518e-14 | EX48: -3.429404752e-14 | EY48: -3.495420794e-14 | EZ48: -3.562707644e-14 | FA48: -3.631289766e-14 | FB48: -3.701192094e-14 | FC48: -3.772440042e-14
C49: Closing Balance | E49: EUR | J49: =J46+J47-J48 -> 0 | K49: =K46+K47-K48 -> 0 | L49: 0 | M49: 0 | N49: 0 | O49: 0 | P49: 0 | Q49: 0 | R49: 0 | S49: 0 | T49: 0 | U49: 0 | V49: 0 | W49: 0 | X49: 0 | Y49: 0 | Z49: 0 | AA49: 0 | AB49: 0 | AC49: 0 | AD49: 0 | AE49: 0 | AF49: 0 | AG49: 0 | AH49: 0 | AI49: 0 | AJ49: 0 | AK49: 0 | AL49: 0 | AM49: 0 | AN49: 0 | AO49: 0 | AP49: 0 | AQ49: 0 | AR49: 0 | AS49: 1950.296766 | AT49: 1943.520113 | AU49: 1915.189521 | AV49: 1904.906241 | AW49: 1871.575578 | AX49: 1852.381906 | AY49: 1805.685495 | AZ49: 1776.684956 | BA49: 1715.712084 | BB49: 1685.453471 | BC49: 1623.191373 | BD49: 1591.174866 | BE49: 1527.121474 | BF49: 1493.66142 | BG49: 1428.128688 | BH49: 1392.763022 | BI49: 1325.287996 | BJ49: 1305.085504 | BK49: 1261.636971 | BL49: 1240.209197 | BM49: 1195.511796 | BN49: 1172.811112 | BO49: 1126.816298 | BP49: 1102.793226 | BQ49: 1055.450567 | BR49: 1030.053704 | BS49: 981.3108096 | BT49: 954.486757 | BU49: 904.2891985 | BV49: 875.9824798 | BW49: =BW46+BW47-BW48 -> 824.273714 | BX49: 785.8552687 | BY49: 719.5544112 | BZ49: 679.1201193 | CA49: 610.7646102 | CB49: 568.2361146 | CC49: 497.7460884 | CD49: 453.0419863 | CE49: 380.3344732 | CF49: 333.3701975 | CG49: 258.3590023 | CH49: 209.0466989 | CI49: 131.6422764 | CJ49: 79.89067592 | CK49: 5.258016245e-13 | CL49: 5.359233057e-13 | CM49: 5.462398294e-13 | CN49: 5.567549461e-13 | CO49: 5.674724788e-13 | CP49: 5.78396324e-13 | CQ49: 5.895304533e-13 | CR49: 6.008789145e-13 | CS49: 6.124458336e-13 | CT49: 6.242354159e-13 | CU49: 6.362519476e-13 | CV49: 6.484997976e-13 | CW49: 6.609834187e-13 | CX49: 6.737073495e-13 | CY49: 6.86676216e-13 | CZ49: 6.998947332e-13 | DA49: 7.133677068e-13 | DB49: 7.271000351e-13 | DC49: 7.410967108e-13 | DD49: 7.553628225e-13 | DE49: 7.699035568e-13 | DF49: 7.847242003e-13 | DG49: 7.998301412e-13 | DH49: 8.152268714e-13 | DI49: 8.309199887e-13 | DJ49: 8.469151984e-13 | DK49: 8.63218316e-13 | DL49: 8.798352686e-13 | DM49: 8.967720975e-13 | DN49: 9.140349604e-13 | DO49: 9.316301334e-13 | DP49: 9.495640134e-13 | DQ49: 9.678431207e-13 | DR49: 9.864741008e-13 | DS49: 1.005463727e-12 | DT49: 1.024818904e-12 | DU49: 1.044546668e-12 | DV49: 1.064654191e-12 | DW49: 1.085148784e-12 | DX49: 1.106037898e-12 | DY49: 1.127329128e-12 | DZ49: 1.149030214e-12 | EA49: 1.171149045e-12 | EB49: 1.193693664e-12 | EC49: 1.216672268e-12 | ED49: 1.240093209e-12 | EE49: 1.263965003e-12 | EF49: 1.288296329e-12 | EG49: 1.313096034e-12 | EH49: 1.338373132e-12 | EI49: =EI46+EI47-EI48 -> 1.364136815e-12 | EJ49: 1.390396449e-12 | EK49: 1.41716158e-12 | EL49: 1.444441941e-12 | EM49: 1.472247448e-12 | EN49: 1.500588212e-12 | EO49: 1.529474535e-12 | EP49: 1.558916919e-12 | EQ49: 1.58892607e-12 | ER49: 1.619512897e-12 | ES49: 1.65068852e-12 | ET49: 1.682464274e-12 | EU49: 1.714851712e-12 | EV49: 1.747862607e-12 | EW49: 1.781508962e-12 | EX49: 1.81580301e-12 | EY49: 1.850757218e-12 | EZ49: 1.886384294e-12 | FA49: 1.922697192e-12 | FB49: 1.959709113e-12 | FC49: 1.997433513e-12
C50: Interest Using Period Rate | E50: EUR | J50: =J46*J37 -> 0 | K50: =K46*K37 -> 0 | L50: 0 | M50: 0 | N50: 0 | O50: 0 | P50: 0 | Q50: 0 | R50: 0 | S50: 0 | T50: 0 | U50: 0 | V50: 0 | W50: 0 | X50: 0 | Y50: 0 | Z50: 0 | AA50: 0 | AB50: 0 | AC50: 0 | AD50: 0 | AE50: 0 | AF50: 0 | AG50: 0 | AH50: 0 | AI50: 0 | AJ50: 0 | AK50: 0 | AL50: 0 | AM50: 0 | AN50: 0 | AO50: 0 | AP50: 0 | AQ50: 0 | AR50: 0 | AS50: 0 | AT50: 36.08049017 | AU50: 35.95512209 | AV50: 35.43100614 | AW50: 35.24076547 | AX50: 35.09204209 | AY50: 34.73216074 | AZ50: 33.85660304 | BA50: 33.31284292 | BB50: 32.5985296 | BC50: 32.02361595 | BD50: 30.84063608 | BE50: 30.23232245 | BF50: 29.39708838 | BG50: 28.75298233 | BH50: 27.49147724 | BI50: 26.81068817 | BJ50: 25.51179392 | BK50: 25.12289595 | BL50: 24.2865117 | BM50: 23.87402705 | BN50: 23.01360207 | BO50: 22.57661391 | BP50: 21.69121373 | BQ50: 21.22876959 | BR50: 20.31742341 | BS50: 19.82853381 | BT50: 18.89023308 | BU50: 18.37387007 | BV50: 17.40756707 | BW50: =BW46*BW37 -> 16.86266274 | BX50: 15.86726899 | BY50: 15.12771392 | BZ50: 13.85142242 | CA50: 13.0730623 | CB50: 11.75721875 | CC50: 10.93854521 | CD50: 9.581612202 | CE50: 8.721058237 | CF50: 7.321438608 | CG50: 6.417376301 | CH50: 4.973410795 | CI50: 4.024148953 | CJ50: 2.53411382 | CK50: 1.537895511 | CL50: 1.012168127e-14 | CM50: 1.031652364e-14 | CN50: 1.051511672e-14 | CO50: 1.071753271e-14 | CP50: 1.092384522e-14 | CQ50: 1.113412924e-14 | CR50: 1.134846123e-14 | CS50: 1.15669191e-14 | CT50: 1.17895823e-14 | CU50: 1.201653176e-14 | CV50: 1.224784999e-14 | CW50: 1.24836211e-14 | CX50: 1.272393081e-14 | CY50: 1.296886648e-14 | CZ50: 1.321851716e-14 | DA50: 1.347297361e-14 | DB50: 1.373232836e-14 | DC50: 1.399667568e-14 | DD50: 1.426611168e-14 | DE50: 1.454073433e-14 | DF50: 1.482064347e-14 | DG50: 1.510594086e-14 | DH50: 1.539673022e-14 | DI50: 1.569311727e-14 | DJ50: 1.599520978e-14 | DK50: 1.630311757e-14 | DL50: 1.661695258e-14 | DM50: 1.693682892e-14 | DN50: 1.726286288e-14 | DO50: 1.759517299e-14 | DP50: 1.793388007e-14 | DQ50: 1.827910726e-14 | DR50: 1.863098007e-14 | DS50: 1.898962644e-14 | DT50: 1.935517675e-14 | DU50: 1.97277639e-14 | DV50: 2.010752336e-14 | DW50: 2.049459318e-14 | DX50: 2.08891141e-14 | DY50: 2.129122955e-14 | DZ50: 2.170108571e-14 | EA50: 2.211883161e-14 | EB50: 2.254461912e-14 | EC50: 2.297860304e-14 | ED50: 2.342094115e-14 | EE50: 2.387179427e-14 | EF50: 2.433132631e-14 | EG50: 2.479970434e-14 | EH50: 2.527709865e-14 | EI50: =EI46*EI37 -> 2.57636828e-14 | EJ50: 2.625963369e-14 | EK50: 2.676513164e-14 | EL50: 2.728036042e-14 | EM50: 2.780550736e-14 | EN50: 2.834076338e-14 | EO50: 2.888632307e-14 | EP50: 2.944238479e-14 | EQ50: 3.00091507e-14 | ER50: 3.058682685e-14 | ES50: 3.117562327e-14 | ET50: 3.177575401e-14 | EU50: 3.238743728e-14 | EV50: 3.301089545e-14 | EW50: 3.364635518e-14 | EX50: 3.429404752e-14 | EY50: 3.495420794e-14 | EZ50: 3.562707644e-14 | FA50: 3.631289766e-14 | FB50: 3.701192094e-14 | FC50: 3.772440042e-14
C52: Test of Closing Balance | E52: Test | I52: =ROUND(LOOKUP(G29,6:6,49:49),0)=0 -> TRUE
B54: Summary Sources and Uses
C55: Uses of Funds | G55: Amount | H55: Computed | I55: Fixed | J55: Difference | K55: DSRA Difference | L55: Total Difference
D56: Cap Exp | E56: EUR | G56: =H13 -> 2473.851215 | H56: =G56 -> 2473.851215 | I56: 2473.851215 | J56: =I56-H56 -> 0
D57: IDC | E57: EUR | G57: =I57 -> 90.75238443 | H57: =H81 -> 90.75238443 | I57: 90.75238443 | J57: =I57-H57 -> 0
D58: Up-Front Fee | E58: EUR | G58: =I58 -> 29.25445149 | H58: =H82 -> 29.25445149 | I58: 29.25445149 | J58: 0
D59: Commitment Fee | E59: EUR | G59: 19.54779017 | H59: =H83 -> 19.54779017 | I59: 19.54779017 | J59: 0
D60: DSRA Funding During Construction | E60: EUR | G60: =H84 -> 42.85714286 | H60: =H84 -> 42.85714286 | I60: 42.85714286 | J60: 0
D61: Total Uses of Funds | E61: EUR | G61: =SUM(G56:G60) -> 2656.262984 | H61: =SUM(computed) -> 2656.262984 | I61: =SUM(computed) -> 2656.262984 | J61: =SUM(J56:J60) -> 0 | K61: =H88 -> 0 | L61: =K61+J61 -> 0
C63: Sources of Funds
D64: Debt | E64: EUR | G64: =F47 -> 1950.296766
D65: Equity | E65: EUR | G65: =G61-G64 -> 705.9662178
D66: Total Sources of Funds | E66: EUR | G66: =SUM(G64:G65) -> 2656.262984
C68: Allocation of Debt and Equity to Up-Front and Pro-Rata
F69: Percent | G69: Amount
D70: Equity Up-Front | E70: EUR | F70: =Input!F36 -> 0.4 | G70: =G65*F70 -> 282.3864871
D71: Equity Pro-Rata | E71: EUR | G71: =G65-G70 -> 423.5797307
D72: Debt (Pro-Rata) | E72: EUR | G72: =G64 -> 1950.296766
D73: Total Pro-Rata | E73: EUR | G73: =G71+G72 -> 2373.876497
D75: Equity Pro-Rata % | E75: % | F75: =G71/G73 -> 0.1784337691
D76: Debt Pro-Rata % | E76: % | F76: =G72/G73 -> 0.8215662309
B78: Periodic Pre-COD Cash Flow (Uses and Sources
C79: Uses of Funds
D80: Cap Exp | E80: EUR | J80: =J13 -> 13.22729068 | K80: =K13 -> 17.11738598 | L80: 21.8081155 | M80: 27.35350491 | N80: 33.77707004 | O80: 41.06247432 | P80: 49.14534691 | Q80: 57.90737035 | R80: 67.17372479 | S80: 76.71480166 | T80: 86.25276997 | U80: 95.47311323 | V80: 104.0407002 | W80: 111.6193778 | X80: 117.8935585 | Y80: 122.589904 | Z80: 125.4970398 | AA80: 126.4813253 | AB80: 125.4970398 | AC80: 122.589904 | AD80: 117.8935585 | AE80: 111.6193778 | AF80: 104.0407002 | AG80: 95.47311323 | AH80: 86.25276997 | AI80: 76.71480166 | AJ80: 67.17372479 | AK80: 57.90737035 | AL80: 49.14534691 | AM80: 41.06247432 | AN80: 33.77707004 | AO80: 27.35350491 | AP80: 21.8081155 | AQ80: 17.11738598 | AR80: 13.22729068 | AS80: 10.0627921 | AT80: 0 | AU80: 0 | AV80: 0 | AW80: 0 | AX80: 0 | AY80: 0 | AZ80: 0 | BA80: 0 | BB80: 0 | BC80: 0 | BD80: 0 | BE80: 0 | BF80: 0 | BG80: 0 | BH80: 0 | BI80: 0 | BJ80: 0 | BK80: 0 | BL80: 0 | BM80: 0 | BN80: 0 | BO80: 0 | BP80: 0 | BQ80: 0 | BR80: 0 | BS80: 0 | BT80: 0 | BU80: 0 | BV80: 0 | BW80: =BW13 -> 0 | BX80: 0 | BY80: 0 | BZ80: 0 | CA80: 0 | CB80: 0 | CC80: 0 | CD80: 0 | CE80: 0 | CF80: 0 | CG80: 0 | CH80: 0 | CI80: 0 | CJ80: 0 | CK80: 0 | CL80: 0 | CM80: 0 | CN80: 0 | CO80: 0 | CP80: 0 | CQ80: 0 | CR80: 0 | CS80: 0 | CT80: 0 | CU80: 0 | CV80: 0 | CW80: 0 | CX80: 0 | CY80: 0 | CZ80: 0 | DA80: 0 | DB80: 0 | DC80: 0 | DD80: 0 | DE80: 0 | DF80: 0 | DG80: 0 | DH80: 0 | DI80: 0 | DJ80: 0 | DK80: 0 | DL80: 0 | DM80: 0 | DN80: 0 | DO80: 0 | DP80: 0 | DQ80: 0 | DR80: 0 | DS80: 0 | DT80: 0 | DU80: 0 | DV80: 0 | DW80: 0 | DX80: 0 | DY80: 0 | DZ80: 0 | EA80: 0 | EB80: 0 | EC80: 0 | ED80: 0 | EE80: 0 | EF80: 0 | EG80: 0 | EH80: 0 | EI80: =EI13 -> 0 | EJ80: 0 | EK80: 0 | EL80: 0 | EM80: 0 | EN80: 0 | EO80: 0 | EP80: 0 | EQ80: 0 | ER80: 0 | ES80: 0 | ET80: 0 | EU80: 0 | EV80: 0 | EW80: 0 | EX80: 0 | EY80: 0 | EZ80: 0 | FA80: 0 | FB80: 0 | FC80: 0
D81: IDC | E81: EUR | H81: =SUM(J81:FC81) -> 90.75238443 | J81: =J121 -> 0 | K81: =K121 -> 0 | L81: 0 | M81: 0 | N81: 0 | O81: 0 | P81: 0 | Q81: 0 | R81: 0.03850200681 | S81: 0.2018791549 | T81: 0.3884433412 | U81: 0.5982331537 | V81: 0.8305336015 | W81: 1.083825221 | X81: 1.35578003 | Y81: 1.643309203 | Z81: 1.942662797 | AA81: 2.249576924 | AB81: 2.559458993 | AC81: 2.867597739 | AD81: 3.1693821 | AE81: 3.460512092 | AF81: 3.737185698 | AG81: 3.996248335 | AH81: 4.235295378 | AI81: 4.452722929 | AJ81: 4.647726961 | AK81: 4.820255502 | AL81: 4.97092223 | AM81: 5.100892233 | AN81: 5.211751824 | AO81: 5.305373983 | AP81: 5.383789653 | AQ81: 5.449072958 | AR81: 5.50324579 | AS81: 5.548204598 | AT81: 0 | AU81: 0 | AV81: 0 | AW81: 0 | AX81: 0 | AY81: 0 | AZ81: 0 | BA81: 0 | BB81: 0 | BC81: 0 | BD81: 0 | BE81: 0 | BF81: 0 | BG81: 0 | BH81: 0 | BI81: 0 | BJ81: 0 | BK81: 0 | BL81: 0 | BM81: 0 | BN81: 0 | BO81: 0 | BP81: 0 | BQ81: 0 | BR81: 0 | BS81: 0 | BT81: 0 | BU81: 0 | BV81: 0 | BW81: =BW121 -> 0 | BX81: 0 | BY81: 0 | BZ81: 0 | CA81: 0 | CB81: 0 | CC81: 0 | CD81: 0 | CE81: 0 | CF81: 0 | CG81: 0 | CH81: 0 | CI81: 0 | CJ81: 0 | CK81: 0 | CL81: 0 | CM81: 0 | CN81: 0 | CO81: 0 | CP81: 0 | CQ81: 0 | CR81: 0 | CS81: 0 | CT81: 0 | CU81: 0 | CV81: 0 | CW81: 0 | CX81: 0 | CY81: 0 | CZ81: 0 | DA81: 0 | DB81: 0 | DC81: 0 | DD81: 0 | DE81: 0 | DF81: 0 | DG81: 0 | DH81: 0 | DI81: 0 | DJ81: 0 | DK81: 0 | DL81: 0 | DM81: 0 | DN81: 0 | DO81: 0 | DP81: 0 | DQ81: 0 | DR81: 0 | DS81: 0 | DT81: 0 | DU81: 0 | DV81: 0 | DW81: 0 | DX81: 0 | DY81: 0 | DZ81: 0 | EA81: 0 | EB81: 0 | EC81: 0 | ED81: 0 | EE81: 0 | EF81: 0 | EG81: 0 | EH81: 0 | EI81: =EI121 -> 0 | EJ81: 0 | EK81: 0 | EL81: 0 | EM81: 0 | EN81: 0 | EO81: 0 | EP81: 0 | EQ81: 0 | ER81: 0 | ES81: 0 | ET81: 0 | EU81: 0 | EV81: 0 | EW81: 0 | EX81: 0 | EY81: 0 | EZ81: 0 | FA81: 0 | FB81: 0 | FC81: 0
D82: Up-Front Fee | E82: EUR | H82: =SUM(J82:FC82) -> 29.25445149 | J82: =J125 -> 29.25445149 | K82: =K125 -> 0 | L82: 0 | M82: 0 | N82: 0 | O82: 0 | P82: 0 | Q82: 0 | R82: 0 | S82: 0 | T82: 0 | U82: 0 | V82: 0 | W82: 0 | X82: 0 | Y82: 0 | Z82: 0 | AA82: 0 | AB82: 0 | AC82: 0 | AD82: 0 | AE82: 0 | AF82: 0 | AG82: 0 | AH82: 0 | AI82: 0 | AJ82: 0 | AK82: 0 | AL82: 0 | AM82: 0 | AN82: 0 | AO82: 0 | AP82: 0 | AQ82: 0 | AR82: 0 | AS82: 0 | AT82: 0 | AU82: 0 | AV82: 0 | AW82: 0 | AX82: 0 | AY82: 0 | AZ82: 0 | BA82: 0 | BB82: 0 | BC82: 0 | BD82: 0 | BE82: 0 | BF82: 0 | BG82: 0 | BH82: 0 | BI82: 0 | BJ82: 0 | BK82: 0 | BL82: 0 | BM82: 0 | BN82: 0 | BO82: 0 | BP82: 0 | BQ82: 0 | BR82: 0 | BS82: 0 | BT82: 0 | BU82: 0 | BV82: 0 | BW82: =BW125 -> 0 | BX82: 0 | BY82: 0 | BZ82: 0 | CA82: 0 | CB82: 0 | CC82: 0 | CD82: 0 | CE82: 0 | CF82: 0 | CG82: 0 | CH82: 0 | CI82: 0 | CJ82: 0 | CK82: 0 | CL82: 0 | CM82: 0 | CN82: 0 | CO82: 0 | CP82: 0 | CQ82: 0 | CR82: 0 | CS82: 0 | CT82: 0 | CU82: 0 | CV82: 0 | CW82: 0 | CX82: 0 | CY82: 0 | CZ82: 0 | DA82: 0 | DB82: 0 | DC82: 0 | DD82: 0 | DE82: 0 | DF82: 0 | DG82: 0 | DH82: 0 | DI82: 0 | DJ82: 0 | DK82: 0 | DL82: 0 | DM82: 0 | DN82: 0 | DO82: 0 | DP82: 0 | DQ82: 0 | DR82: 0 | DS82: 0 | DT82: 0 | DU82: 0 | DV82: 0 | DW82: 0 | DX82: 0 | DY82: 0 | DZ82: 0 | EA82: 0 | EB82: 0 | EC82: 0 | ED82: 0 | EE82: 0 | EF82: 0 | EG82: 0 | EH82: 0 | EI82: =EI125 -> 0 | EJ82: 0 | EK82: 0 | EL82: 0 | EM82: 0 | EN82: 0 | EO82: 0 | EP82: 0 | EQ82: 0 | ER82: 0 | ES82: 0 | ET82: 0 | EU82: 0 | EV82: 0 | EW82: 0 | EX82: 0 | EY82: 0 | EZ82: 0 | FA82: 0 | FB82: 0 | FC82: 0
D83: Commitment Fee | E83: EUR | H83: 19.54779017 | J83: =J132 -> 0.9751483829 | K83: =K132 -> 0.9751483829 | L83: 0.9751483829 | M83: 0.9751483829 | N83: 0.9751483829 | O83: 0.9751483829 | P83: 0.9751483829 | Q83: 0.9751483829 | R83: 0.9685480389 | S83: 0.9405405278 | T83: 0.9085580959 | U83: 0.872594128 | V83: 0.8327711941 | W83: 0.7893497736 | X83: 0.7427289492 | Y83: 0.6934382339 | Z83: 0.6421204748 | AA83: 0.5895066245 | AB83: 0.5363839841 | AC83: 0.4835601991 | AD83: 0.4318257373 | AE83: 0.3819177386 | AF83: 0.3344879776 | AG83: 0.2900772398 | AH83: 0.2490977467 | AI83: 0.2118244522 | AJ83: 0.1783951897 | AK83: 0.1488188682 | AL83: 0.1229902864 | AM83: 0.1007097144 | AN83: 0.08170521303 | AO83: 0.0656557002 | AP83: 0.05221301392 | AQ83: 0.04102159019 | AR83: 0.0317348189 | AS83: 0.02402759465 | AT83: 0 | AU83: 0 | AV83: 0 | AW83: 0 | AX83: 0 | AY83: 0 | AZ83: 0 | BA83: 0 | BB83: 0 | BC83: 0 | BD83: 0 | BE83: 0 | BF83: 0 | BG83: 0 | BH83: 0 | BI83: 0 | BJ83: 0 | BK83: 0 | BL83: 0 | BM83: 0 | BN83: 0 | BO83: 0 | BP83: 0 | BQ83: 0 | BR83: 0 | BS83: 0 | BT83: 0 | BU83: 0 | BV83: 0 | BW83: =BW132 -> 0 | BX83: 0 | BY83: 0 | BZ83: 0 | CA83: 0 | CB83: 0 | CC83: 0 | CD83: 0 | CE83: 0 | CF83: 0 | CG83: 0 | CH83: 0 | CI83: 0 | CJ83: 0 | CK83: 0 | CL83: 0 | CM83: 0 | CN83: 0 | CO83: 0 | CP83: 0 | CQ83: 0 | CR83: 0 | CS83: 0 | CT83: 0 | CU83: 0 | CV83: 0 | CW83: 0 | CX83: 0 | CY83: 0 | CZ83: 0 | DA83: 0 | DB83: 0 | DC83: 0 | DD83: 0 | DE83: 0 | DF83: 0 | DG83: 0 | DH83: 0 | DI83: 0 | DJ83: 0 | DK83: 0 | DL83: 0 | DM83: 0 | DN83: 0 | DO83: 0 | DP83: 0 | DQ83: 0 | DR83: 0 | DS83: 0 | DT83: 0 | DU83: 0 | DV83: 0 | DW83: 0 | DX83: 0 | DY83: 0 | DZ83: 0 | EA83: 0 | EB83: 0 | EC83: 0 | ED83: 0 | EE83: 0 | EF83: 0 | EG83: 0 | EH83: 0 | EI83: =EI132 -> 0 | EJ83: 0 | EK83: 0 | EL83: 0 | EM83: 0 | EN83: 0 | EO83: 0 | EP83: 0 | EQ83: 0 | ER83: 0 | ES83: 0 | ET83: 0 | EU83: 0 | EV83: 0 | EW83: 0 | EX83: 0 | EY83: 0 | EZ83: 0 | FA83: 0 | FB83: 0 | FC83: 0
D84: DSRA Funding During Construction | E84: EUR | H84: =SUM(J84:FC84) -> 42.85714286 | J84: =J86 -> 0 | K84: =K86 -> 0 | L84: 0 | M84: 0 | N84: 0 | O84: 0 | P84: 0 | Q84: 0 | R84: 0 | S84: 0 | T84: 0 | U84: 0 | V84: 0 | W84: 0 | X84: 0 | Y84: 0 | Z84: 0 | AA84: 0 | AB84: 0 | AC84: 0 | AD84: 0 | AE84: 0 | AF84: 0 | AG84: 0 | AH84: 0 | AI84: 0 | AJ84: 0 | AK84: 0 | AL84: 0 | AM84: 0 | AN84: 0 | AO84: 0 | AP84: 0 | AQ84: 0 | AR84: 0 | AS84: 42.85714286 | AT84: 0 | AU84: 0 | AV84: 0 | AW84: 0 | AX84: 0 | AY84: 0 | AZ84: 0 | BA84: 0 | BB84: 0 | BC84: 0 | BD84: 0 | BE84: 0 | BF84: 0 | BG84: 0 | BH84: 0 | BI84: 0 | BJ84: 0 | BK84: 0 | BL84: 0 | BM84: 0 | BN84: 0 | BO84: 0 | BP84: 0 | BQ84: 0 | BR84: 0 | BS84: 0 | BT84: 0 | BU84: 0 | BV84: 0 | BW84: =BW86 -> 0 | BX84: 0 | BY84: 0 | BZ84: 0 | CA84: 0 | CB84: 0 | CC84: 0 | CD84: 0 | CE84: 0 | CF84: 0 | CG84: 0 | CH84: 0 | CI84: 0 | CJ84: 0 | CK84: 0 | CL84: 0 | CM84: 0 | CN84: 0 | CO84: 0 | CP84: 0 | CQ84: 0 | CR84: 0 | CS84: 0 | CT84: 0 | CU84: 0 | CV84: 0 | CW84: 0 | CX84: 0 | CY84: 0 | CZ84: 0 | DA84: 0 | DB84: 0 | DC84: 0 | DD84: 0 | DE84: 0 | DF84: 0 | DG84: 0 | DH84: 0 | DI84: 0 | DJ84: 0 | DK84: 0 | DL84: 0 | DM84: 0 | DN84: 0 | DO84: 0 | DP84: 0 | DQ84: 0 | DR84: 0 | DS84: 0 | DT84: 0 | DU84: 0 | DV84: 0 | DW84: 0 | DX84: 0 | DY84: 0 | DZ84: 0 | EA84: 0 | EB84: 0 | EC84: 0 | ED84: 0 | EE84: 0 | EF84: 0 | EG84: 0 | EH84: 0 | EI84: =EI86 -> 0 | EJ84: 0 | EK84: 0 | EL84: 0 | EM84: 0 | EN84: 0 | EO84: 0 | EP84: 0 | EQ84: 0 | ER84: 0 | ES84: 0 | ET84: 0 | EU84: 0 | EV84: 0 | EW84: 0 | EX84: 0 | EY84: 0 | EZ84: 0 | FA84: 0 | FB84: 0 | FC84: 0
D85: Applied Funding Need | E85: EUR | J85: =SUM(J80:J83)+J86 -> 43.45689055 | K85: =SUM(K80:K83)+K86 -> 18.09253436 | L85: 22.78326388 | M85: 28.32865329 | N85: 34.75221842 | O85: 42.03762271 | P85: 50.1204953 | Q85: 58.88251873 | R85: 68.18077484 | S85: 77.85722134 | T85: 87.54977141 | U85: 96.94394051 | V85: 105.704005 | W85: 113.4925528 | X85: 119.9920675 | Y85: 124.9266514 | Z85: 128.0818231 | AA85: 129.3204088 | AB85: 128.5928828 | AC85: 125.9410619 | AD85: 121.4947664 | AE85: 115.4618076 | AF85: 108.1123739 | AG85: 99.7594388 | AH85: 90.73716309 | AI85: 81.37934904 | AJ85: 71.99984694 | AK85: 62.87644472 | AL85: 54.23925943 | AM85: 46.26407627 | AN85: 39.07052707 | AO85: 32.72453459 | AP85: 27.24411816 | AQ85: 22.60748053 | AR85: 18.76227129 | AS85: 58.49216715 | AT85: 0 | AU85: 0 | AV85: 0 | AW85: 0 | AX85: 0 | AY85: 0 | AZ85: 0 | BA85: 0 | BB85: 0 | BC85: 0 | BD85: 0 | BE85: 0 | BF85: 0 | BG85: 0 | BH85: 0 | BI85: 0 | BJ85: 0 | BK85: 0 | BL85: 0 | BM85: 0 | BN85: 0 | BO85: 0 | BP85: 0 | BQ85: 0 | BR85: 0 | BS85: 0 | BT85: 0 | BU85: 0 | BV85: 0 | BW85: =SUM(BW80:BW83)+BW86 -> 0 | BX85: 0 | BY85: 0 | BZ85: 0 | CA85: 0 | CB85: 0 | CC85: 0 | CD85: 0 | CE85: 0 | CF85: 0 | CG85: 0 | CH85: 0 | CI85: 0 | CJ85: 0 | CK85: 0 | CL85: 0 | CM85: 0 | CN85: 0 | CO85: 0 | CP85: 0 | CQ85: 0 | CR85: 0 | CS85: 0 | CT85: 0 | CU85: 0 | CV85: 0 | CW85: 0 | CX85: 0 | CY85: 0 | CZ85: 0 | DA85: 0 | DB85: 0 | DC85: 0 | DD85: 0 | DE85: 0 | DF85: 0 | DG85: 0 | DH85: 0 | DI85: 0 | DJ85: 0 | DK85: 0 | DL85: 0 | DM85: 0 | DN85: 0 | DO85: 0 | DP85: 0 | DQ85: 0 | DR85: 0 | DS85: 0 | DT85: 0 | DU85: 0 | DV85: 0 | DW85: 0 | DX85: 0 | DY85: 0 | DZ85: 0 | EA85: 0 | EB85: 0 | EC85: 0 | ED85: 0 | EE85: 0 | EF85: 0 | EG85: 0 | EH85: 0 | EI85: =SUM(EI80:EI83)+EI86 -> 0 | EJ85: 0 | EK85: 0 | EL85: 0 | EM85: 0 | EN85: 0 | EO85: 0 | EP85: 0 | EQ85: 0 | ER85: 0 | ES85: 0 | ET85: 0 | EU85: 0 | EV85: 0 | EW85: 0 | EX85: 0 | EY85: 0 | EZ85: 0 | FA85: 0 | FB85: 0 | FC85: 0
D86: Fixed DSRA | E86: EUR | J86: 0 | K86: 0 | L86: 0 | M86: 0 | N86: 0 | O86: 0 | P86: 0 | Q86: 0 | R86: 0 | S86: 0 | T86: 0 | U86: 0 | V86: 0 | W86: 0 | X86: 0 | Y86: 0 | Z86: 0 | AA86: 0 | AB86: 0 | AC86: 0 | AD86: 0 | AE86: 0 | AF86: 0 | AG86: 0 | AH86: 0 | AI86: 0 | AJ86: 0 | AK86: 0 | AL86: 0 | AM86: 0 | AN86: 0 | AO86: 0 | AP86: 0 | AQ86: 0 | AR86: 0 | AS86: 42.85714286 | AT86: 0 | AU86: 0 | AV86: 0 | AW86: 0 | AX86: 0 | AY86: 0 | AZ86: 0 | BA86: 0 | BB86: 0 | BC86: 0 | BD86: 0 | BE86: 0 | BF86: 0 | BG86: 0 | BH86: 0 | BI86: 0 | BJ86: 0 | BK86: 0 | BL86: 0 | BM86: 0 | BN86: 0 | BO86: 0 | BP86: 0 | BQ86: 0 | BR86: 0 | BS86: 0 | BT86: 0 | BU86: 0 | BV86: 0 | BW86: 0 | BX86: 0 | BY86: 0 | BZ86: 0 | CA86: 0 | CB86: 0 | CC86: 0 | CD86: 0 | CE86: 0 | CF86: 0 | CG86: 0 | CH86: 0 | CI86: 0 | CJ86: 0 | CK86: 0 | CL86: 0 | CM86: 0 | CN86: 0 | CO86: 0 | CP86: 0 | CQ86: 0 | CR86: 0 | CS86: 0 | CT86: 0 | CU86: 0 | CV86: 0 | CW86: 0 | CX86: 0 | CY86: 0 | CZ86: 0 | DA86: 0 | DB86: 0 | DC86: 0 | DD86: 0 | DE86: 0 | DF86: 0 | DG86: 0 | DH86: 0 | DI86: 0 | DJ86: 0 | DK86: 0 | DL86: 0 | DM86: 0 | DN86: 0 | DO86: 0 | DP86: 0 | DQ86: 0 | DR86: 0 | DS86: 0 | DT86: 0 | DU86: 0 | DV86: 0 | DW86: 0 | DX86: 0 | DY86: 0 | DZ86: 0 | EA86: 0 | EB86: 0 | EC86: 0 | ED86: 0 | EE86: 0 | EF86: 0 | EG86: 0 | EH86: 0 | EI86: 0 | EJ86: 0 | EK86: 0 | EL86: 0 | EM86: 0 | EN86: 0 | EO86: 0 | EP86: 0 | EQ86: 0 | ER86: 0 | ES86: 0 | ET86: 0 | EU86: 0 | EV86: 0 | EW86: 0 | EX86: 0 | EY86: 0 | EZ86: 0 | FA86: 0 | FB86: 0 | FC86: 0
D87: Computed DSRA | E87: EUR | J87: =J141 -> 0 | K87: =K141 -> 0 | L87: 0 | M87: 0 | N87: 0 | O87: 0 | P87: 0 | Q87: 0 | R87: 0 | S87: 0 | T87: 0 | U87: 0 | V87: 0 | W87: 0 | X87: 0 | Y87: 0 | Z87: 0 | AA87: 0 | AB87: 0 | AC87: 0 | AD87: 0 | AE87: 0 | AF87: 0 | AG87: 0 | AH87: 0 | AI87: 0 | AJ87: 0 | AK87: 0 | AL87: 0 | AM87: 0 | AN87: 0 | AO87: 0 | AP87: 0 | AQ87: 0 | AR87: 0 | AS87: 42.85714286 | AT87: 0 | AU87: 0 | AV87: 0 | AW87: 0 | AX87: 0 | AY87: 0 | AZ87: 0 | BA87: 0 | BB87: 0 | BC87: 0 | BD87: 0 | BE87: 0 | BF87: 0 | BG87: 0 | BH87: 0 | BI87: 0 | BJ87: 0 | BK87: 0 | BL87: 0 | BM87: 0 | BN87: 0 | BO87: 0 | BP87: 0 | BQ87: 0 | BR87: 0 | BS87: 0 | BT87: 0 | BU87: 0 | BV87: 0 | BW87: =BW141 -> 0 | BX87: 0 | BY87: 0 | BZ87: 0 | CA87: 0 | CB87: 0 | CC87: 0 | CD87: 0 | CE87: 0 | CF87: 0 | CG87: 0 | CH87: 0 | CI87: 0 | CJ87: 0 | CK87: 0 | CL87: 0 | CM87: 0 | CN87: 0 | CO87: 0 | CP87: 0 | CQ87: 0 | CR87: 0 | CS87: 0 | CT87: 0 | CU87: 0 | CV87: 0 | CW87: 0 | CX87: 0 | CY87: 0 | CZ87: 0 | DA87: 0 | DB87: 0 | DC87: 0 | DD87: 0 | DE87: 0 | DF87: 0 | DG87: 0 | DH87: 0 | DI87: 0 | DJ87: 0 | DK87: 0 | DL87: 0 | DM87: 0 | DN87: 0 | DO87: 0 | DP87: 0 | DQ87: 0 | DR87: 0 | DS87: 0 | DT87: 0 | DU87: 0 | DV87: 0 | DW87: 0 | DX87: 0 | DY87: 0 | DZ87: 0 | EA87: 0 | EB87: 0 | EC87: 0 | ED87: 0 | EE87: 0 | EF87: 0 | EG87: 0 | EH87: 0 | EI87: =EI141 -> 0 | EJ87: 0 | EK87: 0 | EL87: 0 | EM87: 0 | EN87: 0 | EO87: 0 | EP87: 0 | EQ87: 0 | ER87: 0 | ES87: 0 | ET87: 0 | EU87: 0 | EV87: 0 | EW87: 0 | EX87: 0 | EY87: 0 | EZ87: 0 | FA87: 0 | FB87: 0 | FC87: 0
D88: Difference | E88: EUR | H88: =SUM(J88:FC88) -> 0 | J88: =J86-J87 -> 0 | K88: =K86-K87 -> 0 | L88: 0 | M88: 0 | N88: 0 | O88: 0 | P88: 0 | Q88: 0 | R88: 0 | S88: 0 | T88: 0 | U88: 0 | V88: 0 | W88: 0 | X88: 0 | Y88: 0 | Z88: 0 | AA88: 0 | AB88: 0 | AC88: 0 | AD88: 0 | AE88: 0 | AF88: 0 | AG88: 0 | AH88: 0 | AI88: 0 | AJ88: 0 | AK88: 0 | AL88: 0 | AM88: 0 | AN88: 0 | AO88: 0 | AP88: 0 | AQ88: 0 | AR88: 0 | AS88: 0 | AT88: 0 | AU88: 0 | AV88: 0 | AW88: 0 | AX88: 0 | AY88: 0 | AZ88: 0 | BA88: 0 | BB88: 0 | BC88: 0 | BD88: 0 | BE88: 0 | BF88: 0 | BG88: 0 | BH88: 0 | BI88: 0 | BJ88: 0 | BK88: 0 | BL88: 0 | BM88: 0 | BN88: 0 | BO88: 0 | BP88: 0 | BQ88: 0 | BR88: 0 | BS88: 0 | BT88: 0 | BU88: 0 | BV88: 0 | BW88: =BW86-BW87 -> 0 | BX88: 0 | BY88: 0 | BZ88: 0 | CA88: 0 | CB88: 0 | CC88: 0 | CD88: 0 | CE88: 0 | CF88: 0 | CG88: 0 | CH88: 0 | CI88: 0 | CJ88: 0 | CK88: 0 | CL88: 0 | CM88: 0 | CN88: 0 | CO88: 0 | CP88: 0 | CQ88: 0 | CR88: 0 | CS88: 0 | CT88: 0 | CU88: 0 | CV88: 0 | CW88: 0 | CX88: 0 | CY88: 0 | CZ88: 0 | DA88: 0 | DB88: 0 | DC88: 0 | DD88: 0 | DE88: 0 | DF88: 0 | DG88: 0 | DH88: 0 | DI88: 0 | DJ88: 0 | DK88: 0 | DL88: 0 | DM88: 0 | DN88: 0 | DO88: 0 | DP88: 0 | DQ88: 0 | DR88: 0 | DS88: 0 | DT88: 0 | DU88: 0 | DV88: 0 | DW88: 0 | DX88: 0 | DY88: 0 | DZ88: 0 | EA88: 0 | EB88: 0 | EC88: 0 | ED88: 0 | EE88: 0 | EF88: 0 | EG88: 0 | EH88: 0 | EI88: =EI86-EI87 -> 0 | EJ88: 0 | EK88: 0 | EL88: 0 | EM88: 0 | EN88: 0 | EO88: 0 | EP88: 0 | EQ88: 0 | ER88: 0 | ES88: 0 | ET88: 0 | EU88: 0 | EV88: 0 | EW88: 0 | EX88: 0 | EY88: 0 | EZ88: 0 | FA88: 0 | FB88: 0 | FC88: 0
C90: Sources of Funds
D91: Equity Up-Front | E91: EUR
D92: Total Up-Front Commitment | E92: EUR | F92: =G70 -> 282.3864871 | J92: =$F$92 -> 282.3864871 | K92: 282.3864871 | L92: 282.3864871 | M92: 282.3864871 | N92: 282.3864871 | O92: 282.3864871 | P92: 282.3864871 | Q92: 282.3864871 | R92: 282.3864871 | S92: 282.3864871 | T92: 282.3864871 | U92: 282.3864871 | V92: 282.3864871 | W92: 282.3864871 | X92: 282.3864871 | Y92: 282.3864871 | Z92: 282.3864871 | AA92: 282.3864871 | AB92: 282.3864871 | AC92: 282.3864871 | AD92: 282.3864871 | AE92: 282.3864871 | AF92: 282.3864871 | AG92: 282.3864871 | AH92: 282.3864871 | AI92: 282.3864871 | AJ92: 282.3864871 | AK92: 282.3864871 | AL92: 282.3864871 | AM92: 282.3864871 | AN92: 282.3864871 | AO92: 282.3864871 | AP92: =$F$92 -> 282.3864871 | AQ92: 282.3864871 | AR92: 282.3864871 | AS92: 282.3864871 | AT92: 282.3864871 | AU92: 282.3864871 | AV92: 282.3864871 | AW92: 282.3864871 | AX92: 282.3864871 | AY92: 282.3864871 | AZ92: 282.3864871 | BA92: 282.3864871 | BB92: 282.3864871 | BC92: 282.3864871 | BD92: 282.3864871 | BE92: 282.3864871 | BF92: 282.3864871 | BG92: 282.3864871 | BH92: 282.3864871 | BI92: 282.3864871 | BJ92: 282.3864871 | BK92: 282.3864871 | BL92: 282.3864871 | BM92: 282.3864871 | BN92: 282.3864871 | BO92: 282.3864871 | BP92: 282.3864871 | BQ92: 282.3864871 | BR92: 282.3864871 | BS92: 282.3864871 | BT92: 282.3864871 | BU92: 282.3864871 | BV92: =$F$92 -> 282.3864871 | BW92: 282.3864871 | BX92: 282.3864871 | BY92: 282.3864871 | BZ92: 282.3864871 | CA92: 282.3864871 | CB92: 282.3864871 | CC92: 282.3864871 | CD92: 282.3864871 | CE92: 282.3864871 | CF92: 282.3864871 | CG92: 282.3864871 | CH92: 282.3864871 | CI92: 282.3864871 | CJ92: 282.3864871 | CK92: 282.3864871 | CL92: 282.3864871 | CM92: 282.3864871 | CN92: 282.3864871 | CO92: 282.3864871 | CP92: 282.3864871 | CQ92: 282.3864871 | CR92: 282.3864871 | CS92: 282.3864871 | CT92: 282.3864871 | CU92: 282.3864871 | CV92: 282.3864871 | CW92: 282.3864871 | CX92: 282.3864871 | CY92: 282.3864871 | CZ92: 282.3864871 | DA92: 282.3864871 | DB92: =$F$92 -> 282.3864871 | DC92: 282.3864871 | DD92: 282.3864871 | DE92: 282.3864871 | DF92: 282.3864871 | DG92: 282.3864871 | DH92: 282.3864871 | DI92: 282.3864871 | DJ92: 282.3864871 | DK92: 282.3864871 | DL92: 282.3864871 | DM92: 282.3864871 | DN92: 282.3864871 | DO92: 282.3864871 | DP92: 282.3864871 | DQ92: 282.3864871 | DR92: 282.3864871 | DS92: 282.3864871 | DT92: 282.3864871 | DU92: 282.3864871 | DV92: 282.3864871 | DW92: 282.3864871 | DX92: 282.3864871 | DY92: 282.3864871 | DZ92: 282.3864871 | EA92: 282.3864871 | EB92: 282.3864871 | EC92: 282.3864871 | ED92: 282.3864871 | EE92: 282.3864871 | EF92: 282.3864871 | EG92: 282.3864871 | EH92: =$F$92 -> 282.3864871 | EI92: 282.3864871 | EJ92: 282.3864871 | EK92: 282.3864871 | EL92: 282.3864871 | EM92: 282.3864871 | EN92: 282.3864871 | EO92: 282.3864871 | EP92: 282.3864871 | EQ92: 282.3864871 | ER92: 282.3864871 | ES92: 282.3864871 | ET92: 282.3864871 | EU92: 282.3864871 | EV92: 282.3864871 | EW92: 282.3864871 | EX92: 282.3864871 | EY92: 282.3864871 | EZ92: 282.3864871 | FA92: 282.3864871 | FB92: 282.3864871 | FC92: 282.3864871
D93: Less: Amount Already Committed (Opening Balance) | E93: EUR | J93: =J96 -> 0 | K93: =K96 -> 43.45689055 | L93: 61.54942491 | M93: 84.33268879 | N93: 112.6613421 | O93: 147.4135605 | P93: 189.4511832 | Q93: 239.5716785 | R93: 282.3864871 | S93: 282.3864871 | T93: 282.3864871 | U93: 282.3864871 | V93: 282.3864871 | W93: 282.3864871 | X93: 282.3864871 | Y93: 282.3864871 | Z93: 282.3864871 | AA93: 282.3864871 | AB93: 282.3864871 | AC93: 282.3864871 | AD93: 282.3864871 | AE93: 282.3864871 | AF93: 282.3864871 | AG93: 282.3864871 | AH93: 282.3864871 | AI93: 282.3864871 | AJ93: 282.3864871 | AK93: 282.3864871 | AL93: 282.3864871 | AM93: 282.3864871 | AN93: 282.3864871 | AO93: 282.3864871 | AP93: 282.3864871 | AQ93: 282.3864871 | AR93: 282.3864871 | AS93: 282.3864871 | AT93: 282.3864871 | AU93: 282.3864871 | AV93: 282.3864871 | AW93: 282.3864871 | AX93: 282.3864871 | AY93: 282.3864871 | AZ93: 282.3864871 | BA93: 282.3864871 | BB93: 282.3864871 | BC93: 282.3864871 | BD93: 282.3864871 | BE93: 282.3864871 | BF93: 282.3864871 | BG93: 282.3864871 | BH93: 282.3864871 | BI93: 282.3864871 | BJ93: 282.3864871 | BK93: 282.3864871 | BL93: 282.3864871 | BM93: 282.3864871 | BN93: 282.3864871 | BO93: 282.3864871 | BP93: 282.3864871 | BQ93: 282.3864871 | BR93: 282.3864871 | BS93: 282.3864871 | BT93: 282.3864871 | BU93: 282.3864871 | BV93: 282.3864871 | BW93: =BW96 -> 282.3864871 | BX93: 282.3864871 | BY93: 282.3864871 | BZ93: 282.3864871 | CA93: 282.3864871 | CB93: 282.3864871 | CC93: 282.3864871 | CD93: 282.3864871 | CE93: 282.3864871 | CF93: 282.3864871 | CG93: 282.3864871 | CH93: 282.3864871 | CI93: 282.3864871 | CJ93: 282.3864871 | CK93: 282.3864871 | CL93: 282.3864871 | CM93: 282.3864871 | CN93: 282.3864871 | CO93: 282.3864871 | CP93: 282.3864871 | CQ93: 282.3864871 | CR93: 282.3864871 | CS93: 282.3864871 | CT93: 282.3864871 | CU93: 282.3864871 | CV93: 282.3864871 | CW93: 282.3864871 | CX93: 282.3864871 | CY93: 282.3864871 | CZ93: 282.3864871 | DA93: 282.3864871 | DB93: 282.3864871 | DC93: 282.3864871 | DD93: 282.3864871 | DE93: 282.3864871 | DF93: 282.3864871 | DG93: 282.3864871 | DH93: 282.3864871 | DI93: 282.3864871 | DJ93: 282.3864871 | DK93: 282.3864871 | DL93: 282.3864871 | DM93: 282.3864871 | DN93: 282.3864871 | DO93: 282.3864871 | DP93: 282.3864871 | DQ93: 282.3864871 | DR93: 282.3864871 | DS93: 282.3864871 | DT93: 282.3864871 | DU93: 282.3864871 | DV93: 282.3864871 | DW93: 282.3864871 | DX93: 282.3864871 | DY93: 282.3864871 | DZ93: 282.3864871 | EA93: 282.3864871 | EB93: 282.3864871 | EC93: 282.3864871 | ED93: 282.3864871 | EE93: 282.3864871 | EF93: 282.3864871 | EG93: 282.3864871 | EH93: 282.3864871 | EI93: =EI96 -> 282.3864871 | EJ93: 282.3864871 | EK93: 282.3864871 | EL93: 282.3864871 | EM93: 282.3864871 | EN93: 282.3864871 | EO93: 282.3864871 | EP93: 282.3864871 | EQ93: 282.3864871 | ER93: 282.3864871 | ES93: 282.3864871 | ET93: 282.3864871 | EU93: 282.3864871 | EV93: 282.3864871 | EW93: 282.3864871 | EX93: 282.3864871 | EY93: 282.3864871 | EZ93: 282.3864871 | FA93: 282.3864871 | FB93: 282.3864871 | FC93: 282.3864871
D94: Remaining Balance | E94: EUR | J94: =J92-J93 -> 282.3864871 | K94: =K92-K93 -> 238.9295966 | L94: 220.8370622 | M94: 198.0537983 | N94: 169.725145 | O94: 134.9729266 | P94: 92.9353039 | Q94: 42.81480861 | R94: 0 | S94: 0 | T94: 0 | U94: 0 | V94: 0 | W94: 0 | X94: 0 | Y94: 0 | Z94: 0 | AA94: 0 | AB94: 0 | AC94: 0 | AD94: 0 | AE94: 0 | AF94: 0 | AG94: 0 | AH94: 0 | AI94: 0 | AJ94: 0 | AK94: 0 | AL94: 0 | AM94: 0 | AN94: 0 | AO94: 0 | AP94: 0 | AQ94: 0 | AR94: 0 | AS94: 0 | AT94: 0 | AU94: 0 | AV94: 0 | AW94: 0 | AX94: 0 | AY94: 0 | AZ94: 0 | BA94: 0 | BB94: 0 | BC94: 0 | BD94: 0 | BE94: 0 | BF94: 0 | BG94: 0 | BH94: 0 | BI94: 0 | BJ94: 0 | BK94: 0 | BL94: 0 | BM94: 0 | BN94: 0 | BO94: 0 | BP94: 0 | BQ94: 0 | BR94: 0 | BS94: 0 | BT94: 0 | BU94: 0 | BV94: 0 | BW94: =BW92-BW93 -> 0 | BX94: 0 | BY94: 0 | BZ94: 0 | CA94: 0 | CB94: 0 | CC94: 0 | CD94: 0 | CE94: 0 | CF94: 0 | CG94: 0 | CH94: 0 | CI94: 0 | CJ94: 0 | CK94: 0 | CL94: 0 | CM94: 0 | CN94: 0 | CO94: 0 | CP94: 0 | CQ94: 0 | CR94: 0 | CS94: 0 | CT94: 0 | CU94: 0 | CV94: 0 | CW94: 0 | CX94: 0 | CY94: 0 | CZ94: 0 | DA94: 0 | DB94: 0 | DC94: 0 | DD94: 0 | DE94: 0 | DF94: 0 | DG94: 0 | DH94: 0 | DI94: 0 | DJ94: 0 | DK94: 0 | DL94: 0 | DM94: 0 | DN94: 0 | DO94: 0 | DP94: 0 | DQ94: 0 | DR94: 0 | DS94: 0 | DT94: 0 | DU94: 0 | DV94: 0 | DW94: 0 | DX94: 0 | DY94: 0 | DZ94: 0 | EA94: 0 | EB94: 0 | EC94: 0 | ED94: 0 | EE94: 0 | EF94: 0 | EG94: 0 | EH94: 0 | EI94: =EI92-EI93 -> 0 | EJ94: 0 | EK94: 0 | EL94: 0 | EM94: 0 | EN94: 0 | EO94: 0 | EP94: 0 | EQ94: 0 | ER94: 0 | ES94: 0 | ET94: 0 | EU94: 0 | EV94: 0 | EW94: 0 | EX94: 0 | EY94: 0 | EZ94: 0 | FA94: 0 | FB94: 0 | FC94: 0
D96: Opening Equity Up-Front | E96: EUR | H96: =SUM(J96:FC96) -> 40977.31794 | J96: =I98 -> 0 | K96: =J98 -> 43.45689055 | L96: 61.54942491 | M96: 84.33268879 | N96: 112.6613421 | O96: 147.4135605 | P96: 189.4511832 | Q96: 239.5716785 | R96: 282.3864871 | S96: 282.3864871 | T96: 282.3864871 | U96: 282.3864871 | V96: 282.3864871 | W96: 282.3864871 | X96: 282.3864871 | Y96: 282.3864871 | Z96: 282.3864871 | AA96: 282.3864871 | AB96: 282.3864871 | AC96: 282.3864871 | AD96: 282.3864871 | AE96: 282.3864871 | AF96: 282.3864871 | AG96: 282.3864871 | AH96: 282.3864871 | AI96: 282.3864871 | AJ96: 282.3864871 | AK96: 282.3864871 | AL96: 282.3864871 | AM96: 282.3864871 | AN96: 282.3864871 | AO96: 282.3864871 | AP96: 282.3864871 | AQ96: 282.3864871 | AR96: 282.3864871 | AS96: 282.3864871 | AT96: 282.3864871 | AU96: 282.3864871 | AV96: 282.3864871 | AW96: 282.3864871 | AX96: 282.3864871 | AY96: 282.3864871 | AZ96: 282.3864871 | BA96: 282.3864871 | BB96: 282.3864871 | BC96: 282.3864871 | BD96: 282.3864871 | BE96: 282.3864871 | BF96: 282.3864871 | BG96: 282.3864871 | BH96: 282.3864871 | BI96: 282.3864871 | BJ96: 282.3864871 | BK96: 282.3864871 | BL96: 282.3864871 | BM96: 282.3864871 | BN96: 282.3864871 | BO96: 282.3864871 | BP96: 282.3864871 | BQ96: 282.3864871 | BR96: 282.3864871 | BS96: 282.3864871 | BT96: 282.3864871 | BU96: 282.3864871 | BV96: 282.3864871 | BW96: =BV98 -> 282.3864871 | BX96: 282.3864871 | BY96: 282.3864871 | BZ96: 282.3864871 | CA96: 282.3864871 | CB96: 282.3864871 | CC96: 282.3864871 | CD96: 282.3864871 | CE96: 282.3864871 | CF96: 282.3864871 | CG96: 282.3864871 | CH96: 282.3864871 | CI96: 282.3864871 | CJ96: 282.3864871 | CK96: 282.3864871 | CL96: 282.3864871 | CM96: 282.3864871 | CN96: 282.3864871 | CO96: 282.3864871 | CP96: 282.3864871 | CQ96: 282.3864871 | CR96: 282.3864871 | CS96: 282.3864871 | CT96: 282.3864871 | CU96: 282.3864871 | CV96: 282.3864871 | CW96: 282.3864871 | CX96: 282.3864871 | CY96: 282.3864871 | CZ96: 282.3864871 | DA96: 282.3864871 | DB96: 282.3864871 | DC96: 282.3864871 | DD96: 282.3864871 | DE96: 282.3864871 | DF96: 282.3864871 | DG96: 282.3864871 | DH96: 282.3864871 | DI96: 282.3864871 | DJ96: 282.3864871 | DK96: 282.3864871 | DL96: 282.3864871 | DM96: 282.3864871 | DN96: 282.3864871 | DO96: 282.3864871 | DP96: 282.3864871 | DQ96: 282.3864871 | DR96: 282.3864871 | DS96: 282.3864871 | DT96: 282.3864871 | DU96: 282.3864871 | DV96: 282.3864871 | DW96: 282.3864871 | DX96: 282.3864871 | DY96: 282.3864871 | DZ96: 282.3864871 | EA96: 282.3864871 | EB96: 282.3864871 | EC96: 282.3864871 | ED96: 282.3864871 | EE96: 282.3864871 | EF96: 282.3864871 | EG96: 282.3864871 | EH96: 282.3864871 | EI96: =EH98 -> 282.3864871 | EJ96: 282.3864871 | EK96: 282.3864871 | EL96: 282.3864871 | EM96: 282.3864871 | EN96: 282.3864871 | EO96: 282.3864871 | EP96: 282.3864871 | EQ96: 282.3864871 | ER96: 282.3864871 | ES96: 282.3864871 | ET96: 282.3864871 | EU96: 282.3864871 | EV96: 282.3864871 | EW96: 282.3864871 | EX96: 282.3864871 | EY96: 282.3864871 | EZ96: 282.3864871 | FA96: 282.3864871 | FB96: 282.3864871 | FC96: 282.3864871
D97: Add: Up-Front Equity (MIN or Funding or Rem Balance) | E97: EUR | H97: =SUM(J97:FC97) -> 282.3864871 | J97: =MIN(J85,J94) -> 43.45689055 | K97: =MIN(K85,K94) -> 18.09253436 | L97: 22.78326388 | M97: 28.32865329 | N97: 34.75221842 | O97: 42.03762271 | P97: 50.1204953 | Q97: 42.81480861 | R97: 0 | S97: 0 | T97: 0 | U97: 0 | V97: 0 | W97: 0 | X97: 0 | Y97: 0 | Z97: 0 | AA97: 0 | AB97: 0 | AC97: 0 | AD97: 0 | AE97: 0 | AF97: 0 | AG97: 0 | AH97: 0 | AI97: 0 | AJ97: 0 | AK97: 0 | AL97: 0 | AM97: 0 | AN97: 0 | AO97: 0 | AP97: 0 | AQ97: 0 | AR97: 0 | AS97: 0 | AT97: 0 | AU97: 0 | AV97: 0 | AW97: 0 | AX97: 0 | AY97: 0 | AZ97: 0 | BA97: 0 | BB97: 0 | BC97: 0 | BD97: 0 | BE97: 0 | BF97: 0 | BG97: 0 | BH97: 0 | BI97: 0 | BJ97: 0 | BK97: 0 | BL97: 0 | BM97: 0 | BN97: 0 | BO97: 0 | BP97: 0 | BQ97: 0 | BR97: 0 | BS97: 0 | BT97: 0 | BU97: 0 | BV97: 0 | BW97: =MIN(BW85,BW94) -> 0 | BX97: 0 | BY97: 0 | BZ97: 0 | CA97: 0 | CB97: 0 | CC97: 0 | CD97: 0 | CE97: 0 | CF97: 0 | CG97: 0 | CH97: 0 | CI97: 0 | CJ97: 0 | CK97: 0 | CL97: 0 | CM97: 0 | CN97: 0 | CO97: 0 | CP97: 0 | CQ97: 0 | CR97: 0 | CS97: 0 | CT97: 0 | CU97: 0 | CV97: 0 | CW97: 0 | CX97: 0 | CY97: 0 | CZ97: 0 | DA97: 0 | DB97: 0 | DC97: 0 | DD97: 0 | DE97: 0 | DF97: 0 | DG97: 0 | DH97: 0 | DI97: 0 | DJ97: 0 | DK97: 0 | DL97: 0 | DM97: 0 | DN97: 0 | DO97: 0 | DP97: 0 | DQ97: 0 | DR97: 0 | DS97: 0 | DT97: 0 | DU97: 0 | DV97: 0 | DW97: 0 | DX97: 0 | DY97: 0 | DZ97: 0 | EA97: 0 | EB97: 0 | EC97: 0 | ED97: 0 | EE97: 0 | EF97: 0 | EG97: 0 | EH97: 0 | EI97: =MIN(EI85,EI94) -> 0 | EJ97: 0 | EK97: 0 | EL97: 0 | EM97: 0 | EN97: 0 | EO97: 0 | EP97: 0 | EQ97: 0 | ER97: 0 | ES97: 0 | ET97: 0 | EU97: 0 | EV97: 0 | EW97: 0 | EX97: 0 | EY97: 0 | EZ97: 0 | FA97: 0 | FB97: 0 | FC97: 0
D98: Closing Balance | E98: EUR | H98: 41259.70443 | J98: =J96+J97 -> 43.45689055 | K98: =K96+K97 -> 61.54942491 | L98: 84.33268879 | M98: 112.6613421 | N98: 147.4135605 | O98: 189.4511832 | P98: 239.5716785 | Q98: 282.3864871 | R98: 282.3864871 | S98: 282.3864871 | T98: 282.3864871 | U98: 282.3864871 | V98: 282.3864871 | W98: 282.3864871 | X98: 282.3864871 | Y98: 282.3864871 | Z98: 282.3864871 | AA98: 282.3864871 | AB98: 282.3864871 | AC98: 282.3864871 | AD98: 282.3864871 | AE98: 282.3864871 | AF98: 282.3864871 | AG98: 282.3864871 | AH98: 282.3864871 | AI98: 282.3864871 | AJ98: 282.3864871 | AK98: 282.3864871 | AL98: 282.3864871 | AM98: 282.3864871 | AN98: 282.3864871 | AO98: 282.3864871 | AP98: 282.3864871 | AQ98: 282.3864871 | AR98: 282.3864871 | AS98: 282.3864871 | AT98: 282.3864871 | AU98: 282.3864871 | AV98: 282.3864871 | AW98: 282.3864871 | AX98: 282.3864871 | AY98: 282.3864871 | AZ98: 282.3864871 | BA98: 282.3864871 | BB98: 282.3864871 | BC98: 282.3864871 | BD98: 282.3864871 | BE98: 282.3864871 | BF98: 282.3864871 | BG98: 282.3864871 | BH98: 282.3864871 | BI98: 282.3864871 | BJ98: 282.3864871 | BK98: 282.3864871 | BL98: 282.3864871 | BM98: 282.3864871 | BN98: 282.3864871 | BO98: 282.3864871 | BP98: 282.3864871 | BQ98: 282.3864871 | BR98: 282.3864871 | BS98: 282.3864871 | BT98: 282.3864871 | BU98: 282.3864871 | BV98: 282.3864871 | BW98: =BW96+BW97 -> 282.3864871 | BX98: 282.3864871 | BY98: 282.3864871 | BZ98: 282.3864871 | CA98: 282.3864871 | CB98: 282.3864871 | CC98: 282.3864871 | CD98: 282.3864871 | CE98: 282.3864871 | CF98: 282.3864871 | CG98: 282.3864871 | CH98: 282.3864871 | CI98: 282.3864871 | CJ98: 282.3864871 | CK98: 282.3864871 | CL98: 282.3864871 | CM98: 282.3864871 | CN98: 282.3864871 | CO98: 282.3864871 | CP98: 282.3864871 | CQ98: 282.3864871 | CR98: 282.3864871 | CS98: 282.3864871 | CT98: 282.3864871 | CU98: 282.3864871 | CV98: 282.3864871 | CW98: 282.3864871 | CX98: 282.3864871 | CY98: 282.3864871 | CZ98: 282.3864871 | DA98: 282.3864871 | DB98: 282.3864871 | DC98: 282.3864871 | DD98: 282.3864871 | DE98: 282.3864871 | DF98: 282.3864871 | DG98: 282.3864871 | DH98: 282.3864871 | DI98: 282.3864871 | DJ98: 282.3864871 | DK98: 282.3864871 | DL98: 282.3864871 | DM98: 282.3864871 | DN98: 282.3864871 | DO98: 282.3864871 | DP98: 282.3864871 | DQ98: 282.3864871 | DR98: 282.3864871 | DS98: 282.3864871 | DT98: 282.3864871 | DU98: 282.3864871 | DV98: 282.3864871 | DW98: 282.3864871 | DX98: 282.3864871 | DY98: 282.3864871 | DZ98: 282.3864871 | EA98: 282.3864871 | EB98: 282.3864871 | EC98: 282.3864871 | ED98: 282.3864871 | EE98: 282.3864871 | EF98: 282.3864871 | EG98: 282.3864871 | EH98: 282.3864871 | EI98: =EI96+EI97 -> 282.3864871 | EJ98: 282.3864871 | EK98: 282.3864871 | EL98: 282.3864871 | EM98: 282.3864871 | EN98: 282.3864871 | EO98: 282.3864871 | EP98: 282.3864871 | EQ98: 282.3864871 | ER98: 282.3864871 | ES98: 282.3864871 | ET98: 282.3864871 | EU98: 282.3864871 | EV98: 282.3864871 | EW98: 282.3864871 | EX98: 282.3864871 | EY98: 282.3864871 | EZ98: 282.3864871 | FA98: 282.3864871 | FB98: 282.3864871 | FC98: 282.3864871
D100: Pro-Rata Funding Needs (Total Funding-Equity) | H100: =SUM(J100:FC100) -> 2373.876497 | J100: =J85-J97 -> 0 | K100: =K85-K97 -> 0 | L100: 0 | M100: 0 | N100: 0 | O100: 0 | P100: 0 | Q100: 16.06771013 | R100: 68.18077484 | S100: 77.85722134 | T100: 87.54977141 | U100: 96.94394051 | V100: 105.704005 | W100: 113.4925528 | X100: 119.9920675 | Y100: 124.9266514 | Z100: 128.0818231 | AA100: 129.3204088 | AB100: 128.5928828 | AC100: 125.9410619 | AD100: 121.4947664 | AE100: 115.4618076 | AF100: 108.1123739 | AG100: 99.7594388 | AH100: 90.73716309 | AI100: 81.37934904 | AJ100: 71.99984694 | AK100: 62.87644472 | AL100: 54.23925943 | AM100: 46.26407627 | AN100: 39.07052707 | AO100: 32.72453459 | AP100: 27.24411816 | AQ100: 22.60748053 | AR100: 18.76227129 | AS100: 58.49216715 | AT100: 0 | AU100: 0 | AV100: 0 | AW100: 0 | AX100: 0 | AY100: 0 | AZ100: 0 | BA100: 0 | BB100: 0 | BC100: 0 | BD100: 0 | BE100: 0 | BF100: 0 | BG100: 0 | BH100: 0 | BI100: 0 | BJ100: 0 | BK100: 0 | BL100: 0 | BM100: 0 | BN100: 0 | BO100: 0 | BP100: 0 | BQ100: 0 | BR100: 0 | BS100: 0 | BT100: 0 | BU100: 0 | BV100: 0 | BW100: =BW85-BW97 -> 0 | BX100: 0 | BY100: 0 | BZ100: 0 | CA100: 0 | CB100: 0 | CC100: 0 | CD100: 0 | CE100: 0 | CF100: 0 | CG100: 0 | CH100: 0 | CI100: 0 | CJ100: 0 | CK100: 0 | CL100: 0 | CM100: 0 | CN100: 0 | CO100: 0 | CP100: 0 | CQ100: 0 | CR100: 0 | CS100: 0 | CT100: 0 | CU100: 0 | CV100: 0 | CW100: 0 | CX100: 0 | CY100: 0 | CZ100: 0 | DA100: 0 | DB100: 0 | DC100: 0 | DD100: 0 | DE100: 0 | DF100: 0 | DG100: 0 | DH100: 0 | DI100: 0 | DJ100: 0 | DK100: 0 | DL100: 0 | DM100: 0 | DN100: 0 | DO100: 0 | DP100: 0 | DQ100: 0 | DR100: 0 | DS100: 0 | DT100: 0 | DU100: 0 | DV100: 0 | DW100: 0 | DX100: 0 | DY100: 0 | DZ100: 0 | EA100: 0 | EB100: 0 | EC100: 0 | ED100: 0 | EE100: 0 | EF100: 0 | EG100: 0 | EH100: 0 | EI100: =EI85-EI97 -> 0 | EJ100: 0 | EK100: 0 | EL100: 0 | EM100: 0 | EN100: 0 | EO100: 0 | EP100: 0 | EQ100: 0 | ER100: 0 | ES100: 0 | ET100: 0 | EU100: 0 | EV100: 0 | EW100: 0 | EX100: 0 | EY100: 0 | EZ100: 0 | FA100: 0 | FB100: 0 | FC100: 0
D102: Debt Pro-Rata | E102: EUR | F102: =F76 -> 0.8215662309 | H102: =SUM(J102:FC102) -> 1950.296766 | J102: =J100*$F$102 -> 0 | K102: =K100*$F$102 -> 0 | L102: 0 | M102: 0 | N102: 0 | O102: 0 | P102: 0 | Q102: 13.20068805 | R102: 56.0150222 | S102: 63.96486389 | T102: 71.92793571 | U102: 79.64586781 | V102: 86.842841 | W102: 93.24164882 | X102: 98.58143064 | Y102: 102.6355182 | Z102: 105.2277006 | AA102: 106.2452809 | AB102: 105.64757 | AC102: 103.4689236 | AD102: 99.81599727 | AE102: 94.8595221 | AF102: 88.82147554 | AG102: 81.95898613 | AH102: 74.54658908 | AI102: 66.85852506 | AJ102: 59.15264288 | AK102: 51.6571637 | AL102: 44.56114394 | AM102: 38.00900277 | AN102: 32.09902567 | AO102: 26.88537254 | AP102: 22.38284747 | AQ102: 18.57354257 | AR102: 15.41444851 | AS102: 48.0551893 | AT102: 0 | AU102: 0 | AV102: 0 | AW102: 0 | AX102: 0 | AY102: 0 | AZ102: 0 | BA102: 0 | BB102: 0 | BC102: 0 | BD102: 0 | BE102: 0 | BF102: 0 | BG102: 0 | BH102: 0 | BI102: 0 | BJ102: 0 | BK102: 0 | BL102: 0 | BM102: 0 | BN102: 0 | BO102: 0 | BP102: 0 | BQ102: 0 | BR102: 0 | BS102: 0 | BT102: 0 | BU102: 0 | BV102: 0 | BW102: =BW100*$F$102 -> 0 | BX102: 0 | BY102: 0 | BZ102: 0 | CA102: 0 | CB102: 0 | CC102: 0 | CD102: 0 | CE102: 0 | CF102: 0 | CG102: 0 | CH102: 0 | CI102: 0 | CJ102: 0 | CK102: 0 | CL102: 0 | CM102: 0 | CN102: 0 | CO102: 0 | CP102: 0 | CQ102: 0 | CR102: 0 | CS102: 0 | CT102: 0 | CU102: 0 | CV102: 0 | CW102: 0 | CX102: 0 | CY102: 0 | CZ102: 0 | DA102: 0 | DB102: 0 | DC102: 0 | DD102: 0 | DE102: 0 | DF102: 0 | DG102: 0 | DH102: 0 | DI102: 0 | DJ102: 0 | DK102: 0 | DL102: 0 | DM102: 0 | DN102: 0 | DO102: 0 | DP102: 0 | DQ102: 0 | DR102: 0 | DS102: 0 | DT102: 0 | DU102: 0 | DV102: 0 | DW102: 0 | DX102: 0 | DY102: 0 | DZ102: 0 | EA102: 0 | EB102: 0 | EC102: 0 | ED102: 0 | EE102: 0 | EF102: 0 | EG102: 0 | EH102: 0 | EI102: =EI100*$F$102 -> 0 | EJ102: 0 | EK102: 0 | EL102: 0 | EM102: 0 | EN102: 0 | EO102: 0 | EP102: 0 | EQ102: 0 | ER102: 0 | ES102: 0 | ET102: 0 | EU102: 0 | EV102: 0 | EW102: 0 | EX102: 0 | EY102: 0 | EZ102: 0 | FA102: 0 | FB102: 0 | FC102: 0
D103: Equity Pro-Rata | E103: EUR | F103: =F75 -> 0.1784337691 | H103: =SUM(J103:FC103) -> 423.5797307 | J103: =J100*$F$103 -> 0 | K103: =K100*$F$103 -> 0 | L103: 0 | M103: 0 | N103: 0 | O103: 0 | P103: 0 | Q103: 2.867022079 | R103: 12.16575264 | S103: 13.89235746 | T103: 15.6218357 | U103: 17.2980727 | V103: 18.86116403 | W103: 20.25090396 | X103: 21.41063687 | Y103: 22.29113328 | Z103: 22.85412244 | AA103: 23.07512797 | AB103: 22.94531275 | AC103: 22.47213837 | AD103: 21.67876909 | AE103: 20.60228552 | AF103: 19.29089836 | AG103: 17.80045267 | AH103: 16.19057401 | AI103: 14.52082398 | AJ103: 12.84720407 | AK103: 11.21928102 | AL103: 9.678115494 | AM103: 8.255073504 | AN103: 6.971501407 | AO103: 5.83916205 | AP103: 4.86127069 | AQ103: 4.033937961 | AR103: 3.347822783 | AS103: 10.43697785 | AT103: 0 | AU103: 0 | AV103: 0 | AW103: 0 | AX103: 0 | AY103: 0 | AZ103: 0 | BA103: 0 | BB103: 0 | BC103: 0 | BD103: 0 | BE103: 0 | BF103: 0 | BG103: 0 | BH103: 0 | BI103: 0 | BJ103: 0 | BK103: 0 | BL103: 0 | BM103: 0 | BN103: 0 | BO103: 0 | BP103: 0 | BQ103: 0 | BR103: 0 | BS103: 0 | BT103: 0 | BU103: 0 | BV103: 0 | BW103: =BW100*$F$103 -> 0 | BX103: 0 | BY103: 0 | BZ103: 0 | CA103: 0 | CB103: 0 | CC103: 0 | CD103: 0 | CE103: 0 | CF103: 0 | CG103: 0 | CH103: 0 | CI103: 0 | CJ103: 0 | CK103: 0 | CL103: 0 | CM103: 0 | CN103: 0 | CO103: 0 | CP103: 0 | CQ103: 0 | CR103: 0 | CS103: 0 | CT103: 0 | CU103: 0 | CV103: 0 | CW103: 0 | CX103: 0 | CY103: 0 | CZ103: 0 | DA103: 0 | DB103: 0 | DC103: 0 | DD103: 0 | DE103: 0 | DF103: 0 | DG103: 0 | DH103: 0 | DI103: 0 | DJ103: 0 | DK103: 0 | DL103: 0 | DM103: 0 | DN103: 0 | DO103: 0 | DP103: 0 | DQ103: 0 | DR103: 0 | DS103: 0 | DT103: 0 | DU103: 0 | DV103: 0 | DW103: 0 | DX103: 0 | DY103: 0 | DZ103: 0 | EA103: 0 | EB103: 0 | EC103: 0 | ED103: 0 | EE103: 0 | EF103: 0 | EG103: 0 | EH103: 0 | EI103: =EI100*$F$103 -> 0 | EJ103: 0 | EK103: 0 | EL103: 0 | EM103: 0 | EN103: 0 | EO103: 0 | EP103: 0 | EQ103: 0 | ER103: 0 | ES103: 0 | ET103: 0 | EU103: 0 | EV103: 0 | EW103: 0 | EX103: 0 | EY103: 0 | EZ103: 0 | FA103: 0 | FB103: 0 | FC103: 0
D105: Total Debt Funding | E105: EUR | H105: =SUM(J105:FC105) -> 1950.296766 | J105: =J102 -> 0 | K105: =K102 -> 0 | L105: 0 | M105: 0 | N105: 0 | O105: 0 | P105: 0 | Q105: 13.20068805 | R105: 56.0150222 | S105: 63.96486389 | T105: 71.92793571 | U105: 79.64586781 | V105: 86.842841 | W105: 93.24164882 | X105: 98.58143064 | Y105: 102.6355182 | Z105: 105.2277006 | AA105: 106.2452809 | AB105: 105.64757 | AC105: 103.4689236 | AD105: 99.81599727 | AE105: 94.8595221 | AF105: 88.82147554 | AG105: 81.95898613 | AH105: 74.54658908 | AI105: 66.85852506 | AJ105: 59.15264288 | AK105: 51.6571637 | AL105: 44.56114394 | AM105: 38.00900277 | AN105: 32.09902567 | AO105: 26.88537254 | AP105: 22.38284747 | AQ105: 18.57354257 | AR105: 15.41444851 | AS105: 48.0551893 | AT105: 0 | AU105: 0 | AV105: 0 | AW105: 0 | AX105: 0 | AY105: 0 | AZ105: 0 | BA105: 0 | BB105: 0 | BC105: 0 | BD105: 0 | BE105: 0 | BF105: 0 | BG105: 0 | BH105: 0 | BI105: 0 | BJ105: 0 | BK105: 0 | BL105: 0 | BM105: 0 | BN105: 0 | BO105: 0 | BP105: 0 | BQ105: 0 | BR105: 0 | BS105: 0 | BT105: 0 | BU105: 0 | BV105: 0 | BW105: =BW102 -> 0 | BX105: 0 | BY105: 0 | BZ105: 0 | CA105: 0 | CB105: 0 | CC105: 0 | CD105: 0 | CE105: 0 | CF105: 0 | CG105: 0 | CH105: 0 | CI105: 0 | CJ105: 0 | CK105: 0 | CL105: 0 | CM105: 0 | CN105: 0 | CO105: 0 | CP105: 0 | CQ105: 0 | CR105: 0 | CS105: 0 | CT105: 0 | CU105: 0 | CV105: 0 | CW105: 0 | CX105: 0 | CY105: 0 | CZ105: 0 | DA105: 0 | DB105: 0 | DC105: 0 | DD105: 0 | DE105: 0 | DF105: 0 | DG105: 0 | DH105: 0 | DI105: 0 | DJ105: 0 | DK105: 0 | DL105: 0 | DM105: 0 | DN105: 0 | DO105: 0 | DP105: 0 | DQ105: 0 | DR105: 0 | DS105: 0 | DT105: 0 | DU105: 0 | DV105: 0 | DW105: 0 | DX105: 0 | DY105: 0 | DZ105: 0 | EA105: 0 | EB105: 0 | EC105: 0 | ED105: 0 | EE105: 0 | EF105: 0 | EG105: 0 | EH105: 0 | EI105: =EI102 -> 0 | EJ105: 0 | EK105: 0 | EL105: 0 | EM105: 0 | EN105: 0 | EO105: 0 | EP105: 0 | EQ105: 0 | ER105: 0 | ES105: 0 | ET105: 0 | EU105: 0 | EV105: 0 | EW105: 0 | EX105: 0 | EY105: 0 | EZ105: 0 | FA105: 0 | FB105: 0 | FC105: 0
D106: Total Equity Funding | E106: EUR | H106: =SUM(J106:FC106) -> 705.9662178 | J106: =J103+J97 -> 43.45689055 | K106: =K103+K97 -> 18.09253436 | L106: 22.78326388 | M106: 28.32865329 | N106: 34.75221842 | O106: 42.03762271 | P106: 50.1204953 | Q106: 45.68183069 | R106: 12.16575264 | S106: 13.89235746 | T106: 15.6218357 | U106: 17.2980727 | V106: 18.86116403 | W106: 20.25090396 | X106: 21.41063687 | Y106: 22.29113328 | Z106: 22.85412244 | AA106: 23.07512797 | AB106: 22.94531275 | AC106: 22.47213837 | AD106: 21.67876909 | AE106: 20.60228552 | AF106: 19.29089836 | AG106: 17.80045267 | AH106: 16.19057401 | AI106: 14.52082398 | AJ106: 12.84720407 | AK106: 11.21928102 | AL106: 9.678115494 | AM106: 8.255073504 | AN106: 6.971501407 | AO106: 5.83916205 | AP106: 4.86127069 | AQ106: 4.033937961 | AR106: 3.347822783 | AS106: 10.43697785 | AT106: 0 | AU106: 0 | AV106: 0 | AW106: 0 | AX106: 0 | AY106: 0 | AZ106: 0 | BA106: 0 | BB106: 0 | BC106: 0 | BD106: 0 | BE106: 0 | BF106: 0 | BG106: 0 | BH106: 0 | BI106: 0 | BJ106: 0 | BK106: 0 | BL106: 0 | BM106: 0 | BN106: 0 | BO106: 0 | BP106: 0 | BQ106: 0 | BR106: 0 | BS106: 0 | BT106: 0 | BU106: 0 | BV106: 0 | BW106: =BW103+BW97 -> 0 | BX106: 0 | BY106: 0 | BZ106: 0 | CA106: 0 | CB106: 0 | CC106: 0 | CD106: 0 | CE106: 0 | CF106: 0 | CG106: 0 | CH106: 0 | CI106: 0 | CJ106: 0 | CK106: 0 | CL106: 0 | CM106: 0 | CN106: 0 | CO106: 0 | CP106: 0 | CQ106: 0 | CR106: 0 | CS106: 0 | CT106: 0 | CU106: 0 | CV106: 0 | CW106: 0 | CX106: 0 | CY106: 0 | CZ106: 0 | DA106: 0 | DB106: 0 | DC106: 0 | DD106: 0 | DE106: 0 | DF106: 0 | DG106: 0 | DH106: 0 | DI106: 0 | DJ106: 0 | DK106: 0 | DL106: 0 | DM106: 0 | DN106: 0 | DO106: 0 | DP106: 0 | DQ106: 0 | DR106: 0 | DS106: 0 | DT106: 0 | DU106: 0 | DV106: 0 | DW106: 0 | DX106: 0 | DY106: 0 | DZ106: 0 | EA106: 0 | EB106: 0 | EC106: 0 | ED106: 0 | EE106: 0 | EF106: 0 | EG106: 0 | EH106: 0 | EI106: =EI103+EI97 -> 0 | EJ106: 0 | EK106: 0 | EL106: 0 | EM106: 0 | EN106: 0 | EO106: 0 | EP106: 0 | EQ106: 0 | ER106: 0 | ES106: 0 | ET106: 0 | EU106: 0 | EV106: 0 | EW106: 0 | EX106: 0 | EY106: 0 | EZ106: 0 | FA106: 0 | FB106: 0 | FC106: 0
B108: Debt Balance
C110: Repayment Flag (repeat from Debt Sizing) | E110: Flag | J110: =J29 -> 0 | K110: =K29 -> 0 | L110: 0 | M110: 0 | N110: 0 | O110: 0 | P110: 0 | Q110: 0 | R110: 0 | S110: 0 | T110: 0 | U110: 0 | V110: 0 | W110: 0 | X110: 0 | Y110: 0 | Z110: 0 | AA110: 0 | AB110: 0 | AC110: 0 | AD110: 0 | AE110: 0 | AF110: 0 | AG110: 0 | AH110: 0 | AI110: 0 | AJ110: 0 | AK110: 0 | AL110: 0 | AM110: 0 | AN110: 0 | AO110: 0 | AP110: 0 | AQ110: 0 | AR110: 0 | AS110: 0 | AT110: 1 | AU110: 1 | AV110: 1 | AW110: 1 | AX110: 1 | AY110: 1 | AZ110: 1 | BA110: 1 | BB110: 1 | BC110: 1 | BD110: 1 | BE110: 1 | BF110: 1 | BG110: 1 | BH110: 1 | BI110: 1 | BJ110: 1 | BK110: 1 | BL110: 1 | BM110: 1 | BN110: 1 | BO110: 1 | BP110: 1 | BQ110: 1 | BR110: 1 | BS110: 1 | BT110: 1 | BU110: 1 | BV110: 1 | BW110: =BW29 -> 1 | BX110: 1 | BY110: 1 | BZ110: 1 | CA110: 1 | CB110: 1 | CC110: 1 | CD110: 1 | CE110: 1 | CF110: 1 | CG110: 1 | CH110: 1 | CI110: 1 | CJ110: 1 | CK110: 1 | CL110: 0 | CM110: 0 | CN110: 0 | CO110: 0 | CP110: 0 | CQ110: 0 | CR110: 0 | CS110: 0 | CT110: 0 | CU110: 0 | CV110: 0 | CW110: 0 | CX110: 0 | CY110: 0 | CZ110: 0 | DA110: 0 | DB110: 0 | DC110: 0 | DD110: 0 | DE110: 0 | DF110: 0 | DG110: 0 | DH110: 0 | DI110: 0 | DJ110: 0 | DK110: 0 | DL110: 0 | DM110: 0 | DN110: 0 | DO110: 0 | DP110: 0 | DQ110: 0 | DR110: 0 | DS110: 0 | DT110: 0 | DU110: 0 | DV110: 0 | DW110: 0 | DX110: 0 | DY110: 0 | DZ110: 0 | EA110: 0 | EB110: 0 | EC110: 0 | ED110: 0 | EE110: 0 | EF110: 0 | EG110: 0 | EH110: 0 | EI110: =EI29 -> 0 | EJ110: 0 | EK110: 0 | EL110: 0 | EM110: 0 | EN110: 0 | EO110: 0 | EP110: 0 | EQ110: 0 | ER110: 0 | ES110: 0 | ET110: 0 | EU110: 0 | EV110: 0 | EW110: 0 | EX110: 0 | EY110: 0 | EZ110: 0 | FA110: 0 | FB110: 0 | FC110: 0
C112: Opening Balance | E112: EUR | J112: =I115 -> 0 | K112: =J115 -> 0 | L112: 0 | M112: 0 | N112: 0 | O112: 0 | P112: 0 | Q112: 0 | R112: 13.20068805 | S112: 69.21571025 | T112: 133.1805741 | U112: 205.1085098 | V112: 284.7543777 | W112: 371.5972187 | X112: 464.8388675 | Y112: 563.4202981 | Z112: 666.0558163 | AA112: 771.2835169 | AB112: 877.5287978 | AC112: 983.1763678 | AD112: 1086.645291 | AE112: 1186.461289 | AF112: 1281.320811 | AG112: 1370.142286 | AH112: 1452.101272 | AI112: 1526.647861 | AJ112: 1593.506387 | AK112: 1652.659029 | AL112: 1704.316193 | AM112: 1748.877337 | AN112: 1786.88634 | AO112: 1818.985365 | AP112: 1845.870738 | AQ112: 1868.253586 | AR112: 1886.827128 | AS112: 1902.241577 | AT112: 1950.296766 | AU112: 1943.520113 | AV112: 1915.189521 | AW112: 1904.906241 | AX112: 1871.575578 | AY112: 1852.381906 | AZ112: 1805.685495 | BA112: 1776.684956 | BB112: 1715.712084 | BC112: 1685.453471 | BD112: 1623.191373 | BE112: 1591.174866 | BF112: 1527.121474 | BG112: 1493.66142 | BH112: 1428.128688 | BI112: 1392.763022 | BJ112: 1325.287996 | BK112: 1305.085504 | BL112: 1261.636971 | BM112: 1240.209197 | BN112: 1195.511796 | BO112: 1172.811112 | BP112: 1126.816298 | BQ112: 1102.793226 | BR112: 1055.450567 | BS112: 1030.053704 | BT112: 981.3108096 | BU112: 954.486757 | BV112: 904.2891985 | BW112: =BV115 -> 875.9824798 | BX112: 824.273714 | BY112: 785.8552687 | BZ112: 719.5544112 | CA112: 679.1201193 | CB112: 610.7646102 | CC112: 568.2361146 | CD112: 497.7460884 | CE112: 453.0419863 | CF112: 380.3344732 | CG112: 333.3701975 | CH112: 258.3590023 | CI112: 209.0466989 | CJ112: 131.6422764 | CK112: 79.89067592 | CL112: -3.836930773e-13 | CM112: -3.73571396e-13 | CN112: -3.632548724e-13 | CO112: -3.527397557e-13 | CP112: -3.42022223e-13 | CQ112: -3.310983778e-13 | CR112: -3.199642485e-13 | CS112: -3.086157873e-13 | CT112: -2.970488682e-13 | CU112: -2.852592859e-13 | CV112: -2.732427541e-13 | CW112: -2.609949042e-13 | CX112: -2.48511283e-13 | CY112: -2.357873522e-13 | CZ112: -2.228184858e-13 | DA112: -2.095999686e-13 | DB112: -1.96126995e-13 | DC112: -1.823946666e-13 | DD112: -1.68397991e-13 | DE112: -1.541318793e-13 | DF112: -1.395911449e-13 | DG112: -1.247705015e-13 | DH112: -1.096645606e-13 | DI112: -9.426783039e-14 | DJ112: -7.857471312e-14 | DK112: -6.257950334e-14 | DL112: -4.627638577e-14 | DM112: -2.965943319e-14 | DN112: -1.272260426e-14 | DO112: 4.540258612e-15 | DP112: 2.21354316e-14 | DQ112: 4.006931167e-14 | DR112: 5.834841893e-14 | DS112: 7.6979399e-14 | DT112: 9.596902544e-14 | DU112: 1.153242022e-13 | DV112: 1.350519661e-13 | DW112: 1.551594894e-13 | DX112: 1.756540826e-13 | DY112: 1.965431967e-13 | DZ112: 2.178344263e-13 | EA112: 2.39535512e-13 | EB112: 2.616543436e-13 | EC112: 2.841989627e-13 | ED112: 3.071775658e-13 | EE112: 3.305985069e-13 | EF112: 3.544703012e-13 | EG112: 3.788016275e-13 | EH112: 4.036013318e-13 | EI112: =EH115 -> 4.288784305e-13 | EJ112: 4.546421133e-13 | EK112: 4.80901747e-13 | EL112: 5.076668786e-13 | EM112: 5.34947239e-13 | EN112: 5.627527464e-13 | EO112: 5.910935098e-13 | EP112: 6.199798328e-13 | EQ112: 6.494222176e-13 | ER112: 6.794313683e-13 | ES112: 7.100181952e-13 | ET112: 7.411938184e-13 | EU112: 7.729695725e-13 | EV112: 8.053570097e-13 | EW112: 8.383679052e-13 | EX112: 8.720142604e-13 | EY112: 9.063083079e-13 | EZ112: 9.412625158e-13 | FA112: 9.768895923e-13 | FB112: 1.01320249e-12 | FC112: 1.050214411e-12
C113: Add: Debt Draws | E113: EUR | H113: =SUM(J113:FC113) -> 1950.296766 | J113: =J105 -> 0 | K113: =K105 -> 0 | L113: 0 | M113: 0 | N113: 0 | O113: 0 | P113: 0 | Q113: 13.20068805 | R113: 56.0150222 | S113: 63.96486389 | T113: 71.92793571 | U113: 79.64586781 | V113: 86.842841 | W113: 93.24164882 | X113: 98.58143064 | Y113: 102.6355182 | Z113: 105.2277006 | AA113: 106.2452809 | AB113: 105.64757 | AC113: 103.4689236 | AD113: 99.81599727 | AE113: 94.8595221 | AF113: 88.82147554 | AG113: 81.95898613 | AH113: 74.54658908 | AI113: 66.85852506 | AJ113: 59.15264288 | AK113: 51.6571637 | AL113: 44.56114394 | AM113: 38.00900277 | AN113: 32.09902567 | AO113: 26.88537254 | AP113: 22.38284747 | AQ113: 18.57354257 | AR113: 15.41444851 | AS113: 48.0551893 | AT113: 0 | AU113: 0 | AV113: 0 | AW113: 0 | AX113: 0 | AY113: 0 | AZ113: 0 | BA113: 0 | BB113: 0 | BC113: 0 | BD113: 0 | BE113: 0 | BF113: 0 | BG113: 0 | BH113: 0 | BI113: 0 | BJ113: 0 | BK113: 0 | BL113: 0 | BM113: 0 | BN113: 0 | BO113: 0 | BP113: 0 | BQ113: 0 | BR113: 0 | BS113: 0 | BT113: 0 | BU113: 0 | BV113: 0 | BW113: =BW105 -> 0 | BX113: 0 | BY113: 0 | BZ113: 0 | CA113: 0 | CB113: 0 | CC113: 0 | CD113: 0 | CE113: 0 | CF113: 0 | CG113: 0 | CH113: 0 | CI113: 0 | CJ113: 0 | CK113: 0 | CL113: 0 | CM113: 0 | CN113: 0 | CO113: 0 | CP113: 0 | CQ113: 0 | CR113: 0 | CS113: 0 | CT113: 0 | CU113: 0 | CV113: 0 | CW113: 0 | CX113: 0 | CY113: 0 | CZ113: 0 | DA113: 0 | DB113: 0 | DC113: 0 | DD113: 0 | DE113: 0 | DF113: 0 | DG113: 0 | DH113: 0 | DI113: 0 | DJ113: 0 | DK113: 0 | DL113: 0 | DM113: 0 | DN113: 0 | DO113: 0 | DP113: 0 | DQ113: 0 | DR113: 0 | DS113: 0 | DT113: 0 | DU113: 0 | DV113: 0 | DW113: 0 | DX113: 0 | DY113: 0 | DZ113: 0 | EA113: 0 | EB113: 0 | EC113: 0 | ED113: 0 | EE113: 0 | EF113: 0 | EG113: 0 | EH113: 0 | EI113: =EI105 -> 0 | EJ113: 0 | EK113: 0 | EL113: 0 | EM113: 0 | EN113: 0 | EO113: 0 | EP113: 0 | EQ113: 0 | ER113: 0 | ES113: 0 | ET113: 0 | EU113: 0 | EV113: 0 | EW113: 0 | EX113: 0 | EY113: 0 | EZ113: 0 | FA113: 0 | FB113: 0 | FC113: 0
C114: Less: Repayment | E114: EUR | J114: =J48 -> 0 | K114: =K48 -> 0 | L114: 0 | M114: 0 | N114: 0 | O114: 0 | P114: 0 | Q114: 0 | R114: 0 | S114: 0 | T114: 0 | U114: 0 | V114: 0 | W114: 0 | X114: 0 | Y114: 0 | Z114: 0 | AA114: 0 | AB114: 0 | AC114: 0 | AD114: 0 | AE114: 0 | AF114: 0 | AG114: 0 | AH114: 0 | AI114: 0 | AJ114: 0 | AK114: 0 | AL114: 0 | AM114: 0 | AN114: 0 | AO114: 0 | AP114: 0 | AQ114: 0 | AR114: 0 | AS114: 0 | AT114: 6.776652688 | AU114: 28.33059219 | AV114: 10.28327958 | AW114: 33.33066311 | AX114: 19.19367219 | AY114: 46.69641069 | AZ114: 29.00053982 | BA114: 60.97287137 | BB114: 30.25861326 | BC114: 62.26209834 | BD114: 32.01650678 | BE114: 64.05339183 | BF114: 33.46005448 | BG114: 65.53273196 | BH114: 35.36566562 | BI114: 67.47502611 | BJ114: 20.20249179 | BK114: 43.44853262 | BL114: 21.42777401 | BM114: 44.69740152 | BN114: 22.70068364 | BO114: 45.99481466 | BP114: 24.02307198 | BQ114: 47.34265898 | BR114: 25.39686231 | BS114: 48.74289476 | BT114: 26.82405263 | BU114: 50.1975585 | BV114: 28.30671864 | BW114: =BW48 -> 51.70876583 | BX114: 38.41844529 | BY114: 66.30085751 | BZ114: 40.43429187 | CA114: 68.35550913 | CB114: 42.52849554 | CC114: 70.49002622 | CD114: 44.70410208 | CE114: 72.70751319 | CF114: 46.96427568 | CG114: 75.01119513 | CH114: 49.31230349 | CI114: 77.40442248 | CJ114: 51.75160047 | CK114: 79.89067592 | CL114: -1.012168127e-14 | CM114: -1.031652364e-14 | CN114: -1.051511672e-14 | CO114: -1.071753271e-14 | CP114: -1.092384522e-14 | CQ114: -1.113412924e-14 | CR114: -1.134846123e-14 | CS114: -1.15669191e-14 | CT114: -1.17895823e-14 | CU114: -1.201653176e-14 | CV114: -1.224784999e-14 | CW114: -1.24836211e-14 | CX114: -1.272393081e-14 | CY114: -1.296886648e-14 | CZ114: -1.321851716e-14 | DA114: -1.347297361e-14 | DB114: -1.373232836e-14 | DC114: -1.399667568e-14 | DD114: -1.426611168e-14 | DE114: -1.454073433e-14 | DF114: -1.482064347e-14 | DG114: -1.510594086e-14 | DH114: -1.539673022e-14 | DI114: -1.569311727e-14 | DJ114: -1.599520978e-14 | DK114: -1.630311757e-14 | DL114: -1.661695258e-14 | DM114: -1.693682892e-14 | DN114: -1.726286288e-14 | DO114: -1.759517299e-14 | DP114: -1.793388007e-14 | DQ114: -1.827910726e-14 | DR114: -1.863098007e-14 | DS114: -1.898962644e-14 | DT114: -1.935517675e-14 | DU114: -1.97277639e-14 | DV114: -2.010752336e-14 | DW114: -2.049459318e-14 | DX114: -2.08891141e-14 | DY114: -2.129122955e-14 | DZ114: -2.170108571e-14 | EA114: -2.211883161e-14 | EB114: -2.254461912e-14 | EC114: -2.297860304e-14 | ED114: -2.342094115e-14 | EE114: -2.387179427e-14 | EF114: -2.433132631e-14 | EG114: -2.479970434e-14 | EH114: -2.527709865e-14 | EI114: =EI48 -> -2.57636828e-14 | EJ114: -2.625963369e-14 | EK114: -2.676513164e-14 | EL114: -2.728036042e-14 | EM114: -2.780550736e-14 | EN114: -2.834076338e-14 | EO114: -2.888632307e-14 | EP114: -2.944238479e-14 | EQ114: -3.00091507e-14 | ER114: -3.058682685e-14 | ES114: -3.117562327e-14 | ET114: -3.177575401e-14 | EU114: -3.238743728e-14 | EV114: -3.301089545e-14 | EW114: -3.364635518e-14 | EX114: -3.429404752e-14 | EY114: -3.495420794e-14 | EZ114: -3.562707644e-14 | FA114: -3.631289766e-14 | FB114: -3.701192094e-14 | FC114: -3.772440042e-14
C115: Closing Balance | E115: EUR | J115: =J112+J113-J114 -> 0 | K115: =K112+K113-K114 -> 0 | L115: 0 | M115: 0 | N115: 0 | O115: 0 | P115: 0 | Q115: 13.20068805 | R115: 69.21571025 | S115: 133.1805741 | T115: 205.1085098 | U115: 284.7543777 | V115: 371.5972187 | W115: 464.8388675 | X115: 563.4202981 | Y115: 666.0558163 | Z115: 771.2835169 | AA115: 877.5287978 | AB115: 983.1763678 | AC115: 1086.645291 | AD115: 1186.461289 | AE115: 1281.320811 | AF115: 1370.142286 | AG115: 1452.101272 | AH115: 1526.647861 | AI115: 1593.506387 | AJ115: 1652.659029 | AK115: 1704.316193 | AL115: 1748.877337 | AM115: 1786.88634 | AN115: 1818.985365 | AO115: 1845.870738 | AP115: 1868.253586 | AQ115: 1886.827128 | AR115: 1902.241577 | AS115: 1950.296766 | AT115: 1943.520113 | AU115: 1915.189521 | AV115: 1904.906241 | AW115: 1871.575578 | AX115: 1852.381906 | AY115: 1805.685495 | AZ115: 1776.684956 | BA115: 1715.712084 | BB115: 1685.453471 | BC115: 1623.191373 | BD115: 1591.174866 | BE115: 1527.121474 | BF115: 1493.66142 | BG115: 1428.128688 | BH115: 1392.763022 | BI115: 1325.287996 | BJ115: 1305.085504 | BK115: 1261.636971 | BL115: 1240.209197 | BM115: 1195.511796 | BN115: 1172.811112 | BO115: 1126.816298 | BP115: 1102.793226 | BQ115: 1055.450567 | BR115: 1030.053704 | BS115: 981.3108096 | BT115: 954.486757 | BU115: 904.2891985 | BV115: 875.9824798 | BW115: =BW112+BW113-BW114 -> 824.273714 | BX115: 785.8552687 | BY115: 719.5544112 | BZ115: 679.1201193 | CA115: 610.7646102 | CB115: 568.2361146 | CC115: 497.7460884 | CD115: 453.0419863 | CE115: 380.3344732 | CF115: 333.3701975 | CG115: 258.3590023 | CH115: 209.0466989 | CI115: 131.6422764 | CJ115: 79.89067592 | CK115: -3.836930773e-13 | CL115: -3.73571396e-13 | CM115: -3.632548724e-13 | CN115: -3.527397557e-13 | CO115: -3.42022223e-13 | CP115: -3.310983778e-13 | CQ115: -3.199642485e-13 | CR115: -3.086157873e-13 | CS115: -2.970488682e-13 | CT115: -2.852592859e-13 | CU115: -2.732427541e-13 | CV115: -2.609949042e-13 | CW115: -2.48511283e-13 | CX115: -2.357873522e-13 | CY115: -2.228184858e-13 | CZ115: -2.095999686e-13 | DA115: -1.96126995e-13 | DB115: -1.823946666e-13 | DC115: -1.68397991e-13 | DD115: -1.541318793e-13 | DE115: -1.395911449e-13 | DF115: -1.247705015e-13 | DG115: -1.096645606e-13 | DH115: -9.426783039e-14 | DI115: -7.857471312e-14 | DJ115: -6.257950334e-14 | DK115: -4.627638577e-14 | DL115: -2.965943319e-14 | DM115: -1.272260426e-14 | DN115: 4.540258612e-15 | DO115: 2.21354316e-14 | DP115: 4.006931167e-14 | DQ115: 5.834841893e-14 | DR115: 7.6979399e-14 | DS115: 9.596902544e-14 | DT115: 1.153242022e-13 | DU115: 1.350519661e-13 | DV115: 1.551594894e-13 | DW115: 1.756540826e-13 | DX115: 1.965431967e-13 | DY115: 2.178344263e-13 | DZ115: 2.39535512e-13 | EA115: 2.616543436e-13 | EB115: 2.841989627e-13 | EC115: 3.071775658e-13 | ED115: 3.305985069e-13 | EE115: 3.544703012e-13 | EF115: 3.788016275e-13 | EG115: 4.036013318e-13 | EH115: 4.288784305e-13 | EI115: =EI112+EI113-EI114 -> 4.546421133e-13 | EJ115: 4.80901747e-13 | EK115: 5.076668786e-13 | EL115: 5.34947239e-13 | EM115: 5.627527464e-13 | EN115: 5.910935098e-13 | EO115: 6.199798328e-13 | EP115: 6.494222176e-13 | EQ115: 6.794313683e-13 | ER115: 7.100181952e-13 | ES115: 7.411938184e-13 | ET115: 7.729695725e-13 | EU115: 8.053570097e-13 | EV115: 8.383679052e-13 | EW115: 8.720142604e-13 | EX115: 9.063083079e-13 | EY115: 9.412625158e-13 | EZ115: 9.768895923e-13 | FA115: 1.01320249e-12 | FB115: 1.050214411e-12 | FC115: 1.087938811e-12
C117: Periodic Interest (Repeated) | E117: % p.p. | J117: =J37 -> 0.002916666667 | K117: =K37 -> 0.002916666667 | L117: 0.002916666667 | M117: 0.002916666667 | N117: 0.002916666667 | O117: 0.002916666667 | P117: 0.002916666667 | Q117: 0.002916666667 | R117: 0.002916666667 | S117: 0.002916666667 | T117: 0.002916666667 | U117: 0.002916666667 | V117: 0.002916666667 | W117: 0.002916666667 | X117: 0.002916666667 | Y117: 0.002916666667 | Z117: 0.002916666667 | AA117: 0.002916666667 | AB117: 0.002916666667 | AC117: 0.002916666667 | AD117: 0.002916666667 | AE117: 0.002916666667 | AF117: 0.002916666667 | AG117: 0.002916666667 | AH117: 0.002916666667 | AI117: 0.002916666667 | AJ117: 0.002916666667 | AK117: 0.002916666667 | AL117: 0.002916666667 | AM117: 0.002916666667 | AN117: 0.002916666667 | AO117: 0.002916666667 | AP117: 0.002916666667 | AQ117: 0.002916666667 | AR117: 0.002916666667 | AS117: 0.002916666667 | AT117: 0.0185 | AU117: 0.0185 | AV117: 0.0185 | AW117: 0.0185 | AX117: 0.01875 | AY117: 0.01875 | AZ117: 0.01875 | BA117: 0.01875 | BB117: 0.019 | BC117: 0.019 | BD117: 0.019 | BE117: 0.019 | BF117: 0.01925 | BG117: 0.01925 | BH117: 0.01925 | BI117: 0.01925 | BJ117: 0.01925 | BK117: 0.01925 | BL117: 0.01925 | BM117: 0.01925 | BN117: 0.01925 | BO117: 0.01925 | BP117: 0.01925 | BQ117: 0.01925 | BR117: 0.01925 | BS117: 0.01925 | BT117: 0.01925 | BU117: 0.01925 | BV117: 0.01925 | BW117: =BW37 -> 0.01925 | BX117: 0.01925 | BY117: 0.01925 | BZ117: 0.01925 | CA117: 0.01925 | CB117: 0.01925 | CC117: 0.01925 | CD117: 0.01925 | CE117: 0.01925 | CF117: 0.01925 | CG117: 0.01925 | CH117: 0.01925 | CI117: 0.01925 | CJ117: 0.01925 | CK117: 0.01925 | CL117: 0.01925 | CM117: 0.01925 | CN117: 0.01925 | CO117: 0.01925 | CP117: 0.01925 | CQ117: 0.01925 | CR117: 0.01925 | CS117: 0.01925 | CT117: 0.01925 | CU117: 0.01925 | CV117: 0.01925 | CW117: 0.01925 | CX117: 0.01925 | CY117: 0.01925 | CZ117: 0.01925 | DA117: 0.01925 | DB117: 0.01925 | DC117: 0.01925 | DD117: 0.01925 | DE117: 0.01925 | DF117: 0.01925 | DG117: 0.01925 | DH117: 0.01925 | DI117: 0.01925 | DJ117: 0.01925 | DK117: 0.01925 | DL117: 0.01925 | DM117: 0.01925 | DN117: 0.01925 | DO117: 0.01925 | DP117: 0.01925 | DQ117: 0.01925 | DR117: 0.01925 | DS117: 0.01925 | DT117: 0.01925 | DU117: 0.01925 | DV117: 0.01925 | DW117: 0.01925 | DX117: 0.01925 | DY117: 0.01925 | DZ117: 0.01925 | EA117: 0.01925 | EB117: 0.01925 | EC117: 0.01925 | ED117: 0.01925 | EE117: 0.01925 | EF117: 0.01925 | EG117: 0.01925 | EH117: 0.01925 | EI117: =EI37 -> 0.01925 | EJ117: 0.01925 | EK117: 0.01925 | EL117: 0.01925 | EM117: 0.01925 | EN117: 0.01925 | EO117: 0.01925 | EP117: 0.01925 | EQ117: 0.01925 | ER117: 0.01925 | ES117: 0.01925 | ET117: 0.01925 | EU117: 0.01925 | EV117: 0.01925 | EW117: 0.01925 | EX117: 0.01925 | EY117: 0.01925 | EZ117: 0.01925 | FA117: 0.01925 | FB117: 0.01925 | FC117: 0.01925
C118: Interest Cost | E118: EUR | J118: =J117*J112 -> 0 | K118: =K117*K112 -> 0 | L118: 0 | M118: 0 | N118: 0 | O118: 0 | P118: 0 | Q118: 0 | R118: 0.03850200681 | S118: 0.2018791549 | T118: 0.3884433412 | U118: 0.5982331537 | V118: 0.8305336015 | W118: 1.083825221 | X118: 1.35578003 | Y118: 1.643309203 | Z118: 1.942662797 | AA118: 2.249576924 | AB118: 2.559458993 | AC118: 2.867597739 | AD118: 3.1693821 | AE118: 3.460512092 | AF118: 3.737185698 | AG118: 3.996248335 | AH118: 4.235295378 | AI118: 4.452722929 | AJ118: 4.647726961 | AK118: 4.820255502 | AL118: 4.97092223 | AM118: 5.100892233 | AN118: 5.211751824 | AO118: 5.305373983 | AP118: 5.383789653 | AQ118: 5.449072958 | AR118: 5.50324579 | AS118: 5.548204598 | AT118: 36.08049017 | AU118: 35.95512209 | AV118: 35.43100614 | AW118: 35.24076547 | AX118: 35.09204209 | AY118: 34.73216074 | AZ118: 33.85660304 | BA118: 33.31284292 | BB118: 32.5985296 | BC118: 32.02361595 | BD118: 30.84063608 | BE118: 30.23232245 | BF118: 29.39708838 | BG118: 28.75298233 | BH118: 27.49147724 | BI118: 26.81068817 | BJ118: 25.51179392 | BK118: 25.12289595 | BL118: 24.2865117 | BM118: 23.87402705 | BN118: 23.01360207 | BO118: 22.57661391 | BP118: 21.69121373 | BQ118: 21.22876959 | BR118: 20.31742341 | BS118: 19.82853381 | BT118: 18.89023308 | BU118: 18.37387007 | BV118: 17.40756707 | BW118: =BW117*BW112 -> 16.86266274 | BX118: 15.86726899 | BY118: 15.12771392 | BZ118: 13.85142242 | CA118: 13.0730623 | CB118: 11.75721875 | CC118: 10.93854521 | CD118: 9.581612202 | CE118: 8.721058237 | CF118: 7.321438608 | CG118: 6.417376301 | CH118: 4.973410795 | CI118: 4.024148953 | CJ118: 2.53411382 | CK118: 1.537895511 | CL118: -7.386091738e-15 | CM118: -7.191249374e-15 | CN118: -6.992656294e-15 | CO118: -6.790240297e-15 | CP118: -6.583927792e-15 | CQ118: -6.373643772e-15 | CR118: -6.159311784e-15 | CS118: -5.940853905e-15 | CT118: -5.718190713e-15 | CU118: -5.491241254e-15 | CV118: -5.259923017e-15 | CW118: -5.024151905e-15 | CX118: -4.783842199e-15 | CY118: -4.538906531e-15 | CZ118: -4.289255851e-15 | DA118: -4.034799396e-15 | DB118: -3.775444653e-15 | DC118: -3.511097333e-15 | DD118: -3.241661326e-15 | DE118: -2.967038676e-15 | DF118: -2.68712954e-15 | DG118: -2.401832153e-15 | DH118: -2.111042792e-15 | DI118: -1.814655735e-15 | DJ118: -1.512563228e-15 | DK118: -1.204655439e-15 | DL118: -8.90820426e-16 | DM118: -5.709440888e-16 | DN118: -2.449101321e-16 | DO118: 8.739997829e-17 | DP118: 4.261070583e-16 | DQ118: 7.713342496e-16 | DR118: 1.123207064e-15 | DS118: 1.481853431e-15 | DT118: 1.84740374e-15 | DU118: 2.219990892e-15 | DV118: 2.599750347e-15 | DW118: 2.986820172e-15 | DX118: 3.381341091e-15 | DY118: 3.783456537e-15 | DZ118: 4.193312706e-15 | EA118: 4.611058606e-15 | EB118: 5.036846114e-15 | EC118: 5.470830032e-15 | ED118: 5.913168141e-15 | EE118: 6.364021258e-15 | EF118: 6.823553298e-15 | EG118: 7.291931329e-15 | EH118: 7.769325638e-15 | EI118: =EI117*EI112 -> 8.255909787e-15 | EJ118: 8.75186068e-15 | EK118: 9.257358629e-15 | EL118: 9.772587413e-15 | EM118: 1.029773435e-14 | EN118: 1.083299037e-14 | EO118: 1.137855006e-14 | EP118: 1.193461178e-14 | EQ118: 1.250137769e-14 | ER118: 1.307905384e-14 | ES118: 1.366785026e-14 | ET118: 1.4267981e-14 | EU118: 1.487966427e-14 | EV118: 1.550312244e-14 | EW118: 1.613858217e-14 | EX118: 1.678627451e-14 | EY118: 1.744643493e-14 | EZ118: 1.811930343e-14 | FA118: 1.880512465e-14 | FB118: 1.950414793e-14 | FC118: 2.021662741e-14
C120: Allocation of Interest Cost
D121: Interest During Construction (Pre-COD Flag) | E121: EUR | H121: =SUM(J121:FC121) -> 90.75238443 | J121: =J118*J4 -> 0 | K121: =K118*K4 -> 0 | L121: 0 | M121: 0 | N121: 0 | O121: 0 | P121: 0 | Q121: 0 | R121: 0.03850200681 | S121: 0.2018791549 | T121: 0.3884433412 | U121: 0.5982331537 | V121: 0.8305336015 | W121: 1.083825221 | X121: 1.35578003 | Y121: 1.643309203 | Z121: 1.942662797 | AA121: 2.249576924 | AB121: 2.559458993 | AC121: 2.867597739 | AD121: 3.1693821 | AE121: 3.460512092 | AF121: 3.737185698 | AG121: 3.996248335 | AH121: 4.235295378 | AI121: 4.452722929 | AJ121: 4.647726961 | AK121: 4.820255502 | AL121: 4.97092223 | AM121: 5.100892233 | AN121: 5.211751824 | AO121: 5.305373983 | AP121: 5.383789653 | AQ121: 5.449072958 | AR121: 5.50324579 | AS121: 5.548204598 | AT121: 0 | AU121: 0 | AV121: 0 | AW121: 0 | AX121: 0 | AY121: 0 | AZ121: 0 | BA121: 0 | BB121: 0 | BC121: 0 | BD121: 0 | BE121: 0 | BF121: 0 | BG121: 0 | BH121: 0 | BI121: 0 | BJ121: 0 | BK121: 0 | BL121: 0 | BM121: 0 | BN121: 0 | BO121: 0 | BP121: 0 | BQ121: 0 | BR121: 0 | BS121: 0 | BT121: 0 | BU121: 0 | BV121: 0 | BW121: =BW118*BW4 -> 0 | BX121: 0 | BY121: 0 | BZ121: 0 | CA121: 0 | CB121: 0 | CC121: 0 | CD121: 0 | CE121: 0 | CF121: 0 | CG121: 0 | CH121: 0 | CI121: 0 | CJ121: 0 | CK121: 0 | CL121: 0 | CM121: 0 | CN121: 0 | CO121: 0 | CP121: 0 | CQ121: 0 | CR121: 0 | CS121: 0 | CT121: 0 | CU121: 0 | CV121: 0 | CW121: 0 | CX121: 0 | CY121: 0 | CZ121: 0 | DA121: 0 | DB121: 0 | DC121: 0 | DD121: 0 | DE121: 0 | DF121: 0 | DG121: 0 | DH121: 0 | DI121: 0 | DJ121: 0 | DK121: 0 | DL121: 0 | DM121: 0 | DN121: 0 | DO121: 0 | DP121: 0 | DQ121: 0 | DR121: 0 | DS121: 0 | DT121: 0 | DU121: 0 | DV121: 0 | DW121: 0 | DX121: 0 | DY121: 0 | DZ121: 0 | EA121: 0 | EB121: 0 | EC121: 0 | ED121: 0 | EE121: 0 | EF121: 0 | EG121: 0 | EH121: 0 | EI121: =EI118*EI4 -> 0 | EJ121: 0 | EK121: 0 | EL121: 0 | EM121: 0 | EN121: 0 | EO121: 0 | EP121: 0 | EQ121: 0 | ER121: 0 | ES121: 0 | ET121: 0 | EU121: 0 | EV121: 0 | EW121: 0 | EX121: 0 | EY121: 0 | EZ121: 0 | FA121: 0 | FB121: 0 | FC121: 0
D122: Interest Expensed (Post-COD Flag) | E122: EUR | H122: =SUM(J122:FC122) -> 942.560377 | J122: =J118-J121 -> 0 | K122: =K118-K121 -> 0 | L122: 0 | M122: 0 | N122: 0 | O122: 0 | P122: 0 | Q122: 0 | R122: 0 | S122: 0 | T122: 0 | U122: 0 | V122: 0 | W122: 0 | X122: 0 | Y122: 0 | Z122: 0 | AA122: 0 | AB122: 0 | AC122: 0 | AD122: 0 | AE122: 0 | AF122: 0 | AG122: 0 | AH122: 0 | AI122: 0 | AJ122: 0 | AK122: 0 | AL122: 0 | AM122: 0 | AN122: 0 | AO122: 0 | AP122: 0 | AQ122: 0 | AR122: 0 | AS122: 0 | AT122: 36.08049017 | AU122: 35.95512209 | AV122: 35.43100614 | AW122: 35.24076547 | AX122: 35.09204209 | AY122: 34.73216074 | AZ122: 33.85660304 | BA122: 33.31284292 | BB122: 32.5985296 | BC122: 32.02361595 | BD122: 30.84063608 | BE122: 30.23232245 | BF122: 29.39708838 | BG122: 28.75298233 | BH122: 27.49147724 | BI122: 26.81068817 | BJ122: 25.51179392 | BK122: 25.12289595 | BL122: 24.2865117 | BM122: 23.87402705 | BN122: 23.01360207 | BO122: 22.57661391 | BP122: 21.69121373 | BQ122: 21.22876959 | BR122: 20.31742341 | BS122: 19.82853381 | BT122: 18.89023308 | BU122: 18.37387007 | BV122: 17.40756707 | BW122: =BW118-BW121 -> 16.86266274 | BX122: 15.86726899 | BY122: 15.12771392 | BZ122: 13.85142242 | CA122: 13.0730623 | CB122: 11.75721875 | CC122: 10.93854521 | CD122: 9.581612202 | CE122: 8.721058237 | CF122: 7.321438608 | CG122: 6.417376301 | CH122: 4.973410795 | CI122: 4.024148953 | CJ122: 2.53411382 | CK122: 1.537895511 | CL122: -7.386091738e-15 | CM122: -7.191249374e-15 | CN122: -6.992656294e-15 | CO122: -6.790240297e-15 | CP122: -6.583927792e-15 | CQ122: -6.373643772e-15 | CR122: -6.159311784e-15 | CS122: -5.940853905e-15 | CT122: -5.718190713e-15 | CU122: -5.491241254e-15 | CV122: -5.259923017e-15 | CW122: -5.024151905e-15 | CX122: -4.783842199e-15 | CY122: -4.538906531e-15 | CZ122: -4.289255851e-15 | DA122: -4.034799396e-15 | DB122: -3.775444653e-15 | DC122: -3.511097333e-15 | DD122: -3.241661326e-15 | DE122: -2.967038676e-15 | DF122: -2.68712954e-15 | DG122: -2.401832153e-15 | DH122: -2.111042792e-15 | DI122: -1.814655735e-15 | DJ122: -1.512563228e-15 | DK122: -1.204655439e-15 | DL122: -8.90820426e-16 | DM122: -5.709440888e-16 | DN122: -2.449101321e-16 | DO122: 8.739997829e-17 | DP122: 4.261070583e-16 | DQ122: 7.713342496e-16 | DR122: 1.123207064e-15 | DS122: 1.481853431e-15 | DT122: 1.84740374e-15 | DU122: 2.219990892e-15 | DV122: 2.599750347e-15 | DW122: 2.986820172e-15 | DX122: 3.381341091e-15 | DY122: 3.783456537e-15 | DZ122: 4.193312706e-15 | EA122: 4.611058606e-15 | EB122: 5.036846114e-15 | EC122: 5.470830032e-15 | ED122: 5.913168141e-15 | EE122: 6.364021258e-15 | EF122: 6.823553298e-15 | EG122: 7.291931329e-15 | EH122: 7.769325638e-15 | EI122: =EI118-EI121 -> 8.255909787e-15 | EJ122: 8.75186068e-15 | EK122: 9.257358629e-15 | EL122: 9.772587413e-15 | EM122: 1.029773435e-14 | EN122: 1.083299037e-14 | EO122: 1.137855006e-14 | EP122: 1.193461178e-14 | EQ122: 1.250137769e-14 | ER122: 1.307905384e-14 | ES122: 1.366785026e-14 | ET122: 1.4267981e-14 | EU122: 1.487966427e-14 | EV122: 1.550312244e-14 | EW122: 1.613858217e-14 | EX122: 1.678627451e-14 | EY122: 1.744643493e-14 | EZ122: 1.811930343e-14 | FA122: 1.880512465e-14 | FB122: 1.950414793e-14 | FC122: 2.021662741e-14
C124: Financial Close Flag | E124: Flag | F124: =Input!F6 -> 2020-01-01 | J124: =J6=$F$124 -> TRUE | K124: =K6=$F$124 -> FALSE | L124: FALSE | M124: FALSE | N124: FALSE | O124: FALSE | P124: FALSE | Q124: FALSE | R124: FALSE | S124: FALSE | T124: FALSE | U124: FALSE | V124: FALSE | W124: FALSE | X124: FALSE | Y124: FALSE | Z124: FALSE | AA124: FALSE | AB124: FALSE | AC124: FALSE | AD124: FALSE | AE124: FALSE | AF124: FALSE | AG124: FALSE | AH124: FALSE | AI124: FALSE | AJ124: FALSE | AK124: FALSE | AL124: FALSE | AM124: FALSE | AN124: FALSE | AO124: FALSE | AP124: FALSE | AQ124: FALSE | AR124: FALSE | AS124: FALSE | AT124: FALSE | AU124: FALSE | AV124: FALSE | AW124: FALSE | AX124: FALSE | AY124: FALSE | AZ124: FALSE | BA124: FALSE | BB124: FALSE | BC124: FALSE | BD124: FALSE | BE124: FALSE | BF124: FALSE | BG124: FALSE | BH124: FALSE | BI124: FALSE | BJ124: FALSE | BK124: FALSE | BL124: FALSE | BM124: FALSE | BN124: FALSE | BO124: FALSE | BP124: FALSE | BQ124: FALSE | BR124: FALSE | BS124: FALSE | BT124: FALSE | BU124: FALSE | BV124: FALSE | BW124: =BW6=$F$124 -> FALSE | BX124: FALSE | BY124: FALSE | BZ124: FALSE | CA124: FALSE | CB124: FALSE | CC124: FALSE | CD124: FALSE | CE124: FALSE | CF124: FALSE | CG124: FALSE | CH124: FALSE | CI124: FALSE | CJ124: FALSE | CK124: FALSE | CL124: FALSE | CM124: FALSE | CN124: FALSE | CO124: FALSE | CP124: FALSE | CQ124: FALSE | CR124: FALSE | CS124: FALSE | CT124: FALSE | CU124: FALSE | CV124: FALSE | CW124: FALSE | CX124: FALSE | CY124: FALSE | CZ124: FALSE | DA124: FALSE | DB124: FALSE | DC124: FALSE | DD124: FALSE | DE124: FALSE | DF124: FALSE | DG124: FALSE | DH124: FALSE | DI124: FALSE | DJ124: FALSE | DK124: FALSE | DL124: FALSE | DM124: FALSE | DN124: FALSE | DO124: FALSE | DP124: FALSE | DQ124: FALSE | DR124: FALSE | DS124: FALSE | DT124: FALSE | DU124: FALSE | DV124: FALSE | DW124: FALSE | DX124: FALSE | DY124: FALSE | DZ124: FALSE | EA124: FALSE | EB124: FALSE | EC124: FALSE | ED124: FALSE | EE124: FALSE | EF124: FALSE | EG124: FALSE | EH124: FALSE | EI124: =EI6=$F$124 -> FALSE | EJ124: FALSE | EK124: FALSE | EL124: FALSE | EM124: FALSE | EN124: FALSE | EO124: FALSE | EP124: FALSE | EQ124: FALSE | ER124: FALSE | ES124: FALSE | ET124: FALSE | EU124: FALSE | EV124: FALSE | EW124: FALSE | EX124: FALSE | EY124: FALSE | EZ124: FALSE | FA124: FALSE | FB124: FALSE | FC124: FALSE
C125: Up-Front Fee | E125: EUR | F125: =Input!F48 -> 0.015 | G125: =G64 -> 1950.296766 | H125: =SUM(J125:FC125) -> 29.25445149 | J125: =J124*$F$125*$G$125 -> 29.25445149 | K125: =K124*$F$125*$G$125 -> 0 | L125: 0 | M125: 0 | N125: 0 | O125: 0 | P125: 0 | Q125: 0 | R125: 0 | S125: 0 | T125: 0 | U125: 0 | V125: 0 | W125: 0 | X125: 0 | Y125: 0 | Z125: 0 | AA125: 0 | AB125: 0 | AC125: 0 | AD125: 0 | AE125: 0 | AF125: 0 | AG125: 0 | AH125: 0 | AI125: 0 | AJ125: 0 | AK125: 0 | AL125: 0 | AM125: 0 | AN125: 0 | AO125: 0 | AP125: 0 | AQ125: 0 | AR125: 0 | AS125: 0 | AT125: 0 | AU125: 0 | AV125: 0 | AW125: 0 | AX125: 0 | AY125: 0 | AZ125: 0 | BA125: 0 | BB125: 0 | BC125: 0 | BD125: 0 | BE125: 0 | BF125: 0 | BG125: 0 | BH125: 0 | BI125: 0 | BJ125: 0 | BK125: 0 | BL125: 0 | BM125: 0 | BN125: 0 | BO125: 0 | BP125: 0 | BQ125: 0 | BR125: 0 | BS125: 0 | BT125: 0 | BU125: 0 | BV125: 0 | BW125: =BW124*$F$125*$G$125 -> 0 | BX125: 0 | BY125: 0 | BZ125: 0 | CA125: 0 | CB125: 0 | CC125: 0 | CD125: 0 | CE125: 0 | CF125: 0 | CG125: 0 | CH125: 0 | CI125: 0 | CJ125: 0 | CK125: 0 | CL125: 0 | CM125: 0 | CN125: 0 | CO125: 0 | CP125: 0 | CQ125: 0 | CR125: 0 | CS125: 0 | CT125: 0 | CU125: 0 | CV125: 0 | CW125: 0 | CX125: 0 | CY125: 0 | CZ125: 0 | DA125: 0 | DB125: 0 | DC125: 0 | DD125: 0 | DE125: 0 | DF125: 0 | DG125: 0 | DH125: 0 | DI125: 0 | DJ125: 0 | DK125: 0 | DL125: 0 | DM125: 0 | DN125: 0 | DO125: 0 | DP125: 0 | DQ125: 0 | DR125: 0 | DS125: 0 | DT125: 0 | DU125: 0 | DV125: 0 | DW125: 0 | DX125: 0 | DY125: 0 | DZ125: 0 | EA125: 0 | EB125: 0 | EC125: 0 | ED125: 0 | EE125: 0 | EF125: 0 | EG125: 0 | EH125: 0 | EI125: =EI124*$F$125*$G$125 -> 0 | EJ125: 0 | EK125: 0 | EL125: 0 | EM125: 0 | EN125: 0 | EO125: 0 | EP125: 0 | EQ125: 0 | ER125: 0 | ES125: 0 | ET125: 0 | EU125: 0 | EV125: 0 | EW125: 0 | EX125: 0 | EY125: 0 | EZ125: 0 | FA125: 0 | FB125: 0 | FC125: 0
C127: Total Debt Commitment over Pre-COD | E127: EUR | F127: =G64 -> 1950.296766 | J127: =$F$127*J4 -> 1950.296766 | K127: =$F$127*K4 -> 1950.296766 | L127: 1950.296766 | M127: 1950.296766 | N127: 1950.296766 | O127: 1950.296766 | P127: 1950.296766 | Q127: 1950.296766 | R127: 1950.296766 | S127: 1950.296766 | T127: 1950.296766 | U127: 1950.296766 | V127: 1950.296766 | W127: 1950.296766 | X127: 1950.296766 | Y127: 1950.296766 | Z127: 1950.296766 | AA127: 1950.296766 | AB127: 1950.296766 | AC127: 1950.296766 | AD127: 1950.296766 | AE127: 1950.296766 | AF127: 1950.296766 | AG127: 1950.296766 | AH127: 1950.296766 | AI127: 1950.296766 | AJ127: 1950.296766 | AK127: 1950.296766 | AL127: 1950.296766 | AM127: 1950.296766 | AN127: 1950.296766 | AO127: 1950.296766 | AP127: 1950.296766 | AQ127: 1950.296766 | AR127: 1950.296766 | AS127: 1950.296766 | AT127: 0 | AU127: 0 | AV127: 0 | AW127: 0 | AX127: 0 | AY127: 0 | AZ127: 0 | BA127: 0 | BB127: 0 | BC127: 0 | BD127: 0 | BE127: 0 | BF127: 0 | BG127: 0 | BH127: 0 | BI127: 0 | BJ127: 0 | BK127: 0 | BL127: 0 | BM127: 0 | BN127: 0 | BO127: 0 | BP127: 0 | BQ127: 0 | BR127: 0 | BS127: 0 | BT127: 0 | BU127: 0 | BV127: 0 | BW127: =$F$127*BW4 -> 0 | BX127: 0 | BY127: 0 | BZ127: 0 | CA127: 0 | CB127: 0 | CC127: 0 | CD127: 0 | CE127: 0 | CF127: 0 | CG127: 0 | CH127: 0 | CI127: 0 | CJ127: 0 | CK127: 0 | CL127: 0 | CM127: 0 | CN127: 0 | CO127: 0 | CP127: 0 | CQ127: 0 | CR127: 0 | CS127: 0 | CT127: 0 | CU127: 0 | CV127: 0 | CW127: 0 | CX127: 0 | CY127: 0 | CZ127: 0 | DA127: 0 | DB127: 0 | DC127: 0 | DD127: 0 | DE127: 0 | DF127: 0 | DG127: 0 | DH127: 0 | DI127: 0 | DJ127: 0 | DK127: 0 | DL127: 0 | DM127: 0 | DN127: 0 | DO127: 0 | DP127: 0 | DQ127: 0 | DR127: 0 | DS127: 0 | DT127: 0 | DU127: 0 | DV127: 0 | DW127: 0 | DX127: 0 | DY127: 0 | DZ127: 0 | EA127: 0 | EB127: 0 | EC127: 0 | ED127: 0 | EE127: 0 | EF127: 0 | EG127: 0 | EH127: 0 | EI127: =$F$127*EI4 -> 0 | EJ127: 0 | EK127: 0 | EL127: 0 | EM127: 0 | EN127: 0 | EO127: 0 | EP127: 0 | EQ127: 0 | ER127: 0 | ES127: 0 | ET127: 0 | EU127: 0 | EV127: 0 | EW127: 0 | EX127: 0 | EY127: 0 | EZ127: 0 | FA127: 0 | FB127: 0 | FC127: 0
C128: Less: Opening Balance from Account | E128: EUR | J128: =J112 -> 0 | K128: =K112 -> 0 | L128: 0 | M128: 0 | N128: 0 | O128: 0 | P128: 0 | Q128: 0 | R128: 13.20068805 | S128: 69.21571025 | T128: 133.1805741 | U128: 205.1085098 | V128: 284.7543777 | W128: 371.5972187 | X128: 464.8388675 | Y128: 563.4202981 | Z128: 666.0558163 | AA128: 771.2835169 | AB128: 877.5287978 | AC128: 983.1763678 | AD128: 1086.645291 | AE128: 1186.461289 | AF128: 1281.320811 | AG128: 1370.142286 | AH128: 1452.101272 | AI128: 1526.647861 | AJ128: 1593.506387 | AK128: 1652.659029 | AL128: 1704.316193 | AM128: 1748.877337 | AN128: 1786.88634 | AO128: 1818.985365 | AP128: 1845.870738 | AQ128: 1868.253586 | AR128: 1886.827128 | AS128: 1902.241577 | AT128: 1950.296766 | AU128: 1943.520113 | AV128: 1915.189521 | AW128: 1904.906241 | AX128: 1871.575578 | AY128: 1852.381906 | AZ128: 1805.685495 | BA128: 1776.684956 | BB128: 1715.712084 | BC128: 1685.453471 | BD128: 1623.191373 | BE128: 1591.174866 | BF128: 1527.121474 | BG128: 1493.66142 | BH128: 1428.128688 | BI128: 1392.763022 | BJ128: 1325.287996 | BK128: 1305.085504 | BL128: 1261.636971 | BM128: 1240.209197 | BN128: 1195.511796 | BO128: 1172.811112 | BP128: 1126.816298 | BQ128: 1102.793226 | BR128: 1055.450567 | BS128: 1030.053704 | BT128: 981.3108096 | BU128: 954.486757 | BV128: 904.2891985 | BW128: =BW112 -> 875.9824798 | BX128: 824.273714 | BY128: 785.8552687 | BZ128: 719.5544112 | CA128: 679.1201193 | CB128: 610.7646102 | CC128: 568.2361146 | CD128: 497.7460884 | CE128: 453.0419863 | CF128: 380.3344732 | CG128: 333.3701975 | CH128: 258.3590023 | CI128: 209.0466989 | CJ128: 131.6422764 | CK128: 79.89067592 | CL128: -3.836930773e-13 | CM128: -3.73571396e-13 | CN128: -3.632548724e-13 | CO128: -3.527397557e-13 | CP128: -3.42022223e-13 | CQ128: -3.310983778e-13 | CR128: -3.199642485e-13 | CS128: -3.086157873e-13 | CT128: -2.970488682e-13 | CU128: -2.852592859e-13 | CV128: -2.732427541e-13 | CW128: -2.609949042e-13 | CX128: -2.48511283e-13 | CY128: -2.357873522e-13 | CZ128: -2.228184858e-13 | DA128: -2.095999686e-13 | DB128: -1.96126995e-13 | DC128: -1.823946666e-13 | DD128: -1.68397991e-13 | DE128: -1.541318793e-13 | DF128: -1.395911449e-13 | DG128: -1.247705015e-13 | DH128: -1.096645606e-13 | DI128: -9.426783039e-14 | DJ128: -7.857471312e-14 | DK128: -6.257950334e-14 | DL128: -4.627638577e-14 | DM128: -2.965943319e-14 | DN128: -1.272260426e-14 | DO128: 4.540258612e-15 | DP128: 2.21354316e-14 | DQ128: 4.006931167e-14 | DR128: 5.834841893e-14 | DS128: 7.6979399e-14 | DT128: 9.596902544e-14 | DU128: 1.153242022e-13 | DV128: 1.350519661e-13 | DW128: 1.551594894e-13 | DX128: 1.756540826e-13 | DY128: 1.965431967e-13 | DZ128: 2.178344263e-13 | EA128: 2.39535512e-13 | EB128: 2.616543436e-13 | EC128: 2.841989627e-13 | ED128: 3.071775658e-13 | EE128: 3.305985069e-13 | EF128: 3.544703012e-13 | EG128: 3.788016275e-13 | EH128: 4.036013318e-13 | EI128: =EI112 -> 4.288784305e-13 | EJ128: 4.546421133e-13 | EK128: 4.80901747e-13 | EL128: 5.076668786e-13 | EM128: 5.34947239e-13 | EN128: 5.627527464e-13 | EO128: 5.910935098e-13 | EP128: 6.199798328e-13 | EQ128: 6.494222176e-13 | ER128: 6.794313683e-13 | ES128: 7.100181952e-13 | ET128: 7.411938184e-13 | EU128: 7.729695725e-13 | EV128: 8.053570097e-13 | EW128: 8.383679052e-13 | EX128: 8.720142604e-13 | EY128: 9.063083079e-13 | EZ128: 9.412625158e-13 | FA128: 9.768895923e-13 | FB128: 1.01320249e-12 | FC128: 1.050214411e-12
C129: Un-funded | E129: EUR | J129: =J127-J128 -> 1950.296766 | K129: =K127-K128 -> 1950.296766 | L129: 1950.296766 | M129: 1950.296766 | N129: 1950.296766 | O129: 1950.296766 | P129: 1950.296766 | Q129: 1950.296766 | R129: 1937.096078 | S129: 1881.081056 | T129: 1817.116192 | U129: 1745.188256 | V129: 1665.542388 | W129: 1578.699547 | X129: 1485.457898 | Y129: 1386.876468 | Z129: 1284.24095 | AA129: 1179.013249 | AB129: 1072.767968 | AC129: 967.1203981 | AD129: 863.6514745 | AE129: 763.8354773 | AF129: 668.9759552 | AG129: 580.1544796 | AH129: 498.1954935 | AI129: 423.6489044 | AJ129: 356.7903793 | AK129: 297.6377365 | AL129: 245.9805728 | AM129: 201.4194288 | AN129: 163.4104261 | AO129: 131.3114004 | AP129: 104.4260278 | AQ129: 82.04318038 | AR129: 63.46963781 | AS129: 48.0551893 | AT129: -1950.296766 | AU129: -1943.520113 | AV129: -1915.189521 | AW129: -1904.906241 | AX129: -1871.575578 | AY129: -1852.381906 | AZ129: -1805.685495 | BA129: -1776.684956 | BB129: -1715.712084 | BC129: -1685.453471 | BD129: -1623.191373 | BE129: -1591.174866 | BF129: -1527.121474 | BG129: -1493.66142 | BH129: -1428.128688 | BI129: -1392.763022 | BJ129: -1325.287996 | BK129: -1305.085504 | BL129: -1261.636971 | BM129: -1240.209197 | BN129: -1195.511796 | BO129: -1172.811112 | BP129: -1126.816298 | BQ129: -1102.793226 | BR129: -1055.450567 | BS129: -1030.053704 | BT129: -981.3108096 | BU129: -954.486757 | BV129: -904.2891985 | BW129: =BW127-BW128 -> -875.9824798 | BX129: -824.273714 | BY129: -785.8552687 | BZ129: -719.5544112 | CA129: -679.1201193 | CB129: -610.7646102 | CC129: -568.2361146 | CD129: -497.7460884 | CE129: -453.0419863 | CF129: -380.3344732 | CG129: -333.3701975 | CH129: -258.3590023 | CI129: -209.0466989 | CJ129: -131.6422764 | CK129: -79.89067592 | CL129: 3.836930773e-13 | CM129: 3.73571396e-13 | CN129: 3.632548724e-13 | CO129: 3.527397557e-13 | CP129: 3.42022223e-13 | CQ129: 3.310983778e-13 | CR129: 3.199642485e-13 | CS129: 3.086157873e-13 | CT129: 2.970488682e-13 | CU129: 2.852592859e-13 | CV129: 2.732427541e-13 | CW129: 2.609949042e-13 | CX129: 2.48511283e-13 | CY129: 2.357873522e-13 | CZ129: 2.228184858e-13 | DA129: 2.095999686e-13 | DB129: 1.96126995e-13 | DC129: 1.823946666e-13 | DD129: 1.68397991e-13 | DE129: 1.541318793e-13 | DF129: 1.395911449e-13 | DG129: 1.247705015e-13 | DH129: 1.096645606e-13 | DI129: 9.426783039e-14 | DJ129: 7.857471312e-14 | DK129: 6.257950334e-14 | DL129: 4.627638577e-14 | DM129: 2.965943319e-14 | DN129: 1.272260426e-14 | DO129: -4.540258612e-15 | DP129: -2.21354316e-14 | DQ129: -4.006931167e-14 | DR129: -5.834841893e-14 | DS129: -7.6979399e-14 | DT129: -9.596902544e-14 | DU129: -1.153242022e-13 | DV129: -1.350519661e-13 | DW129: -1.551594894e-13 | DX129: -1.756540826e-13 | DY129: -1.965431967e-13 | DZ129: -2.178344263e-13 | EA129: -2.39535512e-13 | EB129: -2.616543436e-13 | EC129: -2.841989627e-13 | ED129: -3.071775658e-13 | EE129: -3.305985069e-13 | EF129: -3.544703012e-13 | EG129: -3.788016275e-13 | EH129: -4.036013318e-13 | EI129: =EI127-EI128 -> -4.288784305e-13 | EJ129: -4.546421133e-13 | EK129: -4.80901747e-13 | EL129: -5.076668786e-13 | EM129: -5.34947239e-13 | EN129: -5.627527464e-13 | EO129: -5.910935098e-13 | EP129: -6.199798328e-13 | EQ129: -6.494222176e-13 | ER129: -6.794313683e-13 | ES129: -7.100181952e-13 | ET129: -7.411938184e-13 | EU129: -7.729695725e-13 | EV129: -8.053570097e-13 | EW129: -8.383679052e-13 | EX129: -8.720142604e-13 | EY129: -9.063083079e-13 | EZ129: -9.412625158e-13 | FA129: -9.768895923e-13 | FB129: -1.01320249e-12 | FC129: -1.050214411e-12
C131: Periodic Commitment Fee | E131: % p.p. | F131: =Input!F49 -> 0.006 | J131: =$F$131/12*J5 -> 0.0005 | K131: =$F$131/12*K5 -> 0.0005 | L131: 0.0005 | M131: 0.0005 | N131: 0.0005 | O131: 0.0005 | P131: 0.0005 | Q131: 0.0005 | R131: 0.0005 | S131: 0.0005 | T131: 0.0005 | U131: 0.0005 | V131: 0.0005 | W131: 0.0005 | X131: 0.0005 | Y131: 0.0005 | Z131: 0.0005 | AA131: 0.0005 | AB131: 0.0005 | AC131: 0.0005 | AD131: 0.0005 | AE131: 0.0005 | AF131: 0.0005 | AG131: 0.0005 | AH131: 0.0005 | AI131: 0.0005 | AJ131: 0.0005 | AK131: 0.0005 | AL131: 0.0005 | AM131: 0.0005 | AN131: 0.0005 | AO131: 0.0005 | AP131: 0.0005 | AQ131: 0.0005 | AR131: 0.0005 | AS131: 0.0005 | AT131: 0.003 | AU131: 0.003 | AV131: 0.003 | AW131: 0.003 | AX131: 0.003 | AY131: 0.003 | AZ131: 0.003 | BA131: 0.003 | BB131: 0.003 | BC131: 0.003 | BD131: 0.003 | BE131: 0.003 | BF131: 0.003 | BG131: 0.003 | BH131: 0.003 | BI131: 0.003 | BJ131: 0.003 | BK131: 0.003 | BL131: 0.003 | BM131: 0.003 | BN131: 0.003 | BO131: 0.003 | BP131: 0.003 | BQ131: 0.003 | BR131: 0.003 | BS131: 0.003 | BT131: 0.003 | BU131: 0.003 | BV131: 0.003 | BW131: =$F$131/12*BW5 -> 0.003 | BX131: 0.003 | BY131: 0.003 | BZ131: 0.003 | CA131: 0.003 | CB131: 0.003 | CC131: 0.003 | CD131: 0.003 | CE131: 0.003 | CF131: 0.003 | CG131: 0.003 | CH131: 0.003 | CI131: 0.003 | CJ131: 0.003 | CK131: 0.003 | CL131: 0.003 | CM131: 0.003 | CN131: 0.003 | CO131: 0.003 | CP131: 0.003 | CQ131: 0.003 | CR131: 0.003 | CS131: 0.003 | CT131: 0.003 | CU131: 0.003 | CV131: 0.003 | CW131: 0.003 | CX131: 0.003 | CY131: 0.003 | CZ131: 0.003 | DA131: 0.003 | DB131: 0.003 | DC131: 0.003 | DD131: 0.003 | DE131: 0.003 | DF131: 0.003 | DG131: 0.003 | DH131: 0.003 | DI131: 0.003 | DJ131: 0.003 | DK131: 0.003 | DL131: 0.003 | DM131: 0.003 | DN131: 0.003 | DO131: 0.003 | DP131: 0.003 | DQ131: 0.003 | DR131: 0.003 | DS131: 0.003 | DT131: 0.003 | DU131: 0.003 | DV131: 0.003 | DW131: 0.003 | DX131: 0.003 | DY131: 0.003 | DZ131: 0.003 | EA131: 0.003 | EB131: 0.003 | EC131: 0.003 | ED131: 0.003 | EE131: 0.003 | EF131: 0.003 | EG131: 0.003 | EH131: 0.003 | EI131: =$F$131/12*EI5 -> 0.003 | EJ131: 0.003 | EK131: 0.003 | EL131: 0.003 | EM131: 0.003 | EN131: 0.003 | EO131: 0.003 | EP131: 0.003 | EQ131: 0.003 | ER131: 0.003 | ES131: 0.003 | ET131: 0.003 | EU131: 0.003 | EV131: 0.003 | EW131: 0.003 | EX131: 0.003 | EY131: 0.003 | EZ131: 0.003 | FA131: 0.003 | FB131: 0.003 | FC131: 0.003
C132: Periodic Commitment Amount | E132: EUR | H132: =SUM(J132:FC132) -> 19.54779017 | J132: =J131*J129*J4 -> 0.9751483829 | K132: =K131*K129*K4 -> 0.9751483829 | L132: 0.9751483829 | M132: 0.9751483829 | N132: 0.9751483829 | O132: 0.9751483829 | P132: 0.9751483829 | Q132: 0.9751483829 | R132: 0.9685480389 | S132: 0.9405405278 | T132: 0.9085580959 | U132: 0.872594128 | V132: 0.8327711941 | W132: 0.7893497736 | X132: 0.7427289492 | Y132: 0.6934382339 | Z132: 0.6421204748 | AA132: 0.5895066245 | AB132: 0.5363839841 | AC132: 0.4835601991 | AD132: 0.4318257373 | AE132: 0.3819177386 | AF132: 0.3344879776 | AG132: 0.2900772398 | AH132: 0.2490977467 | AI132: 0.2118244522 | AJ132: 0.1783951897 | AK132: 0.1488188682 | AL132: 0.1229902864 | AM132: 0.1007097144 | AN132: 0.08170521303 | AO132: 0.0656557002 | AP132: 0.05221301392 | AQ132: 0.04102159019 | AR132: 0.0317348189 | AS132: 0.02402759465 | AT132: 0 | AU132: 0 | AV132: 0 | AW132: 0 | AX132: 0 | AY132: 0 | AZ132: 0 | BA132: 0 | BB132: 0 | BC132: 0 | BD132: 0 | BE132: 0 | BF132: 0 | BG132: 0 | BH132: 0 | BI132: 0 | BJ132: 0 | BK132: 0 | BL132: 0 | BM132: 0 | BN132: 0 | BO132: 0 | BP132: 0 | BQ132: 0 | BR132: 0 | BS132: 0 | BT132: 0 | BU132: 0 | BV132: 0 | BW132: =BW131*BW129*BW4 -> 0 | BX132: 0 | BY132: 0 | BZ132: 0 | CA132: 0 | CB132: 0 | CC132: 0 | CD132: 0 | CE132: 0 | CF132: 0 | CG132: 0 | CH132: 0 | CI132: 0 | CJ132: 0 | CK132: 0 | CL132: 0 | CM132: 0 | CN132: 0 | CO132: 0 | CP132: 0 | CQ132: 0 | CR132: 0 | CS132: 0 | CT132: 0 | CU132: 0 | CV132: 0 | CW132: 0 | CX132: 0 | CY132: 0 | CZ132: 0 | DA132: 0 | DB132: 0 | DC132: 0 | DD132: 0 | DE132: 0 | DF132: 0 | DG132: 0 | DH132: 0 | DI132: 0 | DJ132: 0 | DK132: 0 | DL132: 0 | DM132: 0 | DN132: 0 | DO132: 0 | DP132: 0 | DQ132: 0 | DR132: 0 | DS132: 0 | DT132: 0 | DU132: 0 | DV132: 0 | DW132: 0 | DX132: 0 | DY132: 0 | DZ132: 0 | EA132: 0 | EB132: 0 | EC132: 0 | ED132: 0 | EE132: 0 | EF132: 0 | EG132: 0 | EH132: 0 | EI132: =EI131*EI129*EI4 -> 0 | EJ132: 0 | EK132: 0 | EL132: 0 | EM132: 0 | EN132: 0 | EO132: 0 | EP132: 0 | EQ132: 0 | ER132: 0 | ES132: 0 | ET132: 0 | EU132: 0 | EV132: 0 | EW132: 0 | EX132: 0 | EY132: 0 | EZ132: 0 | FA132: 0 | FB132: 0 | FC132: 0
B134: DSRA
C135: Total Debt Service | E135: EUR | J135: =J122+J114 -> 0 | K135: =K122+K114 -> 0 | L135: 0 | M135: 0 | N135: 0 | O135: 0 | P135: 0 | Q135: 0 | R135: 0 | S135: 0 | T135: 0 | U135: 0 | V135: 0 | W135: 0 | X135: 0 | Y135: 0 | Z135: 0 | AA135: 0 | AB135: 0 | AC135: 0 | AD135: 0 | AE135: 0 | AF135: 0 | AG135: 0 | AH135: 0 | AI135: 0 | AJ135: 0 | AK135: 0 | AL135: 0 | AM135: 0 | AN135: 0 | AO135: 0 | AP135: 0 | AQ135: 0 | AR135: 0 | AS135: 0 | AT135: 42.85714286 | AU135: 64.28571429 | AV135: 45.71428571 | AW135: 68.57142857 | AX135: 54.28571429 | AY135: 81.42857143 | AZ135: 62.85714286 | BA135: 94.28571429 | BB135: 62.85714286 | BC135: 94.28571429 | BD135: 62.85714286 | BE135: 94.28571429 | BF135: 62.85714286 | BG135: 94.28571429 | BH135: 62.85714286 | BI135: 94.28571429 | BJ135: 45.71428571 | BK135: 68.57142857 | BL135: 45.71428571 | BM135: 68.57142857 | BN135: 45.71428571 | BO135: 68.57142857 | BP135: 45.71428571 | BQ135: 68.57142857 | BR135: 45.71428571 | BS135: 68.57142857 | BT135: 45.71428571 | BU135: 68.57142857 | BV135: 45.71428571 | BW135: =BW122+BW114 -> 68.57142857 | BX135: 54.28571429 | BY135: 81.42857143 | BZ135: 54.28571429 | CA135: 81.42857143 | CB135: 54.28571429 | CC135: 81.42857143 | CD135: 54.28571429 | CE135: 81.42857143 | CF135: 54.28571429 | CG135: 81.42857143 | CH135: 54.28571429 | CI135: 81.42857143 | CJ135: 54.28571429 | CK135: 81.42857143 | CL135: -1.750777301e-14 | CM135: -1.750777301e-14 | CN135: -1.750777301e-14 | CO135: -1.750777301e-14 | CP135: -1.750777301e-14 | CQ135: -1.750777301e-14 | CR135: -1.750777301e-14 | CS135: -1.750777301e-14 | CT135: -1.750777301e-14 | CU135: -1.750777301e-14 | CV135: -1.750777301e-14 | CW135: -1.750777301e-14 | CX135: -1.750777301e-14 | CY135: -1.750777301e-14 | CZ135: -1.750777301e-14 | DA135: -1.750777301e-14 | DB135: -1.750777301e-14 | DC135: -1.750777301e-14 | DD135: -1.750777301e-14 | DE135: -1.750777301e-14 | DF135: -1.750777301e-14 | DG135: -1.750777301e-14 | DH135: -1.750777301e-14 | DI135: -1.750777301e-14 | DJ135: -1.750777301e-14 | DK135: -1.750777301e-14 | DL135: -1.750777301e-14 | DM135: -1.750777301e-14 | DN135: -1.750777301e-14 | DO135: -1.750777301e-14 | DP135: -1.750777301e-14 | DQ135: -1.750777301e-14 | DR135: -1.750777301e-14 | DS135: -1.750777301e-14 | DT135: -1.750777301e-14 | DU135: -1.750777301e-14 | DV135: -1.750777301e-14 | DW135: -1.750777301e-14 | DX135: -1.750777301e-14 | DY135: -1.750777301e-14 | DZ135: -1.750777301e-14 | EA135: -1.750777301e-14 | EB135: -1.750777301e-14 | EC135: -1.750777301e-14 | ED135: -1.750777301e-14 | EE135: -1.750777301e-14 | EF135: -1.750777301e-14 | EG135: -1.750777301e-14 | EH135: -1.750777301e-14 | EI135: =EI122+EI114 -> -1.750777301e-14 | EJ135: -1.750777301e-14 | EK135: -1.750777301e-14 | EL135: -1.750777301e-14 | EM135: -1.750777301e-14 | EN135: -1.750777301e-14 | EO135: -1.750777301e-14 | EP135: -1.750777301e-14 | EQ135: -1.750777301e-14 | ER135: -1.750777301e-14 | ES135: -1.750777301e-14 | ET135: -1.750777301e-14 | EU135: -1.750777301e-14 | EV135: -1.750777301e-14 | EW135: -1.750777301e-14 | EX135: -1.750777301e-14 | EY135: -1.750777301e-14 | EZ135: -1.750777301e-14 | FA135: -1.750777301e-14 | FB135: -1.750777301e-14 | FC135: -1.750777301e-14
C136: Required DSRA (SUM OFFSET) | E136: EUR | F136: =Input!F53 -> 1 | J136: =SUM(OFFSET(J135,0,1,1,$F$136)) -> 0 | K136: =SUM(OFFSET(K135,0,1,1,$F$136)) -> 0 | L136: 0 | M136: 0 | N136: 0 | O136: 0 | P136: 0 | Q136: 0 | R136: 0 | S136: 0 | T136: 0 | U136: 0 | V136: 0 | W136: 0 | X136: 0 | Y136: 0 | Z136: 0 | AA136: 0 | AB136: 0 | AC136: 0 | AD136: 0 | AE136: 0 | AF136: 0 | AG136: 0 | AH136: 0 | AI136: 0 | AJ136: 0 | AK136: 0 | AL136: 0 | AM136: 0 | AN136: 0 | AO136: 0 | AP136: 0 | AQ136: 0 | AR136: 0 | AS136: 42.85714286 | AT136: 64.28571429 | AU136: 45.71428571 | AV136: 68.57142857 | AW136: 54.28571429 | AX136: 81.42857143 | AY136: 62.85714286 | AZ136: 94.28571429 | BA136: 62.85714286 | BB136: 94.28571429 | BC136: 62.85714286 | BD136: 94.28571429 | BE136: 62.85714286 | BF136: 94.28571429 | BG136: 62.85714286 | BH136: 94.28571429 | BI136: 45.71428571 | BJ136: 68.57142857 | BK136: 45.71428571 | BL136: 68.57142857 | BM136: 45.71428571 | BN136: 68.57142857 | BO136: 45.71428571 | BP136: 68.57142857 | BQ136: 45.71428571 | BR136: 68.57142857 | BS136: 45.71428571 | BT136: 68.57142857 | BU136: 45.71428571 | BV136: 68.57142857 | BW136: =SUM(OFFSET(BW135,0,1,1,$F$136)) -> 54.28571429 | BX136: 81.42857143 | BY136: 54.28571429 | BZ136: 81.42857143 | CA136: 54.28571429 | CB136: 81.42857143 | CC136: 54.28571429 | CD136: 81.42857143 | CE136: 54.28571429 | CF136: 81.42857143 | CG136: 54.28571429 | CH136: 81.42857143 | CI136: 54.28571429 | CJ136: 81.42857143 | CK136: -1.750777301e-14 | CL136: -1.750777301e-14 | CM136: -1.750777301e-14 | CN136: -1.750777301e-14 | CO136: -1.750777301e-14 | CP136: -1.750777301e-14 | CQ136: -1.750777301e-14 | CR136: -1.750777301e-14 | CS136: -1.750777301e-14 | CT136: -1.750777301e-14 | CU136: -1.750777301e-14 | CV136: -1.750777301e-14 | CW136: -1.750777301e-14 | CX136: -1.750777301e-14 | CY136: -1.750777301e-14 | CZ136: -1.750777301e-14 | DA136: -1.750777301e-14 | DB136: -1.750777301e-14 | DC136: -1.750777301e-14 | DD136: -1.750777301e-14 | DE136: -1.750777301e-14 | DF136: -1.750777301e-14 | DG136: -1.750777301e-14 | DH136: -1.750777301e-14 | DI136: -1.750777301e-14 | DJ136: -1.750777301e-14 | DK136: -1.750777301e-14 | DL136: -1.750777301e-14 | DM136: -1.750777301e-14 | DN136: -1.750777301e-14 | DO136: -1.750777301e-14 | DP136: -1.750777301e-14 | DQ136: -1.750777301e-14 | DR136: -1.750777301e-14 | DS136: -1.750777301e-14 | DT136: -1.750777301e-14 | DU136: -1.750777301e-14 | DV136: -1.750777301e-14 | DW136: -1.750777301e-14 | DX136: -1.750777301e-14 | DY136: -1.750777301e-14 | DZ136: -1.750777301e-14 | EA136: -1.750777301e-14 | EB136: -1.750777301e-14 | EC136: -1.750777301e-14 | ED136: -1.750777301e-14 | EE136: -1.750777301e-14 | EF136: -1.750777301e-14 | EG136: -1.750777301e-14 | EH136: -1.750777301e-14 | EI136: =SUM(OFFSET(EI135,0,1,1,$F$136)) -> -1.750777301e-14 | EJ136: -1.750777301e-14 | EK136: -1.750777301e-14 | EL136: -1.750777301e-14 | EM136: -1.750777301e-14 | EN136: -1.750777301e-14 | EO136: -1.750777301e-14 | EP136: -1.750777301e-14 | EQ136: -1.750777301e-14 | ER136: -1.750777301e-14 | ES136: -1.750777301e-14 | ET136: -1.750777301e-14 | EU136: -1.750777301e-14 | EV136: -1.750777301e-14 | EW136: -1.750777301e-14 | EX136: -1.750777301e-14 | EY136: -1.750777301e-14 | EZ136: -1.750777301e-14 | FA136: -1.750777301e-14 | FB136: -1.750777301e-14 | FC136: 0
C137: Less: Amount Already Funded | E137: EUR | J137: =J145 -> 0 | K137: =K145 -> 0 | L137: 0 | M137: 0 | N137: 0 | O137: 0 | P137: 0 | Q137: 0 | R137: 0 | S137: 0 | T137: 0 | U137: 0 | V137: 0 | W137: 0 | X137: 0 | Y137: 0 | Z137: 0 | AA137: 0 | AB137: 0 | AC137: 0 | AD137: 0 | AE137: 0 | AF137: 0 | AG137: 0 | AH137: 0 | AI137: 0 | AJ137: 0 | AK137: 0 | AL137: 0 | AM137: 0 | AN137: 0 | AO137: 0 | AP137: 0 | AQ137: 0 | AR137: 0 | AS137: 0 | AT137: 42.85714286 | AU137: 64.28571429 | AV137: 45.71428571 | AW137: 68.57142857 | AX137: 54.28571429 | AY137: 81.42857143 | AZ137: 62.85714286 | BA137: 94.28571429 | BB137: 62.85714286 | BC137: 94.28571429 | BD137: 62.85714286 | BE137: 94.28571429 | BF137: 62.85714286 | BG137: 94.28571429 | BH137: 62.85714286 | BI137: 94.28571429 | BJ137: 45.71428571 | BK137: 68.57142857 | BL137: 45.71428571 | BM137: 68.57142857 | BN137: 45.71428571 | BO137: 68.57142857 | BP137: 45.71428571 | BQ137: 68.57142857 | BR137: 45.71428571 | BS137: 68.57142857 | BT137: 45.71428571 | BU137: 68.57142857 | BV137: 45.71428571 | BW137: =BW145 -> 68.57142857 | BX137: 54.28571429 | BY137: 81.42857143 | BZ137: 54.28571429 | CA137: 81.42857143 | CB137: 54.28571429 | CC137: 81.42857143 | CD137: 54.28571429 | CE137: 81.42857143 | CF137: 54.28571429 | CG137: 81.42857143 | CH137: 54.28571429 | CI137: 81.42857143 | CJ137: 54.28571429 | CK137: 81.42857143 | CL137: 0 | CM137: -1.750777301e-14 | CN137: -1.750777301e-14 | CO137: -1.750777301e-14 | CP137: -1.750777301e-14 | CQ137: -1.750777301e-14 | CR137: -1.750777301e-14 | CS137: -1.750777301e-14 | CT137: -1.750777301e-14 | CU137: -1.750777301e-14 | CV137: -1.750777301e-14 | CW137: -1.750777301e-14 | CX137: -1.750777301e-14 | CY137: -1.750777301e-14 | CZ137: -1.750777301e-14 | DA137: -1.750777301e-14 | DB137: -1.750777301e-14 | DC137: -1.750777301e-14 | DD137: -1.750777301e-14 | DE137: -1.750777301e-14 | DF137: -1.750777301e-14 | DG137: -1.750777301e-14 | DH137: -1.750777301e-14 | DI137: -1.750777301e-14 | DJ137: -1.750777301e-14 | DK137: -1.750777301e-14 | DL137: -1.750777301e-14 | DM137: -1.750777301e-14 | DN137: -1.750777301e-14 | DO137: -1.750777301e-14 | DP137: -1.750777301e-14 | DQ137: -1.750777301e-14 | DR137: -1.750777301e-14 | DS137: -1.750777301e-14 | DT137: -1.750777301e-14 | DU137: -1.750777301e-14 | DV137: -1.750777301e-14 | DW137: -1.750777301e-14 | DX137: -1.750777301e-14 | DY137: -1.750777301e-14 | DZ137: -1.750777301e-14 | EA137: -1.750777301e-14 | EB137: -1.750777301e-14 | EC137: -1.750777301e-14 | ED137: -1.750777301e-14 | EE137: -1.750777301e-14 | EF137: -1.750777301e-14 | EG137: -1.750777301e-14 | EH137: -1.750777301e-14 | EI137: =EI145 -> -1.750777301e-14 | EJ137: -1.750777301e-14 | EK137: -1.750777301e-14 | EL137: -1.750777301e-14 | EM137: -1.750777301e-14 | EN137: -1.750777301e-14 | EO137: -1.750777301e-14 | EP137: -1.750777301e-14 | EQ137: -1.750777301e-14 | ER137: -1.750777301e-14 | ES137: -1.750777301e-14 | ET137: -1.750777301e-14 | EU137: -1.750777301e-14 | EV137: -1.750777301e-14 | EW137: -1.750777301e-14 | EX137: -1.750777301e-14 | EY137: -1.750777301e-14 | EZ137: -1.750777301e-14 | FA137: -1.750777301e-14 | FB137: -1.750777301e-14 | FC137: -1.750777301e-14
C138: Remaing Amount to Fund (or Repay) | E138: EUR | J138: =J136-J137 -> 0 | K138: =K136-K137 -> 0 | L138: 0 | M138: 0 | N138: 0 | O138: 0 | P138: 0 | Q138: 0 | R138: 0 | S138: 0 | T138: 0 | U138: 0 | V138: 0 | W138: 0 | X138: 0 | Y138: 0 | Z138: 0 | AA138: 0 | AB138: 0 | AC138: 0 | AD138: 0 | AE138: 0 | AF138: 0 | AG138: 0 | AH138: 0 | AI138: 0 | AJ138: 0 | AK138: 0 | AL138: 0 | AM138: 0 | AN138: 0 | AO138: 0 | AP138: 0 | AQ138: 0 | AR138: 0 | AS138: 42.85714286 | AT138: 21.42857143 | AU138: -18.57142857 | AV138: 22.85714286 | AW138: -14.28571429 | AX138: 27.14285714 | AY138: -18.57142857 | AZ138: 31.42857143 | BA138: -31.42857143 | BB138: 31.42857143 | BC138: -31.42857143 | BD138: 31.42857143 | BE138: -31.42857143 | BF138: 31.42857143 | BG138: -31.42857143 | BH138: 31.42857143 | BI138: -48.57142857 | BJ138: 22.85714286 | BK138: -22.85714286 | BL138: 22.85714286 | BM138: -22.85714286 | BN138: 22.85714286 | BO138: -22.85714286 | BP138: 22.85714286 | BQ138: -22.85714286 | BR138: 22.85714286 | BS138: -22.85714286 | BT138: 22.85714286 | BU138: -22.85714286 | BV138: 22.85714286 | BW138: =BW136-BW137 -> -14.28571429 | BX138: 27.14285714 | BY138: -27.14285714 | BZ138: 27.14285714 | CA138: -27.14285714 | CB138: 27.14285714 | CC138: -27.14285714 | CD138: 27.14285714 | CE138: -27.14285714 | CF138: 27.14285714 | CG138: -27.14285714 | CH138: 27.14285714 | CI138: -27.14285714 | CJ138: 27.14285714 | CK138: -81.42857143 | CL138: -1.750777301e-14 | CM138: 0 | CN138: 0 | CO138: 0 | CP138: 0 | CQ138: 0 | CR138: 0 | CS138: 0 | CT138: 0 | CU138: 0 | CV138: 0 | CW138: 0 | CX138: 0 | CY138: 0 | CZ138: 0 | DA138: 0 | DB138: 0 | DC138: 0 | DD138: 0 | DE138: 0 | DF138: 0 | DG138: 0 | DH138: 0 | DI138: 0 | DJ138: 0 | DK138: 0 | DL138: 0 | DM138: 0 | DN138: 0 | DO138: 0 | DP138: 0 | DQ138: 0 | DR138: 0 | DS138: 0 | DT138: 0 | DU138: 0 | DV138: 0 | DW138: 0 | DX138: 0 | DY138: 0 | DZ138: 0 | EA138: 0 | EB138: 0 | EC138: 0 | ED138: 0 | EE138: 0 | EF138: 0 | EG138: 0 | EH138: 0 | EI138: =EI136-EI137 -> 0 | EJ138: 0 | EK138: 0 | EL138: 0 | EM138: 0 | EN138: 0 | EO138: 0 | EP138: 0 | EQ138: 0 | ER138: 0 | ES138: 0 | ET138: 0 | EU138: 0 | EV138: 0 | EW138: 0 | EX138: 0 | EY138: 0 | EZ138: 0 | FA138: 0 | FB138: 0 | FC138: 1.750777301e-14
C140: DSRA Funding Allocation
D141: Pre-COD | E141: EUR | J141: =J138*J4 -> 0 | K141: =K138*K4 -> 0 | L141: 0 | M141: 0 | N141: 0 | O141: 0 | P141: 0 | Q141: 0 | R141: 0 | S141: 0 | T141: 0 | U141: 0 | V141: 0 | W141: 0 | X141: 0 | Y141: 0 | Z141: 0 | AA141: 0 | AB141: 0 | AC141: 0 | AD141: 0 | AE141: 0 | AF141: 0 | AG141: 0 | AH141: 0 | AI141: 0 | AJ141: 0 | AK141: 0 | AL141: 0 | AM141: 0 | AN141: 0 | AO141: 0 | AP141: 0 | AQ141: 0 | AR141: 0 | AS141: 42.85714286 | AT141: 0 | AU141: 0 | AV141: 0 | AW141: 0 | AX141: 0 | AY141: 0 | AZ141: 0 | BA141: 0 | BB141: 0 | BC141: 0 | BD141: 0 | BE141: 0 | BF141: 0 | BG141: 0 | BH141: 0 | BI141: 0 | BJ141: 0 | BK141: 0 | BL141: 0 | BM141: 0 | BN141: 0 | BO141: 0 | BP141: 0 | BQ141: 0 | BR141: 0 | BS141: 0 | BT141: 0 | BU141: 0 | BV141: 0 | BW141: =BW138*BW4 -> 0 | BX141: 0 | BY141: 0 | BZ141: 0 | CA141: 0 | CB141: 0 | CC141: 0 | CD141: 0 | CE141: 0 | CF141: 0 | CG141: 0 | CH141: 0 | CI141: 0 | CJ141: 0 | CK141: 0 | CL141: 0 | CM141: 0 | CN141: 0 | CO141: 0 | CP141: 0 | CQ141: 0 | CR141: 0 | CS141: 0 | CT141: 0 | CU141: 0 | CV141: 0 | CW141: 0 | CX141: 0 | CY141: 0 | CZ141: 0 | DA141: 0 | DB141: 0 | DC141: 0 | DD141: 0 | DE141: 0 | DF141: 0 | DG141: 0 | DH141: 0 | DI141: 0 | DJ141: 0 | DK141: 0 | DL141: 0 | DM141: 0 | DN141: 0 | DO141: 0 | DP141: 0 | DQ141: 0 | DR141: 0 | DS141: 0 | DT141: 0 | DU141: 0 | DV141: 0 | DW141: 0 | DX141: 0 | DY141: 0 | DZ141: 0 | EA141: 0 | EB141: 0 | EC141: 0 | ED141: 0 | EE141: 0 | EF141: 0 | EG141: 0 | EH141: 0 | EI141: =EI138*EI4 -> 0 | EJ141: 0 | EK141: 0 | EL141: 0 | EM141: 0 | EN141: 0 | EO141: 0 | EP141: 0 | EQ141: 0 | ER141: 0 | ES141: 0 | ET141: 0 | EU141: 0 | EV141: 0 | EW141: 0 | EX141: 0 | EY141: 0 | EZ141: 0 | FA141: 0 | FB141: 0 | FC141: 0
D142: Post-COD | E142: EUR | J142: =J138*J8 -> 0 | K142: =K138*K8 -> 0 | L142: 0 | M142: 0 | N142: 0 | O142: 0 | P142: 0 | Q142: 0 | R142: 0 | S142: 0 | T142: 0 | U142: 0 | V142: 0 | W142: 0 | X142: 0 | Y142: 0 | Z142: 0 | AA142: 0 | AB142: 0 | AC142: 0 | AD142: 0 | AE142: 0 | AF142: 0 | AG142: 0 | AH142: 0 | AI142: 0 | AJ142: 0 | AK142: 0 | AL142: 0 | AM142: 0 | AN142: 0 | AO142: 0 | AP142: 0 | AQ142: 0 | AR142: 0 | AS142: 0 | AT142: 21.42857143 | AU142: -18.57142857 | AV142: 22.85714286 | AW142: -14.28571429 | AX142: 27.14285714 | AY142: -18.57142857 | AZ142: 31.42857143 | BA142: -31.42857143 | BB142: 31.42857143 | BC142: -31.42857143 | BD142: 31.42857143 | BE142: -31.42857143 | BF142: 31.42857143 | BG142: -31.42857143 | BH142: 31.42857143 | BI142: -48.57142857 | BJ142: 22.85714286 | BK142: -22.85714286 | BL142: 22.85714286 | BM142: -22.85714286 | BN142: 22.85714286 | BO142: -22.85714286 | BP142: 22.85714286 | BQ142: -22.85714286 | BR142: 22.85714286 | BS142: -22.85714286 | BT142: 22.85714286 | BU142: -22.85714286 | BV142: 22.85714286 | BW142: =BW138*BW8 -> -14.28571429 | BX142: 27.14285714 | BY142: -27.14285714 | BZ142: 27.14285714 | CA142: -27.14285714 | CB142: 27.14285714 | CC142: -27.14285714 | CD142: 27.14285714 | CE142: -27.14285714 | CF142: 27.14285714 | CG142: -27.14285714 | CH142: 27.14285714 | CI142: -27.14285714 | CJ142: 27.14285714 | CK142: -81.42857143 | CL142: -1.750777301e-14 | CM142: 0 | CN142: 0 | CO142: 0 | CP142: 0 | CQ142: 0 | CR142: 0 | CS142: 0 | CT142: 0 | CU142: 0 | CV142: 0 | CW142: 0 | CX142: 0 | CY142: 0 | CZ142: 0 | DA142: 0 | DB142: 0 | DC142: 0 | DD142: 0 | DE142: 0 | DF142: 0 | DG142: 0 | DH142: 0 | DI142: 0 | DJ142: 0 | DK142: 0 | DL142: 0 | DM142: 0 | DN142: 0 | DO142: 0 | DP142: 0 | DQ142: 0 | DR142: 0 | DS142: 0 | DT142: 0 | DU142: 0 | DV142: 0 | DW142: 0 | DX142: 0 | DY142: 0 | DZ142: 0 | EA142: 0 | EB142: 0 | EC142: 0 | ED142: 0 | EE142: 0 | EF142: 0 | EG142: 0 | EH142: 0 | EI142: =EI138*EI8 -> 0 | EJ142: 0 | EK142: 0 | EL142: 0 | EM142: 0 | EN142: 0 | EO142: 0 | EP142: 0 | EQ142: 0 | ER142: 0 | ES142: 0 | ET142: 0 | EU142: 0 | EV142: 0 | EW142: 0 | EX142: 0 | EY142: 0 | EZ142: 0 | FA142: 0 | FB142: 0 | FC142: 0
C144: DSRA Balance
D145: Opeing Balance | E145: EUR | J145: =I148 -> 0 | K145: =J148 -> 0 | L145: 0 | M145: 0 | N145: 0 | O145: 0 | P145: 0 | Q145: 0 | R145: 0 | S145: 0 | T145: 0 | U145: 0 | V145: 0 | W145: 0 | X145: 0 | Y145: 0 | Z145: 0 | AA145: 0 | AB145: 0 | AC145: 0 | AD145: 0 | AE145: 0 | AF145: 0 | AG145: 0 | AH145: 0 | AI145: 0 | AJ145: 0 | AK145: 0 | AL145: 0 | AM145: 0 | AN145: 0 | AO145: 0 | AP145: 0 | AQ145: 0 | AR145: 0 | AS145: 0 | AT145: 42.85714286 | AU145: 64.28571429 | AV145: 45.71428571 | AW145: 68.57142857 | AX145: 54.28571429 | AY145: 81.42857143 | AZ145: 62.85714286 | BA145: 94.28571429 | BB145: 62.85714286 | BC145: 94.28571429 | BD145: 62.85714286 | BE145: 94.28571429 | BF145: 62.85714286 | BG145: 94.28571429 | BH145: 62.85714286 | BI145: 94.28571429 | BJ145: 45.71428571 | BK145: 68.57142857 | BL145: 45.71428571 | BM145: 68.57142857 | BN145: 45.71428571 | BO145: 68.57142857 | BP145: 45.71428571 | BQ145: 68.57142857 | BR145: 45.71428571 | BS145: 68.57142857 | BT145: 45.71428571 | BU145: 68.57142857 | BV145: 45.71428571 | BW145: =BV148 -> 68.57142857 | BX145: 54.28571429 | BY145: 81.42857143 | BZ145: 54.28571429 | CA145: 81.42857143 | CB145: 54.28571429 | CC145: 81.42857143 | CD145: 54.28571429 | CE145: 81.42857143 | CF145: 54.28571429 | CG145: 81.42857143 | CH145: 54.28571429 | CI145: 81.42857143 | CJ145: 54.28571429 | CK145: 81.42857143 | CL145: 0 | CM145: -1.750777301e-14 | CN145: -1.750777301e-14 | CO145: -1.750777301e-14 | CP145: -1.750777301e-14 | CQ145: -1.750777301e-14 | CR145: -1.750777301e-14 | CS145: -1.750777301e-14 | CT145: -1.750777301e-14 | CU145: -1.750777301e-14 | CV145: -1.750777301e-14 | CW145: -1.750777301e-14 | CX145: -1.750777301e-14 | CY145: -1.750777301e-14 | CZ145: -1.750777301e-14 | DA145: -1.750777301e-14 | DB145: -1.750777301e-14 | DC145: -1.750777301e-14 | DD145: -1.750777301e-14 | DE145: -1.750777301e-14 | DF145: -1.750777301e-14 | DG145: -1.750777301e-14 | DH145: -1.750777301e-14 | DI145: -1.750777301e-14 | DJ145: -1.750777301e-14 | DK145: -1.750777301e-14 | DL145: -1.750777301e-14 | DM145: -1.750777301e-14 | DN145: -1.750777301e-14 | DO145: -1.750777301e-14 | DP145: -1.750777301e-14 | DQ145: -1.750777301e-14 | DR145: -1.750777301e-14 | DS145: -1.750777301e-14 | DT145: -1.750777301e-14 | DU145: -1.750777301e-14 | DV145: -1.750777301e-14 | DW145: -1.750777301e-14 | DX145: -1.750777301e-14 | DY145: -1.750777301e-14 | DZ145: -1.750777301e-14 | EA145: -1.750777301e-14 | EB145: -1.750777301e-14 | EC145: -1.750777301e-14 | ED145: -1.750777301e-14 | EE145: -1.750777301e-14 | EF145: -1.750777301e-14 | EG145: -1.750777301e-14 | EH145: -1.750777301e-14 | EI145: =EH148 -> -1.750777301e-14 | EJ145: -1.750777301e-14 | EK145: -1.750777301e-14 | EL145: -1.750777301e-14 | EM145: -1.750777301e-14 | EN145: -1.750777301e-14 | EO145: -1.750777301e-14 | EP145: -1.750777301e-14 | EQ145: -1.750777301e-14 | ER145: -1.750777301e-14 | ES145: -1.750777301e-14 | ET145: -1.750777301e-14 | EU145: -1.750777301e-14 | EV145: -1.750777301e-14 | EW145: -1.750777301e-14 | EX145: -1.750777301e-14 | EY145: -1.750777301e-14 | EZ145: -1.750777301e-14 | FA145: -1.750777301e-14 | FB145: -1.750777301e-14 | FC145: -1.750777301e-14
D146: Add: Funded Pre-COD | E146: EUR | J146: =J141 -> 0 | K146: =K141 -> 0 | L146: 0 | M146: 0 | N146: 0 | O146: 0 | P146: 0 | Q146: 0 | R146: 0 | S146: 0 | T146: 0 | U146: 0 | V146: 0 | W146: 0 | X146: 0 | Y146: 0 | Z146: 0 | AA146: 0 | AB146: 0 | AC146: 0 | AD146: 0 | AE146: 0 | AF146: 0 | AG146: 0 | AH146: 0 | AI146: 0 | AJ146: 0 | AK146: 0 | AL146: 0 | AM146: 0 | AN146: 0 | AO146: 0 | AP146: 0 | AQ146: 0 | AR146: 0 | AS146: 42.85714286 | AT146: 0 | AU146: 0 | AV146: 0 | AW146: 0 | AX146: 0 | AY146: 0 | AZ146: 0 | BA146: 0 | BB146: 0 | BC146: 0 | BD146: 0 | BE146: 0 | BF146: 0 | BG146: 0 | BH146: 0 | BI146: 0 | BJ146: 0 | BK146: 0 | BL146: 0 | BM146: 0 | BN146: 0 | BO146: 0 | BP146: 0 | BQ146: 0 | BR146: 0 | BS146: 0 | BT146: 0 | BU146: 0 | BV146: 0 | BW146: =BW141 -> 0 | BX146: 0 | BY146: 0 | BZ146: 0 | CA146: 0 | CB146: 0 | CC146: 0 | CD146: 0 | CE146: 0 | CF146: 0 | CG146: 0 | CH146: 0 | CI146: 0 | CJ146: 0 | CK146: 0 | CL146: 0 | CM146: 0 | CN146: 0 | CO146: 0 | CP146: 0 | CQ146: 0 | CR146: 0 | CS146: 0 | CT146: 0 | CU146: 0 | CV146: 0 | CW146: 0 | CX146: 0 | CY146: 0 | CZ146: 0 | DA146: 0 | DB146: 0 | DC146: 0 | DD146: 0 | DE146: 0 | DF146: 0 | DG146: 0 | DH146: 0 | DI146: 0 | DJ146: 0 | DK146: 0 | DL146: 0 | DM146: 0 | DN146: 0 | DO146: 0 | DP146: 0 | DQ146: 0 | DR146: 0 | DS146: 0 | DT146: 0 | DU146: 0 | DV146: 0 | DW146: 0 | DX146: 0 | DY146: 0 | DZ146: 0 | EA146: 0 | EB146: 0 | EC146: 0 | ED146: 0 | EE146: 0 | EF146: 0 | EG146: 0 | EH146: 0 | EI146: =EI141 -> 0 | EJ146: 0 | EK146: 0 | EL146: 0 | EM146: 0 | EN146: 0 | EO146: 0 | EP146: 0 | EQ146: 0 | ER146: 0 | ES146: 0 | ET146: 0 | EU146: 0 | EV146: 0 | EW146: 0 | EX146: 0 | EY146: 0 | EZ146: 0 | FA146: 0 | FB146: 0 | FC146: 0
D147: Add: Funding Post-COD | E147: EUR | J147: =J142 -> 0 | K147: =K142 -> 0 | L147: 0 | M147: 0 | N147: 0 | O147: 0 | P147: 0 | Q147: 0 | R147: 0 | S147: 0 | T147: 0 | U147: 0 | V147: 0 | W147: 0 | X147: 0 | Y147: 0 | Z147: 0 | AA147: 0 | AB147: 0 | AC147: 0 | AD147: 0 | AE147: 0 | AF147: 0 | AG147: 0 | AH147: 0 | AI147: 0 | AJ147: 0 | AK147: 0 | AL147: 0 | AM147: 0 | AN147: 0 | AO147: 0 | AP147: 0 | AQ147: 0 | AR147: 0 | AS147: 0 | AT147: 21.42857143 | AU147: -18.57142857 | AV147: 22.85714286 | AW147: -14.28571429 | AX147: 27.14285714 | AY147: -18.57142857 | AZ147: 31.42857143 | BA147: -31.42857143 | BB147: 31.42857143 | BC147: -31.42857143 | BD147: 31.42857143 | BE147: -31.42857143 | BF147: 31.42857143 | BG147: -31.42857143 | BH147: 31.42857143 | BI147: -48.57142857 | BJ147: 22.85714286 | BK147: -22.85714286 | BL147: 22.85714286 | BM147: -22.85714286 | BN147: 22.85714286 | BO147: -22.85714286 | BP147: 22.85714286 | BQ147: -22.85714286 | BR147: 22.85714286 | BS147: -22.85714286 | BT147: 22.85714286 | BU147: -22.85714286 | BV147: 22.85714286 | BW147: =BW142 -> -14.28571429 | BX147: 27.14285714 | BY147: -27.14285714 | BZ147: 27.14285714 | CA147: -27.14285714 | CB147: 27.14285714 | CC147: -27.14285714 | CD147: 27.14285714 | CE147: -27.14285714 | CF147: 27.14285714 | CG147: -27.14285714 | CH147: 27.14285714 | CI147: -27.14285714 | CJ147: 27.14285714 | CK147: -81.42857143 | CL147: -1.750777301e-14 | CM147: 0 | CN147: 0 | CO147: 0 | CP147: 0 | CQ147: 0 | CR147: 0 | CS147: 0 | CT147: 0 | CU147: 0 | CV147: 0 | CW147: 0 | CX147: 0 | CY147: 0 | CZ147: 0 | DA147: 0 | DB147: 0 | DC147: 0 | DD147: 0 | DE147: 0 | DF147: 0 | DG147: 0 | DH147: 0 | DI147: 0 | DJ147: 0 | DK147: 0 | DL147: 0 | DM147: 0 | DN147: 0 | DO147: 0 | DP147: 0 | DQ147: 0 | DR147: 0 | DS147: 0 | DT147: 0 | DU147: 0 | DV147: 0 | DW147: 0 | DX147: 0 | DY147: 0 | DZ147: 0 | EA147: 0 | EB147: 0 | EC147: 0 | ED147: 0 | EE147: 0 | EF147: 0 | EG147: 0 | EH147: 0 | EI147: =EI142 -> 0 | EJ147: 0 | EK147: 0 | EL147: 0 | EM147: 0 | EN147: 0 | EO147: 0 | EP147: 0 | EQ147: 0 | ER147: 0 | ES147: 0 | ET147: 0 | EU147: 0 | EV147: 0 | EW147: 0 | EX147: 0 | EY147: 0 | EZ147: 0 | FA147: 0 | FB147: 0 | FC147: 0
D148: Closing Balance | E148: EUR | J148: =J145+J146+J147 -> 0 | K148: =K145+K146+K147 -> 0 | L148: 0 | M148: 0 | N148: 0 | O148: 0 | P148: 0 | Q148: 0 | R148: 0 | S148: 0 | T148: 0 | U148: 0 | V148: 0 | W148: 0 | X148: 0 | Y148: 0 | Z148: 0 | AA148: 0 | AB148: 0 | AC148: 0 | AD148: 0 | AE148: 0 | AF148: 0 | AG148: 0 | AH148: 0 | AI148: 0 | AJ148: 0 | AK148: 0 | AL148: 0 | AM148: 0 | AN148: 0 | AO148: 0 | AP148: 0 | AQ148: 0 | AR148: 0 | AS148: 42.85714286 | AT148: 64.28571429 | AU148: 45.71428571 | AV148: 68.57142857 | AW148: 54.28571429 | AX148: 81.42857143 | AY148: 62.85714286 | AZ148: 94.28571429 | BA148: 62.85714286 | BB148: 94.28571429 | BC148: 62.85714286 | BD148: 94.28571429 | BE148: 62.85714286 | BF148: 94.28571429 | BG148: 62.85714286 | BH148: 94.28571429 | BI148: 45.71428571 | BJ148: 68.57142857 | BK148: 45.71428571 | BL148: 68.57142857 | BM148: 45.71428571 | BN148: 68.57142857 | BO148: 45.71428571 | BP148: 68.57142857 | BQ148: 45.71428571 | BR148: 68.57142857 | BS148: 45.71428571 | BT148: 68.57142857 | BU148: 45.71428571 | BV148: 68.57142857 | BW148: =BW145+BW146+BW147 -> 54.28571429 | BX148: 81.42857143 | BY148: 54.28571429 | BZ148: 81.42857143 | CA148: 54.28571429 | CB148: 81.42857143 | CC148: 54.28571429 | CD148: 81.42857143 | CE148: 54.28571429 | CF148: 81.42857143 | CG148: 54.28571429 | CH148: 81.42857143 | CI148: 54.28571429 | CJ148: 81.42857143 | CK148: 0 | CL148: -1.750777301e-14 | CM148: -1.750777301e-14 | CN148: -1.750777301e-14 | CO148: -1.750777301e-14 | CP148: -1.750777301e-14 | CQ148: -1.750777301e-14 | CR148: -1.750777301e-14 | CS148: -1.750777301e-14 | CT148: -1.750777301e-14 | CU148: -1.750777301e-14 | CV148: -1.750777301e-14 | CW148: -1.750777301e-14 | CX148: -1.750777301e-14 | CY148: -1.750777301e-14 | CZ148: -1.750777301e-14 | DA148: -1.750777301e-14 | DB148: -1.750777301e-14 | DC148: -1.750777301e-14 | DD148: -1.750777301e-14 | DE148: -1.750777301e-14 | DF148: -1.750777301e-14 | DG148: -1.750777301e-14 | DH148: -1.750777301e-14 | DI148: -1.750777301e-14 | DJ148: -1.750777301e-14 | DK148: -1.750777301e-14 | DL148: -1.750777301e-14 | DM148: -1.750777301e-14 | DN148: -1.750777301e-14 | DO148: -1.750777301e-14 | DP148: -1.750777301e-14 | DQ148: -1.750777301e-14 | DR148: -1.750777301e-14 | DS148: -1.750777301e-14 | DT148: -1.750777301e-14 | DU148: -1.750777301e-14 | DV148: -1.750777301e-14 | DW148: -1.750777301e-14 | DX148: -1.750777301e-14 | DY148: -1.750777301e-14 | DZ148: -1.750777301e-14 | EA148: -1.750777301e-14 | EB148: -1.750777301e-14 | EC148: -1.750777301e-14 | ED148: -1.750777301e-14 | EE148: -1.750777301e-14 | EF148: -1.750777301e-14 | EG148: -1.750777301e-14 | EH148: -1.750777301e-14 | EI148: =EI145+EI146+EI147 -> -1.750777301e-14 | EJ148: -1.750777301e-14 | EK148: -1.750777301e-14 | EL148: -1.750777301e-14 | EM148: -1.750777301e-14 | EN148: -1.750777301e-14 | EO148: -1.750777301e-14 | EP148: -1.750777301e-14 | EQ148: -1.750777301e-14 | ER148: -1.750777301e-14 | ES148: -1.750777301e-14 | ET148: -1.750777301e-14 | EU148: -1.750777301e-14 | EV148: -1.750777301e-14 | EW148: -1.750777301e-14 | EX148: -1.750777301e-14 | EY148: -1.750777301e-14 | EZ148: -1.750777301e-14 | FA148: -1.750777301e-14 | FB148: -1.750777301e-14 | FC148: -1.750777301e-14
B150: Cash Flow Waterfall
C151: EBITDA | E151: EUR | J151: =J22 -> 0 | K151: =K22 -> 0 | L151: 0 | M151: 0 | N151: 0 | O151: 0 | P151: 0 | Q151: 0 | R151: 0 | S151: 0 | T151: 0 | U151: 0 | V151: 0 | W151: 0 | X151: 0 | Y151: 0 | Z151: 0 | AA151: 0 | AB151: 0 | AC151: 0 | AD151: 0 | AE151: 0 | AF151: 0 | AG151: 0 | AH151: 0 | AI151: 0 | AJ151: 0 | AK151: 0 | AL151: 0 | AM151: 0 | AN151: 0 | AO151: 0 | AP151: 0 | AQ151: 0 | AR151: 0 | AS151: 0 | AT151: 60 | AU151: 90 | AV151: 64 | AW151: 96 | AX151: 76 | AY151: 114 | AZ151: 88 | BA151: 132 | BB151: 88 | BC151: 132 | BD151: 88 | BE151: 132 | BF151: 88 | BG151: 132 | BH151: 88 | BI151: 132 | BJ151: 64 | BK151: 96 | BL151: 64 | BM151: 96 | BN151: 64 | BO151: 96 | BP151: 64 | BQ151: 96 | BR151: 64 | BS151: 96 | BT151: 64 | BU151: 96 | BV151: 64 | BW151: =BW22 -> 96 | BX151: 76 | BY151: 114 | BZ151: 76 | CA151: 114 | CB151: 76 | CC151: 114 | CD151: 76 | CE151: 114 | CF151: 76 | CG151: 114 | CH151: 76 | CI151: 114 | CJ151: 76 | CK151: 114 | CL151: 76 | CM151: 114 | CN151: 76 | CO151: 114 | CP151: 76 | CQ151: 114 | CR151: 76 | CS151: 114 | CT151: 76 | CU151: 114 | CV151: 76 | CW151: 114 | CX151: 76 | CY151: 114 | CZ151: 80 | DA151: 120 | DB151: 0 | DC151: 0 | DD151: 0 | DE151: 0 | DF151: 0 | DG151: 0 | DH151: 0 | DI151: 0 | DJ151: 0 | DK151: 0 | DL151: 0 | DM151: 0 | DN151: 0 | DO151: 0 | DP151: 0 | DQ151: 0 | DR151: 0 | DS151: 0 | DT151: 0 | DU151: 0 | DV151: 0 | DW151: 0 | DX151: 0 | DY151: 0 | DZ151: 0 | EA151: 0 | EB151: 0 | EC151: 0 | ED151: 0 | EE151: 0 | EF151: 0 | EG151: 0 | EH151: 0 | EI151: =EI22 -> 0 | EJ151: 0 | EK151: 0 | EL151: 0 | EM151: 0 | EN151: 0 | EO151: 0 | EP151: 0 | EQ151: 0 | ER151: 0 | ES151: 0 | ET151: 0 | EU151: 0 | EV151: 0 | EW151: 0 | EX151: 0 | EY151: 0 | EZ151: 0 | FA151: 0 | FB151: 0 | FC151: 0
C152: Less: Taxes (Blank/Zero) | E152: EUR
C153: Less: WC Changes (Blank/Zero) | E153: EUR
C154: Less: DSRA L/C (Blank/Zero) | E154: EUR
C155: CFADS | E155: EUR | J155: =J151 -> 0 | K155: =K151 -> 0 | L155: 0 | M155: 0 | N155: 0 | O155: 0 | P155: 0 | Q155: 0 | R155: 0 | S155: 0 | T155: 0 | U155: 0 | V155: 0 | W155: 0 | X155: 0 | Y155: 0 | Z155: 0 | AA155: 0 | AB155: 0 | AC155: 0 | AD155: 0 | AE155: 0 | AF155: 0 | AG155: 0 | AH155: 0 | AI155: 0 | AJ155: 0 | AK155: 0 | AL155: 0 | AM155: 0 | AN155: 0 | AO155: 0 | AP155: 0 | AQ155: 0 | AR155: 0 | AS155: 0 | AT155: 60 | AU155: 90 | AV155: 64 | AW155: 96 | AX155: 76 | AY155: 114 | AZ155: 88 | BA155: 132 | BB155: 88 | BC155: 132 | BD155: 88 | BE155: 132 | BF155: 88 | BG155: 132 | BH155: 88 | BI155: 132 | BJ155: 64 | BK155: 96 | BL155: 64 | BM155: 96 | BN155: 64 | BO155: 96 | BP155: 64 | BQ155: 96 | BR155: 64 | BS155: 96 | BT155: 64 | BU155: 96 | BV155: 64 | BW155: =BW151 -> 96 | BX155: 76 | BY155: 114 | BZ155: 76 | CA155: 114 | CB155: 76 | CC155: 114 | CD155: 76 | CE155: 114 | CF155: 76 | CG155: 114 | CH155: 76 | CI155: 114 | CJ155: 76 | CK155: 114 | CL155: 76 | CM155: 114 | CN155: 76 | CO155: 114 | CP155: 76 | CQ155: 114 | CR155: 76 | CS155: 114 | CT155: 76 | CU155: 114 | CV155: 76 | CW155: 114 | CX155: 76 | CY155: 114 | CZ155: 80 | DA155: 120 | DB155: 0 | DC155: 0 | DD155: 0 | DE155: 0 | DF155: 0 | DG155: 0 | DH155: 0 | DI155: 0 | DJ155: 0 | DK155: 0 | DL155: 0 | DM155: 0 | DN155: 0 | DO155: 0 | DP155: 0 | DQ155: 0 | DR155: 0 | DS155: 0 | DT155: 0 | DU155: 0 | DV155: 0 | DW155: 0 | DX155: 0 | DY155: 0 | DZ155: 0 | EA155: 0 | EB155: 0 | EC155: 0 | ED155: 0 | EE155: 0 | EF155: 0 | EG155: 0 | EH155: 0 | EI155: =EI151 -> 0 | EJ155: 0 | EK155: 0 | EL155: 0 | EM155: 0 | EN155: 0 | EO155: 0 | EP155: 0 | EQ155: 0 | ER155: 0 | ES155: 0 | ET155: 0 | EU155: 0 | EV155: 0 | EW155: 0 | EX155: 0 | EY155: 0 | EZ155: 0 | FA155: 0 | FB155: 0 | FC155: 0
C157: Less: Interest | E157: EUR | J157: =J122 -> 0 | K157: =K122 -> 0 | L157: 0 | M157: 0 | N157: 0 | O157: 0 | P157: 0 | Q157: 0 | R157: 0 | S157: 0 | T157: 0 | U157: 0 | V157: 0 | W157: 0 | X157: 0 | Y157: 0 | Z157: 0 | AA157: 0 | AB157: 0 | AC157: 0 | AD157: 0 | AE157: 0 | AF157: 0 | AG157: 0 | AH157: 0 | AI157: 0 | AJ157: 0 | AK157: 0 | AL157: 0 | AM157: 0 | AN157: 0 | AO157: 0 | AP157: 0 | AQ157: 0 | AR157: 0 | AS157: 0 | AT157: 36.08049017 | AU157: 35.95512209 | AV157: 35.43100614 | AW157: 35.24076547 | AX157: 35.09204209 | AY157: 34.73216074 | AZ157: 33.85660304 | BA157: 33.31284292 | BB157: 32.5985296 | BC157: 32.02361595 | BD157: 30.84063608 | BE157: 30.23232245 | BF157: 29.39708838 | BG157: 28.75298233 | BH157: 27.49147724 | BI157: 26.81068817 | BJ157: 25.51179392 | BK157: 25.12289595 | BL157: 24.2865117 | BM157: 23.87402705 | BN157: 23.01360207 | BO157: 22.57661391 | BP157: 21.69121373 | BQ157: 21.22876959 | BR157: 20.31742341 | BS157: 19.82853381 | BT157: 18.89023308 | BU157: 18.37387007 | BV157: 17.40756707 | BW157: =BW122 -> 16.86266274 | BX157: 15.86726899 | BY157: 15.12771392 | BZ157: 13.85142242 | CA157: 13.0730623 | CB157: 11.75721875 | CC157: 10.93854521 | CD157: 9.581612202 | CE157: 8.721058237 | CF157: 7.321438608 | CG157: 6.417376301 | CH157: 4.973410795 | CI157: 4.024148953 | CJ157: 2.53411382 | CK157: 1.537895511 | CL157: -7.386091738e-15 | CM157: -7.191249374e-15 | CN157: -6.992656294e-15 | CO157: -6.790240297e-15 | CP157: -6.583927792e-15 | CQ157: -6.373643772e-15 | CR157: -6.159311784e-15 | CS157: -5.940853905e-15 | CT157: -5.718190713e-15 | CU157: -5.491241254e-15 | CV157: -5.259923017e-15 | CW157: -5.024151905e-15 | CX157: -4.783842199e-15 | CY157: -4.538906531e-15 | CZ157: -4.289255851e-15 | DA157: -4.034799396e-15 | DB157: -3.775444653e-15 | DC157: -3.511097333e-15 | DD157: -3.241661326e-15 | DE157: -2.967038676e-15 | DF157: -2.68712954e-15 | DG157: -2.401832153e-15 | DH157: -2.111042792e-15 | DI157: -1.814655735e-15 | DJ157: -1.512563228e-15 | DK157: -1.204655439e-15 | DL157: -8.90820426e-16 | DM157: -5.709440888e-16 | DN157: -2.449101321e-16 | DO157: 8.739997829e-17 | DP157: 4.261070583e-16 | DQ157: 7.713342496e-16 | DR157: 1.123207064e-15 | DS157: 1.481853431e-15 | DT157: 1.84740374e-15 | DU157: 2.219990892e-15 | DV157: 2.599750347e-15 | DW157: 2.986820172e-15 | DX157: 3.381341091e-15 | DY157: 3.783456537e-15 | DZ157: 4.193312706e-15 | EA157: 4.611058606e-15 | EB157: 5.036846114e-15 | EC157: 5.470830032e-15 | ED157: 5.913168141e-15 | EE157: 6.364021258e-15 | EF157: 6.823553298e-15 | EG157: 7.291931329e-15 | EH157: 7.769325638e-15 | EI157: =EI122 -> 8.255909787e-15 | EJ157: 8.75186068e-15 | EK157: 9.257358629e-15 | EL157: 9.772587413e-15 | EM157: 1.029773435e-14 | EN157: 1.083299037e-14 | EO157: 1.137855006e-14 | EP157: 1.193461178e-14 | EQ157: 1.250137769e-14 | ER157: 1.307905384e-14 | ES157: 1.366785026e-14 | ET157: 1.4267981e-14 | EU157: 1.487966427e-14 | EV157: 1.550312244e-14 | EW157: 1.613858217e-14 | EX157: 1.678627451e-14 | EY157: 1.744643493e-14 | EZ157: 1.811930343e-14 | FA157: 1.880512465e-14 | FB157: 1.950414793e-14 | FC157: 2.021662741e-14
C158: Less: Repayment | E158: EUR | J158: =J114 -> 0 | K158: =K114 -> 0 | L158: 0 | M158: 0 | N158: 0 | O158: 0 | P158: 0 | Q158: 0 | R158: 0 | S158: 0 | T158: 0 | U158: 0 | V158: 0 | W158: 0 | X158: 0 | Y158: 0 | Z158: 0 | AA158: 0 | AB158: 0 | AC158: 0 | AD158: 0 | AE158: 0 | AF158: 0 | AG158: 0 | AH158: 0 | AI158: 0 | AJ158: 0 | AK158: 0 | AL158: 0 | AM158: 0 | AN158: 0 | AO158: 0 | AP158: 0 | AQ158: 0 | AR158: 0 | AS158: 0 | AT158: 6.776652688 | AU158: 28.33059219 | AV158: 10.28327958 | AW158: 33.33066311 | AX158: 19.19367219 | AY158: 46.69641069 | AZ158: 29.00053982 | BA158: 60.97287137 | BB158: 30.25861326 | BC158: 62.26209834 | BD158: 32.01650678 | BE158: 64.05339183 | BF158: 33.46005448 | BG158: 65.53273196 | BH158: 35.36566562 | BI158: 67.47502611 | BJ158: 20.20249179 | BK158: 43.44853262 | BL158: 21.42777401 | BM158: 44.69740152 | BN158: 22.70068364 | BO158: 45.99481466 | BP158: 24.02307198 | BQ158: 47.34265898 | BR158: 25.39686231 | BS158: 48.74289476 | BT158: 26.82405263 | BU158: 50.1975585 | BV158: 28.30671864 | BW158: =BW114 -> 51.70876583 | BX158: 38.41844529 | BY158: 66.30085751 | BZ158: 40.43429187 | CA158: 68.35550913 | CB158: 42.52849554 | CC158: 70.49002622 | CD158: 44.70410208 | CE158: 72.70751319 | CF158: 46.96427568 | CG158: 75.01119513 | CH158: 49.31230349 | CI158: 77.40442248 | CJ158: 51.75160047 | CK158: 79.89067592 | CL158: -1.012168127e-14 | CM158: -1.031652364e-14 | CN158: -1.051511672e-14 | CO158: -1.071753271e-14 | CP158: -1.092384522e-14 | CQ158: -1.113412924e-14 | CR158: -1.134846123e-14 | CS158: -1.15669191e-14 | CT158: -1.17895823e-14 | CU158: -1.201653176e-14 | CV158: -1.224784999e-14 | CW158: -1.24836211e-14 | CX158: -1.272393081e-14 | CY158: -1.296886648e-14 | CZ158: -1.321851716e-14 | DA158: -1.347297361e-14 | DB158: -1.373232836e-14 | DC158: -1.399667568e-14 | DD158: -1.426611168e-14 | DE158: -1.454073433e-14 | DF158: -1.482064347e-14 | DG158: -1.510594086e-14 | DH158: -1.539673022e-14 | DI158: -1.569311727e-14 | DJ158: -1.599520978e-14 | DK158: -1.630311757e-14 | DL158: -1.661695258e-14 | DM158: -1.693682892e-14 | DN158: -1.726286288e-14 | DO158: -1.759517299e-14 | DP158: -1.793388007e-14 | DQ158: -1.827910726e-14 | DR158: -1.863098007e-14 | DS158: -1.898962644e-14 | DT158: -1.935517675e-14 | DU158: -1.97277639e-14 | DV158: -2.010752336e-14 | DW158: -2.049459318e-14 | DX158: -2.08891141e-14 | DY158: -2.129122955e-14 | DZ158: -2.170108571e-14 | EA158: -2.211883161e-14 | EB158: -2.254461912e-14 | EC158: -2.297860304e-14 | ED158: -2.342094115e-14 | EE158: -2.387179427e-14 | EF158: -2.433132631e-14 | EG158: -2.479970434e-14 | EH158: -2.527709865e-14 | EI158: =EI114 -> -2.57636828e-14 | EJ158: -2.625963369e-14 | EK158: -2.676513164e-14 | EL158: -2.728036042e-14 | EM158: -2.780550736e-14 | EN158: -2.834076338e-14 | EO158: -2.888632307e-14 | EP158: -2.944238479e-14 | EQ158: -3.00091507e-14 | ER158: -3.058682685e-14 | ES158: -3.117562327e-14 | ET158: -3.177575401e-14 | EU158: -3.238743728e-14 | EV158: -3.301089545e-14 | EW158: -3.364635518e-14 | EX158: -3.429404752e-14 | EY158: -3.495420794e-14 | EZ158: -3.562707644e-14 | FA158: -3.631289766e-14 | FB158: -3.701192094e-14 | FC158: -3.772440042e-14
C160: Cash After Debt Service | E160: EUR | J160: =J155-J157-J158 -> 0 | K160: =K155-K157-K158 -> 0 | L160: 0 | M160: 0 | N160: 0 | O160: 0 | P160: 0 | Q160: 0 | R160: 0 | S160: 0 | T160: 0 | U160: 0 | V160: 0 | W160: 0 | X160: 0 | Y160: 0 | Z160: 0 | AA160: 0 | AB160: 0 | AC160: 0 | AD160: 0 | AE160: 0 | AF160: 0 | AG160: 0 | AH160: 0 | AI160: 0 | AJ160: 0 | AK160: 0 | AL160: 0 | AM160: 0 | AN160: 0 | AO160: 0 | AP160: 0 | AQ160: 0 | AR160: 0 | AS160: 0 | AT160: 17.14285714 | AU160: 25.71428571 | AV160: 18.28571429 | AW160: 27.42857143 | AX160: 21.71428571 | AY160: 32.57142857 | AZ160: 25.14285714 | BA160: 37.71428571 | BB160: 25.14285714 | BC160: 37.71428571 | BD160: 25.14285714 | BE160: 37.71428571 | BF160: 25.14285714 | BG160: 37.71428571 | BH160: 25.14285714 | BI160: 37.71428571 | BJ160: 18.28571429 | BK160: 27.42857143 | BL160: 18.28571429 | BM160: 27.42857143 | BN160: 18.28571429 | BO160: 27.42857143 | BP160: 18.28571429 | BQ160: 27.42857143 | BR160: 18.28571429 | BS160: 27.42857143 | BT160: 18.28571429 | BU160: 27.42857143 | BV160: 18.28571429 | BW160: =BW155-BW157-BW158 -> 27.42857143 | BX160: 21.71428571 | BY160: 32.57142857 | BZ160: 21.71428571 | CA160: 32.57142857 | CB160: 21.71428571 | CC160: 32.57142857 | CD160: 21.71428571 | CE160: 32.57142857 | CF160: 21.71428571 | CG160: 32.57142857 | CH160: 21.71428571 | CI160: 32.57142857 | CJ160: 21.71428571 | CK160: 32.57142857 | CL160: 76 | CM160: 114 | CN160: 76 | CO160: 114 | CP160: 76 | CQ160: 114 | CR160: 76 | CS160: 114 | CT160: 76 | CU160: 114 | CV160: 76 | CW160: 114 | CX160: 76 | CY160: 114 | CZ160: 80 | DA160: 120 | DB160: 1.750777301e-14 | DC160: 1.750777301e-14 | DD160: 1.750777301e-14 | DE160: 1.750777301e-14 | DF160: 1.750777301e-14 | DG160: 1.750777301e-14 | DH160: 1.750777301e-14 | DI160: 1.750777301e-14 | DJ160: 1.750777301e-14 | DK160: 1.750777301e-14 | DL160: 1.750777301e-14 | DM160: 1.750777301e-14 | DN160: 1.750777301e-14 | DO160: 1.750777301e-14 | DP160: 1.750777301e-14 | DQ160: 1.750777301e-14 | DR160: 1.750777301e-14 | DS160: 1.750777301e-14 | DT160: 1.750777301e-14 | DU160: 1.750777301e-14 | DV160: 1.750777301e-14 | DW160: 1.750777301e-14 | DX160: 1.750777301e-14 | DY160: 1.750777301e-14 | DZ160: 1.750777301e-14 | EA160: 1.750777301e-14 | EB160: 1.750777301e-14 | EC160: 1.750777301e-14 | ED160: 1.750777301e-14 | EE160: 1.750777301e-14 | EF160: 1.750777301e-14 | EG160: 1.750777301e-14 | EH160: 1.750777301e-14 | EI160: =EI155-EI157-EI158 -> 1.750777301e-14 | EJ160: 1.750777301e-14 | EK160: 1.750777301e-14 | EL160: 1.750777301e-14 | EM160: 1.750777301e-14 | EN160: 1.750777301e-14 | EO160: 1.750777301e-14 | EP160: 1.750777301e-14 | EQ160: 1.750777301e-14 | ER160: 1.750777301e-14 | ES160: 1.750777301e-14 | ET160: 1.750777301e-14 | EU160: 1.750777301e-14 | EV160: 1.750777301e-14 | EW160: 1.750777301e-14 | EX160: 1.750777301e-14 | EY160: 1.750777301e-14 | EZ160: 1.750777301e-14 | FA160: 1.750777301e-14 | FB160: 1.750777301e-14 | FC160: 1.750777301e-14
C162: Add: DSRA Repayment | E162: EUR | J162: =J142 -> 0 | K162: =K142 -> 0 | L162: 0 | M162: 0 | N162: 0 | O162: 0 | P162: 0 | Q162: 0 | R162: 0 | S162: 0 | T162: 0 | U162: 0 | V162: 0 | W162: 0 | X162: 0 | Y162: 0 | Z162: 0 | AA162: 0 | AB162: 0 | AC162: 0 | AD162: 0 | AE162: 0 | AF162: 0 | AG162: 0 | AH162: 0 | AI162: 0 | AJ162: 0 | AK162: 0 | AL162: 0 | AM162: 0 | AN162: 0 | AO162: 0 | AP162: 0 | AQ162: 0 | AR162: 0 | AS162: 0 | AT162: 21.42857143 | AU162: -18.57142857 | AV162: 22.85714286 | AW162: -14.28571429 | AX162: 27.14285714 | AY162: -18.57142857 | AZ162: 31.42857143 | BA162: -31.42857143 | BB162: 31.42857143 | BC162: -31.42857143 | BD162: 31.42857143 | BE162: -31.42857143 | BF162: 31.42857143 | BG162: -31.42857143 | BH162: 31.42857143 | BI162: -48.57142857 | BJ162: 22.85714286 | BK162: -22.85714286 | BL162: 22.85714286 | BM162: -22.85714286 | BN162: 22.85714286 | BO162: -22.85714286 | BP162: 22.85714286 | BQ162: -22.85714286 | BR162: 22.85714286 | BS162: -22.85714286 | BT162: 22.85714286 | BU162: -22.85714286 | BV162: 22.85714286 | BW162: =BW142 -> -14.28571429 | BX162: 27.14285714 | BY162: -27.14285714 | BZ162: 27.14285714 | CA162: -27.14285714 | CB162: 27.14285714 | CC162: -27.14285714 | CD162: 27.14285714 | CE162: -27.14285714 | CF162: 27.14285714 | CG162: -27.14285714 | CH162: 27.14285714 | CI162: -27.14285714 | CJ162: 27.14285714 | CK162: -81.42857143 | CL162: -1.750777301e-14 | CM162: 0 | CN162: 0 | CO162: 0 | CP162: 0 | CQ162: 0 | CR162: 0 | CS162: 0 | CT162: 0 | CU162: 0 | CV162: 0 | CW162: 0 | CX162: 0 | CY162: 0 | CZ162: 0 | DA162: 0 | DB162: 0 | DC162: 0 | DD162: 0 | DE162: 0 | DF162: 0 | DG162: 0 | DH162: 0 | DI162: 0 | DJ162: 0 | DK162: 0 | DL162: 0 | DM162: 0 | DN162: 0 | DO162: 0 | DP162: 0 | DQ162: 0 | DR162: 0 | DS162: 0 | DT162: 0 | DU162: 0 | DV162: 0 | DW162: 0 | DX162: 0 | DY162: 0 | DZ162: 0 | EA162: 0 | EB162: 0 | EC162: 0 | ED162: 0 | EE162: 0 | EF162: 0 | EG162: 0 | EH162: 0 | EI162: =EI142 -> 0 | EJ162: 0 | EK162: 0 | EL162: 0 | EM162: 0 | EN162: 0 | EO162: 0 | EP162: 0 | EQ162: 0 | ER162: 0 | ES162: 0 | ET162: 0 | EU162: 0 | EV162: 0 | EW162: 0 | EX162: 0 | EY162: 0 | EZ162: 0 | FA162: 0 | FB162: 0 | FC162: 0
C164: Dividends | E164: EUR | J164: =J160-J162 -> 0 | K164: =K160-K162 -> 0 | L164: 0 | M164: 0 | N164: 0 | O164: 0 | P164: 0 | Q164: 0 | R164: 0 | S164: 0 | T164: 0 | U164: 0 | V164: 0 | W164: 0 | X164: 0 | Y164: 0 | Z164: 0 | AA164: 0 | AB164: 0 | AC164: 0 | AD164: 0 | AE164: 0 | AF164: 0 | AG164: 0 | AH164: 0 | AI164: 0 | AJ164: 0 | AK164: 0 | AL164: 0 | AM164: 0 | AN164: 0 | AO164: 0 | AP164: 0 | AQ164: 0 | AR164: 0 | AS164: 0 | AT164: -4.285714286 | AU164: 44.28571429 | AV164: -4.571428571 | AW164: 41.71428571 | AX164: -5.428571429 | AY164: 51.14285714 | AZ164: -6.285714286 | BA164: 69.14285714 | BB164: -6.285714286 | BC164: 69.14285714 | BD164: -6.285714286 | BE164: 69.14285714 | BF164: -6.285714286 | BG164: 69.14285714 | BH164: -6.285714286 | BI164: 86.28571429 | BJ164: -4.571428571 | BK164: 50.28571429 | BL164: -4.571428571 | BM164: 50.28571429 | BN164: -4.571428571 | BO164: 50.28571429 | BP164: -4.571428571 | BQ164: 50.28571429 | BR164: -4.571428571 | BS164: 50.28571429 | BT164: -4.571428571 | BU164: 50.28571429 | BV164: -4.571428571 | BW164: =BW160-BW162 -> 41.71428571 | BX164: -5.428571429 | BY164: 59.71428571 | BZ164: -5.428571429 | CA164: 59.71428571 | CB164: -5.428571429 | CC164: 59.71428571 | CD164: -5.428571429 | CE164: 59.71428571 | CF164: -5.428571429 | CG164: 59.71428571 | CH164: -5.428571429 | CI164: 59.71428571 | CJ164: -5.428571429 | CK164: 114 | CL164: 76 | CM164: 114 | CN164: 76 | CO164: 114 | CP164: 76 | CQ164: 114 | CR164: 76 | CS164: 114 | CT164: 76 | CU164: 114 | CV164: 76 | CW164: 114 | CX164: 76 | CY164: 114 | CZ164: 80 | DA164: 120 | DB164: 1.750777301e-14 | DC164: 1.750777301e-14 | DD164: 1.750777301e-14 | DE164: 1.750777301e-14 | DF164: 1.750777301e-14 | DG164: 1.750777301e-14 | DH164: 1.750777301e-14 | DI164: 1.750777301e-14 | DJ164: 1.750777301e-14 | DK164: 1.750777301e-14 | DL164: 1.750777301e-14 | DM164: 1.750777301e-14 | DN164: 1.750777301e-14 | DO164: 1.750777301e-14 | DP164: 1.750777301e-14 | DQ164: 1.750777301e-14 | DR164: 1.750777301e-14 | DS164: 1.750777301e-14 | DT164: 1.750777301e-14 | DU164: 1.750777301e-14 | DV164: 1.750777301e-14 | DW164: 1.750777301e-14 | DX164: 1.750777301e-14 | DY164: 1.750777301e-14 | DZ164: 1.750777301e-14 | EA164: 1.750777301e-14 | EB164: 1.750777301e-14 | EC164: 1.750777301e-14 | ED164: 1.750777301e-14 | EE164: 1.750777301e-14 | EF164: 1.750777301e-14 | EG164: 1.750777301e-14 | EH164: 1.750777301e-14 | EI164: =EI160-EI162 -> 1.750777301e-14 | EJ164: 1.750777301e-14 | EK164: 1.750777301e-14 | EL164: 1.750777301e-14 | EM164: 1.750777301e-14 | EN164: 1.750777301e-14 | EO164: 1.750777301e-14 | EP164: 1.750777301e-14 | EQ164: 1.750777301e-14 | ER164: 1.750777301e-14 | ES164: 1.750777301e-14 | ET164: 1.750777301e-14 | EU164: 1.750777301e-14 | EV164: 1.750777301e-14 | EW164: 1.750777301e-14 | EX164: 1.750777301e-14 | EY164: 1.750777301e-14 | EZ164: 1.750777301e-14 | FA164: 1.750777301e-14 | FB164: 1.750777301e-14 | FC164: 1.750777301e-14
B167: Outputs
C168: Equity Cash Flow | E168: EUR | J168: =J164-J106 -> -43.45689055 | K168: =K164-K106 -> -18.09253436 | L168: -22.78326388 | M168: -28.32865329 | N168: -34.75221842 | O168: -42.03762271 | P168: -50.1204953 | Q168: -45.68183069 | R168: -12.16575264 | S168: -13.89235746 | T168: -15.6218357 | U168: -17.2980727 | V168: -18.86116403 | W168: -20.25090396 | X168: -21.41063687 | Y168: -22.29113328 | Z168: -22.85412244 | AA168: -23.07512797 | AB168: -22.94531275 | AC168: -22.47213837 | AD168: -21.67876909 | AE168: -20.60228552 | AF168: -19.29089836 | AG168: -17.80045267 | AH168: -16.19057401 | AI168: -14.52082398 | AJ168: -12.84720407 | AK168: -11.21928102 | AL168: -9.678115494 | AM168: -8.255073504 | AN168: -6.971501407 | AO168: -5.83916205 | AP168: -4.86127069 | AQ168: -4.033937961 | AR168: -3.347822783 | AS168: -10.43697785 | AT168: -4.285714286 | AU168: 44.28571429 | AV168: -4.571428571 | AW168: 41.71428571 | AX168: -5.428571429 | AY168: 51.14285714 | AZ168: -6.285714286 | BA168: 69.14285714 | BB168: -6.285714286 | BC168: 69.14285714 | BD168: -6.285714286 | BE168: 69.14285714 | BF168: -6.285714286 | BG168: 69.14285714 | BH168: -6.285714286 | BI168: 86.28571429 | BJ168: -4.571428571 | BK168: 50.28571429 | BL168: -4.571428571 | BM168: 50.28571429 | BN168: -4.571428571 | BO168: 50.28571429 | BP168: -4.571428571 | BQ168: 50.28571429 | BR168: -4.571428571 | BS168: 50.28571429 | BT168: -4.571428571 | BU168: 50.28571429 | BV168: -4.571428571 | BW168: =BW164-BW106 -> 41.71428571 | BX168: -5.428571429 | BY168: 59.71428571 | BZ168: -5.428571429 | CA168: 59.71428571 | CB168: -5.428571429 | CC168: 59.71428571 | CD168: -5.428571429 | CE168: 59.71428571 | CF168: -5.428571429 | CG168: 59.71428571 | CH168: -5.428571429 | CI168: 59.71428571 | CJ168: -5.428571429 | CK168: 114 | CL168: 76 | CM168: 114 | CN168: 76 | CO168: 114 | CP168: 76 | CQ168: 114 | CR168: 76 | CS168: 114 | CT168: 76 | CU168: 114 | CV168: 76 | CW168: 114 | CX168: 76 | CY168: 114 | CZ168: 80 | DA168: 120 | DB168: 1.750777301e-14 | DC168: 1.750777301e-14 | DD168: 1.750777301e-14 | DE168: 1.750777301e-14 | DF168: 1.750777301e-14 | DG168: 1.750777301e-14 | DH168: 1.750777301e-14 | DI168: 1.750777301e-14 | DJ168: 1.750777301e-14 | DK168: 1.750777301e-14 | DL168: 1.750777301e-14 | DM168: 1.750777301e-14 | DN168: 1.750777301e-14 | DO168: 1.750777301e-14 | DP168: 1.750777301e-14 | DQ168: 1.750777301e-14 | DR168: 1.750777301e-14 | DS168: 1.750777301e-14 | DT168: 1.750777301e-14 | DU168: 1.750777301e-14 | DV168: 1.750777301e-14 | DW168: 1.750777301e-14 | DX168: 1.750777301e-14 | DY168: 1.750777301e-14 | DZ168: 1.750777301e-14 | EA168: 1.750777301e-14 | EB168: 1.750777301e-14 | EC168: 1.750777301e-14 | ED168: 1.750777301e-14 | EE168: 1.750777301e-14 | EF168: 1.750777301e-14 | EG168: 1.750777301e-14 | EH168: 1.750777301e-14 | EI168: =EI164-EI106 -> 1.750777301e-14 | EJ168: 1.750777301e-14 | EK168: 1.750777301e-14 | EL168: 1.750777301e-14 | EM168: 1.750777301e-14 | EN168: 1.750777301e-14 | EO168: 1.750777301e-14 | EP168: 1.750777301e-14 | EQ168: 1.750777301e-14 | ER168: 1.750777301e-14 | ES168: 1.750777301e-14 | ET168: 1.750777301e-14 | EU168: 1.750777301e-14 | EV168: 1.750777301e-14 | EW168: 1.750777301e-14 | EX168: 1.750777301e-14 | EY168: 1.750777301e-14 | EZ168: 1.750777301e-14 | FA168: 1.750777301e-14 | FB168: 1.750777301e-14 | FC168: 1.750777301e-14
C169: Equity IRR | E169: % | F169: =XIRR(J168:FC168,J7:FC7) -> 0.07353937328
C171: CFADS | E171: EUR | J171: =J155 -> 0 | K171: =K155 -> 0 | L171: 0 | M171: 0 | N171: 0 | O171: 0 | P171: 0 | Q171: 0 | R171: 0 | S171: 0 | T171: 0 | U171: 0 | V171: 0 | W171: 0 | X171: 0 | Y171: 0 | Z171: 0 | AA171: 0 | AB171: 0 | AC171: 0 | AD171: 0 | AE171: 0 | AF171: 0 | AG171: 0 | AH171: 0 | AI171: 0 | AJ171: 0 | AK171: 0 | AL171: 0 | AM171: 0 | AN171: 0 | AO171: 0 | AP171: 0 | AQ171: 0 | AR171: 0 | AS171: 0 | AT171: 60 | AU171: 90 | AV171: 64 | AW171: 96 | AX171: 76 | AY171: 114 | AZ171: 88 | BA171: 132 | BB171: 88 | BC171: 132 | BD171: 88 | BE171: 132 | BF171: 88 | BG171: 132 | BH171: 88 | BI171: 132 | BJ171: 64 | BK171: 96 | BL171: 64 | BM171: 96 | BN171: 64 | BO171: 96 | BP171: 64 | BQ171: 96 | BR171: 64 | BS171: 96 | BT171: 64 | BU171: 96 | BV171: 64 | BW171: =BW155 -> 96 | BX171: 76 | BY171: 114 | BZ171: 76 | CA171: 114 | CB171: 76 | CC171: 114 | CD171: 76 | CE171: 114 | CF171: 76 | CG171: 114 | CH171: 76 | CI171: 114 | CJ171: 76 | CK171: 114 | CL171: 76 | CM171: 114 | CN171: 76 | CO171: 114 | CP171: 76 | CQ171: 114 | CR171: 76 | CS171: 114 | CT171: 76 | CU171: 114 | CV171: 76 | CW171: 114 | CX171: 76 | CY171: 114 | CZ171: 80 | DA171: 120 | DB171: 0 | DC171: 0 | DD171: 0 | DE171: 0 | DF171: 0 | DG171: 0 | DH171: 0 | DI171: 0 | DJ171: 0 | DK171: 0 | DL171: 0 | DM171: 0 | DN171: 0 | DO171: 0 | DP171: 0 | DQ171: 0 | DR171: 0 | DS171: 0 | DT171: 0 | DU171: 0 | DV171: 0 | DW171: 0 | DX171: 0 | DY171: 0 | DZ171: 0 | EA171: 0 | EB171: 0 | EC171: 0 | ED171: 0 | EE171: 0 | EF171: 0 | EG171: 0 | EH171: 0 | EI171: =EI155 -> 0 | EJ171: 0 | EK171: 0 | EL171: 0 | EM171: 0 | EN171: 0 | EO171: 0 | EP171: 0 | EQ171: 0 | ER171: 0 | ES171: 0 | ET171: 0 | EU171: 0 | EV171: 0 | EW171: 0 | EX171: 0 | EY171: 0 | EZ171: 0 | FA171: 0 | FB171: 0 | FC171: 0
C172: Debt Service | E172: EUR | J172: =J157+J158 -> 0 | K172: =K157+K158 -> 0 | L172: 0 | M172: 0 | N172: 0 | O172: 0 | P172: 0 | Q172: 0 | R172: 0 | S172: 0 | T172: 0 | U172: 0 | V172: 0 | W172: 0 | X172: 0 | Y172: 0 | Z172: 0 | AA172: 0 | AB172: 0 | AC172: 0 | AD172: 0 | AE172: 0 | AF172: 0 | AG172: 0 | AH172: 0 | AI172: 0 | AJ172: 0 | AK172: 0 | AL172: 0 | AM172: 0 | AN172: 0 | AO172: 0 | AP172: 0 | AQ172: 0 | AR172: 0 | AS172: 0 | AT172: 42.85714286 | AU172: 64.28571429 | AV172: 45.71428571 | AW172: 68.57142857 | AX172: 54.28571429 | AY172: 81.42857143 | AZ172: 62.85714286 | BA172: 94.28571429 | BB172: 62.85714286 | BC172: 94.28571429 | BD172: 62.85714286 | BE172: 94.28571429 | BF172: 62.85714286 | BG172: 94.28571429 | BH172: 62.85714286 | BI172: 94.28571429 | BJ172: 45.71428571 | BK172: 68.57142857 | BL172: 45.71428571 | BM172: 68.57142857 | BN172: 45.71428571 | BO172: 68.57142857 | BP172: 45.71428571 | BQ172: 68.57142857 | BR172: 45.71428571 | BS172: 68.57142857 | BT172: 45.71428571 | BU172: 68.57142857 | BV172: 45.71428571 | BW172: =BW157+BW158 -> 68.57142857 | BX172: 54.28571429 | BY172: 81.42857143 | BZ172: 54.28571429 | CA172: 81.42857143 | CB172: 54.28571429 | CC172: 81.42857143 | CD172: 54.28571429 | CE172: 81.42857143 | CF172: 54.28571429 | CG172: 81.42857143 | CH172: 54.28571429 | CI172: 81.42857143 | CJ172: 54.28571429 | CK172: 81.42857143 | CL172: -1.750777301e-14 | CM172: -1.750777301e-14 | CN172: -1.750777301e-14 | CO172: -1.750777301e-14 | CP172: -1.750777301e-14 | CQ172: -1.750777301e-14 | CR172: -1.750777301e-14 | CS172: -1.750777301e-14 | CT172: -1.750777301e-14 | CU172: -1.750777301e-14 | CV172: -1.750777301e-14 | CW172: -1.750777301e-14 | CX172: -1.750777301e-14 | CY172: -1.750777301e-14 | CZ172: -1.750777301e-14 | DA172: -1.750777301e-14 | DB172: -1.750777301e-14 | DC172: -1.750777301e-14 | DD172: -1.750777301e-14 | DE172: -1.750777301e-14 | DF172: -1.750777301e-14 | DG172: -1.750777301e-14 | DH172: -1.750777301e-14 | DI172: -1.750777301e-14 | DJ172: -1.750777301e-14 | DK172: -1.750777301e-14 | DL172: -1.750777301e-14 | DM172: -1.750777301e-14 | DN172: -1.750777301e-14 | DO172: -1.750777301e-14 | DP172: -1.750777301e-14 | DQ172: -1.750777301e-14 | DR172: -1.750777301e-14 | DS172: -1.750777301e-14 | DT172: -1.750777301e-14 | DU172: -1.750777301e-14 | DV172: -1.750777301e-14 | DW172: -1.750777301e-14 | DX172: -1.750777301e-14 | DY172: -1.750777301e-14 | DZ172: -1.750777301e-14 | EA172: -1.750777301e-14 | EB172: -1.750777301e-14 | EC172: -1.750777301e-14 | ED172: -1.750777301e-14 | EE172: -1.750777301e-14 | EF172: -1.750777301e-14 | EG172: -1.750777301e-14 | EH172: -1.750777301e-14 | EI172: =EI157+EI158 -> -1.750777301e-14 | EJ172: -1.750777301e-14 | EK172: -1.750777301e-14 | EL172: -1.750777301e-14 | EM172: -1.750777301e-14 | EN172: -1.750777301e-14 | EO172: -1.750777301e-14 | EP172: -1.750777301e-14 | EQ172: -1.750777301e-14 | ER172: -1.750777301e-14 | ES172: -1.750777301e-14 | ET172: -1.750777301e-14 | EU172: -1.750777301e-14 | EV172: -1.750777301e-14 | EW172: -1.750777301e-14 | EX172: -1.750777301e-14 | EY172: -1.750777301e-14 | EZ172: -1.750777301e-14 | FA172: -1.750777301e-14 | FB172: -1.750777301e-14 | FC172: -1.750777301e-14
C173: DSCR | E173: x | F173: =MIN(J173:FC173) -> 1.4 | J173: =IF(J172>0.1,J171/J172) -> FALSE | K173: =IF(K172>0.1,K171/K172) -> FALSE | L173: FALSE | M173: FALSE | N173: FALSE | O173: FALSE | P173: FALSE | Q173: FALSE | R173: FALSE | S173: FALSE | T173: FALSE | U173: FALSE | V173: FALSE | W173: FALSE | X173: FALSE | Y173: FALSE | Z173: FALSE | AA173: FALSE | AB173: FALSE | AC173: FALSE | AD173: FALSE | AE173: FALSE | AF173: FALSE | AG173: FALSE | AH173: FALSE | AI173: FALSE | AJ173: FALSE | AK173: FALSE | AL173: FALSE | AM173: FALSE | AN173: FALSE | AO173: FALSE | AP173: FALSE | AQ173: FALSE | AR173: FALSE | AS173: FALSE | AT173: 1.4 | AU173: 1.4 | AV173: 1.4 | AW173: 1.4 | AX173: 1.4 | AY173: 1.4 | AZ173: 1.4 | BA173: 1.4 | BB173: 1.4 | BC173: 1.4 | BD173: 1.4 | BE173: 1.4 | BF173: 1.4 | BG173: 1.4 | BH173: 1.4 | BI173: 1.4 | BJ173: 1.4 | BK173: 1.4 | BL173: 1.4 | BM173: 1.4 | BN173: 1.4 | BO173: 1.4 | BP173: 1.4 | BQ173: 1.4 | BR173: 1.4 | BS173: 1.4 | BT173: 1.4 | BU173: 1.4 | BV173: 1.4 | BW173: =IF(BW172>0.1,BW171/BW172) -> 1.4 | BX173: 1.4 | BY173: 1.4 | BZ173: 1.4 | CA173: 1.4 | CB173: 1.4 | CC173: 1.4 | CD173: 1.4 | CE173: 1.4 | CF173: 1.4 | CG173: 1.4 | CH173: 1.4 | CI173: 1.4 | CJ173: 1.4 | CK173: 1.4 | CL173: FALSE | CM173: FALSE | CN173: FALSE | CO173: FALSE | CP173: FALSE | CQ173: FALSE | CR173: FALSE | CS173: FALSE | CT173: FALSE | CU173: FALSE | CV173: FALSE | CW173: FALSE | CX173: FALSE | CY173: FALSE | CZ173: FALSE | DA173: FALSE | DB173: FALSE | DC173: FALSE | DD173: FALSE | DE173: FALSE | DF173: FALSE | DG173: FALSE | DH173: FALSE | DI173: FALSE | DJ173: FALSE | DK173: FALSE | DL173: FALSE | DM173: FALSE | DN173: FALSE | DO173: FALSE | DP173: FALSE | DQ173: FALSE | DR173: FALSE | DS173: FALSE | DT173: FALSE | DU173: FALSE | DV173: FALSE | DW173: FALSE | DX173: FALSE | DY173: FALSE | DZ173: FALSE | EA173: FALSE | EB173: FALSE | EC173: FALSE | ED173: FALSE | EE173: FALSE | EF173: FALSE | EG173: FALSE | EH173: FALSE | EI173: =IF(EI172>0.1,EI171/EI172) -> FALSE | EJ173: FALSE | EK173: FALSE | EL173: FALSE | EM173: FALSE | EN173: FALSE | EO173: FALSE | EP173: FALSE | EQ173: FALSE | ER173: FALSE | ES173: FALSE | ET173: FALSE | EU173: FALSE | EV173: FALSE | EW173: FALSE | EX173: FALSE | EY173: FALSE | EZ173: FALSE | FA173: FALSE | FB173: FALSE | FC173: FALSE
C175: LLCR
D176: Debt Repayment Flag | E176: Flag | J176: =J110 -> 0 | K176: =K110 -> 0 | L176: 0 | M176: 0 | N176: 0 | O176: 0 | P176: 0 | Q176: 0 | R176: 0 | S176: 0 | T176: 0 | U176: 0 | V176: 0 | W176: 0 | X176: 0 | Y176: 0 | Z176: 0 | AA176: 0 | AB176: 0 | AC176: 0 | AD176: 0 | AE176: 0 | AF176: 0 | AG176: 0 | AH176: 0 | AI176: 0 | AJ176: 0 | AK176: 0 | AL176: 0 | AM176: 0 | AN176: 0 | AO176: 0 | AP176: 0 | AQ176: 0 | AR176: 0 | AS176: 0 | AT176: 1 | AU176: 1 | AV176: 1 | AW176: 1 | AX176: 1 | AY176: 1 | AZ176: 1 | BA176: 1 | BB176: 1 | BC176: 1 | BD176: 1 | BE176: 1 | BF176: 1 | BG176: 1 | BH176: 1 | BI176: 1 | BJ176: 1 | BK176: 1 | BL176: 1 | BM176: 1 | BN176: 1 | BO176: 1 | BP176: 1 | BQ176: 1 | BR176: 1 | BS176: 1 | BT176: 1 | BU176: 1 | BV176: 1 | BW176: =BW110 -> 1 | BX176: 1 | BY176: 1 | BZ176: 1 | CA176: 1 | CB176: 1 | CC176: 1 | CD176: 1 | CE176: 1 | CF176: 1 | CG176: 1 | CH176: 1 | CI176: 1 | CJ176: 1 | CK176: 1 | CL176: 0 | CM176: 0 | CN176: 0 | CO176: 0 | CP176: 0 | CQ176: 0 | CR176: 0 | CS176: 0 | CT176: 0 | CU176: 0 | CV176: 0 | CW176: 0 | CX176: 0 | CY176: 0 | CZ176: 0 | DA176: 0 | DB176: 0 | DC176: 0 | DD176: 0 | DE176: 0 | DF176: 0 | DG176: 0 | DH176: 0 | DI176: 0 | DJ176: 0 | DK176: 0 | DL176: 0 | DM176: 0 | DN176: 0 | DO176: 0 | DP176: 0 | DQ176: 0 | DR176: 0 | DS176: 0 | DT176: 0 | DU176: 0 | DV176: 0 | DW176: 0 | DX176: 0 | DY176: 0 | DZ176: 0 | EA176: 0 | EB176: 0 | EC176: 0 | ED176: 0 | EE176: 0 | EF176: 0 | EG176: 0 | EH176: 0 | EI176: =EI110 -> 0 | EJ176: 0 | EK176: 0 | EL176: 0 | EM176: 0 | EN176: 0 | EO176: 0 | EP176: 0 | EQ176: 0 | ER176: 0 | ES176: 0 | ET176: 0 | EU176: 0 | EV176: 0 | EW176: 0 | EX176: 0 | EY176: 0 | EZ176: 0 | FA176: 0 | FB176: 0 | FC176: 0
D177: PV Factor | E177: Index | J177: =J41 -> 1 | K177: =K41 -> 1 | L177: 1 | M177: 1 | N177: 1 | O177: 1 | P177: 1 | Q177: 1 | R177: 1 | S177: 1 | T177: 1 | U177: 1 | V177: 1 | W177: 1 | X177: 1 | Y177: 1 | Z177: 1 | AA177: 1 | AB177: 1 | AC177: 1 | AD177: 1 | AE177: 1 | AF177: 1 | AG177: 1 | AH177: 1 | AI177: 1 | AJ177: 1 | AK177: 1 | AL177: 1 | AM177: 1 | AN177: 1 | AO177: 1 | AP177: 1 | AQ177: 1 | AR177: 1 | AS177: 1 | AT177: 1.0185 | AU177: 1.03734225 | AV177: 1.056533082 | AW177: 1.076078944 | AX177: 1.096255424 | AY177: 1.116810213 | AZ177: 1.137750405 | BA177: 1.159083225 | BB177: 1.181105806 | BC177: 1.203546816 | BD177: 1.226414206 | BE177: 1.249716076 | BF177: 1.27377311 | BG177: 1.298293242 | BH177: 1.323285387 | BI177: 1.348758631 | BJ177: 1.374722235 | BK177: 1.401185638 | BL177: 1.428158461 | BM177: 1.455650512 | BN177: 1.483671784 | BO177: 1.512232466 | BP177: 1.541342941 | BQ177: 1.571013792 | BR177: 1.601255808 | BS177: 1.632079982 | BT177: 1.663497522 | BU177: 1.695519849 | BV177: 1.728158606 | BW177: =BW41 -> 1.761425659 | BX177: 1.795333103 | BY177: 1.829893266 | BZ177: 1.865118711 | CA177: 1.901022246 | CB177: 1.937616924 | CC177: 1.97491605 | CD177: 2.012933184 | CE177: 2.051682148 | CF177: 2.091177029 | CG177: 2.131432187 | CH177: 2.172462257 | CI177: 2.214282155 | CJ177: 2.256907087 | CK177: 2.300352548 | CL177: 2.344634335 | CM177: 2.389768546 | CN177: 2.43577159 | CO177: 2.482660193 | CP177: 2.530451402 | CQ177: 2.579162591 | CR177: 2.628811471 | CS177: 2.679416092 | CT177: 2.730994852 | CU177: 2.783566503 | CV177: 2.837150158 | CW177: 2.891765298 | CX177: 2.94743178 | CY177: 3.004169842 | CZ177: 3.062000112 | DA177: 3.120943614 | DB177: 3.120943614 | DC177: 3.120943614 | DD177: 3.120943614 | DE177: 3.120943614 | DF177: 3.120943614 | DG177: 3.120943614 | DH177: 3.120943614 | DI177: 3.120943614 | DJ177: 3.120943614 | DK177: 3.120943614 | DL177: 3.120943614 | DM177: 3.120943614 | DN177: 3.120943614 | DO177: 3.120943614 | DP177: 3.120943614 | DQ177: 3.120943614 | DR177: 3.120943614 | DS177: 3.120943614 | DT177: 3.120943614 | DU177: 3.120943614 | DV177: 3.120943614 | DW177: 3.120943614 | DX177: 3.120943614 | DY177: 3.120943614 | DZ177: 3.120943614 | EA177: 3.120943614 | EB177: 3.120943614 | EC177: 3.120943614 | ED177: 3.120943614 | EE177: 3.120943614 | EF177: 3.120943614 | EG177: 3.120943614 | EH177: 3.120943614 | EI177: =EI41 -> 3.120943614 | EJ177: 3.120943614 | EK177: 3.120943614 | EL177: 3.120943614 | EM177: 3.120943614 | EN177: 3.120943614 | EO177: 3.120943614 | EP177: 3.120943614 | EQ177: 3.120943614 | ER177: 3.120943614 | ES177: 3.120943614 | ET177: 3.120943614 | EU177: 3.120943614 | EV177: 3.120943614 | EW177: 3.120943614 | EX177: 3.120943614 | EY177: 3.120943614 | EZ177: 3.120943614 | FA177: 3.120943614 | FB177: 3.120943614 | FC177: 3.120943614
D178: CFADS over Debt Life | E178: EUR | J178: =J171*J176 -> 0 | K178: =K171*K176 -> 0 | L178: 0 | M178: 0 | N178: 0 | O178: 0 | P178: 0 | Q178: 0 | R178: 0 | S178: 0 | T178: 0 | U178: 0 | V178: 0 | W178: 0 | X178: 0 | Y178: 0 | Z178: 0 | AA178: 0 | AB178: 0 | AC178: 0 | AD178: 0 | AE178: 0 | AF178: 0 | AG178: 0 | AH178: 0 | AI178: 0 | AJ178: 0 | AK178: 0 | AL178: 0 | AM178: 0 | AN178: 0 | AO178: 0 | AP178: 0 | AQ178: 0 | AR178: 0 | AS178: 0 | AT178: 60 | AU178: 90 | AV178: 64 | AW178: 96 | AX178: 76 | AY178: 114 | AZ178: 88 | BA178: 132 | BB178: 88 | BC178: 132 | BD178: 88 | BE178: 132 | BF178: 88 | BG178: 132 | BH178: 88 | BI178: 132 | BJ178: 64 | BK178: 96 | BL178: 64 | BM178: 96 | BN178: 64 | BO178: 96 | BP178: 64 | BQ178: 96 | BR178: 64 | BS178: 96 | BT178: 64 | BU178: 96 | BV178: 64 | BW178: =BW171*BW176 -> 96 | BX178: 76 | BY178: 114 | BZ178: 76 | CA178: 114 | CB178: 76 | CC178: 114 | CD178: 76 | CE178: 114 | CF178: 76 | CG178: 114 | CH178: 76 | CI178: 114 | CJ178: 76 | CK178: 114 | CL178: 0 | CM178: 0 | CN178: 0 | CO178: 0 | CP178: 0 | CQ178: 0 | CR178: 0 | CS178: 0 | CT178: 0 | CU178: 0 | CV178: 0 | CW178: 0 | CX178: 0 | CY178: 0 | CZ178: 0 | DA178: 0 | DB178: 0 | DC178: 0 | DD178: 0 | DE178: 0 | DF178: 0 | DG178: 0 | DH178: 0 | DI178: 0 | DJ178: 0 | DK178: 0 | DL178: 0 | DM178: 0 | DN178: 0 | DO178: 0 | DP178: 0 | DQ178: 0 | DR178: 0 | DS178: 0 | DT178: 0 | DU178: 0 | DV178: 0 | DW178: 0 | DX178: 0 | DY178: 0 | DZ178: 0 | EA178: 0 | EB178: 0 | EC178: 0 | ED178: 0 | EE178: 0 | EF178: 0 | EG178: 0 | EH178: 0 | EI178: =EI171*EI176 -> 0 | EJ178: 0 | EK178: 0 | EL178: 0 | EM178: 0 | EN178: 0 | EO178: 0 | EP178: 0 | EQ178: 0 | ER178: 0 | ES178: 0 | ET178: 0 | EU178: 0 | EV178: 0 | EW178: 0 | EX178: 0 | EY178: 0 | EZ178: 0 | FA178: 0 | FB178: 0 | FC178: 0
D179: PV of CFADS | E179: EUR | F179: =SUMPRODUCT(J178:FC178/J177:FC177) -> 2730.415472
D180: Debt at COD | E180: EUR | F180: =SUMPRODUCT(J172:FC172/J177:FC177) -> 1950.296766
D181: Computed LLCR | E181: x | F181: =F179/F180 -> 1.4
C183: PLCR
D184: PV of CFADS | E184: EUR | F184: =SUMPRODUCT(J171:FC171/J177:FC177) -> 3296.647027
D185: Debt at COD | E185: EUR | F185: =F180 -> 1950.296766
D186: Computed LLCR | E186: x | F186: =F184/F185 -> 1.690330971
C188: Average Debt Life
D189: Counter for Debt Period from Debt Repayment Flag | E189: # | J189: =I189+J176 -> 0 | K189: =J189+K176 -> 0 | L189: 0 | M189: 0 | N189: 0 | O189: 0 | P189: 0 | Q189: 0 | R189: 0 | S189: 0 | T189: 0 | U189: 0 | V189: 0 | W189: 0 | X189: 0 | Y189: 0 | Z189: 0 | AA189: 0 | AB189: 0 | AC189: 0 | AD189: 0 | AE189: 0 | AF189: 0 | AG189: 0 | AH189: 0 | AI189: 0 | AJ189: 0 | AK189: 0 | AL189: 0 | AM189: 0 | AN189: 0 | AO189: 0 | AP189: 0 | AQ189: 0 | AR189: 0 | AS189: 0 | AT189: 1 | AU189: 2 | AV189: 3 | AW189: 4 | AX189: 5 | AY189: 6 | AZ189: 7 | BA189: 8 | BB189: 9 | BC189: 10 | BD189: 11 | BE189: 12 | BF189: 13 | BG189: 14 | BH189: 15 | BI189: 16 | BJ189: 17 | BK189: 18 | BL189: 19 | BM189: 20 | BN189: 21 | BO189: 22 | BP189: 23 | BQ189: 24 | BR189: 25 | BS189: 26 | BT189: 27 | BU189: 28 | BV189: 29 | BW189: =BV189+BW176 -> 30 | BX189: 31 | BY189: 32 | BZ189: 33 | CA189: 34 | CB189: 35 | CC189: 36 | CD189: 37 | CE189: 38 | CF189: 39 | CG189: 40 | CH189: 41 | CI189: 42 | CJ189: 43 | CK189: 44 | CL189: 44 | CM189: 44 | CN189: 44 | CO189: 44 | CP189: 44 | CQ189: 44 | CR189: 44 | CS189: 44 | CT189: 44 | CU189: 44 | CV189: 44 | CW189: 44 | CX189: 44 | CY189: 44 | CZ189: 44 | DA189: 44 | DB189: 44 | DC189: 44 | DD189: 44 | DE189: 44 | DF189: 44 | DG189: 44 | DH189: 44 | DI189: 44 | DJ189: 44 | DK189: 44 | DL189: 44 | DM189: 44 | DN189: 44 | DO189: 44 | DP189: 44 | DQ189: 44 | DR189: 44 | DS189: 44 | DT189: 44 | DU189: 44 | DV189: 44 | DW189: 44 | DX189: 44 | DY189: 44 | DZ189: 44 | EA189: 44 | EB189: 44 | EC189: 44 | ED189: 44 | EE189: 44 | EF189: 44 | EG189: 44 | EH189: 44 | EI189: =EH189+EI176 -> 44 | EJ189: 44 | EK189: 44 | EL189: 44 | EM189: 44 | EN189: 44 | EO189: 44 | EP189: 44 | EQ189: 44 | ER189: 44 | ES189: 44 | ET189: 44 | EU189: 44 | EV189: 44 | EW189: 44 | EX189: 44 | EY189: 44 | EZ189: 44 | FA189: 44 | FB189: 44 | FC189: 44
D190: Debt Repayment | E190: EUR | J190: =J158 -> 0 | K190: =K158 -> 0 | L190: 0 | M190: 0 | N190: 0 | O190: 0 | P190: 0 | Q190: 0 | R190: 0 | S190: 0 | T190: 0 | U190: 0 | V190: 0 | W190: 0 | X190: 0 | Y190: 0 | Z190: 0 | AA190: 0 | AB190: 0 | AC190: 0 | AD190: 0 | AE190: 0 | AF190: 0 | AG190: 0 | AH190: 0 | AI190: 0 | AJ190: 0 | AK190: 0 | AL190: 0 | AM190: 0 | AN190: 0 | AO190: 0 | AP190: 0 | AQ190: 0 | AR190: 0 | AS190: 0 | AT190: 6.776652688 | AU190: 28.33059219 | AV190: 10.28327958 | AW190: 33.33066311 | AX190: 19.19367219 | AY190: 46.69641069 | AZ190: 29.00053982 | BA190: 60.97287137 | BB190: 30.25861326 | BC190: 62.26209834 | BD190: 32.01650678 | BE190: 64.05339183 | BF190: 33.46005448 | BG190: 65.53273196 | BH190: 35.36566562 | BI190: 67.47502611 | BJ190: 20.20249179 | BK190: 43.44853262 | BL190: 21.42777401 | BM190: 44.69740152 | BN190: 22.70068364 | BO190: 45.99481466 | BP190: 24.02307198 | BQ190: 47.34265898 | BR190: 25.39686231 | BS190: 48.74289476 | BT190: 26.82405263 | BU190: 50.1975585 | BV190: 28.30671864 | BW190: =BW158 -> 51.70876583 | BX190: 38.41844529 | BY190: 66.30085751 | BZ190: 40.43429187 | CA190: 68.35550913 | CB190: 42.52849554 | CC190: 70.49002622 | CD190: 44.70410208 | CE190: 72.70751319 | CF190: 46.96427568 | CG190: 75.01119513 | CH190: 49.31230349 | CI190: 77.40442248 | CJ190: 51.75160047 | CK190: 79.89067592 | CL190: -1.012168127e-14 | CM190: -1.031652364e-14 | CN190: -1.051511672e-14 | CO190: -1.071753271e-14 | CP190: -1.092384522e-14 | CQ190: -1.113412924e-14 | CR190: -1.134846123e-14 | CS190: -1.15669191e-14 | CT190: -1.17895823e-14 | CU190: -1.201653176e-14 | CV190: -1.224784999e-14 | CW190: -1.24836211e-14 | CX190: -1.272393081e-14 | CY190: -1.296886648e-14 | CZ190: -1.321851716e-14 | DA190: -1.347297361e-14 | DB190: -1.373232836e-14 | DC190: -1.399667568e-14 | DD190: -1.426611168e-14 | DE190: -1.454073433e-14 | DF190: -1.482064347e-14 | DG190: -1.510594086e-14 | DH190: -1.539673022e-14 | DI190: -1.569311727e-14 | DJ190: -1.599520978e-14 | DK190: -1.630311757e-14 | DL190: -1.661695258e-14 | DM190: -1.693682892e-14 | DN190: -1.726286288e-14 | DO190: -1.759517299e-14 | DP190: -1.793388007e-14 | DQ190: -1.827910726e-14 | DR190: -1.863098007e-14 | DS190: -1.898962644e-14 | DT190: -1.935517675e-14 | DU190: -1.97277639e-14 | DV190: -2.010752336e-14 | DW190: -2.049459318e-14 | DX190: -2.08891141e-14 | DY190: -2.129122955e-14 | DZ190: -2.170108571e-14 | EA190: -2.211883161e-14 | EB190: -2.254461912e-14 | EC190: -2.297860304e-14 | ED190: -2.342094115e-14 | EE190: -2.387179427e-14 | EF190: -2.433132631e-14 | EG190: -2.479970434e-14 | EH190: -2.527709865e-14 | EI190: =EI158 -> -2.57636828e-14 | EJ190: -2.625963369e-14 | EK190: -2.676513164e-14 | EL190: -2.728036042e-14 | EM190: -2.780550736e-14 | EN190: -2.834076338e-14 | EO190: -2.888632307e-14 | EP190: -2.944238479e-14 | EQ190: -3.00091507e-14 | ER190: -3.058682685e-14 | ES190: -3.117562327e-14 | ET190: -3.177575401e-14 | EU190: -3.238743728e-14 | EV190: -3.301089545e-14 | EW190: -3.364635518e-14 | EX190: -3.429404752e-14 | EY190: -3.495420794e-14 | EZ190: -3.562707644e-14 | FA190: -3.631289766e-14 | FB190: -3.701192094e-14 | FC190: -3.772440042e-14
D191: Repayment x Counter | E191: EUR | F191: =SUM(J191:FC191) -> 49540.40823 | J191: =J189*J190 -> 0 | K191: =K189*K190 -> 0 | L191: 0 | M191: 0 | N191: 0 | O191: 0 | P191: 0 | Q191: 0 | R191: 0 | S191: 0 | T191: 0 | U191: 0 | V191: 0 | W191: 0 | X191: 0 | Y191: 0 | Z191: 0 | AA191: 0 | AB191: 0 | AC191: 0 | AD191: 0 | AE191: 0 | AF191: 0 | AG191: 0 | AH191: 0 | AI191: 0 | AJ191: 0 | AK191: 0 | AL191: 0 | AM191: 0 | AN191: 0 | AO191: 0 | AP191: 0 | AQ191: 0 | AR191: 0 | AS191: 0 | AT191: 6.776652688 | AU191: 56.66118438 | AV191: 30.84983873 | AW191: 133.3226524 | AX191: 95.96836096 | AY191: 280.1784641 | AZ191: 203.0037787 | BA191: 487.7829709 | BB191: 272.3275193 | BC191: 622.6209834 | BD191: 352.1815745 | BE191: 768.640702 | BF191: 434.9807083 | BG191: 917.4582474 | BH191: 530.4849843 | BI191: 1079.600418 | BJ191: 343.4423605 | BK191: 782.0735871 | BL191: 407.1277063 | BM191: 893.9480304 | BN191: 476.7143565 | BO191: 1011.885923 | BP191: 552.5306557 | BQ191: 1136.223815 | BR191: 634.9215576 | BS191: 1267.315264 | BT191: 724.249421 | BU191: 1405.531638 | BV191: 820.8948407 | BW191: =BW189*BW190 -> 1551.262975 | BX191: 1190.971804 | BY191: 2121.62744 | BZ191: 1334.331632 | CA191: 2324.08731 | CB191: 1488.497344 | CC191: 2537.640944 | CD191: 1654.051777 | CE191: 2762.885501 | CF191: 1831.606751 | CG191: 3000.447805 | CH191: 2021.804443 | CI191: 3250.985744 | CJ191: 2225.31882 | CK191: 3515.18974 | CL191: -4.453539759e-13 | CM191: -4.5392704e-13 | CN191: -4.626651355e-13 | CO191: -4.715714393e-13 | CP191: -4.806491895e-13 | CQ191: -4.899016864e-13 | CR191: -4.993322939e-13 | CS191: -5.089444406e-13 | CT191: -5.18741621e-13 | CU191: -5.287273972e-13 | CV191: -5.389053996e-13 | CW191: -5.492793286e-13 | CX191: -5.598529557e-13 | CY191: -5.706301251e-13 | CZ191: -5.81614755e-13 | DA191: -5.92810839e-13 | DB191: -6.042224476e-13 | DC191: -6.158537298e-13 | DD191: -6.277089141e-13 | DE191: -6.397923107e-13 | DF191: -6.521083126e-13 | DG191: -6.646613977e-13 | DH191: -6.774561296e-13 | DI191: -6.904971601e-13 | DJ191: -7.037892304e-13 | DK191: -7.173371731e-13 | DL191: -7.311459137e-13 | DM191: -7.452204725e-13 | DN191: -7.595659666e-13 | DO191: -7.741876114e-13 | DP191: -7.89090723e-13 | DQ191: -8.042807194e-13 | DR191: -8.197631232e-13 | DS191: -8.355435634e-13 | DT191: -8.516277769e-13 | DU191: -8.680216117e-13 | DV191: -8.847310277e-13 | DW191: -9.017621e-13 | DX191: -9.191210204e-13 | DY191: -9.368141e-13 | DZ191: -9.548477715e-13 | EA191: -9.732285911e-13 | EB191: -9.919632414e-13 | EC191: -1.011058534e-12 | ED191: -1.030521411e-12 | EE191: -1.050358948e-12 | EF191: -1.070578358e-12 | EG191: -1.091186991e-12 | EH191: -1.11219234e-12 | EI191: =EI189*EI190 -> -1.133602043e-12 | EJ191: -1.155423882e-12 | EK191: -1.177665792e-12 | EL191: -1.200335859e-12 | EM191: -1.223442324e-12 | EN191: -1.246993589e-12 | EO191: -1.270998215e-12 | EP191: -1.295464931e-12 | EQ191: -1.320402631e-12 | ER191: -1.345820381e-12 | ES191: -1.371727424e-12 | ET191: -1.398133177e-12 | EU191: -1.42504724e-12 | EV191: -1.4524794e-12 | EW191: -1.480439628e-12 | EX191: -1.508938091e-12 | EY191: -1.537985149e-12 | EZ191: -1.567591363e-12 | FA191: -1.597767497e-12 | FB191: -1.628524521e-12 | FC191: -1.659873618e-12
D192: Divided by Debt at COD | E192: EUX | F192: =F185 -> 1950.296766
D194: Average Debt Life | E194: Years | F194: =F191/F192/2 -> 12.70073588
D196: Debt Cash Flow | E196: IRR | F196: =XIRR(I196:FC196,I7:FC7) -> 0.04056900442 | I196: =-0.000001 -> -1e-06 | J196: =J132+J125+J118+J114-J113 -> 30.22959987 | K196: =K132+K125+K118+K114-K113 -> 0.9751483829 | L196: 0.9751483829 | M196: 0.9751483829 | N196: 0.9751483829 | O196: 0.9751483829 | P196: 0.9751483829 | Q196: -12.22553967 | R196: -55.00797216 | S196: -62.8224442 | T196: -70.63093427 | U196: -78.17504053 | V196: -85.17953621 | W196: -91.36847383 | X196: -96.48292166 | Y196: -100.2987707 | Z196: -102.6429173 | AA196: -103.4061973 | AB196: -102.551727 | AC196: -100.1177656 | AD196: -96.21478944 | AE196: -91.01709227 | AF196: -84.74980187 | AG196: -77.67266056 | AH196: -70.06219596 | AI196: -62.19397768 | AJ196: -54.32652073 | AK196: -46.68808933 | AL196: -39.46723142 | AM196: -32.80740082 | AN196: -26.80556863 | AO196: -21.51434286 | AP196: -16.94684481 | AQ196: -13.08344802 | AR196: -9.879467896 | AS196: -42.48295711 | AT196: 42.85714286 | AU196: 64.28571429 | AV196: 45.71428571 | AW196: 68.57142857 | AX196: 54.28571429 | AY196: 81.42857143 | AZ196: 62.85714286 | BA196: 94.28571429 | BB196: 62.85714286 | BC196: 94.28571429 | BD196: 62.85714286 | BE196: 94.28571429 | BF196: 62.85714286 | BG196: 94.28571429 | BH196: 62.85714286 | BI196: 94.28571429 | BJ196: 45.71428571 | BK196: 68.57142857 | BL196: 45.71428571 | BM196: 68.57142857 | BN196: 45.71428571 | BO196: 68.57142857 | BP196: 45.71428571 | BQ196: 68.57142857 | BR196: 45.71428571 | BS196: 68.57142857 | BT196: 45.71428571 | BU196: 68.57142857 | BV196: 45.71428571 | BW196: =BW132+BW125+BW118+BW114-BW113 -> 68.57142857 | BX196: 54.28571429 | BY196: 81.42857143 | BZ196: 54.28571429 | CA196: 81.42857143 | CB196: 54.28571429 | CC196: 81.42857143 | CD196: 54.28571429 | CE196: 81.42857143 | CF196: 54.28571429 | CG196: 81.42857143 | CH196: 54.28571429 | CI196: 81.42857143 | CJ196: 54.28571429 | CK196: 81.42857143 | CL196: -1.750777301e-14 | CM196: -1.750777301e-14 | CN196: -1.750777301e-14 | CO196: -1.750777301e-14 | CP196: -1.750777301e-14 | CQ196: -1.750777301e-14 | CR196: -1.750777301e-14 | CS196: -1.750777301e-14 | CT196: -1.750777301e-14 | CU196: -1.750777301e-14 | CV196: -1.750777301e-14 | CW196: -1.750777301e-14 | CX196: -1.750777301e-14 | CY196: -1.750777301e-14 | CZ196: -1.750777301e-14 | DA196: -1.750777301e-14 | DB196: -1.750777301e-14 | DC196: -1.750777301e-14 | DD196: -1.750777301e-14 | DE196: -1.750777301e-14 | DF196: -1.750777301e-14 | DG196: -1.750777301e-14 | DH196: -1.750777301e-14 | DI196: -1.750777301e-14 | DJ196: -1.750777301e-14 | DK196: -1.750777301e-14 | DL196: -1.750777301e-14 | DM196: -1.750777301e-14 | DN196: -1.750777301e-14 | DO196: -1.750777301e-14 | DP196: -1.750777301e-14 | DQ196: -1.750777301e-14 | DR196: -1.750777301e-14 | DS196: -1.750777301e-14 | DT196: -1.750777301e-14 | DU196: -1.750777301e-14 | DV196: -1.750777301e-14 | DW196: -1.750777301e-14 | DX196: -1.750777301e-14 | DY196: -1.750777301e-14 | DZ196: -1.750777301e-14 | EA196: -1.750777301e-14 | EB196: -1.750777301e-14 | EC196: -1.750777301e-14 | ED196: -1.750777301e-14 | EE196: -1.750777301e-14 | EF196: -1.750777301e-14 | EG196: -1.750777301e-14 | EH196: -1.750777301e-14 | EI196: =EI132+EI125+EI118+EI114-EI113 -> -1.750777301e-14 | EJ196: -1.750777301e-14 | EK196: -1.750777301e-14 | EL196: -1.750777301e-14 | EM196: -1.750777301e-14 | EN196: -1.750777301e-14 | EO196: -1.750777301e-14 | EP196: -1.750777301e-14 | EQ196: -1.750777301e-14 | ER196: -1.750777301e-14 | ES196: -1.750777301e-14 | ET196: -1.750777301e-14 | EU196: -1.750777301e-14 | EV196: -1.750777301e-14 | EW196: -1.750777301e-14 | EX196: -1.750777301e-14 | EY196: -1.750777301e-14 | EZ196: -1.750777301e-14 | FA196: -1.750777301e-14 | FB196: -1.750777301e-14 | FC196: -1.750777301e-14
B200: Graph over the Operating Period
J201: =IF(J8,J7,NA()) ->  | K201: =IF(K8,K7,NA()) ->  | AT201: 2023-06-30 | AU201: 2023-12-31 | AV201: 2024-06-30 | AW201: 2024-12-31 | AX201: 2025-06-30 | AY201: 2025-12-31 | AZ201: 2026-06-30 | BA201: 2026-12-31 | BB201: 2027-06-30 | BC201: 2027-12-31 | BD201: 2028-06-30 | BE201: 2028-12-31 | BF201: 2029-06-30 | BG201: 2029-12-31 | BH201: 2030-06-30 | BI201: 2030-12-31 | BJ201: 2031-06-30 | BK201: 2031-12-31 | BL201: 2032-06-30 | BM201: 2032-12-31 | BN201: 2033-06-30 | BO201: 2033-12-31 | BP201: 2034-06-30 | BQ201: 2034-12-31 | BR201: 2035-06-30 | BS201: 2035-12-31 | BT201: 2036-06-30 | BU201: 2036-12-31 | BV201: 2037-06-30 | BW201: =IF(BW8,BW7,NA()) -> 2037-12-31 | BX201: 2038-06-30 | BY201: 2038-12-31 | BZ201: 2039-06-30 | CA201: 2039-12-31 | CB201: 2040-06-30 | CC201: 2040-12-31 | CD201: 2041-06-30 | CE201: 2041-12-31 | CF201: 2042-06-30 | CG201: 2042-12-31 | CH201: 2043-06-30 | CI201: 2043-12-31 | CJ201: 2044-06-30 | CK201: 2044-12-31 | CL201: 2045-06-30 | CM201: 2045-12-31 | CN201: 2046-06-30 | CO201: 2046-12-31 | CP201: 2047-06-30 | CQ201: 2047-12-31 | CR201: 2048-06-30 | CS201: 2048-12-31 | CT201: 2049-06-30 | CU201: 2049-12-31 | CV201: 2050-06-30 | CW201: 2050-12-31 | CX201: 2051-06-30 | CY201: 2051-12-31 | CZ201: 2052-06-30 | DA201: 2052-12-31 | EI201: =IF(EI8,EI7,NA()) -> 
C202: CFADS | J202: =J171 -> 0 | K202: =K171 -> 0 | L202: 0 | M202: 0 | N202: 0 | O202: 0 | P202: 0 | Q202: 0 | R202: 0 | S202: 0 | T202: 0 | U202: 0 | V202: 0 | W202: 0 | X202: 0 | Y202: 0 | Z202: 0 | AA202: 0 | AB202: 0 | AC202: 0 | AD202: 0 | AE202: 0 | AF202: 0 | AG202: 0 | AH202: 0 | AI202: 0 | AJ202: 0 | AK202: 0 | AL202: 0 | AM202: 0 | AN202: 0 | AO202: 0 | AP202: 0 | AQ202: 0 | AR202: 0 | AS202: 0 | AT202: 60 | AU202: 90 | AV202: 64 | AW202: 96 | AX202: 76 | AY202: 114 | AZ202: 88 | BA202: 132 | BB202: 88 | BC202: 132 | BD202: 88 | BE202: 132 | BF202: 88 | BG202: 132 | BH202: 88 | BI202: 132 | BJ202: 64 | BK202: 96 | BL202: 64 | BM202: 96 | BN202: 64 | BO202: 96 | BP202: 64 | BQ202: 96 | BR202: 64 | BS202: 96 | BT202: 64 | BU202: 96 | BV202: 64 | BW202: =BW171 -> 96 | BX202: 76 | BY202: 114 | BZ202: 76 | CA202: 114 | CB202: 76 | CC202: 114 | CD202: 76 | CE202: 114 | CF202: 76 | CG202: 114 | CH202: 76 | CI202: 114 | CJ202: 76 | CK202: 114 | CL202: 76 | CM202: 114 | CN202: 76 | CO202: 114 | CP202: 76 | CQ202: 114 | CR202: 76 | CS202: 114 | CT202: 76 | CU202: 114 | CV202: 76 | CW202: 114 | CX202: 76 | CY202: 114 | CZ202: 80 | DA202: 120 | DB202: 0 | DC202: 0 | DD202: 0 | DE202: 0 | DF202: 0 | DG202: 0 | DH202: 0 | DI202: 0 | DJ202: 0 | DK202: 0 | DL202: 0 | DM202: 0 | DN202: 0 | DO202: 0 | DP202: 0 | DQ202: 0 | DR202: 0 | DS202: 0 | DT202: 0 | DU202: 0 | DV202: 0 | DW202: 0 | DX202: 0 | DY202: 0 | DZ202: 0 | EA202: 0 | EB202: 0 | EC202: 0 | ED202: 0 | EE202: 0 | EF202: 0 | EG202: 0 | EH202: 0 | EI202: =EI171 -> 0 | EJ202: 0 | EK202: 0 | EL202: 0 | EM202: 0 | EN202: 0 | EO202: 0 | EP202: 0 | EQ202: 0 | ER202: 0 | ES202: 0 | ET202: 0 | EU202: 0 | EV202: 0 | EW202: 0 | EX202: 0 | EY202: 0 | EZ202: 0 | FA202: 0 | FB202: 0 | FC202: 0
C203: Debt Service | J203: =J172 -> 0 | K203: =K172 -> 0 | L203: 0 | M203: 0 | N203: 0 | O203: 0 | P203: 0 | Q203: 0 | R203: 0 | S203: 0 | T203: 0 | U203: 0 | V203: 0 | W203: 0 | X203: 0 | Y203: 0 | Z203: 0 | AA203: 0 | AB203: 0 | AC203: 0 | AD203: 0 | AE203: 0 | AF203: 0 | AG203: 0 | AH203: 0 | AI203: 0 | AJ203: 0 | AK203: 0 | AL203: 0 | AM203: 0 | AN203: 0 | AO203: 0 | AP203: 0 | AQ203: 0 | AR203: 0 | AS203: 0 | AT203: 42.85714286 | AU203: 64.28571429 | AV203: 45.71428571 | AW203: 68.57142857 | AX203: 54.28571429 | AY203: 81.42857143 | AZ203: 62.85714286 | BA203: 94.28571429 | BB203: 62.85714286 | BC203: 94.28571429 | BD203: 62.85714286 | BE203: 94.28571429 | BF203: 62.85714286 | BG203: 94.28571429 | BH203: 62.85714286 | BI203: 94.28571429 | BJ203: 45.71428571 | BK203: 68.57142857 | BL203: 45.71428571 | BM203: 68.57142857 | BN203: 45.71428571 | BO203: 68.57142857 | BP203: 45.71428571 | BQ203: 68.57142857 | BR203: 45.71428571 | BS203: 68.57142857 | BT203: 45.71428571 | BU203: 68.57142857 | BV203: 45.71428571 | BW203: =BW172 -> 68.57142857 | BX203: 54.28571429 | BY203: 81.42857143 | BZ203: 54.28571429 | CA203: 81.42857143 | CB203: 54.28571429 | CC203: 81.42857143 | CD203: 54.28571429 | CE203: 81.42857143 | CF203: 54.28571429 | CG203: 81.42857143 | CH203: 54.28571429 | CI203: 81.42857143 | CJ203: 54.28571429 | CK203: 81.42857143 | CL203: -1.750777301e-14 | CM203: -1.750777301e-14 | CN203: -1.750777301e-14 | CO203: -1.750777301e-14 | CP203: -1.750777301e-14 | CQ203: -1.750777301e-14 | CR203: -1.750777301e-14 | CS203: -1.750777301e-14 | CT203: -1.750777301e-14 | CU203: -1.750777301e-14 | CV203: -1.750777301e-14 | CW203: -1.750777301e-14 | CX203: -1.750777301e-14 | CY203: -1.750777301e-14 | CZ203: -1.750777301e-14 | DA203: -1.750777301e-14 | DB203: -1.750777301e-14 | DC203: -1.750777301e-14 | DD203: -1.750777301e-14 | DE203: -1.750777301e-14 | DF203: -1.750777301e-14 | DG203: -1.750777301e-14 | DH203: -1.750777301e-14 | DI203: -1.750777301e-14 | DJ203: -1.750777301e-14 | DK203: -1.750777301e-14 | DL203: -1.750777301e-14 | DM203: -1.750777301e-14 | DN203: -1.750777301e-14 | DO203: -1.750777301e-14 | DP203: -1.750777301e-14 | DQ203: -1.750777301e-14 | DR203: -1.750777301e-14 | DS203: -1.750777301e-14 | DT203: -1.750777301e-14 | DU203: -1.750777301e-14 | DV203: -1.750777301e-14 | DW203: -1.750777301e-14 | DX203: -1.750777301e-14 | DY203: -1.750777301e-14 | DZ203: -1.750777301e-14 | EA203: -1.750777301e-14 | EB203: -1.750777301e-14 | EC203: -1.750777301e-14 | ED203: -1.750777301e-14 | EE203: -1.750777301e-14 | EF203: -1.750777301e-14 | EG203: -1.750777301e-14 | EH203: -1.750777301e-14 | EI203: =EI172 -> -1.750777301e-14 | EJ203: -1.750777301e-14 | EK203: -1.750777301e-14 | EL203: -1.750777301e-14 | EM203: -1.750777301e-14 | EN203: -1.750777301e-14 | EO203: -1.750777301e-14 | EP203: -1.750777301e-14 | EQ203: -1.750777301e-14 | ER203: -1.750777301e-14 | ES203: -1.750777301e-14 | ET203: -1.750777301e-14 | EU203: -1.750777301e-14 | EV203: -1.750777301e-14 | EW203: -1.750777301e-14 | EX203: -1.750777301e-14 | EY203: -1.750777301e-14 | EZ203: -1.750777301e-14 | FA203: -1.750777301e-14 | FB203: -1.750777301e-14 | FC203: -1.750777301e-14
